Workbook

Sheet Control Panel
A1: GO TO
A2: Utah | D2: FILING INFORMATION | K2: Model Checks
A3: 1.1 | K3: (Must Be 0)
A4: 1.2 | F4: UTAH | K4: ='Model Checks'!D7 -> 1.107084093
A5: 1.3 pg 1 | E5: Current Case No. | F5: 21-057-28 | K5: (If this is not 0, or very close, go to
A6: 1.3 pg 2 | E6: Filing Date | F6: 2021-12-01 | K6: the "Model Checks"
E7: Test-Year Ending | F7: 2022-12-31 | K7: Tab and find the
A8: 1.4 pg 1 | E8: Proposed Effective Date | F8: 2022-01-01 | K8: problem.)
A9: 1.4 pg 2 | E9: Prior Case No. | F9: 21-057-17
A10: 1.4 pg 3 | K10: Go To
A11: 1.5 | D11: Total Increase (Decrease) | F11: ='Utah Summary-by class'!Q27 -> 28885223.02 | H11: =F11-G11 -> 28885223.02 | K11: Model Checks'
A12: 1.6 pg 1
A13: 1.6 pg 2
A14: 1.6 pg 3 | D14: Typical Customer's Bill | K14: Old Ut Data color
A15: 1.7 pg 1
A16: 1.7 pg 2 | E16: Previous | F16: ='Ut 1.6'!F30 -> 767.58 | K16: New Data color
A17: 1.8 | E17: Proposed | F17: ='Ut 1.6'!H30 -> 787.76
A18: 1.9 | E18: Difference | F18: ='Ut 1.6'!J30 -> 20.18 | H18: =F18-G18 -> 20.18
A19: Monthly Inputs | E19: % Difference | F19: ='Ut 1.6'!J32 -> 2.63 | H19: =F19-G19 -> 2.63
A20: Other Inputs
A21: Expenses
A22: Rate Base
D29: DEU Exhibit Headings
D31: UTAH
F32: Dominion Energy Utah
F33: ="Docket No. "&F5 -> Docket No. 21-057-28
D35: Test-Year (enter as text)
E36: from | F36: 2022-01-01
E37: to | F37: 2022-12-31

Sheet Monthly Inputs
A1: MONTHLY INPUTS
G2: TEST-YEAR COLUMNS | S2: 12-Month
E3: Nov21 | F3: Dec21 | G3: Jan22 | H3: Feb22 | I3: Mar22 | J3: Apr22 | K3: May22 | L3: Jun22 | M3: Jul22 | N3: Aug22 | O3: Sep22 | P3: Oct22 | Q3: Nov22 | R3: Dec22 | S3: =R3 -> Dec22
E4: 11 | F4: 12 | G4: 11 | H4: 12 | I4: 1 | J4: 2 | K4: 3 | L4: 4 | M4: 5 | N4: 6 | O4: 7 | P4: 8 | Q4: 9 | R4: 10
A5: QGC Company Produced Gas In MDth | I5: Updated: | J5: 2021-10-26
A6: WEXPRO I
B7: Company Production In Dth | E7: 3871817.989 | F7: 3954506.988 | G7: 3908627.988 | H7: 3490498.99 | I7: 3812259.988 | J7: 3443894.989 | K7: 3515208.989 | L7: 3360101.986 | M7: 3424343.286 | N7: 3384602.392 | O7: 3246630.992 | P7: 3311505.589 | Q7: 3618915.987 | R7: 3604665.791 | S7: =SUM(G7:R7) -> 42121256.97
B8: Birch Cr Gathering | E8: 0 | F8: 0 | G8: 0 | H8: 0 | I8: 0 | J8: 0 | K8: 0 | L8: 0 | M8: 0 | N8: 0 | O8: 0 | P8: 0 | Q8: 0 | R8: =R7/$S$7*$S$8 -> 0 | S8: ='Other Inputs'!$D$177 -> 0
B9: Gathering | E9: 659373.4 | F9: 673455.3964 | G9: =G7/$S$7*$S$9 -> 686383.7293 | H9: 612957.2118 | I9: 669460.8021 | J9: 604773.2076 | K9: 617296.4688 | L9: 590058.542 | M9: 601339.7852 | N9: 594360.9929 | O9: 570132.2036 | P9: 581524.6584 | Q9: 635508.1779 | R9: 633005.7392 | S9: =+'Ex 1.1 Data'!E1 -> 7396801.519
A12: WEXPRO II
B13: Company Production In Dth | E13: 1425537 | F13: 1448150 | G13: 1409483 | H13: 1243915 | I13: 1343696 | J13: 1270473 | K13: 1279707 | L13: 1210752 | M13: 1185490 | N13: 1160095 | O13: 1097892 | P13: 1110111 | Q13: 1401078 | R13: 1420824 | S13: =SUM(G13:R13) -> 15133516
B14: Samson Gathering | E14: 708423.7056 | F14: 719661.2851 | G14: =G13/$S$13*$S$14 -> 721740.2717 | H14: 636959.4739 | I14: 688053.3615 | J14: 650558.771 | K14: 655287.1357 | L14: 619978.0185 | M14: 607042.3515 | N14: 594038.5805 | O14: 562186.8943 | P14: 568443.759 | Q14: 717436.405 | R14: 727547.5474 | S14: =+'Ex 1.1 Data'!L1 -> 7749272.57
D21: 1000
B23: Injections in Dth
C24: Chalk Creek | E24: 90000 | F24: 53892 | G24: 0 | H24: 0 | I24: 0 | J24: 0 | K24: 0 | L24: 0 | M24: 0 | N24: 0 | O24: 40000 | P24: 135000 | Q24: 10996 | R24: 90000 | S24: =SUM(G24:R24) -> 275996
C25: Clay Basin | E25: 0 | F25: 0 | G25: 0 | H25: 0 | I25: 0 | J25: 945000 | K25: 2418001 | L25: 2166181 | M25: 1976476 | N25: 2051859 | O25: 1865632 | P25: 1576854 | Q25: 0 | R25: 0 | S25: 13000003
C26: Coalville | E26: 90186 | F26: 10000 | G26: 0 | H26: 0 | I26: 325000 | J26: 0 | K26: 0 | L26: 0 | M26: 0 | N26: 0 | O26: 42000 | P26: 280800 | Q26: 0 | R26: 37386 | S26: 685186
C27: Leroy | E27: 300000 | F27: 76296 | G27: 0 | H27: 0 | I27: 0 | J27: 0 | K27: 0 | L27: 0 | M27: 0 | N27: 0 | O27: 47500 | P27: 45000 | Q27: 0 | R27: 272055 | S27: 364555
C28: Spire | E28: 0 | F28: 0 | G28: 0 | H28: 0 | I28: 0 | J28: 0 | K28: 0 | L28: 0 | M28: 0 | N28: 0 | O28: 0 | P28: 0 | Q28: 0 | R28: 0 | S28: 0
C29: Total Injections | E29: 480186 | F29: 140188 | G29: =SUM(G24:G28) -> 0 | H29: 0 | I29: 325000 | J29: 945000 | K29: 2418001 | L29: 2166181 | M29: =SUM(M24:M28) -> 1976476 | N29: =SUM(N24:N28) -> 2051859 | O29: 1995132 | P29: 2037654 | Q29: 10996 | R29: 399441 | S29: 14325740
B31: Withdrawls In Dth
C32: Chalk Creek | E32: 0 | F32: 0 | G32: 307500 | H32: 13500 | I32: 0 | J32: 0 | K32: 0 | L32: 0 | M32: 0 | N32: 0 | O32: 0 | P32: 0 | Q32: 0 | R32: 0 | S32: =SUM(G32:R32) -> 321000
C33: Clay Basin | E33: 842361 | F33: 3754649 | G33: 3410050 | H33: 3080045 | I33: 1599106 | J33: 0 | K33: 0 | L33: 0 | M33: 0 | N33: 0 | O33: 0 | P33: 0 | Q33: 2087659 | R33: 2672247 | S33: 12849107
C34: Coalville | E34: 0 | F34: 0 | G34: 625000 | H34: 60186 | I34: 0 | J34: 0 | K34: 0 | L34: 0 | M34: 0 | N34: 0 | O34: 0 | P34: 0 | Q34: 0 | R34: 0 | S34: 685186
C35: Leroy | E35: 0 | F35: 0 | G35: 443498 | H35: 0 | I35: 0 | J35: 0 | K35: 0 | L35: 0 | M35: 0 | N35: 0 | O35: 0 | P35: 0 | Q35: 0 | R35: 0 | S35: 443498
C36: Spire | E36: 0 | F36: 0 | G36: 0 | H36: 0 | I36: 0 | J36: 0 | K36: 0 | L36: 0 | M36: 0 | N36: 0 | O36: 0 | P36: 0 | Q36: 0 | R36: 0 | S36: 0
C37: Total Withdrawls | E37: 842361 | F37: 3754649 | G37: =SUM(G32:G36) -> 4786048 | H37: 3153731 | I37: 1599106 | J37: 0 | K37: 0 | L37: 0 | M37: =SUM(M32:M36) -> 0 | N37: =SUM(N32:N36) -> 0 | O37: 0 | P37: 0 | Q37: 2087659 | R37: 2672247 | S37: 14298791
B39: Lost & Unaccounted for on QPC
A42: Injection and Withdrawl Used, Lost and Unaccounted For
D43: Gas Use
D44: %
B45: Injections in Dth
C46: Chalk Creek | D46: ='Other Inputs'!E152 -> 0.0099 | E46: =E24*-$D46 -> -891 | F46: -533.5308 | G46: 0 | H46: =H24*-$D46 -> 0 | I46: 0 | J46: 0 | K46: 0 | L46: 0 | M46: =M24*-$D46 -> 0 | N46: 0 | O46: -396 | P46: -1336.5 | Q46: -108.8604 | R46: -891 | S46: =SUM(G46:R46) -> -2732.3604
C47: Clay Basin | D47: ='Other Inputs'!E161 -> 0.01366 | E47: 0 | F47: 0 | G47: 0 | H47: =H25*-$D47 -> 0 | I47: 0 | J47: -12908.7 | K47: -33029.89366 | L47: -29590.03246 | M47: -26998.66216 | N47: -28028.39394 | O47: -25484.53312 | P47: -21539.82564 | Q47: 0 | R47: 0 | S47: =SUM(G47:R47) -> -177580.041
C48: Coalville | D48: ='Other Inputs'!E164 -> 0.0108 | E48: =E26*-$D48 -> -974.0088 | F48: -108 | G48: =G26*-$D48 -> 0 | H48: 0 | I48: -3510 | J48: 0 | K48: 0 | L48: 0 | M48: 0 | N48: 0 | O48: -453.6 | P48: -3032.64 | Q48: 0 | R48: -403.7688 | S48: =SUM(G48:R48) -> -7400.0088
C49: Leroy | D49: ='Other Inputs'!E158 -> 0.0295 | E49: -8850 | F49: -2250.732 | G49: 0 | H49: 0 | I49: 0 | J49: 0 | K49: 0 | L49: 0 | M49: 0 | N49: 0 | O49: -1401.25 | P49: -1327.5 | Q49: 0 | R49: -8025.6225 | S49: =SUM(G49:R49) -> -10754.3725
C50: Ryckman | D50: ='Other Inputs'!E155 -> 0 | E50: 0 | F50: 0 | G50: 0 | H50: 0 | I50: 0 | J50: 0 | K50: 0 | L50: 0 | M50: 0 | N50: 0 | O50: 0 | P50: 0 | Q50: 0 | R50: 0 | S50: =SUM(G50:R50) -> 0
C51: Total Injections | E51: =SUM(E46:E50) -> -10715.0088 | F51: -2892.2628 | G51: 0 | H51: 0 | I51: -3510 | J51: -12908.7 | K51: -33029.89366 | L51: -29590.03246 | M51: -26998.66216 | N51: -28028.39394 | O51: -27735.38312 | P51: -27236.46564 | Q51: -108.8604 | R51: -9320.3913 | S51: =SUM(S46:S50) -> -198466.7827
B53: Withdrawls In Dth
C54: Chalk Creek | D54: ='Other Inputs'!E153 -> 0.0184 | E54: =E32*-$D54 -> 0 | F54: 0 | G54: =G32*-$D54 -> -5658 | H54: -248.4 | I54: 0 | J54: 0 | K54: 0 | L54: 0 | M54: =M32*-$D54 -> 0 | N54: 0 | O54: 0 | P54: 0 | Q54: 0 | R54: 0 | S54: =SUM(G54:R54) -> -5906.4
C55: Clay Basin | D55: ='Other Inputs'!E162 -> 0.002147 | E55: -1808.549067 | F55: -8061.231403 | G55: -7321.37735 | H55: -6612.856615 | I55: -3433.280582 | J55: 0 | K55: 0 | L55: 0 | M55: 0 | N55: 0 | O55: 0 | P55: 0 | Q55: -4482.203873 | R55: -5737.314309 | S55: =SUM(G55:R55) -> -27587.03273
C56: Coalville | D56: ='Other Inputs'!E165 -> 0.0239 | E56: 0 | F56: 0 | G56: -14937.5 | H56: -1438.4454 | I56: 0 | J56: 0 | K56: 0 | L56: 0 | M56: 0 | N56: 0 | O56: 0 | P56: 0 | Q56: 0 | R56: 0 | S56: =SUM(G56:R56) -> -16375.9454
C57: Leroy | D57: ='Other Inputs'!E159 -> 0.0243 | E57: 0 | F57: 0 | G57: -10777.0014 | H57: 0 | I57: 0 | J57: 0 | K57: 0 | L57: 0 | M57: 0 | N57: 0 | O57: 0 | P57: 0 | Q57: 0 | R57: 0 | S57: =SUM(G57:R57) -> -10777.0014
C58: Ryckman | D58: ='Other Inputs'!E156 -> 0 | E58: 0 | F58: 0 | G58: 0 | H58: 0 | I58: 0 | J58: 0 | K58: 0 | L58: 0 | M58: 0 | N58: 0 | O58: 0 | P58: 0 | Q58: 0 | R58: 0 | S58: =SUM(G58:R58) -> 0
C59: Total Withdrawls | E59: =SUM(E54:E58) -> -1808.549067 | F59: =SUM(F54:F58) -> -8061.231403 | G59: =SUM(G54:G58) -> -38693.87875 | H59: -8299.702015 | I59: -3433.280582 | J59: 0 | K59: 0 | L59: 0 | M59: 0 | N59: 0 | O59: 0 | P59: 0 | Q59: -4482.203873 | R59: -5737.314309 | S59: =SUM(S54:S58) -> -60646.37953
B61: QPC Transportation Loss
C62: Chalk Creek | D62: ='Other Inputs'!$E$275 -> 0.0115 | E62: =E32*-$D62 -> 0 | F62: =F32*-$D62 -> 0 | G62: =G32*-$D62 -> -3536.25 | H62: =H32*-$D62 -> -155.25 | I62: 0 | J62: 0 | K62: 0 | L62: 0 | M62: =M32*-$D62 -> 0 | N62: 0 | O62: 0 | P62: 0 | Q62: 0 | R62: 0 | S62: =SUM(G62:R62) -> -3691.5
C63: Clay Basin | D63: ='Other Inputs'!$E$275 -> 0.0115 | E63: =E33*-$D63 -> -9687.1515 | F63: -43178.4635 | G63: =G33*-$D63 -> -39215.575 | H63: -35420.5175 | I63: -18389.719 | J63: 0 | K63: 0 | L63: 0 | M63: 0 | N63: 0 | O63: 0 | P63: 0 | Q63: -24008.0785 | R63: -30730.8405 | S63: =SUM(G63:R63) -> -147764.7305
C64: Coalville | D64: ='Other Inputs'!$E$275 -> 0.0115 | E64: 0 | F64: 0 | G64: -7187.5 | H64: -692.139 | I64: 0 | J64: 0 | K64: 0 | L64: 0 | M64: 0 | N64: 0 | O64: 0 | P64: 0 | Q64: 0 | R64: 0 | S64: =SUM(G64:R64) -> -7879.639
C65: Leroy | D65: ='Other Inputs'!$E$275 -> 0.0115 | E65: 0 | F65: 0 | G65: -5100.227 | H65: 0 | I65: 0 | J65: 0 | K65: 0 | L65: 0 | M65: 0 | N65: 0 | O65: 0 | P65: 0 | Q65: 0 | R65: 0 | S65: =SUM(G65:R65) -> -5100.227
C66: Ryckman | D66: ='Other Inputs'!$E$275 -> 0.0115 | E66: 0 | F66: 0 | G66: 0 | H66: 0 | I66: 0 | J66: 0 | K66: 0 | L66: 0 | M66: 0 | N66: 0 | O66: 0 | P66: 0 | Q66: 0 | R66: 0 | S66: =SUM(G66:R66) -> 0
C67: Total Withdrawls | E67: =SUM(E62:E66) -> -9687.1515 | F67: =SUM(F62:F66) -> -43178.4635 | G67: =SUM(G62:G66) -> -55039.552 | H67: -36267.9065 | I67: -18389.719 | J67: 0 | K67: 0 | L67: 0 | M67: 0 | N67: 0 | O67: 0 | P67: 0 | Q67: -24008.0785 | R67: -30730.8405 | S67: -164436.0965
B70: Total Injections & Withdrawls | E70: =E51+E59 -> -12523.55787 | F70: =F51+F59 -> -10953.4942 | G70: =G51+G59 -> -38693.87875 | H70: =H51+H59 -> -8299.702015 | I70: -6943.280582 | J70: -12908.7 | K70: -33029.89366 | L70: -29590.03246 | M70: -26998.66216 | N70: -28028.39394 | O70: -27735.38312 | P70: -27236.46564 | Q70: -4591.064273 | R70: -15057.70561 | S70: =S51+S59 -> -259113.1622
R72: Fuel Factor | S72: =-S70/(S37+S29) -> 0.009052136512
S74: 12-Month
E75: =E3 -> Nov21 | F75: =F3 -> Dec21 | G75: =G3 -> Jan22 | H75: =H3 -> Feb22 | I75: Mar22 | J75: Apr22 | K75: May22 | L75: Jun22 | M75: Jul22 | N75: Aug22 | O75: Sep22 | P75: Oct22 | Q75: Nov22 | R75: Dec22 | S75: Total
I77: Updated: | J77: 2021-11-23 | K77: EXH 1.2
A78: Natural Gas Spot Price Forecast - Average of GI, Cera & Pira | G78: (Forecast --->)
B79: Kern River Opal, Wyoming | E79: 5.82 | F79: 5.86 | G79: 5.56 | H79: 5.04 | I79: 4.45 | J79: 3.65 | K79: 3.42 | L79: 3.22 | M79: 3.33 | N79: 3.55 | O79: 3.54 | P79: 3.49 | Q79: 3.79 | R79: 4.14
B82: Spot Purchases from IRP | G82: 1263.171 | H82: 1408.017 | I82: 6860.66 | J82: 5178.222 | K82: 3102.498 | L82: 704.763 | M82: 0 | N82: 174.593 | O82: 802.451 | P82: 4578.141 | Q82: 3631.907 | R82: 7705.147 | S82: =SUM(G82:R82) -> 35409.57
C83: In DTH | G83: =G82*1000 -> 1263171 | H83: =H82*1000 -> 1408017 | I83: 6860660 | J83: 5178222 | K83: 3102498 | L83: =L82*1000 -> 704763 | M83: =M82*1000 -> 0 | N83: 174593 | O83: =O82*1000 -> 802451 | P83: 4578141 | Q83: 3631907 | R83: 7705147 | S83: =SUM(G83:R83) -> 35409570
C84: In $ | G84: =G83*G79 -> 7023230.76 | H84: =H83*H79 -> 7096405.68 | I84: =I83*I79 -> 30529937 | J84: =J83*J79 -> 18900510.3 | K84: =K83*K79 -> 10610543.16 | L84: =L83*L79 -> 2269336.86 | M84: 0 | N84: 619805.15 | O84: 2840676.54 | P84: 15977712.09 | Q84: =Q83*Q79 -> 13764927.53 | R84: 31899308.58 | S84: =SUM(G84:R84) -> 141532393.7
A87: CONTRACT PURCHASES | I87: Updated: | J87: 2021-11-15
B88: RESET FORMULAS TO WORKSHEET
B89: Peaking Purchases (DTH) | G89: 3200000 | H89: 2500000 | I89: 0 | J89: 0 | K89: 0 | L89: 0 | M89: 0 | N89: 0 | O89: 0 | P89: 0 | Q89: 0 | R89: 3000000 | S89: =SUM(G89:R89) -> 8700000
B90: Peaking Purchases ($) | G90: 28434300.09 | H90: 20146429.76 | I90: 0 | J90: 0 | K90: 0 | L90: 0 | M90: 0 | N90: 0 | O90: 0 | P90: 0 | Q90: 0 | R90: 19880914.64 | S90: =SUM(G90:R90) -> 68461644.49
B92: Term Purchases (DTH) | G92: 4805000 | H92: 4340000 | I92: 930000 | J92: 900000 | K92: 0 | L92: 0 | M92: 0 | N92: 0 | O92: 0 | P92: 0 | Q92: 0 | R92: 1550000 | S92: =SUM(G92:R92) -> 12525000
B93: Term Purchases ($) | G93: 27614170.31 | H93: 22625163.23 | I93: 4488834.122 | J93: 3602820.793 | K93: 0 | L93: 0 | M93: 0 | N93: 0 | O93: 0 | P93: 0 | Q93: 0 | R93: 6601404 | S93: =SUM(G93:R93) -> 64932392.46
B94: Stabilization Costs (Winter Months - Oct to Mar) | G94: 0 | H94: 0 | I94: 0 | J94: 0 | K94: 0 | L94: 0 | M94: 0 | N94: 0 | O94: 0 | P94: 0 | Q94: 0 | R94: 0 | S94: =SUM(G94:R94) -> 0
B96: Hedging Term Purchases (DTH) | G96: 2480000 | H96: 2240000 | I96: 0 | J96: 0 | K96: 0 | L96: 0 | M96: 0 | N96: 0 | O96: 0 | P96: 0 | Q96: 0 | R96: =0*2480000 -> 0 | S96: =SUM(G96:R96) -> 4720000
B97: Hedging Term Purchases ($) | G97: 14483200 | H97: 13081600 | I97: 0 | J97: 0 | K97: 0 | L97: 0 | M97: 0 | N97: 0 | O97: 0 | P97: 0 | Q97: 0 | R97: =0*14483200 -> 0 | S97: =SUM(G97:R97) -> 27564800
B100: Total Purchases (DTH) | E100: 0 | F100: 0 | G100: =G89+G92+G96 -> 10485000 | H100: =H89+H92+H96 -> 9080000 | I100: 930000 | J100: 900000 | K100: 0 | L100: 0 | M100: 0 | N100: 0 | O100: 0 | P100: 0 | Q100: 0 | R100: 4550000 | S100: =SUM(G100:R100) -> 25945000
B101: Total Purchases ($) | E101: 0 | F101: 0 | G101: =G90+G93+G97 -> 70531670.4 | H101: =H90+H93+H97 -> 55853192.99 | I101: 4488834.122 | J101: 3602820.793 | K101: 0 | L101: 0 | M101: 0 | N101: 0 | O101: 0 | P101: 0 | Q101: 0 | R101: 26482318.64 | S101: =SUM(G101:R101) -> 160958837
A104: Typical Customer Monthly Usage in Dth
B105: Utah | G105: =VLOOKUP(MONTH(L3),$F$119:$G$130,2,FALSE) -> 3.1 | H105: 2 | I105: 1.8 | J105: 2 | K105: 3.1 | L105: 6.3 | M105: =VLOOKUP(MONTH(R3),$F$119:$G$130,2,FALSE) -> 11.5 | N105: =VLOOKUP(MONTH(G3),$F$119:$G$130,2,FALSE) -> 14.9 | O105: =VLOOKUP(MONTH(H3),$F$119:$G$130,2,FALSE) -> 12.5 | P105: =VLOOKUP(MONTH(I3),$F$119:$G$130,2,FALSE) -> 10.1 | Q105: =VLOOKUP(MONTH(J3),$F$119:$G$130,2,FALSE) -> 8.3 | R105: =VLOOKUP(MONTH(K3),$F$119:$G$130,2,FALSE) -> 4.4 | S105: =SUM(G105:R105) -> 80
B106: Wyoming | G106: =VLOOKUP(MONTH(L3),$F$119:$H$130,3,FALSE) -> 3.7 | H106: 2.3 | I106: 1.7 | J106: 2.1 | K106: 4.1 | L106: 8 | M106: =VLOOKUP(MONTH(R3),$F$119:$H$130,3,FALSE) -> 12.3 | N106: =VLOOKUP(MONTH(G3),$F$119:$H$130,3,FALSE) -> 14.7 | O106: =VLOOKUP(MONTH(H3),$F$119:$H$130,3,FALSE) -> 14.1 | P106: =VLOOKUP(MONTH(I3),$F$119:$H$130,3,FALSE) -> 11.8 | Q106: =VLOOKUP(MONTH(J3),$F$119:$H$130,3,FALSE) -> 9.4 | R106: =VLOOKUP(MONTH(K3),$F$119:$H$130,3,FALSE) -> 5.8 | S106: =SUM(G106:R106) -> 90
A108: INPUTS FROM WEXPRO | G108: =+G3 -> Jan22 | H108: =+H3 -> Feb22 | I108: Mar22 | J108: Apr22 | K108: May22 | L108: Jun22 | M108: Jul22 | N108: Aug22 | O108: Sep22 | P108: Oct22 | Q108: Nov22 | R108: Dec22 | S108: 12-Month
S109: Total
A110: Wexpro I Operator Fee (Wexpro forecast) | E110: Updated: | F110: 2021-11-22 | G110: 14822344.62 | H110: 14694049.54 | I110: 14342604.74 | J110: 13676970.35 | K110: 13688100.37 | L110: 13337096.18 | M110: 13400723.44 | N110: 13200872.93 | O110: 13283623.12 | P110: 13366434.79 | Q110: 13033938.88 | R110: 13322722.42 | S110: =SUM(G110:R110) -> 164169481.4
A112: Wexpro II Operator Fee (Wexpro forecast) | E112: Updated: | F112: 2021-11-22 | G112: 3446307.356 | H112: 3292554.702 | I112: 3356511.786 | J112: 3125434.89 | K112: 3097642.626 | L112: 2968347.244 | M112: 2989129.603 | N112: 2974303.292 | O112: 2883696.053 | P112: 2893900.217 | Q112: 3436745.721 | R112: 3453596.728 | S112: =SUM(G112:R112) -> 37918170.22
F118: Typical UPC | G118: UT | H118: WY
F119: 1 | G119: 14.9 | H119: 14.7
F120: 2 | G120: 12.5 | H120: 14.1
F121: 3 | G121: 10.1 | H121: 11.8
F122: 4 | G122: 8.3 | H122: 9.4
F123: 5 | G123: 4.4 | H123: 5.8
F124: 6 | G124: 3.1 | H124: 3.7
F125: 7 | G125: 2 | H125: 2.3
F126: 8 | G126: 1.8 | H126: 1.7
F127: 9 | G127: 2 | H127: 2.1
F128: 10 | G128: 3.1 | H128: 4.1
F129: 11 | G129: 6.3 | H129: 8
F130: 12 | G130: 11.5 | H130: 12.3
F131: Total | G131: =SUM(G119:G130) -> 80 | H131: =SUM(H119:H130) -> 90

Sheet Other Inputs
H1: Used In
A2: INPUT SECTION | H2: Ut | I2: Wy
A3: INPUTS FROM QUESTAR PIPELINE TARIFF AND CONTRACTS
B5: Storage Commodity Rates | E5: Rate | F5: Effective
B6: Peaking Injections | E6: 0.03872 | F6: 2021-01-01 | H6: 1.3.2 | I6: 1.3p2
B7: Peaking Withdrawals | E7: 0.03872 | F7: =$F$6 -> 2021-01-01 | H7: 1.3.2 | I7: 1.3p2
B8: Spire Injections | E8: 0 | F8: =$F$6 -> 2021-01-01
B9: Spire Withdrawals | E9: 0 | F9: =$F$6 -> 2021-01-01
B10: Clay Basin Injections | E10: 0.01049 | F10: =$F$6 -> 2021-01-01 | H10: 1.3.2 | I10: 1.3p2
B11: Clay Basin Withdrawals | E11: 0.01781 | F11: =$F$6 -> 2021-01-01 | H11: 1.3.2 | I11: 1.3p2
B13: Storage Field Reservation Charges
B14: Peaking Storage Fields Demand (Leroy, Chalk Creek, Coalville) | E14: 2.87375 | F14: =$F$6 -> 2021-01-01 | H14: 1.3.2 | I14: 1.3p2
B15: Spire | E15: 0 | F15: =$F$6 -> 2021-01-01
B16: Clay Basin Demand | E16: 2.85338 | F16: =$F$6 -> 2021-01-01 | H16: 1.3.2 | I16: 1.3p2
B17: Clay Basin Capacity | E17: 0.02378 | F17: =$F$6 -> 2021-01-01 | H17: 1.3.2 | I17: 1.3p2
B19: Peak Hour Service
B20: Kern River | D20: 28752 | E20: 3 | F20: =+F21*E21/E20 -> 16.0908
B21: mid Nov - mid Feb | E21: =16+31+31+14 -> 92 | F21: =0.5191+0.0044+0.0012 -> 0.5247
B23: Dominion Energy Questar Pipeline | D23: =(170000+54000)/24*8 -> 74666.66667 | E23: 3 | F23: =(1250772+397304)/(D23*E23) -> 7.357482143
B24: mid Nov - mid Feb | E24: =16+31+31+14 -> 92 | F24: =+F23/E24*E23 -> 0.239917896
B27: FIRM TRANSPORTATION | D27: Contract Dth | E27: Months | F27: Maximum Rate | G27: Effective
B28: T-1 Transportation - Yearly (MT241) | D28: =798902 -> 798902 | E28: 12 | F28: 5.28804 | G28: 2021-01-01 | H28: 1.3p1
B29: T-1 Transportation - Yearly (Mainline 104) | D29: 30000 | E29: 12 | F29: 5.28804 | G29: =$G$28 -> 2021-01-01 | H29: Jan
B30: T-1 Transportation - Yearly (Tieline 112) | D30: 12000 | E30: 12 | F30: 5.28804 | G30: =$G$28 -> 2021-01-01 | H30: 1.3p1
B31: T-1 Transportation - Nov-Mar | D31: 75000 | E31: 5 | F31: 6.80887 | G31: =$G$28 -> 2021-01-01
B32: T-1 Transportation - Yearly (Hyrum) | D32: 100000 | E32: 12 | F32: 5.28804 | G32: =$G$28 -> 2021-01-01
B33: Total Yearly T-1 Transportation | D33: =SUM(D28:D32) -> 1015902 | E33: 12
B35: No-Notice Transportation (BASE TARIFF RATE) | D35: 203542 | E35: 12 | F35: 0.86753 | G35: =$G$28 -> 2021-01-01 | H35: 1.3p1
A37: Dominion Energy Overthrust Pipeline, LLC
B38: Jan- Dec #6546 | D38: 8542 | E38: 12 | F38: 1.62 | G38: 2019-01-01
B39: Systemwide Usage Charge | F39: 0.00167 | G39: =+G38 -> 2019-01-01
B41: TRANSPORTATION COMMODITY
B42: PIPELINE USAGE CHARGE TO VOLUMETRIC RELEASES
B43: QPC Commodity
B44: QPC Firm Transportation Usage Charge (Max & Min) (BASE TARIFF RATE) | F44: 0.00267 | G44: 2021-01-01 | H44: 1.3p1
B45: QPC (ANNUAL CHARGE ADJUSTMENT) | F45: 0.0012 | G45: 2021-10-01 | H45: 1.3p1
E47: Current | F47: Proposed
B48: INTER TRANS (T-2 PIPELINE BASE TARIFF) MAX | D48: Base Tariff | E48: 0.17652 | F48: 0.17652 | G48: 2021-01-01
D49: Annual Charge | E49: 0.0012 | F49: 0.0012 | G49: 2021-10-01
D50: Total | E50: =SUM(E48:E49) -> 0.17772 | F50: =SUM(F48:F49) -> 0.17772
B53: Utah | E53: =ROUND((E50)/(1-$E272),5) -> 0.17869 | F53: =ROUND((F50)/(1-E272),5) -> 0.17869 | H53: 1.6.3
B54: Wyoming | F54: =ROUND((F50)/(1-E273),5) -> 0.18043
A56: INPUTS FROM KERN RIVER PIPELINE TARIFF AND CONTRACTS | E56: 15.78929167
B57: Kern River 2003 Expansion | D57: Contract Dth | E57: Months | F57: Maximum Rate | G57: Effective
F58: =0.2018-0.0222 -> 0.1796 | G58: 2021-01-01
B59: Jan - Dec #20029 | D59: 33000 | E59: 12 | F59: =(F58*(365-153))/E59 -> 3.172933333 | H59: 1.3.1
B60: November - March #20029 | D60: 50000 | E60: 5 | F60: =F59 -> 3.172933333 | H60: Jan
B61: Jan - Dec #1829 | D61: 1885 | E61: 12 | F61: =F62*E62/E61 -> 5.487166667
B62: Days in Tariff Rate | E62: 365 | F62: =0.2027-0.0223 -> 0.1804 | G62: =G58 -> 2021-01-01
B64: Citadel Energy Marketing
B65: Dec - Feb #20017 | D65: 56925 | E65: 3 | F65: =+E66*F66/E65 -> 8.7 | H65: 1.3.1
B66: Days in Tariff Rate | E66: =31+31+28 -> 90 | F66: 0.29
B67: Nov & Mar #20017 | D67: 6000 | E67: 2 | F67: =+F68*E68/E67 -> 8.845 | H67: Jan
B68: Days in Tariff Rate | E68: =30+31 -> 61 | F68: 0.29
B69: Nov - Mar #20024 | D69: 27000 | E69: 5 | F69: =+F70*E70/E69 -> 8.758 | H69: Jan
B70: Days in Tariff Rate | E70: =30+31+31+28+31 -> 151 | F70: 0.29
B72: Kern River 2003 Expansion | E72: Days in TEST PERIOD
B73: Jan - Dec | C73: 0.757645847 | D73: =D59+D61 -> 34885 | E73: 365 | F73: 0.0044 | G73: =G62 -> 2021-01-01 | H73: 1.3p1
B74: November - March | C74: =C73 -> 0.757645847 | D74: =D60 -> 50000 | E74: =30+31+31+28+31 -> 151 | F74: 0.0044 | G74: =G62 -> 2021-01-01 | H74: 1.3p1
B76: Kern River Original System Period Two Rates #20017
B77: Dec - Feb #20017 | C77: =+C73 -> 0.757645847 | D77: 56925 | E77: =31+31+28 -> 90 | F77: 0.0044 | G77: =+G74 -> 2021-01-01 | H77: 1.3.1
B78: Nov & Mar #20017 | C78: =+C73 -> 0.757645847 | D78: 6000 | E78: 61 | F78: 0.0044 | G78: =+G74 -> 2021-01-01 | H78: 1.3.2
B79: Kern River 2002 Expansion Period Two Rates #20024
B80: Nov - Mar #20024 | C80: =+C73 -> 0.757645847 | D80: 27000 | E80: =30+31+31+28+31 -> 151 | F80: 0.0044 | G80: =+G74 -> 2021-01-01 | H80: Jan
A83: INPUTS FROM QUESTAR GAS TARIFF
A86: Current SNG Rates
B87: UTAH | E87: Current SNG Base | F87: Current SNG Amort. | G87: Current SNG Total | J87: Effective
B88: GS | D88: Winter | E88: 0.88317 | F88: 0.05618 | G88: =E88+F88 -> 0.93935 | J88: 2021-12-01
D89: Summer | E89: 0.37355 | F89: 0.02356 | G89: =E89+F89 -> 0.39711 | J89: 2021-12-01
B91: FS | D91: Winter | E91: 0.93437 | F91: 0.05319 | G91: =E91+F91 -> 0.98756 | J91: 2021-12-01
D92: Summer | E92: 0.75994 | F92: 0.04298 | G92: =E92+F92 -> 0.80292 | J92: 2021-12-01
B94: NGV | E94: 0.96427 | F94: 0.0621 | G94: =E94+F94 -> 1.02637 | J94: 2021-12-01
B96: (This includes bad debt adjustment) IS | E96: 0.17963 | G96: =E96+F96 -> 0.17963 | J96: 2021-12-01
A98: Current Rates
B99: Utah GS | J99: Effective
B100: Block 1 | D100: Summer | G100: 7.69315 | J100: 2021-12-01
B101: Block 2 | D101: Summer | G101: 6.4194 | J101: =+J100 -> 2021-12-01
B102: Block 1 | D102: Winter | G102: 8.97887 | J102: =+J100 -> 2021-12-01
B103: Block 2 | D103: Winter | G103: 7.70513 | J103: =+J100 -> 2021-12-01
B104: #1 BSF | G104: 6.75 | J104: =+J100 -> 2021-12-01
B106: Wyoming GS
B107: Block 1 | G107: 8.37799 | J107: 2021-11-01
B108: Block 2 | G108: 8.13022 | J108: =+J107 -> 2021-11-01
B109: BSF | G109: 12 | J109: =+J107 -> 2021-11-01
A111: INPUTS FROM PREVIOUS PASSTHROUGH CASE
B112: PRIOR PERIOD COMPANY PRODUCTION AVERAGE GAS COST
E113: PROPOSED | F113: PRIOR CASE | G113: Most Recent
B114: VOLUMES DTH | E114: =+'Monthly Inputs'!S7+'Monthly Inputs'!S13 -> 57254772.97 | F114: 57909301 | G114: EXH 1.2p1
B115: AMOUNT | E115: =+D200+D222 -> 239203844.1 | F115: 232162407 | G115: EXH 1.2p1
B116: AVG COST | E116: =+E115/E114 -> 4.177884772 | F116: =ROUND(+F115/F114,5) -> 4.00907
B118: Utah Cost of Gas by Component
B119: Unit Cost Of Gas (Line 7) | F119: 4.44217
B120: 191 Account Amortization (Line 8) | F120: 0.50038
B121: Tax Reform Surcredit 4 | F121: 0
B122: Total Unit Cost In Rates (Line 9) | F122: =SUM(F119:F121) -> 4.94255
B124: Wyoming Cost of Gas by Component
B125: Unit Cost Of Gas (Line 9) | F125: 5.12126
B126: 191 Account Amortization (Line 10) | F126: 0.63497
B127: Tax Reform Surcredit 4 | F127: 0
B128: Total Unit Cost In Rates (Line 11) | F128: =SUM(F125:F127) -> 5.75623
B130: UT NGV RIN Credit | F130: -0.36648
A133: INPUTS FROM 191 ACCOUNT MONTH END BALANCE ACTUAL OR FORECAST | E133: Utah | F133: Wyoming
E134: 2021 | F134: 2021-10-31
H135: 1.6.2
D136: current yr /mo(text)
B137: October 2021 191 account (Actual/Forecast) | D137: 2021 | E137: 85936416 | F137: 2812939 | H137: 1.6.1
B138: Supplier Non-Gas Cost Under (Over) Collected through October 2021 (act/fcst) | D138: October | E138: 20707319 | H138: 1.6.2
B139: Commodity Cost Under (Over) Collected during YEAR (Act/Fcst) | E139: =E137-E138 -> 65229097
B141: SPRING SNG Amortization Balance March 2021 | D141: -8627117 | E141: -14000000 | F141: =+D141-E141 -> 5372883
B142: Previous SPRING SNG Amortization | D142: -13037885 | E142: -14000000 | F142: =+D142-E142 -> 962115
A144: INPUTS FROM IRP
B145: #1 Peak Day Demand Forecast | E145: 2021 | F145: Source
B146: Utah | E146: =E148-E147 -> 1190761 | F146: 2021 IRP
B147: Wyoming | E147: 38421
B148: System Total Peak Day Demand Forecast | E148: 1229182 | F148: 2021-2022 Heating Season | H148: 1.5 | I148: 1.5
A151: STORAGE FIELD INPUTS | E151: Storage
B152: Chalk Creek Injections Factor | E152: 0.0099
B153: Chalk Creek Withdrawls Factor | E153: 0.0184
B155: Spire Injections Factor | E155: 0
B156: Spire Withdrawls Factor | E156: 0
B158: Leroy Injections Factor | E158: 0.0295
B159: Leroy Withdrawls Factor | E159: 0.0243
B161: Clay Basin Injections Factor | E161: 0.01366
B162: Clay Basin Withdrawls Factor | E162: 0.002147
B164: Coalville Injections Factor | E164: 0.0108
B165: Coalville Withdrawls Factor | E165: 0.0239
B167: QPC Storage Field Reservation Charges | E167: Monthly Dth
B168: Peaking Storage Fields Maximum Daily Withdrawal Qty (Leroy, Chalk Creek, Coalville) | E168: 184625
B169: Spire Maximum Storage Qty | E169: 0 | F169: contract ends March 2021
B170: Clay Basin Minimum Required Deliverability | E170: 111827
B171: Clay Basin Capacity | E171: 13419000
A173: OTHER INPUTS FROM GLEN, TOM, TINA & Al | D173: Revenue
B174: OTHER GATHERING
B178: Total Forecasted Birch Creek | D178: 275653.61 | E178: 2021-10-31
B180: Other gathering | D180: 1321774.766 | E180: 2021-10-31 | H180: JanB
B181: Total Gathering | D181: =SUM(D178:D180) -> 1597428.377 | H181: 1.3.1 | I181: 1.3P1
B183: Other Transportation | D183: 2912877.888 | E183: 2021-10-31 | H183: 1.3.1
B185: Forecast Future Contracts Premium over spot price | E185: 0.02 | F185: Verified with Will 11/15/21
D187: Commodity | E187: Demand
D188: Charge | E188: Charge | F188: Effective
B189: Gathering Rates -System wide Gathering agreement #163 (SWGA) | D189: 4132667.04 | E189: 6199000.56 | F189: 2021-01-01 | I189: 1.3p1
B192: Gathering Rate Wexpro II | D192: 3326828.491 | I192: 1.3p1
A195: OTHER INPUTS FROM JIM LIVSEY | D195: Volume (Dth) | E195: Revenue
A196: WEXPRO I
B197: Questar Gas Production 1/ | D197: Current
B198: Test-Year Royalties | D198: ='Royalty Detail'!I1400 -> 27337911.63 | H198: 1.4.1 | I198: 1.4P1
B199: Operator Service Fee | D199: ='Monthly Inputs'!S110 -> 164169481.4 | H199: 1.4.1 | I199: 1.4P1
B200: Total Questar Gas Production Costs | D200: =SUM(D198:D199) -> 191507393
B202: Total Questar Gas Production Dth | D202: ='Royalty Detail'!F1405 -> 42121256.97
F203: Hot | G203: Hot
B204: Other Revenue Credits | D204: 1 | E204: 2 | F204: 2 | G204: 2 | I204: 1
D205: Historical | E205: Forecast | F205: =HLOOKUP(F$204,$D$204:$E$213,$I205) -> Forecast | G205: =HLOOKUP(G$204,$D$204:$E$213,$I205) -> Forecast | I205: 2
D206: 12 Mo Ending | E206: 12 Mo Ending | F206: Utah | G206: Wyoming | I206: 3
B207: 483 Sales for Resale | E207: 1663784.582 | F207: =HLOOKUP(F$204,$D$204:$E$213,$I207) -> 1663784.582 | G207: =HLOOKUP(G$204,$D$204:$E$213,$I207) -> 1663784.582 | I207: 4
B208: 490 Incidental Plant Prod Sales | E208: 6253868.335 | F208: =HLOOKUP(F$204,$D$204:$E$213,$I208) -> 6253868.335 | G208: 6253868.335 | I208: 5
B209: 492 Incidental Gasoline_Oil Sales | E209: 709785.573 | F209: 709785.573 | G209: 709785.573 | I209: 6
B210: 4951 Overriding Royalty Revenue from Celsius | E210: 6072000 | F210: 6072000 | G210: 6072000 | I210: 7
B211: 4952 Oil Revenue Received from Wexpro | E211: 910698.9697 | F211: 910698.9697 | G211: 910698.9697 | I211: 8
B212: 3rd Party & Liquids Credits from MLPX Acquisiiton | E212: 4188000 | F212: =HLOOKUP(F$204,$D$204:$E$213,$I212) -> 4188000 | G212: 4188000 | I212: 9
B213: 758001 Gas Well Royalities - Other | E213: -97462.92719 | F213: -97462.92719 | G213: -97462.92719 | I213: 10
B216: Total Other Revenue Credits | D216: =SUM(D207:D213) -> 0 | E216: =SUM(E207:E213) -> 19700674.53 | F216: =SUM(F207:F213) -> 19700674.53 | G216: =SUM(G207:G213) -> 19700674.53
A218: WEXPRO II
B219: Questar Gas Production 1/ | D219: Current
B220: Test-Year Royalties | D220: ='Royalty Detail'!I1653 -> 9778280.843 | H220: 1.4.1 | I220: 1.4P1
B221: Operator Service Fee | D221: ='Monthly Inputs'!S112 -> 37918170.22 | H221: 1.4.1 | I221: 1.4P1
B222: Total Questar Gas Production Costs | D222: =SUM(D220:D221) -> 47696451.06
B224: Total Questar Gas Production Dth | D224: ='Royalty Detail'!F1658 -> 15133516
F225: Hot | G225: Hot
B226: Other Revenue Credits | D226: 1 | E226: 2 | F226: 2 | G226: 2 | I226: 1
D227: Historical | E227: Forecast | F227: =HLOOKUP(F$204,$D$204:$E$213,$I227) -> Forecast | G227: =HLOOKUP(G$204,$D$204:$E$213,$I227) -> Forecast | I227: 2
D228: 12 Mo Ending | E228: 12 Mo Ending | F228: Utah | G228: Wyoming | I228: 3
B229: 483 Sales for Resale | E229: 0 | F229: =HLOOKUP(F$226,$D$226:$E$234,$I229) -> 0 | G229: 0 | I229: 4
B230: 490 Incidental Plant Prod Sales | E230: 1761820.348 | F230: 1761820.348 | G230: 1761820.348 | I230: 5
B231: 492 Incidental Gasoline_Oil Sales | E231: 1384793.691 | F231: 1384793.691 | G231: 1384793.691 | I231: 6
B232: 4951 Overriding Royalty Revenue from Celsius | E232: 0 | F232: 0 | G232: 0 | I232: 7
B233: 4952 Oil Revenue Received from Wexpro | E233: 590330.069 | F233: 590330.069 | G233: 590330.069 | I233: 8
B234: 758001 Gas Well Royalities - Other | E234: -157021.2026 | F234: -157021.2026 | G234: -157021.2026 | I234: 9
B237: Total Other Revenue Credits | D237: =SUM(D229:D234) -> 0 | E237: =SUM(E229:E235) -> 3579922.905 | F237: =SUM(F229:F234) -> 3579922.905 | G237: =SUM(G229:G234) -> 3579922.905
E239: Proceeds | F239: Dths | G239: Price
B240: Sales of Wexpro Gas | E240: 0 | F240: 0 | G240: 0
A242: SUMMARY INPUTS FROM REVRUN, RATE BASE, EXPENSES, ETC.
B244: Supplier Non-Gas Costs Recovered at Current Rates 3/ | E244: ='RevRun Fcst'!T$199 -> 90961425.68 | H244: 1.6.2
B245: MT Supplier Non-Gas | E245: ='RevRun Fcst'!T142 -> 0
B246: Net Supplier Non-Gas | E246: =E244-E245 -> 90961425.68
B247: UT Current Int Sales SNG Rate - not including Bad Debt adj. | E247: ='RevRun Fcst'!T102+'RevRun Fcst'!T93 -> 261619 | F247: 0.17869
E249: ='Rate Base'!$Q$4 -> 2021-10-31 | F249: update to most current
B250: Account 164-1 - Gas Stored Underground | D250: Dth | E250: Ending Balance | F250: $ per Dth
D251: ='Rate Base'!P21 -> -13372878 | E251: ='Rate Base'!P11 -> 49638760.36 | F251: =+E251/D251 -> -3.711898094 | H251: 1.4.2
A254: UT CET and DSM AMORTIZATION FILING INPUTS
E255: Base DNG | F255: Current DNG
B256: GS Rates (Base rates are before CET, DSM, & EA Amortizations) | D256: Summer Blk 1 | E256: 1.94617 | F256: 2.35349
D257: Summer Blk 2 | E257: 0.74377 | F257: 1.07974
D258: Winter Blk 1 | E258: 2.64801 | F258: 3.09697
D259: Winter Blk 2 | E259: 1.44561 | F259: 1.82323
A263: MISCELLANEOUS INPUTS
B264: Test-Year | D264: ='Control Panel'!F36 -> 2022-01-01 | E264: ='Control Panel'!F37 -> 2022-12-31
B266: Wexpro Red. @ 6.3% | E266: -0.063 | I266: 1.3p3
B268: Pre-Tax Rate of Return % | D268: WYO | E268: 0.088 | F268: 2020-09-01 | I268: 1.3p2
B269: Pre-Tax Rate of Return % | D269: UTAH | E269: 0.089 | F269: 2020-03-01
B272: QGC Lost & Unaccounted For % (Utah | E272: 0.00542 | H272: Q | I272: Q
... 36 more rows

Sheet CET & DSM WY (hidden)
A1: Rate Caclulation for the CET and DSM Amortizations WY
L3: Solver Cells
A4: CET Amortization % Calculation | L4: % Change | M4: Difference
B5: Balance | C5: Date | D5: GS Dth | F5: Amortization per Dth | L5: =J20/D20 ->  | M5: =G20-B11 ->  | O5: -> Difference should be at 0 (Use Goal Seek to Get Difference to Equal 0.
A6: DSM Balance | B6: ='Other Inputs'!#REF! ->  | C6: ='Other Inputs'!#REF! ->  | D6: =B20 ->  | F6: =B6/D6 -> 
O8: Typical Bill Rates
A9: CET Amortization Calculation
B10: Balance | C10: Date | D10: DNG Rev | F10: New DNG | I10: % Change | O10: Current | P10: Proposed
A11: CET Balance | B11: ='Other Inputs'!#REF! ->  | C11: ='Other Inputs'!#REF! ->  | D11: =D20 ->  | F11: =D11+B11 ->  | I11: =L5 ->  | O11: Effective | R11: SNG & | S11: CET, DSM
O12: ='Other Inputs'!$J$107 -> 2021-11-01 | P12: CET Only | Q12: DSM Only | R12: Commodity | S12: Commodity
O13: BSF | P13: BSF | Q13: BSF | R13: BSF | S13: BSF
B14: Revenue Calculation | F14: CET Amortization | I14: Total DNG | L14: REVRUN Calculation | O14: ='Other Inputs'!$G$109 -> 12 | P14: ='Other Inputs'!$G$109 -> 12 | Q14: ='Other Inputs'!$G$109 -> 12 | R14: ='Other Inputs'!$G$109 -> 12 | S14: =#REF! -> 
A15: WY GS | B15: Dth | C15: Base DNG | D15: DNG Revenue | F15: CET Rate | G15: Revenue | I15: DNG Rate | J15: Revenue | L15: CET Rate | M15: CET Amort
A16: Block 1 | B16: ='Other Inputs'!#REF! ->  | C16: ='Other Inputs'!#REF! ->  | D16: =B16*C16 ->  | F16: =ROUND((G16/B16),5) ->  | G16: =D16*$L$5 ->  | I16: =C16+F16 ->  | J16: =I16*B16 ->  | L16: =ROUND(F16,5) ->  | M16: =B16*L16 ->  | O16: ='Other Inputs'!$G$100 -> 7.69315 | P16: =J24 ->  | Q16: =J31 ->  | R16: =J36 ->  | S16: =J41 -> 
A17: Block 2 | B17: ='Other Inputs'!#REF! ->  | C17: ='Other Inputs'!#REF! ->  | D17: =B17*C17 ->  | F17: =ROUND((G17/B17),5) ->  | G17: =D17*$L$5 ->  | I17: =C17+F17 ->  | J17: =I17*B17 ->  | L17: =ROUND(F17,5) ->  | M17: =B17*L17 -> 
O18: ='Other Inputs'!$G$107 -> 8.37799 | P18: =J24 ->  | Q18: =J31 ->  | R18: =J36 ->  | S18: =J41 -> 
A20: GS-1 Block Rev | B20: =SUM(B16:B19) ->  | D20: =SUM(D16:D19) ->  | G20: =SUM(G16:G19) ->  | J20: =B11 ->  | M20: =SUM(M16:M19) -> 
A22: Total Rate Calculation With CET Amortization Only | J22: ='Control Panel'!#REF! ->  | L22: ='Other Inputs'!$J$107 -> 2021-11-01
A23: WY GS | B23: Total DNG | C23: CET | D23: DSM | F23: Total DNG | G23: Core Commodity Cost | J23: Total Rate | L23: Total Rate
A24: Block 1 | B24: =$C$16 ->  | C24: =$F$16 ->  | D24: 0.06792 | F24: =SUM(B24:D24) ->  | G24: 4.96884 | J24: =SUM(F24:G24) ->  | L24: ='Other Inputs'!G107 -> 8.37799 | M24: =J24-L24 -> 
A25: Block 2 | B25: =$C$17 ->  | C25: =$F$17 ->  | D25: =$D$24 -> 0.06792 | F25: =SUM(B25:D25) ->  | G25: =G24 -> 4.96884 | J25: =SUM(F25:G25) ->  | L25: ='Other Inputs'!$G$108 -> 8.13022 | M25: =J25-L25 -> 
A29: Total Rate Calculation With DSM Amortization Only | J29: =J22 ->  | L29: ='Other Inputs'!$J$107 -> 2021-11-01
A30: WY GS | B30: Base DNG | C30: CET | D30: DSM | F30: Total DNG | G30: Core Commodity Cost | J30: Total Rate | L30: Total Rate
A31: Block 1 | B31: =$C$16 ->  | C31: 0.04505 | D31: =$F$6 ->  | F31: =ROUND(SUM(B31:D31),5) ->  | G31: =G24 -> 4.96884 | J31: =SUM(F31:I31) ->  | L31: ='Other Inputs'!$G$100 -> 7.69315 | M31: =J31-L31 -> 
A32: Block 2 | B32: =$C$17 ->  | C32: 0.02848 | D32: =$F$6 ->  | F32: =ROUND(SUM(B32:D32),5) ->  | G32: =G25 -> 4.96884 | J32: =SUM(F32:I32) ->  | L32: ='Other Inputs'!$G$108 -> 8.13022 | M32: =J32-L32 -> 
A34: Total Rate Calculation With Core Commodity Cost Changes Only | J34: =J22 ->  | L34: ='Other Inputs'!$J$107 -> 2021-11-01
A35: WY GS | B35: Base DNG | C35: CET | D35: DSM | F35: Total DNG | G35: Core Commodity Cost | J35: Total Rate | L35: Total Rate
A36: Block 1 | B36: =$C$16 ->  | C36: =C31 -> 0.04505 | D36: =D24 -> 0.06792 | F36: =SUM(B36:D36) ->  | G36: =#REF! ->  | J36: =SUM(F36:I36) ->  | L36: ='Other Inputs'!$G$100 -> 7.69315 | M36: =J36-L36 -> 
A37: Block 2 | B37: =$C$17 ->  | C37: =C32 -> 0.02848 | D37: =D25 -> 0.06792 | F37: =SUM(B37:D37) ->  | G37: =#REF! ->  | J37: =SUM(F37:I37) ->  | L37: ='Other Inputs'!$G$108 -> 8.13022 | M37: =J37-L37 -> 
A39: Total Rate Calculation | J39: =J29 ->  | L39: ='Other Inputs'!$J$107 -> 2021-11-01
A40: WY GS | B40: Base DNG | C40: CET | D40: DSM | F40: Total DNG | G40: Core Commodity Cost | J40: Total Rate | L40: Total Rate
A41: Block 1 | B41: =$C$16 ->  | C41: =$F$16 ->  | D41: =$F$6 ->  | F41: =SUM(B41:D41) ->  | G41: =#REF! ->  | J41: =SUM(F41:I41) ->  | L41: ='Other Inputs'!$G$100 -> 7.69315 | M41: =J41-L41 -> 
A42: Block 2 | B42: =$C$17 ->  | C42: =$F$17 ->  | D42: =$F$6 ->  | F42: =SUM(B42:D42) ->  | G42: =#REF! ->  | J42: =SUM(F42:I42) ->  | L42: ='Other Inputs'!$G$108 -> 8.13022 | M42: =J42-L42 -> 
A44: Typical Customer Difference - CET Amortization Only
B45: Typical
A46: GS | B46: Dth | C46: =O12 -> 2021-11-01 | D46: =J39 ->  | F46: Change | G46: % Change
A47: January | B47: 14.7 | C47: =ROUND($O$14+(B47*$O$18),2) -> 135.16 | D47: =ROUND($P$14+(B47*$P$18),2) ->  | F47: =D47-C47 -> 
A48: February | B48: 14.1 | C48: =ROUND($O$14+(B48*$O$18),2) -> 130.13 | D48: =ROUND($P$14+(B48*$P$18),2) ->  | F48: =D48-C48 -> 
A49: March | B49: 11.8 | C49: =ROUND($O$14+(B49*$O$18),2) -> 110.86 | D49: =ROUND($P$14+(B49*$P$18),2) -> 
A50: April | B50: 9.4 | C50: =ROUND($O$14+(B50*$O$16),2) -> 84.32 | D50: =ROUND($P$14+(B50*$P$16),2) -> 
A51: May | B51: 5.8 | C51: 56.62 | D51: =ROUND($P$14+(B51*$P$16),2) -> 
A52: June | B52: 3.7 | C52: 40.46
A53: July | B53: 2.3 | C53: 29.69
A54: August | B54: 1.7 | C54: 25.08
A55: September | B55: 2.1 | C55: 28.16
A56: October | B56: 4.1 | C56: 43.54
A57: November | B57: 8 | C57: =ROUND($O$14+(B57*$O$18),2) -> 79.02 | D57: =ROUND($P$14+(B57*$P$18),2) -> 
A58: December | B58: 12.3 | C58: =ROUND($O$14+(B58*$O$18),2) -> 115.05 | D58: =ROUND($P$14+(B58*$P$18),2) -> 
B59: =SUM(B47:B58) -> 90 | C59: =SUM(C47:C58) -> 878.09 | D59: =SUM(D47:D58) ->  | F59: =SUM(F47:F58) ->  | G59: =F59/C59 -> 
A62: Typical Customer Difference - DSM Amortization Only
B63: Typical
A64: GS | B64: Dth | C64: =C46 -> 2021-11-01 | D64: =D46 ->  | F64: Change | G64: % Change
A65: January | B65: 14.7 | C65: =ROUND($O$14+(B65*$O$18),2) -> 135.16 | D65: =ROUND($Q$14+(B65*$Q$18),2) ->  | F65: =D65-C65 -> 
A66: February | B66: 14.1 | C66: =ROUND($O$14+(B66*$O$18),2) -> 130.13 | D66: =ROUND($Q$14+(B66*$Q$18),2) ->  | F66: =D66-C66 -> 
A67: March | B67: 11.8 | C67: =ROUND($O$14+(B67*$O$18),2) -> 110.86 | D67: =ROUND($Q$14+(B67*$Q$18),2) -> 
A68: April | B68: 9.4 | C68: =ROUND($O$14+(B68*$O$16),2) -> 84.32 | D68: =ROUND($Q$14+(B68*$Q$16),2) -> 
A69: May | B69: 5.8 | C69: 56.62
A70: June | B70: 3.7 | C70: 40.46
A71: July | B71: 2.3 | C71: 29.69
A72: August | B72: 1.7 | C72: 25.08
A73: September | B73: 2.1 | C73: 28.16
A74: October | B74: 4.1 | C74: 43.54
A75: November | B75: 8 | C75: =ROUND($O$14+(B75*$O$18),2) -> 79.02 | D75: =ROUND($Q$14+(B75*$Q$18),2) -> 
A76: December | B76: 12.3 | C76: =ROUND($O$14+(B76*$O$18),2) -> 115.05 | D76: =ROUND($Q$14+(B76*$Q$18),2) -> 
B77: =SUM(B65:B76) -> 90 | C77: =SUM(C65:C76) -> 878.09 | D77: =SUM(D65:D76) ->  | F77: =SUM(F65:F76) ->  | G77: =F77/C77 -> 
A80: Typical Customer Difference - SNG and Commodity Changes Only
B81: Typical
A82: GS | B82: Dth | C82: =C64 -> 2021-11-01 | D82: =D64 ->  | F82: Change | G82: % Change
A83: January | B83: 14.7 | C83: =ROUND($O$14+(B83*$O$18),2) -> 135.16 | D83: =ROUND($R$14+(B83*$R$18),2) ->  | F83: =D83-C83 -> 
A84: February | B84: 14.1 | C84: =ROUND($O$14+(B84*$O$18),2) -> 130.13 | D84: =ROUND($R$14+(B84*$R$18),2) ->  | F84: =D84-C84 -> 
A85: March | B85: 11.8 | C85: =ROUND($O$14+(B85*$O$18),2) -> 110.86 | D85: =ROUND($R$14+(B85*$R$18),2) -> 
A86: April | B86: 9.4 | C86: =ROUND($O$14+(B86*$O$16),2) -> 84.32 | D86: =ROUND($R$14+(B86*$R$16),2) -> 
A87: May | B87: 5.8 | C87: 56.62
A88: June | B88: 3.7 | C88: 40.46
A89: July | B89: 2.3 | C89: 29.69
A90: August | B90: 1.7 | C90: 25.08
A91: September | B91: 2.1 | C91: 28.16
A92: October | B92: 4.1 | C92: 43.54
A93: November | B93: 8 | C93: =ROUND($O$14+(B93*$O$18),2) -> 79.02 | D93: =ROUND($R$14+(B93*$R$18),2) -> 
A94: December | B94: 12.3 | C94: =ROUND($O$14+(B94*$O$18),2) -> 115.05 | D94: =ROUND($R$14+(B94*$R$18),2) -> 
B95: =SUM(B83:B94) -> 90 | C95: =SUM(C83:C94) -> 878.09 | D95: =SUM(D83:D94) ->  | F95: =SUM(F83:F94) ->  | G95: =F95/C95 -> 
A98: Typical Customer Difference - CET & DSM Amort, SNG and Commodity Changes
B99: Typical
A100: GS | B100: Dth | C100: =C46 -> 2021-11-01 | D100: =D46 ->  | F100: Change | G100: % Change
A101: January | B101: 14.7 | C101: =ROUND($O$14+(B101*$O$18),2) -> 135.16 | D101: =ROUND($S$14+(B101*$S$18),2) ->  | F101: =D101-C101 -> 
A102: February | B102: 14.1 | C102: =ROUND($O$14+(B102*$O$18),2) -> 130.13 | D102: =ROUND($S$14+(B102*$S$18),2) ->  | F102: =D102-C102 -> 
A103: March | B103: 11.8 | C103: =ROUND($O$14+(B103*$O$18),2) -> 110.86 | D103: =ROUND($S$14+(B103*$S$18),2) -> 
A104: April | B104: 9.4 | C104: =ROUND($O$14+(B104*$O$16),2) -> 84.32 | D104: =ROUND($S$14+(B104*$S$16),2) -> 
A105: May | B105: 5.8 | C105: 56.62
A106: June | B106: 3.7 | C106: 40.46
A107: July | B107: 2.3 | C107: 29.69
A108: August | B108: 1.7 | C108: 25.08
A109: September | B109: 2.1 | C109: 28.16
A110: October | B110: 4.1 | C110: 43.54
A111: November | B111: 8 | C111: =ROUND($O$14+(B111*$O$18),2) -> 79.02 | D111: =ROUND($S$14+(B111*$S$18),2) -> 
A112: December | B112: 12.3 | C112: =ROUND($O$14+(B112*$O$18),2) -> 115.05 | D112: =ROUND($S$14+(B112*$S$18),2) -> 
B113: =SUM(B101:B112) -> 90 | C113: =SUM(C101:C112) -> 878.09 | D113: =SUM(D101:D112) ->  | F113: =SUM(F101:F112) ->  | G113: =F113/C113 -> 

Sheet WY Tariff Sheets (hidden)
T2: Rates Per Dth Used Each Month
B3: 2.02 General Service Rate Schedule (GS) | K3: 2.02 General Service Rate Schedule (GS) | Q3: 2.03 Firm Sales Service Rate Schedule (FS) | T3: Dth = decatherm = 10 therms = 1,000,000 BTU | Z3: 4.02 INTERRUPTIBLE SALES RATE SERVICE SCHEDULE (IS) | BF3: 2.04 NATURAL GAS VEHICLE RATE (NGV)
L4: Rates Per Dth Used Each Month | R4: Summer Rates: Apr. 1 - Oct. 31
C5: Rates Per Dth Used Each Month | L5: Dth = decatherm = 10 therms = 1,000,000 BTU | R5: First | T5: Next | V5: All Over | Z5: IS VOLUMETRIC RATES | AA5: Rates Per Dth Used Each Month | BF5: NGV Volumetric Rate
C6: Dth = decatherm = 10 therms = 1,000,000 BTU | L6: First 45 Dth | M6: All Over 45 Dth | R6: 80 | T6: 730 | V6: 810 | AA6: Dth = decatherm = 10 therms = 1,000,000 BTU | BJ6: Rates Per Dth Used Each Month
C7: First 45 Dth | D7: All Over 45 Dth | K7: Non-Gas Cost | L7: ='CET & DSM WY'!B31 ->  | M7: ='CET & DSM WY'!B32 ->  | Q7: Non Gas Cost | R7: =#REF! ->  | T7: =#REF! ->  | V7: =#REF! ->  | AA7: First | AB7: Next | AC7: All Over | BJ7: Dth = decatherm = 10 therms = 1,000,000 BTU
B8: Non-Gas Cost | C8: ='CET & DSM WY'!B24 ->  | D8: ='CET & DSM WY'!B25 ->  | K8: Conservation Enabling Adjustment | L8: =ROUND('CET & DSM WY'!C31,5) -> 0.04505 | M8: ='CET & DSM WY'!C32 -> 0.02848 | Q8: Core Service Commodity Cost | R8: =#REF! ->  | T8: =#REF! ->  | V8: =#REF! ->  | AA8: 48600 | AB8: 72900 | AC8: 121500
B9: Conservation Enabling Adjustment | C9: ='CET & DSM WY'!C24 ->  | D9: ='CET & DSM WY'!C25 ->  | K9: Energy Efficiency Services | L9: ='CET & DSM WY'!D31 ->  | M9: ='CET & DSM WY'!D32 ->  | Z9: Distribution Non-Gas Rate | AA9: =#REF! ->  | AB9: =#REF! ->  | AC9: =#REF! ->  | BF9: Non-Gas Cost | BG9: =#REF! -> 
B10: Energy Efficiency Services | C10: ='CET & DSM WY'!D24 -> 0.06792 | D10: ='CET & DSM WY'!D25 -> 0.06792 | K10: Core Service Commodity Cost | L10: ='CET & DSM WY'!G31 -> 4.96884 | M10: =ROUND('CET & DSM WY'!G32,5) -> 4.96884 | Q10: Total Rate | R10: =SUM(R7:R8) ->  | T10: =SUM(T7:T8) ->  | V10: =SUM(V7:V8) ->  | Z10: Upstream Pipeline Cost | AA10: =#REF! ->  | AB10: =#REF! ->  | AC10: =#REF! ->  | BF10: Core Commodity Cost | BG10: =#REF! -> 
B11: Core Service Commodity Cost | C11: ='CET & DSM WY'!G24 -> 4.96884 | D11: ='CET & DSM WY'!G25 -> 4.96884 | Z11: Commodity Rate | BF11: Total Rate | BG11: =SUM(BG9:BJ10) -> 
K12: Total Rate | L12: =SUM(L7:L10) ->  | M12: =SUM(M7:M10) ->  | Q12: Minimum Monthly Distribution Non-Gas Charge | W12: =#REF! -> 
B13: Total Rate | C13: =SUM(C8:C11) ->  | D13: =SUM(D8:D11) -> 
M15: BSF Category 1 | N15: =E16 -> 12
D16: BSF Category 1 | E16: ='CET & DSM WY'!O14 -> 12 | M16: BSF Category 2 | N16: =E17 -> 44 | U16: BSF Category 1 | W16: ='Other Inputs'!G109 -> 12
D17: BSF Category 2 | E17: 44 | M17: BSF Category 3 | N17: =E18 -> 86 | U17: BSF Category 2 | W17: =#REF! -> 
D18: BSF Category 3 | E18: 86 | M18: BSF Category 4 | N18: =E19 -> 555 | U18: BSF Category 3 | W18: =#REF! ->  | Z18: Total Rate | AA18: $ | AB18: $ | AC18: $
D19: BSF Category 4 | E19: 555 | U19: BSF Category 4 | W19: =#REF! -> 
Z20: Minimum Monthly Distribution Non-Gas Charge
BF23: =B38 -> Issued by R. W. Jibson, President | BI23: Advice No | BJ23: Section Revision No.
AB24: BSF Category 1 | AC24: ='Other Inputs'!G109 -> 12
AB25: BSF Category 2 | AC25: =#REF! -> 
AB26: BSF Category 3 | AC26: =#REF! -> 
AB27: BSF Category 4 | AC27: =#REF! -> 
K37: Issued by R. W. Jibson, President | M37: Section Revision No. | N37: Effective Date
B38: Issued by R. W. Jibson, President | D38: Section Revision No. | E38: Effective Date | Q38: =B38 -> Issued by R. W. Jibson, President | T38: Advice No | U38: Section Revision No. | W38: Effective Date
B42: New CET ONLY | K42: New DSM ONLY | Q42: New Pass Through Values
Z47: =B38 -> Issued by R. W. Jibson, President | AC47: Advice No
Z50: New Pass Through Values

Sheet Calculations
A1: GAS BALANCE FOR 12 MONTHS ENDING: _________________
D3: SALES VOLUMES IN DEKATHERMS (12 Months of Forecast)
D4: Forecast | E4: Forecast | F4: Forecast | G4: Forecast | H4: Forecast | I4: Forecast | J4: Forecast | K4: Forecast | L4: Forecast | M4: Forecast | N4: Forecast | O4: Forecast | P4: 12-Month
A5: RATE CLASS | D5: =+'Monthly Inputs'!G3 -> Jan22 | E5: =+'Monthly Inputs'!H3 -> Feb22 | F5: =+'Monthly Inputs'!I3 -> Mar22 | G5: =+'Monthly Inputs'!J3 -> Apr22 | H5: =+'Monthly Inputs'!K3 -> May22 | I5: =+'Monthly Inputs'!L3 -> Jun22 | J5: =+'Monthly Inputs'!M3 -> Jul22 | K5: =+'Monthly Inputs'!N3 -> Aug22 | L5: =+'Monthly Inputs'!O3 -> Sep22 | M5: =+'Monthly Inputs'!P3 -> Oct22 | N5: =+'Monthly Inputs'!Q3 -> Nov22 | O5: =+'Monthly Inputs'!R3 -> Dec22 | P5: Total | Q5: 1
A6: UTAH | D6: =MONTH(D5) -> 1 | E6: =MONTH(E5) -> 2 | F6: 3 | G6: 4 | H6: 5 | I6: 6 | J6: 7 | K6: 8 | L6: 9 | M6: 10 | N6: 11 | O6: 12 | Q6: 2
B7: GSR | D7: ='RevRun Fcst'!H21 -> 20381541 | E7: ='RevRun Fcst'!I21 -> 17083709 | F7: ='RevRun Fcst'!J21 -> 13126767 | G7: ='RevRun Fcst'!K21 -> 8982424 | H7: ='RevRun Fcst'!L21 -> 5173896 | I7: ='RevRun Fcst'!M21 -> 2884089 | J7: ='RevRun Fcst'!N21 -> 2361573 | K7: ='RevRun Fcst'!O21 -> 2304630 | L7: ='RevRun Fcst'!P21 -> 2681738 | M7: ='RevRun Fcst'!Q21 -> 6614316 | N7: ='RevRun Fcst'!R21 -> 11849853 | O7: ='RevRun Fcst'!S21 -> 18220268 | P7: =SUM(D7:O7) -> 111664804 | Q7: 3
B8: GSC | D8: ='RevRun Fcst'!H30 -> 0 | E8: ='RevRun Fcst'!I30 -> 0 | F8: ='RevRun Fcst'!J30 -> 0 | G8: ='RevRun Fcst'!K30 -> 0 | H8: ='RevRun Fcst'!L30 -> 0 | I8: ='RevRun Fcst'!M30 -> 0 | J8: ='RevRun Fcst'!N30 -> 0 | K8: ='RevRun Fcst'!O30 -> 0 | L8: ='RevRun Fcst'!P30 -> 0 | M8: ='RevRun Fcst'!Q30 -> 0 | N8: ='RevRun Fcst'!R30 -> 0 | O8: ='RevRun Fcst'!S30 -> 0 | P8: 0 | Q8: 4
B9: GSS | D9: ='RevRun Fcst'!H39 -> 0 | E9: ='RevRun Fcst'!I39 -> 0 | F9: ='RevRun Fcst'!J39 -> 0 | G9: ='RevRun Fcst'!K39 -> 0 | H9: ='RevRun Fcst'!L39 -> 0 | I9: ='RevRun Fcst'!M39 -> 0 | J9: ='RevRun Fcst'!N39 -> 0 | K9: ='RevRun Fcst'!O39 -> 0 | L9: ='RevRun Fcst'!P39 -> 0 | M9: ='RevRun Fcst'!Q39 -> 0 | N9: ='RevRun Fcst'!R39 -> 0 | O9: ='RevRun Fcst'!S39 -> 0 | P9: 0 | Q9: 5
B10: F-1 | D10: ='RevRun Fcst'!H48 -> 281659 | E10: ='RevRun Fcst'!I48 -> 266270 | F10: ='RevRun Fcst'!J48 -> 235451 | G10: ='RevRun Fcst'!K48 -> 208442 | H10: ='RevRun Fcst'!L48 -> 187635 | I10: ='RevRun Fcst'!M48 -> 165512 | J10: ='RevRun Fcst'!N48 -> 127903 | K10: ='RevRun Fcst'!O48 -> 132140 | L10: ='RevRun Fcst'!P48 -> 148628 | M10: ='RevRun Fcst'!Q48 -> 218567 | N10: ='RevRun Fcst'!R48 -> 190121 | O10: ='RevRun Fcst'!S48 -> 240336 | P10: 2402664 | Q10: 6
B11: F-4 | D11: ='RevRun Fcst'!H75 -> 0 | E11: ='RevRun Fcst'!I75 -> 0 | F11: ='RevRun Fcst'!J75 -> 0 | G11: ='RevRun Fcst'!K75 -> 0 | H11: ='RevRun Fcst'!L75 -> 0 | I11: ='RevRun Fcst'!M75 -> 0 | J11: ='RevRun Fcst'!N75 -> 0 | K11: ='RevRun Fcst'!O75 -> 0 | L11: ='RevRun Fcst'!P75 -> 0 | M11: ='RevRun Fcst'!Q75 -> 0 | N11: ='RevRun Fcst'!R75 -> 0 | O11: ='RevRun Fcst'!S75 -> 0 | P11: 0 | Q11: 7
B12: NGV | D12: ='RevRun Fcst'!H66 -> 17497 | E12: ='RevRun Fcst'!I66 -> 17639 | F12: ='RevRun Fcst'!J66 -> 16974 | G12: ='RevRun Fcst'!K66 -> 16167 | H12: ='RevRun Fcst'!L66 -> 13667 | I12: ='RevRun Fcst'!M66 -> 16073 | J12: ='RevRun Fcst'!N66 -> 18329 | K12: ='RevRun Fcst'!O66 -> 15892 | L12: ='RevRun Fcst'!P66 -> 16971 | M12: ='RevRun Fcst'!Q66 -> 17394 | N12: ='RevRun Fcst'!R66 -> 16247 | O12: ='RevRun Fcst'!S66 -> 19505 | P12: 202355 | Q12: 8
A13: Total Firm Sales | D13: =SUM(D7:D12) -> 20680697 | E13: 17367618 | F13: =SUM(F7:F12) -> 13379192 | G13: 9207033 | H13: 5375198 | I13: 3065674 | J13: 2507805 | K13: 2452662 | L13: 2847337 | M13: 6850277 | N13: 12056221 | O13: 18480109 | P13: =SUM(P7:P12) -> 114269823 | Q13: 9
Q14: 10
B15: I-4 | D15: ='RevRun Fcst'!H102 -> 39159 | E15: ='RevRun Fcst'!I102 -> 34325 | F15: ='RevRun Fcst'!J102 -> 28274 | G15: ='RevRun Fcst'!K102 -> 22094 | H15: ='RevRun Fcst'!L102 -> 14665 | I15: ='RevRun Fcst'!M102 -> 13022 | J15: ='RevRun Fcst'!N102 -> 10282 | K15: ='RevRun Fcst'!O102 -> 10282 | L15: ='RevRun Fcst'!P102 -> 12438 | M15: ='RevRun Fcst'!Q102 -> 16059 | N15: ='RevRun Fcst'!R102 -> 24184 | O15: ='RevRun Fcst'!S102 -> 36835 | P15: =SUM(D15:O15) -> 261619 | Q15: 11
B16: IS-4 | D16: ='RevRun Fcst'!H93 -> 0 | E16: ='RevRun Fcst'!I93 -> 0 | F16: ='RevRun Fcst'!J93 -> 0 | G16: ='RevRun Fcst'!K93 -> 0 | H16: ='RevRun Fcst'!L93 -> 0 | I16: ='RevRun Fcst'!M93 -> 0 | J16: ='RevRun Fcst'!N93 -> 0 | K16: ='RevRun Fcst'!O93 -> 0 | L16: ='RevRun Fcst'!P93 -> 0 | M16: ='RevRun Fcst'!Q93 -> 0 | N16: ='RevRun Fcst'!R93 -> 0 | O16: ='RevRun Fcst'!S93 -> 0 | P16: =SUM(D16:O16) -> 0 | Q16: 12
A17: Total Interruptible Sales | D17: =SUM(D15:D16) -> 39159 | E17: 34325 | F17: 28274 | G17: 22094 | H17: 14665 | I17: 13022 | J17: 10282 | K17: 10282 | L17: 12438 | M17: 16059 | N17: 24184 | O17: 36835 | P17: 261619 | Q17: 13
Q18: 14
Q19: 15
A20: Total Utah Sales | D20: =+D13+D17 -> 20719856 | E20: =+E13+E17 -> 17401943 | F20: =+F13+F17 -> 13407466 | G20: =+G13+G17 -> 9229127 | H20: 5389863 | I20: 3078696 | J20: 2518087 | K20: 2462944 | L20: 2859775 | M20: 6866336 | N20: 12080405 | O20: 18516944 | P20: =+P13+P17 -> 114531442 | Q20: 16
Q21: 17
A22: Total Utah Transportation | D22: ='RevRun Fcst'!H204 -> 9299235 | E22: ='RevRun Fcst'!I204 -> 9082063 | F22: ='RevRun Fcst'!J204 -> 8616328 | G22: ='RevRun Fcst'!K204 -> 6322232 | H22: ='RevRun Fcst'!L204 -> 6911600 | I22: ='RevRun Fcst'!M204 -> 7144254 | J22: ='RevRun Fcst'!N204 -> 8514347 | K22: ='RevRun Fcst'!O204 -> 8947520 | L22: ='RevRun Fcst'!P204 -> 7383199 | M22: ='RevRun Fcst'!Q204 -> 7715399 | N22: ='RevRun Fcst'!R204 -> 8042377 | O22: ='RevRun Fcst'!S204 -> 9522265 | P22: =SUM(D22:O22) -> 97500819 | Q22: 18
Q23: 19
Q24: 20
A25: Total Utah Sales & Trans | D25: =+D20+D22 -> 30019091 | E25: 26484006 | F25: 22023794 | G25: 15551359 | H25: 12301463 | I25: 10222950 | J25: 11032434 | K25: 11410464 | L25: 10242974 | M25: 14581735 | N25: 20122782 | O25: 28039209 | P25: =+P20+P22 -> 212032261 | Q25: 21
Q26: 22
A27: WYOMING | Q27: 23
A28: GS-1 | D28: ='RevRun Fcst'!H244 -> 581866 | E28: ='RevRun Fcst'!I244 -> 524162 | F28: ='RevRun Fcst'!J244 -> 425009 | G28: ='RevRun Fcst'!K244 -> 305390 | H28: ='RevRun Fcst'!L244 -> 198795 | I28: ='RevRun Fcst'!M244 -> 97787 | J28: ='RevRun Fcst'!N244 -> 53453 | K28: ='RevRun Fcst'!O244 -> 55956 | L28: ='RevRun Fcst'!P244 -> 85357 | M28: ='RevRun Fcst'!Q244 -> 212059 | N28: ='RevRun Fcst'!R244 -> 388778 | O28: ='RevRun Fcst'!S244 -> 548549 | P28: =SUM(D28:O28) -> 3477161 | Q28: 24
A29: GS-W | D29: ='RevRun Fcst'!H271 -> 0 | E29: ='RevRun Fcst'!I271 -> 0 | F29: ='RevRun Fcst'!J271 -> 0 | G29: ='RevRun Fcst'!K271 -> 0 | H29: ='RevRun Fcst'!L271 -> 0 | I29: ='RevRun Fcst'!M271 -> 0 | J29: ='RevRun Fcst'!N271 -> 0 | K29: ='RevRun Fcst'!O271 -> 0 | L29: ='RevRun Fcst'!P271 -> 0 | M29: ='RevRun Fcst'!Q271 -> 0 | N29: ='RevRun Fcst'!R271 -> 0 | O29: ='RevRun Fcst'!S271 -> 0 | P29: =SUM(D29:O29) -> 0 | Q29: 25
A30: F-1 | D30: ='RevRun Fcst'!H253 -> 19930 | E30: ='RevRun Fcst'!I253 -> 20081 | F30: ='RevRun Fcst'!J253 -> 19601 | G30: ='RevRun Fcst'!K253 -> 16978 | H30: ='RevRun Fcst'!L253 -> 16746 | I30: ='RevRun Fcst'!M253 -> 6254 | J30: ='RevRun Fcst'!N253 -> 12681 | K30: ='RevRun Fcst'!O253 -> 10874 | L30: ='RevRun Fcst'!P253 -> 12812 | M30: ='RevRun Fcst'!Q253 -> 21228 | N30: ='RevRun Fcst'!R253 -> 12867 | O30: ='RevRun Fcst'!S253 -> 23038 | P30: =SUM(D30:O30) -> 193090 | Q30: 26
A31: NGV | D31: ='RevRun Fcst'!H262 -> 231 | E31: ='RevRun Fcst'!I262 -> 242 | F31: ='RevRun Fcst'!J262 -> 476 | G31: ='RevRun Fcst'!K262 -> 254 | H31: ='RevRun Fcst'!L262 -> 246 | I31: ='RevRun Fcst'!M262 -> 264 | J31: ='RevRun Fcst'!N262 -> 332 | K31: ='RevRun Fcst'!O262 -> 350 | L31: ='RevRun Fcst'!P262 -> 405 | M31: ='RevRun Fcst'!Q262 -> 352 | N31: ='RevRun Fcst'!R262 -> 243 | O31: ='RevRun Fcst'!S262 -> 213 | P31: =SUM(D31:O31) -> 3608 | Q31: 27
A32: Total Firm Sales | D32: =SUM(D28:D31) -> 602027 | E32: 544485 | F32: 445086 | G32: 322622 | H32: 215787 | I32: 104305 | J32: 66466 | K32: 67180 | L32: 98574 | M32: 233639 | N32: 401888 | O32: 571800 | P32: 3673859 | Q32: 28
Q33: 29
A34: I-2 | D34: ='RevRun Fcst'!H280 -> 18591 | E34: ='RevRun Fcst'!I280 -> 18231 | F34: ='RevRun Fcst'!J280 -> 16028 | G34: ='RevRun Fcst'!K280 -> 13114 | H34: ='RevRun Fcst'!L280 -> 8154 | I34: ='RevRun Fcst'!M280 -> 6762 | J34: ='RevRun Fcst'!N280 -> 4712 | K34: ='RevRun Fcst'!O280 -> 3970 | L34: ='RevRun Fcst'!P280 -> 4184 | M34: ='RevRun Fcst'!Q280 -> 6912 | N34: ='RevRun Fcst'!R280 -> 13006 | O34: ='RevRun Fcst'!S280 -> 16313 | P34: =SUM(D34:O34) -> 129977 | Q34: 30
A35: I-4 | D35: ='RevRun Fcst'!H289 -> 0 | E35: ='RevRun Fcst'!I289 -> 0 | F35: ='RevRun Fcst'!J289 -> 0 | G35: ='RevRun Fcst'!K289 -> 0 | H35: ='RevRun Fcst'!L289 -> 0 | I35: ='RevRun Fcst'!M289 -> 0 | J35: ='RevRun Fcst'!N289 -> 0 | K35: ='RevRun Fcst'!O289 -> 0 | L35: ='RevRun Fcst'!P289 -> 0 | M35: ='RevRun Fcst'!Q289 -> 0 | N35: ='RevRun Fcst'!R289 -> 0 | O35: ='RevRun Fcst'!S289 -> 0 | P35: =SUM(D35:O35) -> 0 | Q35: 31
A36: Total Interruptible Sales | D36: =SUM(D34:D35) -> 18591 | E36: 18231 | F36: 16028 | G36: 13114 | H36: 8154 | I36: 6762 | J36: 4712 | K36: 3970 | L36: 4184 | M36: 6912 | N36: 13006 | O36: 16313 | P36: 129977 | Q36: 32
Q37: 33
Q38: 34
A39: Total Wyoming Sales | D39: =+D32+D36 -> 620618 | E39: =+E32+E36 -> 562716 | F39: 461114 | G39: 335736 | H39: 223941 | I39: 111067 | J39: 71178 | K39: 71150 | L39: 102758 | M39: 240551 | N39: 414894 | O39: 588113 | P39: 3803836 | Q39: 35
Q40: 36
A41: Total Wyoming Transportation | D41: ='RevRun Fcst'!H328 -> 89344 | E41: ='RevRun Fcst'!I328 -> 43837 | F41: ='RevRun Fcst'!J328 -> 39488 | G41: ='RevRun Fcst'!K328 -> 38315 | H41: ='RevRun Fcst'!L328 -> 44625 | I41: ='RevRun Fcst'!M328 -> 47933 | J41: ='RevRun Fcst'!N328 -> 35746 | K41: ='RevRun Fcst'!O328 -> 30504 | L41: ='RevRun Fcst'!P328 -> 16140 | M41: ='RevRun Fcst'!Q328 -> 40373 | N41: ='RevRun Fcst'!R328 -> 36806 | O41: ='RevRun Fcst'!S328 -> 50787 | P41: =SUM(D41:O41) -> 513898 | Q41: 37
Q42: 38
Q43: 39
A44: Total Wyoming Sales & Trans | D44: =+D39+D41 -> 709962 | E44: 606553 | F44: 500602 | G44: 374051 | H44: 268566 | I44: 159000 | J44: 106924 | K44: 101654 | L44: 118898 | M44: 280924 | N44: 451700 | O44: 638900 | P44: 4317734 | Q44: 40
Q45: 41
Q46: 42
A47: Total System Sales and Trans | D47: =+D25+D44 -> 30729053 | E47: 27090559 | F47: 22524396 | G47: 15925410 | H47: 12570029 | I47: 10381950 | J47: 11139358 | K47: 11512118 | L47: 10361872 | M47: 14862659 | N47: 20574482 | O47: =+O25+O44 -> 28678109 | P47: 216349995 | Q47: 43
Q48: 44
A49: Usage by Season | Q49: 45
C50: Month | D50: =MONTH(D5) -> 1 | E50: 2 | F50: 3 | G50: 4 | H50: 5 | I50: 6 | J50: 7 | K50: 8 | L50: 9 | M50: 10 | N50: 11 | O50: 12 | Q50: 46
A51: GS | C51: Season (0=Winter, 1=Summer) | D51: =IF(D$50<4,0,IF(D$50>10,0,1)) -> 0 | E51: =IF(E$50<4,0,IF(E$50>10,0,1)) -> 0 | F51: 0 | G51: 1 | H51: 1 | I51: 1 | J51: 1 | K51: 1 | L51: 1 | M51: 1 | N51: 0 | O51: 0 | P51: Total | Q51: 47
B52: Winter | D52: =IF(D51=0,D7+D8,0) -> 20381541 | E52: =IF(E51=0,E7+E8,0) -> 17083709 | F52: 13126767 | G52: 0 | H52: 0 | I52: 0 | J52: 0 | K52: 0 | L52: 0 | M52: 0 | N52: 11849853 | O52: 18220268 | P52: =SUM(D52:O52) -> 80662138 | Q52: 48
B53: Summer | D53: =IF(D51=1,D7+D8,0) -> 0 | E53: 0 | F53: 0 | G53: 8982424 | H53: 5173896 | I53: 2884089 | J53: 2361573 | K53: 2304630 | L53: 2681738 | M53: 6614316 | N53: 0 | O53: 0 | P53: =SUM(D53:O53) -> 31002666 | Q53: 49
A54: GSS | Q54: 50
B55: Winter | D55: =IF(D51=0,D9,0) -> 0 | E55: 0 | F55: 0 | G55: 0 | H55: 0 | I55: 0 | J55: 0 | K55: 0 | L55: 0 | M55: 0 | N55: 0 | O55: 0 | P55: =SUM(D55:O55) -> 0 | Q55: 51
B56: Summer | D56: =IF(D51=1,D9,0) -> 0 | E56: 0 | F56: 0 | G56: 0 | H56: 0 | I56: 0 | J56: 0 | K56: 0 | L56: 0 | M56: 0 | N56: 0 | O56: 0 | P56: =SUM(D56:O56) -> 0 | Q56: 52
A57: F-S | Q57: 53
B58: Winter | D58: =IF(D51=0,D10,0) -> 281659 | E58: 266270 | F58: 235451 | G58: 0 | H58: 0 | I58: 0 | J58: 0 | K58: 0 | L58: 0 | M58: 0 | N58: 190121 | O58: 240336 | P58: =SUM(D58:O58) -> 1213837 | Q58: 54
B59: Summer | D59: =IF(D51=1,D10,0) -> 0 | E59: 0 | F59: 0 | G59: 208442 | H59: 187635 | I59: 165512 | J59: 127903 | K59: 132140 | L59: 148628 | M59: 218567 | N59: 0 | O59: 0 | P59: =SUM(D59:O59) -> 1188827 | Q59: 55
Q60: 56
Q61: 57
B62: Rates: R050201.R1 | C62: WYOMING NON-CORE DNG REVENUES FROM DEMAND FORECAST AND CURRENTLY EFFECTIVE I-SALES GAS COST RATES | Q62: 58
D63: Forecast | E63: Forecast | F63: Forecast | G63: Forecast | H63: Forecast | I63: Forecast | J63: Forecast | K63: Forecast | L63: Forecast | M63: Forecast | N63: Forecast | O63: Forecast | P63: 12-Month | Q63: 59
D64: =D5 -> Jan22 | E64: =E5 -> Feb22 | F64: =F5 -> Mar22 | G64: Apr22 | H64: May22 | I64: Jun22 | J64: Jul22 | K64: Aug22 | L64: Sep22 | M64: Oct22 | N64: Nov22 | O64: Dec22 | P64: Total | Q64: 60
A65: I-2 & 1-4 (Non-Gas Revenue) (Yearly) | D65: ='RevRun Fcst'!H273+'RevRun Fcst'!H282 -> 6269.76 | E65: ='RevRun Fcst'!I273+'RevRun Fcst'!I282 -> 6171.98 | F65: ='RevRun Fcst'!J273+'RevRun Fcst'!J282 -> 5573.73 | G65: ='RevRun Fcst'!K273+'RevRun Fcst'!K282 -> 4782.37 | H65: ='RevRun Fcst'!L273+'RevRun Fcst'!L282 -> 3435.38 | I65: ='RevRun Fcst'!M273+'RevRun Fcst'!M282 -> 3057.36 | J65: ='RevRun Fcst'!N273+'RevRun Fcst'!N282 -> 2500.64 | K65: ='RevRun Fcst'!O273+'RevRun Fcst'!O282 -> 2299.13 | L65: ='RevRun Fcst'!P273+'RevRun Fcst'!P282 -> 2357.25 | M65: ='RevRun Fcst'!Q273+'RevRun Fcst'!Q282 -> 3098.1 | N65: ='RevRun Fcst'!R273+'RevRun Fcst'!R282 -> 4753.04 | O65: ='RevRun Fcst'!S273+'RevRun Fcst'!S282 -> 5651.12 | P65: =SUM(D65:O65) -> 49949.86 | Q65: 61
A66: IC (Total Revenue) (Yearly) | D66: =ROUND(D41*$P66/$P41,0) -> 20353 | E66: 9986 | F66: 8995 | G66: 8728 | H66: 10166 | I66: 10919 | J66: 8143 | K66: 6949 | L66: 3677 | M66: 9197 | N66: 8384 | O66: =P66-SUM(D66:N66) -> 11569.32 | P66: ='RevRun Fcst'!T300+'RevRun Fcst'!T314 -> 117066.32 | Q66: 62
Q67: 63
A68: I-2 Gas Cost (Rate Effective ) | D68: 0 | E68: =+D68 -> 0 | F68: 0 | G68: 0 | H68: 0 | I68: 0 | J68: 0 | K68: 0 | L68: 0 | M68: 0 | N68: 0 | O68: 0 | Q68: 64
A69: I-4 Gas Cost (Rate Effective ) | D69: 0 | E69: 0 | F69: 0 | G69: 0 | H69: 0 | I69: 0 | J69: 0 | K69: 0 | L69: 0 | M69: 0 | N69: 0 | O69: 0 | Q69: 65
Q70: 66
Q71: 67
D72: ALLOCATION BASES | Q72: 68
D73: DEMAND | G73: OTHER COST | Q73: 69
A74: Utah Peak Day Demand | D74: =+D76-D75 -> 1190761 | E74: =D74/D76 -> 0.9687426272 | G74: Utah Sales | H74: =+P20 -> 114531442 | I74: =H74/H76 -> 0.9678554353 | Q74: 70
A75: Wyoming Peak Day Demand | D75: ='Other Inputs'!E147 -> 38421 | E75: =1-E74 -> 0.03125737279 | G75: Wyoming Sales | H75: =+P39 -> 3803836 | I75: =1-I74 -> 0.0321445647 | Q75: 71
A76: Peak Day Demand | D76: ='Other Inputs'!E148 -> 1229182 | E76: =ROUND(D76/D$76,4) -> 1 | G76: Total Sales | H76: =+H74+H75 -> 118335278 | I76: =ROUND(H76/H$76,4) -> 1 | Q76: 72
Q77: 73
Q78: 74
D79: Financial Report Information (Latest 12 Months of Actual Expenses and 13 Months of Rate Base) | Q79: 75
D80: Actual | E80: Actual | F80: Actual | G80: Actual | H80: Actual | I80: Actual | J80: Actual | K80: Actual | L80: Actual | M80: Actual | N80: Actual | O80: Actual | Q80: 76
A81: Accounts | D81: =+Expenses!D3 -> 2020-11-30 | E81: =+Expenses!E3 -> 2020-12-31 | F81: =+Expenses!F3 -> 2021-01-31 | G81: =+Expenses!G3 -> 2021-02-28 | H81: =+Expenses!H3 -> 2021-03-31 | I81: =+Expenses!I3 -> 2021-04-30 | J81: =+Expenses!J3 -> 2021-05-31 | K81: =+Expenses!K3 -> 2021-06-30 | L81: =+Expenses!L3 -> 2021-07-31 | M81: =+Expenses!M3 -> 2021-08-31 | N81: =+Expenses!N3 -> 2021-09-30 | O81: =+Expenses!O3 -> 2021-10-31 | P81: =Expenses!P3 -> 2021-10-31 | Q81: 77
A82: EXPENSES | Q82: 78
B83: Gas Use In Dth (Acct 810 & 812) | D83: 0 | E83: 0 | F83: 0 | G83: 0 | H83: 0 | I83: 0 | J83: 0 | K83: 0 | L83: 0 | M83: 0 | N83: 0 | O83: 0 | P83: 0 | Q83: 79
Q84: 80
B85: Other Revenue (Yearly) | Q85: 81
B86: Sales for Resale (account 483) | D86: =Expenses!D13 -> 70956.2 | E86: =Expenses!E13 -> 68278.08 | F86: =Expenses!F13 -> 108760.56 | G86: =Expenses!G13 -> 43976.21 | H86: =Expenses!H13 -> 58465.11 | I86: =Expenses!I13 -> -243301.46 | J86: =Expenses!J13 -> 75365.96 | K86: =Expenses!K13 -> 74786.67 | L86: =Expenses!L13 -> 67778 | M86: =Expenses!M13 -> 69108.57 | N86: =Expenses!N13 -> 97129.99 | O86: =Expenses!O13 -> 97138.4 | P86: =Expenses!P13 -> 588442.29 | Q86: 82
B87: Incidental Plant Prod Sales (Acct 490) | D87: =Expenses!D14 -> 324058.92 | E87: =Expenses!E14 -> 398999.99 | F87: =Expenses!F14 -> 392828.82 | G87: =Expenses!G14 -> 569686.21 | H87: =Expenses!H14 -> 170620.23 | I87: =Expenses!I14 -> 653866.38 | J87: =Expenses!J14 -> 682856.11 | K87: =Expenses!K14 -> 634958.11 | L87: =Expenses!L14 -> 1627073 | M87: =Expenses!M14 -> 359.4 | N87: =Expenses!N14 -> 902433.39 | O87: =Expenses!O14 -> 2189382.93 | P87: =Expenses!P14 -> 8547123.49 | Q87: 83
B88: Gas Processed by Others (account 491) | D88: =Expenses!D22 -> 0 | E88: =Expenses!E22 -> 0 | F88: =Expenses!F22 -> 0 | G88: =Expenses!G22 -> 0 | H88: =Expenses!H22 -> 0 | I88: =Expenses!I22 -> 0 | J88: =Expenses!J22 -> 0 | K88: =Expenses!K22 -> 0 | L88: =Expenses!L22 -> 0 | M88: =Expenses!M22 -> 0 | N88: =Expenses!N22 -> 0 | O88: =Expenses!O22 -> 0 | P88: =Expenses!P22 -> 0 | Q88: 84
B89: Gasoline - Oil Sales (account 492) | D89: =Expenses!D15 -> 77456.16 | E89: =Expenses!E15 -> 81027.9 | F89: =Expenses!F15 -> 127457.95 | G89: =Expenses!G15 -> 138811.4 | H89: =Expenses!H15 -> 173241.55 | I89: =Expenses!I15 -> 166979.59 | J89: =Expenses!J15 -> 212549.49 | K89: =Expenses!K15 -> 203206.68 | L89: =Expenses!L15 -> 176274 | M89: =Expenses!M15 -> 251590.28 | N89: =Expenses!N15 -> 158052.51 | O89: =Expenses!O15 -> 152048.32 | P89: =Expenses!P15 -> 1918695.83 | Q89: 85
B90: Gasoline - Oil Cost (account 758.001) | D90: =-Expenses!D18 -> 0 | E90: =-Expenses!E18 -> 0 | F90: =-Expenses!F18 -> 0 | G90: =-Expenses!G18 -> 0 | H90: =-Expenses!H18 -> 0 | I90: =-Expenses!I18 -> 0 | J90: =-Expenses!J18 -> 0 | K90: =-Expenses!K18 -> 0 | L90: =-Expenses!L18 -> 0 | M90: =-Expenses!M18 -> 0 | N90: =-Expenses!N18 -> 0 | O90: =-Expenses!O18 -> 0 | P90: =-Expenses!P18 -> 0 | Q90: 86
Q91: 87
Q92: 88
B93: Overriding Royalty (account 495-1) | D93: =Expenses!D16 -> 59951.56 | E93: =Expenses!E16 -> 342343.1 | F93: =Expenses!F16 -> 454451.08 | G93: =Expenses!G16 -> 401636.71 | H93: =Expenses!H16 -> 740806.43 | I93: =Expenses!I16 -> 1065587.95 | J93: =Expenses!J16 -> 358482.73 | K93: =Expenses!K16 -> 551110.84 | L93: =Expenses!L16 -> 937063 | M93: =Expenses!M16 -> 150108.45 | N93: =Expenses!N16 -> 147551.81 | O93: =Expenses!O16 -> 1014606.72 | P93: =Expenses!P16 -> 6223700.38 | Q93: 89
B94: Wexpro Revenue Sharing (account 495-2) | D94: =Expenses!D17 -> 20243 | E94: =Expenses!E17 -> 22814 | F94: =Expenses!F17 -> 22185 | G94: =Expenses!G17 -> 19996 | H94: =Expenses!H17 -> 35003 | I94: =Expenses!I17 -> 27481 | J94: =Expenses!J17 -> 41794 | K94: =Expenses!K17 -> 37568 | L94: =Expenses!L17 -> 47511 | M94: =Expenses!M17 -> 4721 | N94: =Expenses!N17 -> 16848 | O94: =Expenses!O17 -> 115027 | P94: =Expenses!P17 -> 411191 | Q94: 90
P95: Page 2 of 6 | Q95: 91
C96: Actual | D96: Actual | E96: Actual | F96: Actual | G96: Actual | H96: Actual | I96: Actual | J96: Actual | K96: Actual | L96: Actual | M96: Actual | N96: Actual | O96: Actual | P96: 13-Month | Q96: 92
A97: Accounts | C97: ='Rate Base'!D4 -> 2020-10-31 | D97: ='Rate Base'!E4 -> 2020-11-30 | E97: ='Rate Base'!F4 -> 2020-12-31 | F97: ='Rate Base'!G4 -> 2021-01-31 | G97: ='Rate Base'!H4 -> 2021-02-28 | H97: ='Rate Base'!I4 -> 2021-03-31 | I97: ='Rate Base'!J4 -> 2021-04-30 | J97: ='Rate Base'!K4 -> 2021-05-31 | K97: ='Rate Base'!L4 -> 2021-06-30 | L97: ='Rate Base'!M4 -> 2021-07-31 | M97: ='Rate Base'!N4 -> 2021-08-31 | N97: ='Rate Base'!O4 -> 2021-09-30 | O97: ='Rate Base'!P4 -> 2021-10-31 | P97: Average | Q97: 93
A98: RATE BASE - PRODUCTION | Q98: 94
B99: Acct 164 (Working Gas) - Production | C99: ='Rate Base'!D11 -> 49932603.18 | D99: ='Rate Base'!E11 -> 52970477.48 | E99: ='Rate Base'!F11 -> 45826911.25 | F99: ='Rate Base'!G11 -> 33652911.52 | G99: ='Rate Base'!H11 -> 21131351.05 | H99: ='Rate Base'!I11 -> 14010245.2 | I99: ='Rate Base'!J11 -> 11574315.84 | J99: ='Rate Base'!K11 -> 17495294.93 | K99: ='Rate Base'!L11 -> 23415459.21 | L99: ='Rate Base'!M11 -> 30738132.55 | M99: ='Rate Base'!N11 -> 35307557.59 | N99: ='Rate Base'!O11 -> 37462513.81 | O99: ='Rate Base'!P11 -> 49638760.36 | P99: =(((+C99+O99)/2)+SUM(D99:N99))/12 -> 31114237.68 | Q99: 95
B100: Acct 101 - Production | C100: ='Rate Base'!D5 -> 79968136 | D100: ='Rate Base'!E5 -> 79968136 | E100: ='Rate Base'!F5 -> 79968136 | F100: ='Rate Base'!G5 -> 79968136 | G100: ='Rate Base'!H5 -> 79968136 | H100: ='Rate Base'!I5 -> 79968136 | I100: ='Rate Base'!J5 -> 79968136 | J100: ='Rate Base'!K5 -> 79968136 | K100: ='Rate Base'!L5 -> 79968136 | L100: ='Rate Base'!M5 -> 79968136 | M100: ='Rate Base'!N5 -> 79968136 | N100: ='Rate Base'!O5 -> 79968136 | O100: ='Rate Base'!P5 -> 79968136 | P100: 79968136 | Q100: 96
B101: Acct 108 - Production | C101: ='Rate Base'!D7 -> -71030895 | D101: ='Rate Base'!E7 -> -71094180 | E101: ='Rate Base'!F7 -> -71102647 | F101: ='Rate Base'!G7 -> -71145931 | G101: ='Rate Base'!H7 -> -71234109 | H101: ='Rate Base'!I7 -> -71303759 | I101: ='Rate Base'!J7 -> -71373554 | J101: ='Rate Base'!K7 -> -71443468 | K101: ='Rate Base'!L7 -> -71513383 | L101: ='Rate Base'!M7 -> -71572680 | M101: ='Rate Base'!N7 -> -71641946 | N101: ='Rate Base'!O7 -> -71711214 | O101: ='Rate Base'!P7 -> -71780483 | P101: -71378546.67 | Q101: 97
B102: Acct 111 - Production | C102: ='Rate Base'!D9 -> -6150277.68 | D102: ='Rate Base'!E9 -> -6150278.02 | E102: ='Rate Base'!F9 -> -6150278.36 | F102: ='Rate Base'!G9 -> -6150278.7 | G102: ='Rate Base'!H9 -> -6150279.04 | H102: ='Rate Base'!I9 -> -6150277 | I102: ='Rate Base'!J9 -> -6150277 | J102: ='Rate Base'!K9 -> -6150277 | K102: ='Rate Base'!L9 -> -6150277 | L102: ='Rate Base'!M9 -> -6150277 | M102: ='Rate Base'!N9 -> -6150277 | N102: ='Rate Base'!O9 -> -6150277 | O102: ='Rate Base'!P9 -> -6150277 | P102: -6150277.538 | Q102: 98
B103: Acct 2550 - Production | C103: ='Rate Base'!D13 -> 0 | D103: ='Rate Base'!E13 -> 0 | E103: ='Rate Base'!F13 -> 0 | F103: ='Rate Base'!G13 -> 0 | G103: ='Rate Base'!H13 -> 0 | H103: ='Rate Base'!I13 -> 0 | I103: ='Rate Base'!J13 -> 0 | J103: ='Rate Base'!K13 -> 0 | K103: ='Rate Base'!L13 -> 0 | L103: ='Rate Base'!M13 -> 0 | M103: ='Rate Base'!N13 -> 0 | N103: ='Rate Base'!O13 -> 0 | O103: ='Rate Base'!P13 -> 0 | P103: 0 | Q103: 99
B104: Acct 2820 - Production | C104: ='Rate Base'!D15 -> -29974877 | D104: ='Rate Base'!E15 -> -31061650 | E104: ='Rate Base'!F15 -> -32579975 | F104: ='Rate Base'!G15 -> -32506432 | G104: ='Rate Base'!H15 -> -32847926 | H104: ='Rate Base'!I15 -> -33351414 | I104: ='Rate Base'!J15 -> -33507390 | J104: ='Rate Base'!K15 -> -33963163 | K104: ='Rate Base'!L15 -> -31483079 | L104: ='Rate Base'!M15 -> -31080075 | M104: ='Rate Base'!N15 -> -24954142 | N104: ='Rate Base'!O15 -> -24655106 | O104: ='Rate Base'!P15 -> -25179711 | P104: -30797303.83 | Q104: 100
B105: Acct 2821 - Production | C105: ='Rate Base'!D17 -> -700755.31 | D105: ='Rate Base'!E17 -> -700755.31 | E105: ='Rate Base'!F17 -> -700755.31 | F105: ='Rate Base'!G17 -> -700755.31 | G105: ='Rate Base'!H17 -> -700755.31 | H105: ='Rate Base'!I17 -> -700755 | I105: ='Rate Base'!J17 -> -700755 | J105: ='Rate Base'!K17 -> -700755 | K105: ='Rate Base'!L17 -> -700755 | L105: ='Rate Base'!M17 -> -700755 | M105: ='Rate Base'!N17 -> -700755 | N105: ='Rate Base'!O17 -> -700755 | O105: ='Rate Base'!P17 -> -700755.31 | P105: -700755.1292 | Q105: 101
Q106: 102
D107: Production | H107: Acct 101 | I107: Acct 108 | J107: Acct 111 | K107: Acct 2550 | L107: Acct 2820 | M107: Acct 2821 | N107: Total | Q107: 103
B108: Depreciation - Acct 403 | D108: =Expenses!P8 -> 814564 | F108: Thirteen month average | H108: =P100 -> 79968136 | I108: =P101 -> -71378546.67 | J108: =P102 -> -6150277.538 | K108: =P103 -> 0 | L108: =P104 -> -30797303.83 | M108: =P105 -> -700755.1292 | N108: =SUM(H108:M108) -> -29058747.17 | Q108: 104
B109: Amortization & Depletion - Acct 404 | D109: =Expenses!P10 -> 0 | F109: =CONCATENATE("Wexpro Red. @ ",-'Other Inputs'!E266*100," %") -> Wexpro Red. @ 6.3 % | H109: =H108*'Other Inputs'!$E$266 -> -5037992.568 | I109: =I108*'Other Inputs'!$E$266 -> 4496848.44 | J109: =J108*'Other Inputs'!$E$266 -> 387467.4849 | N109: =SUM(H109:M109) -> -153676.6431 | Q109: 105
B110: Utah Pre-Tax Return on Production Assets | D110: =+N111 -> -2599905.719 | M110: =SUM(N108:N109) -> -29212423.81 | Q110: 106
B111: Utah Production Cost | D111: =SUM(D108:D110) -> -1785341.719 | M111: ="Utah Pre-Tax Rate of Return on Production Assets ("&'Other Inputs'!E269&")" -> Utah Pre-Tax Rate of Return on Production Assets (0.089) | N111: =M110*'Other Inputs'!E269 -> -2599905.719 | Q111: 107
M112: ="Wyoming Pre-Tax Rate of Return on Production Assets ("&'Other Inputs'!E268&")" -> Wyoming Pre-Tax Rate of Return on Production Assets (0.088) | N112: =M110*'Other Inputs'!E268 -> -2570693.295 | Q112: 108
Q113: 109
A114: TACTICAL PLAN INFORMATION (IRP) | P114: 12-Month | Q114: 110
D115: =D5 -> Jan22 | E115: =E5 -> Feb22 | F115: Mar22 | G115: Apr22 | H115: May22 | I115: Jun22 | J115: Jul22 | K115: Aug22 | L115: Sep22 | M115: Oct22 | N115: Nov22 | O115: Dec22 | P115: Total | Q115: 111
A116: COMPANY PRODUCTION | Q116: 112
B117: Prior Company | Q117: 113
B118: D24 Wells | Q118: 114
B119: Brady & Powel | Q119: 115
B120: Total Company Production Wexpro I & II | D120: ='Monthly Inputs'!G7+'Monthly Inputs'!G13 -> 5318110.988 | E120: ='Monthly Inputs'!H7+'Monthly Inputs'!H13 -> 4734413.99 | F120: ='Monthly Inputs'!I7+'Monthly Inputs'!I13 -> 5155955.988 | G120: ='Monthly Inputs'!J7+'Monthly Inputs'!J13 -> 4714367.989 | H120: ='Monthly Inputs'!K7+'Monthly Inputs'!K13 -> 4794915.989 | I120: ='Monthly Inputs'!L7+'Monthly Inputs'!L13 -> 4570853.986 | J120: ='Monthly Inputs'!M7+'Monthly Inputs'!M13 -> 4609833.286 | K120: ='Monthly Inputs'!N7+'Monthly Inputs'!N13 -> 4544697.392 | L120: ='Monthly Inputs'!O7+'Monthly Inputs'!O13 -> 4344522.992 | M120: ='Monthly Inputs'!P7+'Monthly Inputs'!P13 -> 4421616.589 | N120: ='Monthly Inputs'!Q7+'Monthly Inputs'!Q13 -> 5019993.987 | O120: ='Monthly Inputs'!R7+'Monthly Inputs'!R13 -> 5025489.791 | P120: =SUM(D120:O120) -> 57254772.97 | Q120: 116
Q121: 117
A122: STORAGE INJECTIONS | Q122: 118
B123: Chalk Creek | D123: ='Monthly Inputs'!G24 -> 0 | E123: ='Monthly Inputs'!H24 -> 0 | F123: ='Monthly Inputs'!I24 -> 0 | G123: ='Monthly Inputs'!J24 -> 0 | H123: ='Monthly Inputs'!K24 -> 0 | I123: ='Monthly Inputs'!L24 -> 0 | J123: ='Monthly Inputs'!M24 -> 0 | K123: ='Monthly Inputs'!N24 -> 0 | L123: ='Monthly Inputs'!O24 -> 40000 | M123: ='Monthly Inputs'!P24 -> 135000 | N123: ='Monthly Inputs'!Q24 -> 10996 | O123: ='Monthly Inputs'!R24 -> 90000 | P123: =SUM(D123:O123) -> 275996 | Q123: 119
B124: Coalville | D124: ='Monthly Inputs'!G26 -> 0 | E124: ='Monthly Inputs'!H26 -> 0 | F124: ='Monthly Inputs'!I26 -> 325000 | G124: ='Monthly Inputs'!J26 -> 0 | H124: ='Monthly Inputs'!K26 -> 0 | I124: ='Monthly Inputs'!L26 -> 0 | J124: ='Monthly Inputs'!M26 -> 0 | K124: ='Monthly Inputs'!N26 -> 0 | L124: ='Monthly Inputs'!O26 -> 42000 | M124: ='Monthly Inputs'!P26 -> 280800 | N124: ='Monthly Inputs'!Q26 -> 0 | O124: ='Monthly Inputs'!R26 -> 37386 | P124: =SUM(D124:O124) -> 685186 | Q124: 120
B125: Leroy | D125: ='Monthly Inputs'!G27 -> 0 | E125: ='Monthly Inputs'!H27 -> 0 | F125: ='Monthly Inputs'!I27 -> 0 | G125: ='Monthly Inputs'!J27 -> 0 | H125: ='Monthly Inputs'!K27 -> 0 | I125: ='Monthly Inputs'!L27 -> 0 | J125: ='Monthly Inputs'!M27 -> 0 | K125: ='Monthly Inputs'!N27 -> 0 | L125: ='Monthly Inputs'!O27 -> 47500 | M125: ='Monthly Inputs'!P27 -> 45000 | N125: ='Monthly Inputs'!Q27 -> 0 | O125: ='Monthly Inputs'!R27 -> 272055 | P125: =SUM(D125:O125) -> 364555 | Q125: 121
B126: Ryckman | D126: ='Monthly Inputs'!G28 -> 0 | E126: ='Monthly Inputs'!H28 -> 0 | F126: ='Monthly Inputs'!I28 -> 0 | G126: ='Monthly Inputs'!J28 -> 0 | H126: ='Monthly Inputs'!K28 -> 0 | I126: ='Monthly Inputs'!L28 -> 0 | J126: ='Monthly Inputs'!M28 -> 0 | K126: ='Monthly Inputs'!N28 -> 0 | L126: ='Monthly Inputs'!O28 -> 0 | M126: ='Monthly Inputs'!P28 -> 0 | N126: ='Monthly Inputs'!Q28 -> 0 | O126: ='Monthly Inputs'!R28 -> 0 | P126: =SUM(D126:O126) -> 0 | Q126: 122
B127: Total Peaking Storage | D127: =SUM(D123:D126) -> 0 | E127: =SUM(E123:E126) -> 0 | F127: 325000 | G127: 0 | H127: 0 | I127: 0 | J127: 0 | K127: 0 | L127: 129500 | M127: 460800 | N127: 10996 | O127: 399441 | P127: 1325737 | Q127: 123
B128: Clay Basin | D128: ='Monthly Inputs'!G25 -> 0 | E128: ='Monthly Inputs'!H25 -> 0 | F128: ='Monthly Inputs'!I25 -> 0 | G128: ='Monthly Inputs'!J25 -> 945000 | H128: ='Monthly Inputs'!K25 -> 2418001 | I128: ='Monthly Inputs'!L25 -> 2166181 | J128: ='Monthly Inputs'!M25 -> 1976476 | K128: ='Monthly Inputs'!N25 -> 2051859 | L128: ='Monthly Inputs'!O25 -> 1865632 | M128: ='Monthly Inputs'!P25 -> 1576854 | N128: ='Monthly Inputs'!Q25 -> 0 | O128: ='Monthly Inputs'!R25 -> 0 | P128: =SUM(D128:O128) -> 13000003 | Q128: 124
B129: Total Storage Injections | D129: =SUM(D127:D128) -> 0 | E129: =SUM(E127:E128) -> 0 | F129: 325000 | G129: 945000 | H129: 2418001 | I129: 2166181 | J129: 1976476 | K129: 2051859 | L129: 1995132 | M129: 2037654 | N129: 10996 | O129: 399441 | P129: =SUM(P127:P128) -> 14325740 | Q129: 125
A130: STORAGE WITHDRAWLS | Q130: 126
B131: Chalk Creek | D131: ='Monthly Inputs'!G32 -> 307500 | E131: ='Monthly Inputs'!H32 -> 13500 | F131: ='Monthly Inputs'!I32 -> 0 | G131: ='Monthly Inputs'!J32 -> 0 | H131: ='Monthly Inputs'!K32 -> 0 | I131: ='Monthly Inputs'!L32 -> 0 | J131: ='Monthly Inputs'!M32 -> 0 | K131: ='Monthly Inputs'!N32 -> 0 | L131: ='Monthly Inputs'!O32 -> 0 | M131: ='Monthly Inputs'!P32 -> 0 | N131: ='Monthly Inputs'!Q32 -> 0 | O131: ='Monthly Inputs'!R32 -> 0 | P131: =SUM(D131:O131) -> 321000 | Q131: 127
B132: Coalville | D132: ='Monthly Inputs'!G34 -> 625000 | E132: ='Monthly Inputs'!H34 -> 60186 | F132: ='Monthly Inputs'!I34 -> 0 | G132: ='Monthly Inputs'!J34 -> 0 | H132: ='Monthly Inputs'!K34 -> 0 | I132: ='Monthly Inputs'!L34 -> 0 | J132: ='Monthly Inputs'!M34 -> 0 | K132: ='Monthly Inputs'!N34 -> 0 | L132: ='Monthly Inputs'!O34 -> 0 | M132: ='Monthly Inputs'!P34 -> 0 | N132: ='Monthly Inputs'!Q34 -> 0 | O132: ='Monthly Inputs'!R34 -> 0 | P132: =SUM(D132:O132) -> 685186 | Q132: 128
B133: Leroy | D133: ='Monthly Inputs'!G35 -> 443498 | E133: ='Monthly Inputs'!H35 -> 0 | F133: ='Monthly Inputs'!I35 -> 0 | G133: ='Monthly Inputs'!J35 -> 0 | H133: ='Monthly Inputs'!K35 -> 0 | I133: ='Monthly Inputs'!L35 -> 0 | J133: ='Monthly Inputs'!M35 -> 0 | K133: ='Monthly Inputs'!N35 -> 0 | L133: ='Monthly Inputs'!O35 -> 0 | M133: ='Monthly Inputs'!P35 -> 0 | N133: ='Monthly Inputs'!Q35 -> 0 | O133: ='Monthly Inputs'!R35 -> 0 | P133: =SUM(D133:O133) -> 443498 | Q133: 129
B134: Ryckman | D134: ='Monthly Inputs'!G36 -> 0 | E134: ='Monthly Inputs'!H36 -> 0 | F134: ='Monthly Inputs'!I36 -> 0 | G134: ='Monthly Inputs'!J36 -> 0 | H134: ='Monthly Inputs'!K36 -> 0 | I134: ='Monthly Inputs'!L36 -> 0 | J134: ='Monthly Inputs'!M36 -> 0 | K134: ='Monthly Inputs'!N36 -> 0 | L134: ='Monthly Inputs'!O36 -> 0 | M134: ='Monthly Inputs'!P36 -> 0 | N134: ='Monthly Inputs'!Q36 -> 0 | O134: ='Monthly Inputs'!R36 -> 0 | P134: =SUM(D134:O134) -> 0 | Q134: 130
B135: Total Peaking Storage | D135: =SUM(D131:D134) -> 1375998 | E135: =SUM(E131:E134) -> 73686 | F135: 0 | G135: 0 | H135: 0 | I135: 0 | J135: 0 | K135: 0 | L135: 0 | M135: 0 | N135: 0 | O135: 0 | P135: 1449684 | Q135: 131
B136: Clay Basin | D136: ='Monthly Inputs'!G33 -> 3410050 | E136: ='Monthly Inputs'!H33 -> 3080045 | F136: ='Monthly Inputs'!I33 -> 1599106 | G136: ='Monthly Inputs'!J33 -> 0 | H136: ='Monthly Inputs'!K33 -> 0 | I136: ='Monthly Inputs'!L33 -> 0 | J136: ='Monthly Inputs'!M33 -> 0 | K136: ='Monthly Inputs'!N33 -> 0 | L136: ='Monthly Inputs'!O33 -> 0 | M136: ='Monthly Inputs'!P33 -> 0 | N136: ='Monthly Inputs'!Q33 -> 2087659 | O136: ='Monthly Inputs'!R33 -> 2672247 | P136: =SUM(D136:O136) -> 12849107 | Q136: 132
B137: Total Storage Withdrawls | D137: =SUM(D135:D136) -> 4786048 | E137: 3153731 | F137: 1599106 | G137: 0 | H137: 0 | I137: 0 | J137: 0 | K137: 0 | L137: 0 | M137: 0 | N137: 2087659 | O137: 2672247 | P137: 14298791 | Q137: 133
Q138: 134
Q139: 135
A140: Gas Supply and Demand | D140: =D4 -> Forecast | E140: Forecast | F140: Forecast | G140: Forecast | H140: Forecast | I140: Forecast | J140: Forecast | K140: Forecast | L140: Forecast | M140: Forecast | N140: Forecast | O140: Forecast | P140: 12-Month | Q140: 136
A141: Demand | D141: =D5 -> Jan22 | E141: Feb22 | F141: Mar22 | G141: Apr22 | H141: May22 | I141: Jun22 | J141: Jul22 | K141: Aug22 | L141: Sep22 | M141: Oct22 | N141: Nov22 | O141: Dec22 | P141: Total | Q141: 137
Q142: 138
A143: Utah Sales | D143: =+D20 -> 20719856 | E143: =+E20 -> 17401943 | F143: 13407466 | G143: 9229127 | H143: 5389863 | I143: 3078696 | J143: 2518087 | K143: 2462944 | L143: 2859775 | M143: 6866336 | N143: 12080405 | O143: 18516944 | P143: =SUM(D143:O143) -> 114531442 | Q143: 139
A144: Wyoming Sales | D144: =+D39 -> 620618 | E144: 562716 | F144: 461114 | G144: 335736 | H144: 223941 | I144: 111067 | J144: 71178 | K144: 71150 | L144: 102758 | M144: 240551 | N144: 414894 | O144: 588113 | P144: =SUM(D144:O144) -> 3803836 | Q144: 140
A145: Total Sales | D145: =+D143+D144 -> 21340474 | E145: 17964659 | F145: 13868580 | G145: 9564863 | H145: 5613804 | I145: 3189763 | J145: 2589265 | K145: 2534094 | L145: 2962533 | M145: 7106887 | N145: 12495299 | O145: 19105057 | P145: 118335278 | Q145: 141
Q146: 142
A147: Distribution Use (Offices) | C147: Check formulas for correct month | D147: =ROUND(O83,0) -> 0 | E147: =ROUND(D83,0) -> 0 | F147: =ROUND(E83,0) -> 0 | G147: 0 | H147: 0 | I147: 0 | J147: 0 | K147: 0 | L147: 0 | M147: 0 | N147: 0 | O147: 0 | P147: =SUM(D147:O147) -> 0 | Q147: 143
A148: Distribution Lost and Unaccounted for | D148: =+D150-D145-D147 -> 116296 | E148: =+E150-E145-E147 -> 97899 | F148: 75577 | G148: 52124 | H148: 30593 | I148: 17383 | J148: 14110 | K148: 13810 | L148: 16144 | M148: 38729 | N148: 68094 | O148: =+O150-O145-O147 -> 104114 | P148: =SUM(D148:O148) -> 644873 | Q148: 144
Q149: 145
A150: Total City Gate | D150: =ROUND((D145+D147)/(1-'Other Inputs'!$E$272),0) -> 21456770 | E150: =ROUND((E145+E147)/(1-'Other Inputs'!$E$272),0) -> 18062558 | F150: =ROUND((F145+F147)/(1-'Other Inputs'!$E$272),0) -> 13944157 | G150: =ROUND((G145+G147)/(1-'Other Inputs'!$E$272),0) -> 9616987 | H150: =ROUND((H145+H147)/(1-'Other Inputs'!$E$272),0) -> 5644397 | I150: =ROUND((I145+I147)/(1-'Other Inputs'!$E$272),0) -> 3207146 | J150: =ROUND((J145+J147)/(1-'Other Inputs'!$E$272),0) -> 2603375 | K150: =ROUND((K145+K147)/(1-'Other Inputs'!$E$272),0) -> 2547904 | L150: =ROUND((L145+L147)/(1-'Other Inputs'!$E$272),0) -> 2978677 | M150: =ROUND((M145+M147)/(1-'Other Inputs'!$E$272),0) -> 7145616 | N150: =ROUND((N145+N147)/(1-'Other Inputs'!$E$272),0) -> 12563393 | O150: =ROUND((O145+O147)/(1-'Other Inputs'!$E$272),0) -> 19209171 | P150: =SUM(D150:O150) -> 118980151 | Q150: 146
Q151: 147
A152: Peaking Injection | D152: =+D127 -> 0 | E152: 0 | F152: 325000 | G152: 0 | H152: 0 | I152: 0 | J152: 0 | K152: 0 | L152: 129500 | M152: 460800 | N152: 10996 | O152: 399441 | P152: =SUM(D152:O152) -> 1325737 | Q152: 148
A153: Clay Basin Injection | D153: =+D128 -> 0 | E153: 0 | F153: 0 | G153: 945000 | H153: 2418001 | I153: 2166181 | J153: 1976476 | K153: 2051859 | L153: 1865632 | M153: 1576854 | N153: 0 | O153: 0 | P153: =SUM(D153:O153) -> 13000003 | Q153: 149
A154: Storage Lost & Unaccounted For | D154: =-'Monthly Inputs'!G51 -> 0 | E154: =-'Monthly Inputs'!H51 -> 0 | F154: =-'Monthly Inputs'!I51 -> 3510 | G154: =-'Monthly Inputs'!J51 -> 12908.7 | H154: =-'Monthly Inputs'!K51 -> 33029.89366 | I154: =-'Monthly Inputs'!L51 -> 29590.03246 | J154: =-'Monthly Inputs'!M51 -> 26998.66216 | K154: =-'Monthly Inputs'!N51 -> 28028.39394 | L154: =-'Monthly Inputs'!O51 -> 27735.38312 | M154: =-'Monthly Inputs'!P51 -> 27236.46564 | N154: =-'Monthly Inputs'!Q51 -> 108.8604 | O154: =-'Monthly Inputs'!R51 -> 9320.3913 | P154: =SUM(D154:O154) -> 198466.7827 | Q154: 150
A155: Total Demand | D155: =SUM(D150:D154) -> 21456770 | E155: =SUM(E150:E154) -> 18062558 | F155: 14272667 | G155: 10574895.7 | H155: =SUM(H150:H154) -> 8095427.894 | I155: 5402917.032 | J155: 4606849.662 | K155: 4627791.394 | L155: 5001544.383 | M155: 9210506.466 | N155: 12574497.86 | O155: =SUM(O150:O154) -> 19617932.39 | P155: =SUM(D155:O155) -> 133504357.8 | Q155: 151
Q156: 152
D157: Forecast | E157: Forecast | F157: Forecast | G157: Forecast | H157: Forecast | I157: Forecast | J157: Forecast | K157: Forecast | L157: Forecast | M157: Forecast | N157: Forecast | O157: Forecast | P157: 12-Month | Q157: 153
A158: Supply | D158: =D5 -> Jan22 | E158: Feb22 | F158: Mar22 | G158: Apr22 | H158: May22 | I158: Jun22 | J158: Jul22 | K158: Aug22 | L158: Sep22 | M158: Oct22 | N158: Nov22 | O158: Dec22 | P158: Total | Q158: 154
A159: Company Production | D159: =+D120 -> 5318110.988 | E159: =+E120 -> 4734413.99 | F159: 5155955.988 | G159: 4714367.989 | H159: 4794915.989 | I159: 4570853.986 | J159: 4609833.286 | K159: 4544697.392 | L159: 4344522.992 | M159: 4421616.589 | N159: 5019993.987 | O159: 5025489.791 | P159: =SUM(D159:O159) -> 57254772.97 | Q159: 155
A160: Co Prod Lost & Unaccounted For | D160: =ROUND(D159*(-'Other Inputs'!$E$274-'Other Inputs'!$E$275),0) -> -166723 | E160: =ROUND(E159*(-'Other Inputs'!$E$274-'Other Inputs'!$E$275),0) -> -148424 | F160: =ROUND(F159*(-'Other Inputs'!$E$274-'Other Inputs'!$E$275),0) -> -161639 | G160: =ROUND(G159*(-'Other Inputs'!$E$274-'Other Inputs'!$E$275),0) -> -147795 | H160: =ROUND(H159*(-'Other Inputs'!$E$274-'Other Inputs'!$E$275),0) -> -150321 | I160: =ROUND(I159*(-'Other Inputs'!$E$274-'Other Inputs'!$E$275),0) -> -143296 | J160: =ROUND(J159*(-'Other Inputs'!$E$274-'Other Inputs'!$E$275),0) -> -144518 | K160: =ROUND(K159*(-'Other Inputs'!$E$274-'Other Inputs'!$E$275),0) -> -142476 | L160: =ROUND(L159*(-'Other Inputs'!$E$274-'Other Inputs'!$E$275),0) -> -136201 | M160: =ROUND(M159*(-'Other Inputs'!$E$274-'Other Inputs'!$E$275),0) -> -138618 | N160: =ROUND(N159*(-'Other Inputs'!$E$274-'Other Inputs'!$E$275),0) -> -157377 | O160: =ROUND(O159*(-'Other Inputs'!$E$274-'Other Inputs'!$E$275),0) -> -157549 | P160: =SUM(D160:O160) -> -1794937 | Q160: 156
A161: Company Production @ City Gate | D161: =SUM(D159:D160) -> 5151387.988 | E161: =SUM(E159:E160) -> 4585989.99 | F161: 4994316.988 | G161: 4566572.989 | H161: 4644594.989 | I161: 4427557.986 | J161: 4465315.286 | K161: 4402221.392 | L161: 4208321.992 | M161: 4282998.589 | N161: 4862616.987 | O161: 4867940.791 | P161: =SUM(D161:O161) -> 55459835.97 | Q161: 157
Q162: 158
A163: Peaking Withdrawal | D163: =+D135 -> 1375998 | E163: 73686 | F163: 0 | G163: 0 | H163: 0 | I163: 0 | J163: 0 | K163: 0 | L163: 0 | M163: 0 | N163: 0 | O163: 0 | P163: =SUM(D163:O163) -> 1449684 | Q163: 159
A164: Clay Basin Withdrawal | D164: =+D136 -> 3410050 | E164: 3080045 | F164: 1599106 | G164: 0 | H164: 0 | I164: 0 | J164: 0 | K164: 0 | L164: 0 | M164: 0 | N164: 2087659 | O164: 2672247 | P164: =SUM(D164:O164) -> 12849107 | Q164: 160
A165: QPC Transportation Loss on Storage | D165: ='Monthly Inputs'!G67+'Monthly Inputs'!G59 -> -93733.43075 | E165: ='Monthly Inputs'!H67+'Monthly Inputs'!H59 -> -44567.60851 | F165: ='Monthly Inputs'!I67+'Monthly Inputs'!I59 -> -21822.99958 | G165: ='Monthly Inputs'!J67+'Monthly Inputs'!J59 -> 0 | H165: ='Monthly Inputs'!K67+'Monthly Inputs'!K59 -> 0 | I165: ='Monthly Inputs'!L67+'Monthly Inputs'!L59 -> 0 | J165: ='Monthly Inputs'!M67+'Monthly Inputs'!M59 -> 0 | K165: ='Monthly Inputs'!N67+'Monthly Inputs'!N59 -> 0 | L165: ='Monthly Inputs'!O67+'Monthly Inputs'!O59 -> 0 | M165: ='Monthly Inputs'!P67+'Monthly Inputs'!P59 -> 0 | N165: ='Monthly Inputs'!Q67+'Monthly Inputs'!Q59 -> -28490.28237 | O165: ='Monthly Inputs'!R67+'Monthly Inputs'!R59 -> -36468.15481 | P165: =SUM(D165:O165) -> -225082.476 | Q165: 161
A166: Storage Lost & Unaccounted For | D166: ='Monthly Inputs'!G51 -> 0 | E166: ='Monthly Inputs'!H51 -> 0 | F166: ='Monthly Inputs'!I51 -> -3510 | G166: ='Monthly Inputs'!J51 -> -12908.7 | H166: ='Monthly Inputs'!K51 -> -33029.89366 | I166: ='Monthly Inputs'!L51 -> -29590.03246 | J166: ='Monthly Inputs'!M51 -> -26998.66216 | K166: ='Monthly Inputs'!N51 -> -28028.39394 | L166: ='Monthly Inputs'!O51 -> -27735.38312 | M166: ='Monthly Inputs'!P51 -> -27236.46564 | N166: ='Monthly Inputs'!Q51 -> -108.8604 | O166: ='Monthly Inputs'!R51 -> -9320.3913 | P166: =SUM(D166:O166) -> -198466.7827 | Q166: 162
A167: Storage Supply @ City Gate | D167: =SUM(D163:D166) -> 4692314.569 | E167: =SUM(E163:E166) -> 3109163.391 | F167: 1573773 | G167: -12908.7 | H167: -33029.89366 | I167: -29590.03246 | J167: -26998.66216 | K167: -28028.39394 | L167: -27735.38312 | M167: -27236.46564 | N167: 2059059.857 | O167: 2626458.454 | P167: 13875241.74 | Q167: 163
Q168: 164
A169: Gas Purchased @ City Gate | D169: =D155-D161-D167-D154 -> 11613067.44 | E169: =E155-E161-E167-E154 -> 10367404.62 | F169: 7701067.011 | G169: 6008322.711 | H169: 3450832.905 | I169: 975359.0468 | J169: 141534.3762 | K169: 225570.002 | L169: 793222.3914 | M169: 4927507.877 | N169: 5652712.156 | O169: 12114212.75 | P169: =SUM(D169:O169) -> 63970813.29 | Q169: 165
A170: Gas Reimbursement | D170: =+D171-D169 -> 135103.5576 | E170: =+E171-E169 -> 120612.381 | F170: 89592.98889 | G170: 69899.28891 | H170: 40146.09495 | I170: 11346.95317 | J170: 1646.623774 | K170: 2623.998019 | L170: 9228.608627 | M170: 57325.12311 | N170: 65762.84386 | O170: 140934.2453 | P170: =SUM(D170:O170) -> 744222.7072 | Q170: 166
A171: Gas Purchased - Dth ( /.98) | D171: =ROUND(D169/(1-'Other Inputs'!$E$275),0) -> 11748171 | E171: =ROUND(E169/(1-'Other Inputs'!$E$275),0) -> 10488017 | F171: =ROUND(F169/(1-'Other Inputs'!$E$275),0) -> 7790660 | G171: =ROUND(G169/(1-'Other Inputs'!$E$275),0) -> 6078222 | H171: =ROUND(H169/(1-'Other Inputs'!$E$275),0) -> 3490979 | I171: =ROUND(I169/(1-'Other Inputs'!$E$275),0) -> 986706 | J171: =ROUND(J169/(1-'Other Inputs'!$E$275),0) -> 143181 | K171: =ROUND(K169/(1-'Other Inputs'!$E$275),0) -> 228194 | L171: =ROUND(L169/(1-'Other Inputs'!$E$275),0) -> 802451 | M171: =ROUND(M169/(1-'Other Inputs'!$E$275),0) -> 4984833 | N171: =ROUND(N169/(1-'Other Inputs'!$E$275),0) -> 5718475 | O171: =ROUND(O169/(1-'Other Inputs'!$E$275),0) -> 12255147 | P171: =SUM(D171:O171) -> 64715036 | Q171: 167
Q172: 168
A173: Transported Volumes - total | D173: =+D161+D169+D137+D165 -> 21456770 | E173: =+E161+E169+E137+E165 -> 18062558 | F173: =+F161+F169+F137+F165 -> 14272667 | G173: 10574895.7 | H173: =+H161+H169+H137+H165 -> 8095427.894 | I173: 5402917.032 | J173: 4606849.662 | K173: 4627791.394 | L173: 5001544.383 | M173: 9210506.466 | N173: 12574497.86 | O173: 19617932.39 | P173: =+P161+P169+P137+P165 -> 133504357.8 | Q173: 169
A174: Kern transported volumes | D174: =HLOOKUP(MONTH(D5),kernrivertrans,6,FALSE) -> 3964844.058 | E174: =HLOOKUP(MONTH(E5),kernrivertrans,6,FALSE) -> 3581149.472 | F174: 2768767.501 | G174: 792914.2612 | H174: =HLOOKUP(MONTH(H5),kernrivertrans,6,FALSE) -> 819344.7365 | I174: 792914.2612 | J174: =HLOOKUP(MONTH(J5),kernrivertrans,6,FALSE) -> 819344.7365 | K174: 819344.7365 | L174: 792914.2612 | M174: 819344.7365 | N174: 2679452.42 | O174: 3964844.058 | Q174: 170
A175: Storage Fuel % | C175: =(P154-P166)/(P163+P164+P152+P153) -> 0.01386690197 | Q175: 171
Q176: 172
A177: Company Production as % of Total Supply / Demand | D177: =D159/(D171+D159) -> 0.3116150894 | E177: 0.3110156317 | F177: =F159/(F171+F159) -> 0.398247387 | G177: 0.4368152588 | H177: =H159/(H171+H159) -> 0.5786841367 | I177: 0.8224569771 | J177: 0.969875748 | K177: 0.9521895679 | L177: 0.8440926647 | M177: 0.4700622214 | N177: 0.4674776258 | O177: =O159/(O171+O159) -> 0.2908162385 | P177: =P159/(P171+P159) -> 0.4694175833 | Q177: 173
Q178: 174
A179: Peak Hour Service | D179: =IF(OR(D6=11,D6=12,D6=1,D6=2),'Other Inputs'!D$20*16*'Other Inputs'!$F$21,0)+IF(OR(D6=11,D6=12,D6=1,D6=2),'Other Inputs'!$D$23*16*'Other Inputs'!$F$24,0) -> 528000.7034 | E179: =IF(OR(E6=11,E6=12,E6=1,E6=2),'Other Inputs'!E$20*16*'Other Inputs'!$F$21,0)+IF(OR(E6=11,E6=12,E6=1,E6=2),'Other Inputs'!$D$23*16*'Other Inputs'!$F$24,0) -> 286647.0986 | F179: =IF(OR(F6=11,F6=12,F6=1,F6=2),'Other Inputs'!F$20*31*'Other Inputs'!$F$21,0)+IF(OR(F6=11,F6=12,F6=1,F6=2),'Other Inputs'!$D$23*31*'Other Inputs'!$F$24,0) -> 0 | G179: =IF(OR(G6=11,G6=12,G6=1,G6=2),'Other Inputs'!G$20*31*'Other Inputs'!$F$21,0)+IF(OR(G6=11,G6=12,G6=1,G6=2),'Other Inputs'!$D$23*31*'Other Inputs'!$F$24,0) -> 0 | H179: =IF(OR(H6=11,H6=12,H6=1,H6=2),'Other Inputs'!H$20*14*'Other Inputs'!$F$21,0)+IF(OR(H6=11,H6=12,H6=1,H6=2),'Other Inputs'!$D$23*14*'Other Inputs'!$F$24,0) -> 0 | I179: =IF(OR(I6=11,I6=12,I6=1,I6=2),'Other Inputs'!I$20*16*'Other Inputs'!$F$21,0)+IF(OR(I6=11,I6=12,I6=1,I6=2),'Other Inputs'!$D$23*16*'Other Inputs'!$F$24,0) -> 0 | J179: =IF(OR(J6=11,J6=12,J6=1,J6=2),'Other Inputs'!J$20*16*'Other Inputs'!$F$21,0)+IF(OR(J6=11,J6=12,J6=1,J6=2),'Other Inputs'!$D$23*16*'Other Inputs'!$F$24,0) -> 0 | K179: =IF(OR(K6=11,K6=12,K6=1,K6=2),'Other Inputs'!K$20*16*'Other Inputs'!$F$21,0)+IF(OR(K6=11,K6=12,K6=1,K6=2),'Other Inputs'!$D$23*16*'Other Inputs'!$F$24,0) -> 0 | L179: =IF(OR(L6=11,L6=12,L6=1,L6=2),'Other Inputs'!L$20*16*'Other Inputs'!$F$21,0)+IF(OR(L6=11,L6=12,L6=1,L6=2),'Other Inputs'!$D$23*16*'Other Inputs'!$F$24,0) -> 0 | M179: =IF(OR(M6=11,M6=12,M6=1,M6=2),'Other Inputs'!M$20*16*'Other Inputs'!$F$21,0)+IF(OR(M6=11,M6=12,M6=1,M6=2),'Other Inputs'!$D$23*16*'Other Inputs'!$F$24,0) -> 0 | N179: =IF(OR(N6=11,N6=12,N6=1,N6=2),'Other Inputs'!N$20*16*'Other Inputs'!$F$21,0)+IF(OR(N6=11,N6=12,N6=1,N6=2),'Other Inputs'!$D$23*16*'Other Inputs'!$F$24,0) -> 286621.913 | O179: =IF(OR(O6=11,O6=12,O6=1,O6=2),'Other Inputs'!O$20*16*'Other Inputs'!$F$21,0)+IF(OR(O6=11,O6=12,O6=1,O6=2),'Other Inputs'!$D$23*16*'Other Inputs'!$F$24,0) -> 286621.913 | P179: =SUM(D179:O179) -> 1387891.628 | Q179: 175
Q180: 176
A181: PURCHASES BREAKDOWN | Q181: 177
A182: Spot Market Purchases | D182: ='Monthly Inputs'!G83 -> 1263171 | E182: ='Monthly Inputs'!H83 -> 1408017 | F182: ='Monthly Inputs'!I83 -> 6860660 | G182: ='Monthly Inputs'!J83 -> 5178222 | H182: ='Monthly Inputs'!K83 -> 3102498 | I182: ='Monthly Inputs'!L83 -> 704763 | J182: ='Monthly Inputs'!M83 -> 0 | K182: ='Monthly Inputs'!N83 -> 174593 | L182: ='Monthly Inputs'!O83 -> 802451 | M182: ='Monthly Inputs'!P83 -> 4578141 | N182: ='Monthly Inputs'!Q83 -> 3631907 | O182: ='Monthly Inputs'!R83 -> 7705147 | P182: =SUM(D182:O182) -> 35409570 | Q182: 178
A183: Spot Market Purchases Cost | D183: ='Monthly Inputs'!G84 -> 7023230.76 | E183: ='Monthly Inputs'!H84 -> 7096405.68 | F183: ='Monthly Inputs'!I84 -> 30529937 | G183: ='Monthly Inputs'!J84 -> 18900510.3 | H183: ='Monthly Inputs'!K84 -> 10610543.16 | I183: ='Monthly Inputs'!L84 -> 2269336.86 | J183: ='Monthly Inputs'!M84 -> 0 | K183: ='Monthly Inputs'!N84 -> 619805.15 | L183: ='Monthly Inputs'!O84 -> 2840676.54 | M183: ='Monthly Inputs'!P84 -> 15977712.09 | N183: ='Monthly Inputs'!Q84 -> 13764927.53 | O183: ='Monthly Inputs'!R84 -> 31899308.58 | P183: =SUM(D183:O183) -> 141532393.7 | Q183: 179
Q184: 180
A185: Contract Purchases (Dth) | D185: ='Monthly Inputs'!G92+'Monthly Inputs'!G96 -> 7285000 | E185: ='Monthly Inputs'!H92+'Monthly Inputs'!H96 -> 6580000 | F185: ='Monthly Inputs'!I92+'Monthly Inputs'!I96 -> 930000 | G185: ='Monthly Inputs'!J92+'Monthly Inputs'!J96 -> 900000 | H185: ='Monthly Inputs'!K92+'Monthly Inputs'!K96 -> 0 | I185: ='Monthly Inputs'!L92+'Monthly Inputs'!L96 -> 0 | J185: ='Monthly Inputs'!M92+'Monthly Inputs'!M96 -> 0 | K185: ='Monthly Inputs'!N92+'Monthly Inputs'!N96 -> 0 | L185: ='Monthly Inputs'!O92+'Monthly Inputs'!O96 -> 0 | M185: ='Monthly Inputs'!P92+'Monthly Inputs'!P96 -> 0 | N185: ='Monthly Inputs'!Q92+'Monthly Inputs'!Q96 -> 0 | O185: ='Monthly Inputs'!R92+'Monthly Inputs'!R96 -> 1550000 | P185: =SUM(D185:O185) -> 17245000 | Q185: 181
A186: Contract Purchases Cost Including Stabalization Costs | D186: ='Monthly Inputs'!G93+'Monthly Inputs'!G94+'Monthly Inputs'!G97 -> 42097370.31 | E186: ='Monthly Inputs'!H93+'Monthly Inputs'!H94+'Monthly Inputs'!H97 -> 35706763.23 | F186: ='Monthly Inputs'!I93+'Monthly Inputs'!I94+'Monthly Inputs'!I97 -> 4488834.122 | G186: ='Monthly Inputs'!J93+'Monthly Inputs'!J94+'Monthly Inputs'!J97 -> 3602820.793 | H186: ='Monthly Inputs'!K93+'Monthly Inputs'!K94+'Monthly Inputs'!K97 -> 0 | I186: ='Monthly Inputs'!L93+'Monthly Inputs'!L94+'Monthly Inputs'!L97 -> 0 | J186: ='Monthly Inputs'!M93+'Monthly Inputs'!M94+'Monthly Inputs'!M97 -> 0 | K186: ='Monthly Inputs'!N93+'Monthly Inputs'!N94+'Monthly Inputs'!N97 -> 0 | L186: ='Monthly Inputs'!O93+'Monthly Inputs'!O94+'Monthly Inputs'!O97 -> 0 | M186: ='Monthly Inputs'!P93+'Monthly Inputs'!P94+'Monthly Inputs'!P97 -> 0 | N186: ='Monthly Inputs'!Q93+'Monthly Inputs'!Q94+'Monthly Inputs'!Q97 -> 0 | O186: ='Monthly Inputs'!R93+'Monthly Inputs'!R94+'Monthly Inputs'!R97 -> 6601404 | P186: =SUM(D186:O186) -> 92497192.46 | Q186: 182
Q187: 183
A188: Peak Purchases (Dth) | D188: ='Monthly Inputs'!G89 -> 3200000 | E188: ='Monthly Inputs'!H89 -> 2500000 | F188: ='Monthly Inputs'!I89 -> 0 | G188: ='Monthly Inputs'!J89 -> 0 | H188: ='Monthly Inputs'!K89 -> 0 | I188: ='Monthly Inputs'!L89 -> 0 | J188: ='Monthly Inputs'!M89 -> 0 | K188: ='Monthly Inputs'!N89 -> 0 | L188: ='Monthly Inputs'!O89 -> 0 | M188: ='Monthly Inputs'!P89 -> 0 | N188: ='Monthly Inputs'!Q89 -> 0 | O188: ='Monthly Inputs'!R89 -> 3000000 | P188: =SUM(D188:O188) -> 8700000 | Q188: 184
A189: Peak Purchases Cost | D189: ='Monthly Inputs'!G90 -> 28434300.09 | E189: ='Monthly Inputs'!H90 -> 20146429.76 | F189: ='Monthly Inputs'!I90 -> 0 | G189: ='Monthly Inputs'!J90 -> 0 | H189: ='Monthly Inputs'!K90 -> 0 | I189: ='Monthly Inputs'!L90 -> 0 | J189: ='Monthly Inputs'!M90 -> 0 | K189: ='Monthly Inputs'!N90 -> 0 | L189: ='Monthly Inputs'!O90 -> 0 | M189: ='Monthly Inputs'!P90 -> 0 | N189: ='Monthly Inputs'!Q90 -> 0 | O189: ='Monthly Inputs'!R90 -> 19880914.64 | P189: =SUM(D189:O189) -> 68461644.49 | Q189: 185
Q190: 186
A191: Future Purchases | D191: =+D171-D182-D185-D188 -> 0 | E191: 0 | F191: 0 | G191: -9.313225746e-10 | H191: 388481 | I191: 281943 | J191: 143181 | K191: 53601 | L191: 1.164153218e-10 | M191: 406692 | N191: 2086568 | O191: 0 | P191: =SUM(D191:O191) -> 3360466 | Q191: 187
A192: Future Purchases Cost | D192: =ROUND(D191*D199,0) -> 0 | E192: =ROUND(E191*E199,0) -> 0 | F192: =ROUND(F191*F199,0) -> 0 | G192: =ROUND(G191*G199,0) -> 0 | H192: =ROUND(H191*H199,0) -> 1336375 | I192: 913495 | J192: 479656 | K192: 191356 | L192: 0 | M192: 1427489 | N192: 7949824 | O192: 0 | P192: =SUM(D192:O192) -> 12298195 | Q192: 188
Q193: 189
A194: Total Purchases Cost | D194: =+D183+D186+D189+D192 -> 77554901.16 | E194: 62949598.67 | F194: 35018771.12 | G194: 22503331.09 | H194: 11946918.16 | I194: 3182831.86 | J194: 479656 | K194: 811161.15 | L194: 2840676.54 | M194: 17405201.09 | N194: 21714751.53 | O194: 58381627.22 | P194: 314789425.6 | Q194: 190
Q195: 191
A196: Gas Cost | Q196: 192
A197: Gas Cost Purchases | D197: =IF(D171=0,0,ROUND(D194/D171,5)) -> 6.60144 | E197: 6.00205 | F197: 4.49497 | G197: 3.70229 | H197: 3.42223 | I197: 3.22571 | J197: 3.35 | K197: 3.5547 | L197: 3.54 | M197: 3.49163 | N197: 3.7973 | O197: 4.76385 | Q197: 193
A198: Gas Cost Injection Rate | D198: ='Ut Storage'!K27 -> 3.981180571 | E198: =+D198 -> 3.981180571 | F198: 3.981180571 | G198: 3.981180571 | H198: 3.981180571 | I198: 3.981180571 | J198: 3.981180571 | K198: 3.981180571 | L198: 3.981180571 | M198: 3.981180571 | N198: 3.981180571 | O198: 3.981180571 | Q198: 194
A199: =CONCATENATE("'Future Contract Price (spot + $",'Other Inputs'!E185,")") -> 'Future Contract Price (spot + $0.02) | D199: =+D231+'Other Inputs'!$E$185 -> 5.58 | E199: =+E231+'Other Inputs'!$E$185 -> 5.06 | F199: =+F231+'Other Inputs'!$E$185 -> 4.47 | G199: =+G231+'Other Inputs'!$E$185 -> 3.67 | H199: =+H231+'Other Inputs'!$E$185 -> 3.44 | I199: =+I231+'Other Inputs'!$E$185 -> 3.24 | J199: =+J231+'Other Inputs'!$E$185 -> 3.35 | K199: =+K231+'Other Inputs'!$E$185 -> 3.57 | L199: =+L231+'Other Inputs'!$E$185 -> 3.56 | M199: =+M231+'Other Inputs'!$E$185 -> 3.51 | N199: =+N231+'Other Inputs'!$E$185 -> 3.81 | O199: =+O231+'Other Inputs'!$E$185 -> 4.16 | Q199: 195
Q200: 196
A201: System Production | D201: =+D161 -> 5151387.988 | E201: 4585989.99 | F201: 4994316.988 | G201: 4566572.989 | H201: 4644594.989 | I201: 4427557.986 | J201: 4465315.286 | K201: 4402221.392 | L201: 4208321.992 | M201: 4282998.589 | N201: 4862616.987 | O201: 4867940.791 | P201: =SUM(D201:O201) -> 55459835.97 | Q201: 197
... 52 more rows

Sheet CET & DSM (hidden)
A1: Rate Caclulation for the CET and DSM Amortizations
P3: Solver Cells
A4: CET Amortization % Calculation | P4: % Change | Q4: Difference
B5: Balance | C5: Date | D5: GS Dth | H5: Amortization per Dth | P5: =J20/D20 ->  | Q5: =J20-B11 ->  | S5: -> Difference should be at 0 (Use Goal Seek to Get Difference to Equal 0.
A6: DSM Balance | B6: ='Other Inputs'!#REF! ->  | C6: ='Other Inputs'!#REF! ->  | D6: =B20 ->  | H6: =ROUND(B6/D6,5) -> 
S8: Typical Bill Rates
A9: CET Amortization Calculation
B10: Balance | C10: Date | D10: DNG Rev | H10: New DNG | L10: % Change | S10: Current | T10: Proposed
A11: CET Balance | B11: ='Other Inputs'!#REF! ->  | C11: ='Other Inputs'!#REF! ->  | D11: =D20 ->  | H11: =D11+B11 ->  | L11: =P5 ->  | S11: Effective | V11: SNG & | W11: CET, DSM
S12: ='Other Inputs'!$J$100 -> 2021-12-01 | T12: CET Only | U12: DSM Only | V12: Commodity | W12: Commodity
S13: BSF | T13: BSF | U13: BSF | V13: BSF | W13: BSF
B14: Revenue Calculation | H14: CET Amortization | L14: Total DNG | P14: REVRUN Calculation | S14: ='Other Inputs'!$G$104 -> 6.75 | T14: ='Other Inputs'!$G$104 -> 6.75 | U14: ='Other Inputs'!$G$104 -> 6.75 | V14: ='Other Inputs'!$G$104 -> 6.75 | W14: ='Ut 1.6 Source'!$C$18 -> 6.75
A15: Utah GS | B15: Dth | C15: Base DNG | D15: DNG Revenue | H15: CET Rate | J15: Revenue | L15: DNG Rate | N15: Revenue | P15: CET Rate | Q15: CET Amort
A16: Block 1 Summer | B16: ='Other Inputs'!#REF! ->  | C16: ='Other Inputs'!E256 -> 1.94617 | D16: =B16*C16 ->  | H16: =ROUND((J16/B16),5) ->  | J16: =D16*$P$5 ->  | L16: =C16+H16 ->  | N16: =L16*B16 ->  | P16: =ROUND(H16,5) ->  | Q16: =B16*P16 ->  | S16: ='Other Inputs'!$G$100 -> 7.69315 | T16: =N24 ->  | U16: =N31 ->  | V16: =N38 ->  | W16: =N45 -> 
A17: Block 2 Summer | B17: ='Other Inputs'!#REF! ->  | C17: ='Other Inputs'!E257 -> 0.74377 | D17: =B17*C17 ->  | H17: =ROUND((J17/B17),5) ->  | J17: =D17*$P$5 ->  | L17: =C17+H17 ->  | N17: =L17*B17 ->  | P17: =ROUND(H17,5) ->  | Q17: =B17*P17 -> 
A18: Block 1 Winter | B18: ='Other Inputs'!#REF! ->  | C18: ='Other Inputs'!E258 -> 2.64801 | D18: =B18*C18 ->  | H18: =ROUND((J18/B18),5) ->  | J18: =D18*$P$5 ->  | L18: =C18+H18 ->  | N18: =L18*B18 ->  | P18: =ROUND(H18,5) ->  | Q18: =B18*P18 ->  | S18: ='Other Inputs'!$G$102 -> 8.97887 | T18: =N26 ->  | U18: =N33 ->  | V18: =N40 ->  | W18: =N47 -> 
A19: Block 2 Winter | B19: ='Other Inputs'!#REF! ->  | C19: ='Other Inputs'!E259 -> 1.44561 | D19: =B19*C19 ->  | H19: =ROUND((J19/B19),5) ->  | J19: =D19*$P$5 ->  | L19: =C19+H19 ->  | N19: =L19*B19 ->  | P19: =ROUND(H19,5) ->  | Q19: =B19*P19 -> 
A20: GS-1 Block Rev | B20: =SUM(B16:B19) ->  | D20: =SUM(D16:D19) ->  | J20: =B11 ->  | N20: =SUM(N16:N19) ->  | Q20: =SUM(Q16:Q19) -> 
A22: Total Rate Calculation With CET Amortization Only | N22: ='Control Panel'!F8 -> 2022-01-01 | P22: ='Other Inputs'!$J$100 -> 2021-12-01
A23: Utah GS | B23: Base DNG | C23: CET | D23: DSM | E23: Energy Assist | F23: Infrastructure | H23: Total DNG | I23: Base SNG | J23: SNG Amort | L23: Base Gas Cost | M23: 191 Amort | N23: Total Rate | P23: Total Rate
A24: Block 1 Summer | B24: =$C$16 -> 1.94617 | C24: =$H$16 ->  | D24: 0.44104 | E24: 0.01519 | F24: 0.02908 | H24: =SUM(B24:F24) ->  | I24: 0.55715 | J24: 0.01244 | L24: 4.21339 | M24: 0.14067 | N24: =SUM(H24:M24) ->  | P24: ='Other Inputs'!$G$100 -> 7.69315 | Q24: =N24-P24 -> 
A25: Block 2 Summer | B25: =$C$17 -> 0.74377 | C25: =$H$17 ->  | D25: =$D$24 -> 0.44104 | E25: =$E$24 -> 0.01519 | F25: 0.0108 | H25: =SUM(B25:F25) ->  | I25: =I24 -> 0.55715 | J25: =J24 -> 0.01244 | L25: =L24 -> 4.21339 | M25: =$M$24 -> 0.14067 | N25: =SUM(H25:M25) ->  | P25: ='Other Inputs'!$G$101 -> 6.4194 | Q25: =N25-P25 -> 
A26: Block 1 Winter | B26: =$C$18 -> 2.64801 | C26: =$H$18 ->  | D26: =$D$24 -> 0.44104 | E26: =$E$24 -> 0.01519 | F26: 0.03453 | H26: =SUM(B26:F26) ->  | I26: 1.18665 | J26: 0.02651 | L26: =L24 -> 4.21339 | M26: =$M$24 -> 0.14067 | N26: =SUM(H26:M26) ->  | P26: ='Other Inputs'!$G$102 -> 8.97887 | Q26: =N26-P26 -> 
A27: Block 2 Winter | B27: =$C$19 -> 1.44561 | C27: =$H$19 ->  | D27: =$D$24 -> 0.44104 | E27: =$E$24 -> 0.01519 | F27: 0.01434 | H27: =SUM(B27:F27) ->  | I27: =I26 -> 1.18665 | J27: =J26 -> 0.02651 | L27: =L24 -> 4.21339 | M27: =$M$24 -> 0.14067 | N27: =SUM(H27:M27) ->  | P27: ='Other Inputs'!$G$103 -> 7.70513 | Q27: =N27-P27 -> 
A29: Total Rate Calculation With DSM Amortization Only | N29: =N22 -> 2022-01-01 | P29: ='Other Inputs'!$J$100 -> 2021-12-01
A30: Utah GS | B30: Base DNG | C30: CET | D30: DSM | E30: Energy Assist | F30: Infrastructure | H30: Total DNG | I30: Base SNG | J30: SNG Amort | L30: Commodity | M30: 191 Amort | N30: Total Rate | P30: Total Rate
A31: Block 1 Summer | B31: =$C$16 -> 1.94617 | C31: -0.0599 | D31: =$H$6 ->  | E31: =$E$24 -> 0.01519 | F31: =F24 -> 0.02908 | H31: =SUM(B31:F31) ->  | I31: =$I$24 -> 0.55715 | J31: =J24 -> 0.01244 | L31: =$L$24 -> 4.21339 | M31: =$M$24 -> 0.14067 | N31: =SUM(H31:M31) ->  | P31: ='Other Inputs'!$G$100 -> 7.69315 | Q31: =N31-P31 -> 
A32: Block 2 Summer | B32: =$C$17 -> 0.74377 | C32: -0.02224 | D32: =$H$6 ->  | E32: =$E$24 -> 0.01519 | F32: =F25 -> 0.0108 | H32: =SUM(B32:F32) ->  | I32: =$I$24 -> 0.55715 | J32: =J25 -> 0.01244 | L32: =$L$24 -> 4.21339 | M32: =$M$24 -> 0.14067 | N32: =SUM(H32:M32) ->  | P32: ='Other Inputs'!$G$101 -> 6.4194 | Q32: =N32-P32 -> 
A33: Block 1 Winter | B33: =$C$18 -> 2.64801 | C33: -0.07112 | D33: =$H$6 ->  | E33: =$E$24 -> 0.01519 | F33: =F26 -> 0.03453 | H33: =SUM(B33:F33) ->  | I33: =$I$26 -> 1.18665 | J33: =J26 -> 0.02651 | L33: =$L$24 -> 4.21339 | M33: =$M$24 -> 0.14067 | N33: =SUM(H33:M33) ->  | P33: ='Other Inputs'!$G$102 -> 8.97887 | Q33: =N33-P33 -> 
A34: Block 2 Winter | B34: =$C$19 -> 1.44561 | C34: -0.02953 | D34: =$H$6 ->  | E34: =$E$24 -> 0.01519 | F34: =F27 -> 0.01434 | H34: =SUM(B34:F34) ->  | I34: =$I$26 -> 1.18665 | J34: =J27 -> 0.02651 | L34: =$L$24 -> 4.21339 | M34: =$M$24 -> 0.14067 | N34: =SUM(H34:M34) ->  | P34: ='Other Inputs'!$G$103 -> 7.70513 | Q34: =N34-P34 -> 
A36: Total Rate Calculation With SNG and Commodity Changes Only | N36: =N22 -> 2022-01-01 | P36: ='Other Inputs'!$J$100 -> 2021-12-01
A37: Utah GS | B37: Base DNG | C37: CET | D37: DSM | E37: Energy Assist | F37: Infrastructure | H37: Total DNG | I37: Base SNG | J37: SNG | L37: Commodity | M37: 191 Amort | N37: Total Rate | P37: Total Rate
A38: Block 1 Summer | B38: =$C$16 -> 1.94617 | C38: =C31 -> -0.0599 | D38: =D24 -> 0.44104 | E38: =$E$24 -> 0.01519 | F38: =F24 -> 0.02908 | H38: =SUM(B38:F38) -> 2.37158 | I38: =#REF! ->  | J38: =#REF! ->  | L38: ='Ut 1.5 p1'!$F$29 -> 4.6196 | M38: ='Ut 1.5 p1'!$F$30 -> 0.5702 | N38: =SUM(H38:M38) ->  | P38: ='Other Inputs'!$G$100 -> 7.69315 | Q38: =N38-P38 -> 
A39: Block 2 Summer | B39: =$C$17 -> 0.74377 | C39: =C32 -> -0.02224 | D39: =D25 -> 0.44104 | E39: =$E$24 -> 0.01519 | F39: =F25 -> 0.0108 | H39: =SUM(B39:F39) -> 1.18856 | I39: =#REF! ->  | J39: =#REF! ->  | L39: ='Ut 1.5 p1'!$F$29 -> 4.6196 | M39: ='Ut 1.5 p1'!$F$30 -> 0.5702 | N39: =SUM(H39:M39) ->  | P39: ='Other Inputs'!$G$101 -> 6.4194 | Q39: =N39-P39 -> 
A40: Block 1 Winter | B40: =$C$18 -> 2.64801 | C40: =C33 -> -0.07112 | D40: =D26 -> 0.44104 | E40: =$E$24 -> 0.01519 | F40: =F26 -> 0.03453 | H40: =SUM(B40:F40) -> 3.06765 | I40: =#REF! ->  | J40: =#REF! ->  | L40: ='Ut 1.5 p1'!$F$29 -> 4.6196 | M40: ='Ut 1.5 p1'!$F$30 -> 0.5702 | N40: =SUM(H40:M40) ->  | P40: ='Other Inputs'!$G$102 -> 8.97887 | Q40: =N40-P40 -> 
A41: Block 2 Winter | B41: =$C$19 -> 1.44561 | C41: =C34 -> -0.02953 | D41: =D27 -> 0.44104 | E41: =$E$24 -> 0.01519 | F41: =F27 -> 0.01434 | H41: =SUM(B41:F41) -> 1.88665 | I41: =#REF! ->  | J41: =#REF! ->  | L41: ='Ut 1.5 p1'!$F$29 -> 4.6196 | M41: ='Ut 1.5 p1'!$F$30 -> 0.5702 | N41: =SUM(H41:M41) ->  | P41: ='Other Inputs'!$G$103 -> 7.70513 | Q41: =N41-P41 -> 
A43: Total Rate Calculation | N43: =N29 -> 2022-01-01 | P43: ='Other Inputs'!$J$100 -> 2021-12-01
A44: Utah GS | B44: Base DNG | C44: CET | D44: DSM | E44: Energy Assist | F44: Infrastructure | H44: Total DNG | I44: Base SNG | J44: SNG | L44: Commodity | N44: Total Rate | P44: Total Rate
A45: Block 1 Summer | B45: =$C$16 -> 1.94617 | C45: =$H$16 ->  | D45: =$H$6 ->  | E45: =$E$24 -> 0.01519 | F45: =F38 -> 0.02908 | H45: =SUM(B45:F45) ->  | I45: =I38 ->  | J45: =#REF! ->  | L45: ='Ut 1.5 p1'!$F$31 -> 5.1898 | N45: =SUM(H45:L45) ->  | P45: ='Other Inputs'!$G$100 -> 7.69315 | Q45: =N45-P45 -> 
A46: Block 2 Summer | B46: =$C$17 -> 0.74377 | C46: =$H$17 ->  | D46: =$H$6 ->  | E46: =$E$24 -> 0.01519 | F46: =F39 -> 0.0108 | H46: =SUM(B46:F46) ->  | I46: =I39 ->  | J46: =#REF! ->  | L46: =$L$45 -> 5.1898 | N46: =SUM(H46:L46) ->  | P46: ='Other Inputs'!$G$101 -> 6.4194 | Q46: =N46-P46 -> 
A47: Block 1 Winter | B47: =$C$18 -> 2.64801 | C47: =$H$18 ->  | D47: =$H$6 ->  | E47: =$E$24 -> 0.01519 | F47: =F40 -> 0.03453 | H47: =SUM(B47:F47) ->  | I47: =I40 ->  | J47: =#REF! ->  | L47: =$L$45 -> 5.1898 | N47: =SUM(H47:L47) ->  | P47: ='Other Inputs'!$G$102 -> 8.97887 | Q47: =N47-P47 -> 
A48: Block 2 Winter | B48: =$C$19 -> 1.44561 | C48: =$H$19 ->  | D48: =$H$6 ->  | E48: =$E$24 -> 0.01519 | F48: =F41 -> 0.01434 | H48: =SUM(B48:F48) ->  | I48: =I41 ->  | J48: =#REF! ->  | L48: =$L$45 -> 5.1898 | N48: =SUM(H48:L48) ->  | P48: ='Other Inputs'!$G$103 -> 7.70513 | Q48: =N48-P48 -> 
A50: Typical Customer Difference - CET Amortization Only
B51: Typical
A52: GS | B52: Dth | C52: =S12 -> 2021-12-01 | D52: =N43 -> 2022-01-01 | H52: Change | J52: % Change
A53: January | B53: 14.9 | C53: =ROUND($S$14+(B53*$S$18),2) -> 140.54 | D53: =ROUND($T$14+(B53*$T$18),2) ->  | H53: =D53-C53 -> 
A54: February | B54: 12.5 | C54: =ROUND($S$14+(B54*$S$18),2) -> 118.99 | D54: =ROUND($T$14+(B54*$T$18),2) -> 
A55: March | B55: 10.1 | C55: =ROUND($S$14+(B55*$S$18),2) -> 97.44 | D55: =ROUND($T$14+(B55*$T$18),2) -> 
A56: April | B56: 8.3 | C56: =ROUND($S$14+(B56*$S$16),2) -> 70.6 | D56: =ROUND($T$14+(B56*$T$16),2) -> 
A57: May | B57: 4.4 | C57: 40.6 | D57: =ROUND($T$14+(B57*$T$16),2) -> 
A58: June | B58: 3.1 | C58: 30.6
A59: July | B59: 2 | C59: 22.14
A60: August | B60: 1.8 | C60: 20.6
A61: September | B61: 2 | C61: 22.14
A62: October | B62: 3.1 | C62: 30.6
A63: November | B63: 6.3 | C63: =ROUND($S$14+(B63*$S$18),2) -> 63.32 | D63: =ROUND($T$14+(B63*$T$18),2) -> 
A64: December | B64: 11.5 | C64: =ROUND($S$14+(B64*$S$18),2) -> 110.01 | D64: =ROUND($T$14+(B64*$T$18),2) -> 
B65: =SUM(B53:B64) -> 80 | C65: =SUM(C53:C64) -> 767.58 | D65: =SUM(D53:D64) ->  | H65: =SUM(H53:H64) ->  | J65: =H65/C65 -> 
A68: Typical Customer Difference - DSM Amortization Only
B69: Typical
A70: GS | B70: Dth | C70: =C52 -> 2021-12-01 | D70: =D52 -> 2022-01-01 | H70: Change | J70: % Change
A71: January | B71: 14.9 | C71: =ROUND($S$14+(B71*$S$18),2) -> 140.54 | D71: =ROUND($U$14+(B71*$U$18),2) ->  | H71: =D71-C71 -> 
A72: February | B72: 12.5 | C72: =ROUND($S$14+(B72*$S$18),2) -> 118.99 | D72: =ROUND($U$14+(B72*$U$18),2) -> 
A73: March | B73: 10.1 | C73: =ROUND($S$14+(B73*$S$18),2) -> 97.44 | D73: =ROUND($U$14+(B73*$U$18),2) -> 
A74: April | B74: 8.3 | C74: =ROUND($S$14+(B74*$S$16),2) -> 70.6 | D74: =ROUND($U$14+(B74*$U$16),2) -> 
A75: May | B75: 4.4 | C75: 40.6
A76: June | B76: 3.1 | C76: 30.6
A77: July | B77: 2 | C77: 22.14
A78: August | B78: 1.8 | C78: 20.6
A79: September | B79: 2 | C79: 22.14
A80: October | B80: 3.1 | C80: 30.6
A81: November | B81: 6.3 | C81: =ROUND($S$14+(B81*$S$18),2) -> 63.32 | D81: =ROUND($U$14+(B81*$U$18),2) -> 
A82: December | B82: 11.5 | C82: =ROUND($S$14+(B82*$S$18),2) -> 110.01 | D82: =ROUND($U$14+(B82*$U$18),2) -> 
B83: =SUM(B71:B82) -> 80 | C83: =SUM(C71:C82) -> 767.58 | D83: =SUM(D71:D82) ->  | H83: =SUM(H71:H82) ->  | J83: =H83/C83 -> 
A86: Typical Customer Difference - SNG and Commodity Changes Only
B87: Typical
A88: GS-1 | B88: Dth | C88: =C70 -> 2021-12-01 | D88: =D70 -> 2022-01-01 | H88: Change | J88: % Change
A89: January | B89: 14.9 | C89: =ROUND($S$14+(B89*$S$18),2) -> 140.54 | D89: =ROUND($V$14+(B89*$V$18),2) ->  | H89: =D89-C89 -> 
A90: February | B90: 12.5 | C90: =ROUND($S$14+(B90*$S$18),2) -> 118.99 | D90: =ROUND($V$14+(B90*$V$18),2) -> 
A91: March | B91: 10.1 | C91: =ROUND($S$14+(B91*$S$18),2) -> 97.44 | D91: =ROUND($V$14+(B91*$V$18),2) -> 
A92: April | B92: 8.3 | C92: =ROUND($S$14+(B92*$S$16),2) -> 70.6 | D92: =ROUND($V$14+(B92*$V$16),2) -> 
A93: May | B93: 4.4 | C93: 40.6
A94: June | B94: 3.1 | C94: 30.6
A95: July | B95: 2 | C95: 22.14
A96: August | B96: 1.8 | C96: 20.6
A97: September | B97: 2 | C97: 22.14
A98: October | B98: 3.1 | C98: 30.6
A99: November | B99: 6.3 | C99: =ROUND($S$14+(B99*$S$18),2) -> 63.32 | D99: =ROUND($V$14+(B99*$V$18),2) -> 
A100: December | B100: 11.5 | C100: =ROUND($S$14+(B100*$S$18),2) -> 110.01 | D100: =ROUND($V$14+(B100*$V$18),2) -> 
B101: =SUM(B89:B100) -> 80 | C101: =SUM(C89:C100) -> 767.58 | D101: =SUM(D89:D100) ->  | H101: =SUM(H89:H100) ->  | J101: =H101/C101 -> 
A104: Typical Customer Difference - CET & DSM Amort, SNG and Commodity Changes
B105: Typical
A106: GS-1 | B106: Dth | C106: =C52 -> 2021-12-01 | D106: =D52 -> 2022-01-01 | H106: Change | J106: % Change
A107: January | B107: 14.9 | C107: =ROUND($S$14+(B107*$S$18),2) -> 140.54 | D107: =ROUND($W$14+(B107*$W$18),2) ->  | H107: =D107-C107 -> 
A108: February | B108: 12.5 | C108: =ROUND($S$14+(B108*$S$18),2) -> 118.99 | D108: =ROUND($W$14+(B108*$W$18),2) -> 
A109: March | B109: 10.1 | C109: =ROUND($S$14+(B109*$S$18),2) -> 97.44 | D109: =ROUND($W$14+(B109*$W$18),2) -> 
A110: April | B110: 8.3 | C110: =ROUND($S$14+(B110*$S$16),2) -> 70.6 | D110: =ROUND($W$14+(B110*$W$16),2) -> 
A111: May | B111: 4.4 | C111: 40.6
A112: June | B112: 3.1 | C112: 30.6
A113: July | B113: 2 | C113: 22.14
A114: August | B114: 1.8 | C114: 20.6
A115: September | B115: 2 | C115: 22.14
A116: October | B116: 3.1 | C116: 30.6
A117: November | B117: 6.3 | C117: =ROUND($S$14+(B117*$S$18),2) -> 63.32 | D117: =ROUND($W$14+(B117*$W$18),2) -> 
A118: December | B118: 11.5 | C118: =ROUND($S$14+(B118*$S$18),2) -> 110.01 | D118: =ROUND($W$14+(B118*$W$18),2) -> 
B119: =SUM(B107:B118) -> 80 | C119: =SUM(C107:C118) -> 767.58 | D119: =SUM(D107:D118) ->  | H119: =SUM(H107:H118) ->  | J119: =H119/C119 -> 

Sheet UT Tariff Sheets PT (hidden)
B2: 2.02 GS Rate Schedule | J2: 2.03 FS Rate Schedule | AB2: 4.03 ES Rate Schedule | AI2: 2.05 NGV Rate Schedule
C3: Rates Per Dth Used Each Month | M3: Rates Per Dth Used Each Month | T3: 4.02 IS Rate Schedule | AB3: ES Volumetric Rates | AI3: NGV Volumetric Rate
C4: Summer Rates: Apr. 1 - Oct. 31 | E4: Winter Rates: Nov. 1 - Mar. 31 | M4: Dth = decatherm = 10 therms = 1,000,000 BTU | T4: IS Volumetric Rates
C5: First 45 Dth | D5: All Over 45 Dth | E5: First 45 Dth | F5: All Over 45 Dth | K5: Summer Rates: Apr. 1 - Oct. 31 | N5: Winter Rates: Nov. 1 - Mar. 31 | U5: Rates Per Dth Used Each Month | AE5: Rates Per Dth Used Each Month | AM5: Rates Per Dth Used Each Month
B6: Base DNG | C6: ='CET & DSM'!B38 -> 1.94617 | D6: ='CET & DSM'!B39 -> 0.74377 | E6: ='CET & DSM'!B40 -> 2.64801 | F6: ='CET & DSM'!B41 -> 1.44561 | K6: First | L6: Next | M6: All Over | N6: First | O6: Next | P6: All Over | U6: Dth = decatherm = 10 therms = 1,000,000 BTU | AE6: Dth = decatherm = 10 therms = 1,000,000 BTU | AM6: Dth = decatherm = 10 therms = 1,000,000 BTU
B7: CET Amortization | C7: ='CET & DSM'!C38 -> -0.0599 | D7: ='CET & DSM'!C39 -> -0.02224 | E7: ='CET & DSM'!C40 -> -0.07112 | F7: ='CET & DSM'!C41 -> -0.02953 | K7: 200 | L7: 1800 | M7: 2000 | N7: 200 | O7: 1800 | P7: 2000 | U7: First | V7: Next | W7: All Over | AB7: Distribution Non-Gas Rate | AC7: ='Ut 1.6 Source'!#REF! ->  | AI7: Base DNG | AK7: ='Ut 1.6 Source'!C62 -> 8.11914
B8: DSM Amortization | C8: =ROUND('CET & DSM'!D38,5) -> 0.44104 | D8: =ROUND('CET & DSM'!D39,5) -> 0.44104 | E8: =ROUND('CET & DSM'!D40,5) -> 0.44104 | F8: =ROUND('CET & DSM'!D41,5) -> 0.44104 | J8: Base DNG | K8: ='Ut 1.6 Source'!C25 -> 1.03811 | L8: ='Ut 1.6 Source'!D25 -> 0.54067 | M8: ='Ut 1.6 Source'!E25 -> 0.01703 | N8: ='Ut 1.6 Source'!F25 -> 1.56992 | O8: ='Ut 1.6 Source'!G25 -> 1.07247 | P8: ='Ut 1.6 Source'!H25 -> 0.54883 | U8: 2000 | V8: 18000 | W8: 20000 | AI8: Energy Assistance | AK8: ='Other Inputs'!#REF! -> 
B9: Energy Assistance | C9: ='Other Inputs'!#REF! ->  | D9: ='Other Inputs'!#REF! ->  | E9: ='Other Inputs'!#REF! ->  | F9: ='Other Inputs'!#REF! ->  | J9: Energy Assistance | K9: ='Other Inputs'!#REF! ->  | L9: ='Other Inputs'!#REF! ->  | M9: ='Other Inputs'!#REF! ->  | N9: ='Other Inputs'!#REF! ->  | O9: ='Other Inputs'!#REF! ->  | P9: ='Other Inputs'!#REF! ->  | T9: Base DNG | U9: ='Ut 1.6 Source'!C74 -> 0.91912 | V9: ='Ut 1.6 Source'!D74 -> 0.13879 | W9: ='Ut 1.6 Source'!E74 -> 0.08169 | AB9: Base SNG | AC9: =ROUND(#REF!,5) ->  | AI9: Distribution Non-Gas Rate | AK9: =SUM(AK7:AM8) -> 
B10: Distribution Non-Gas Rate | C10: =SUM(C6:C9) ->  | D10: =SUM(D6:D9) ->  | E10: =SUM(E6:E9) ->  | F10: =SUM(F6:F9) ->  | J10: Distribution Non-Gas Rate | K10: =SUM(K8:K9) ->  | T10: Energy Assistance | U10: ='Other Inputs'!#REF! ->  | V10: ='Other Inputs'!#REF! ->  | W10: ='Other Inputs'!#REF! ->  | AB10: SNG Amortization | AC10: =ROUND(#REF!,5) -> 
T11: Distribution Non-Gas Rate | U11: =SUM(U9:U10) ->  | V11: =SUM(V9:V10) ->  | W11: =SUM(W9:W10) ->  | AB11: Supplier Non-Gas Rate | AC11: =SUM(AC9:AF10) ->  | AI11: Base SNG | AK11: =ROUND(#REF!,5) -> 
B12: Base SNG | C12: ='CET & DSM'!I38 ->  | D12: ='CET & DSM'!I39 ->  | E12: ='CET & DSM'!I40 ->  | F12: ='CET & DSM'!I41 ->  | J12: Base SNG | K12: =ROUND(#REF!,5) ->  | L12: =ROUND(#REF!,5) ->  | M12: =ROUND(#REF!,5) ->  | N12: =ROUND(#REF!,5) ->  | O12: =ROUND(#REF!,5) ->  | P12: =ROUND(#REF!,5) ->  | T12: Supplier Non-Gas Rate | U12: =ROUND(#REF!/(1-'Other Inputs'!$E$283),5) ->  | V12: =ROUND(#REF!/(1-'Other Inputs'!$E$283),5) ->  | W12: =ROUND(#REF!/(1-'Other Inputs'!$E$283),5) ->  | AI12: SNG Amortization | AK12: =ROUND(#REF!,5) -> 
B13: SNG Amortization | C13: ='CET & DSM'!J38 ->  | D13: ='CET & DSM'!J39 ->  | E13: ='CET & DSM'!J40 ->  | F13: ='CET & DSM'!J41 ->  | J13: SNG Amortization | K13: =ROUND(#REF!,5) ->  | L13: =ROUND(#REF!,5) ->  | M13: =ROUND(#REF!,5) ->  | N13: =ROUND(#REF!,5) ->  | O13: =ROUND(#REF!,5) ->  | P13: =ROUND(#REF!,5) ->  | AB13: Commodity Rate | AC13: Highest Gas Cost | AI13: Supplier Non-Gas Rate | AK13: =SUM(AK11:AM12) -> 
B14: Supplier Non-Gas Rate | C14: =SUM(C12:C13) ->  | D14: =SUM(D12:D13) ->  | E14: =SUM(E12:E13) ->  | F14: =SUM(F12:F13) ->  | J14: Supplier Non-Gas Rate | K14: =SUM(K12:K13) ->  | AB14: Total Rate | AC14: $
AI15: Base Gas Cost | AK15: =ROUND('Ut 1.5 p1'!$F$29,5) -> 4.6196
B16: Base Gas Cost | C16: ='Ut 1.5 p1'!$F$29 -> 4.6196 | D16: ='Ut 1.5 p1'!$F$29 -> 4.6196 | E16: ='Ut 1.5 p1'!$F$29 -> 4.6196 | F16: ='Ut 1.5 p1'!$F$29 -> 4.6196 | J16: Base Gas Cost | K16: =ROUND('Ut 1.5 p1'!$F$29,5) -> 4.6196 | L16: =ROUND('Ut 1.5 p1'!$F$29,5) -> 4.6196 | M16: =ROUND('Ut 1.5 p1'!$F$29,5) -> 4.6196 | N16: =ROUND('Ut 1.5 p1'!$F$29,5) -> 4.6196 | O16: =ROUND('Ut 1.5 p1'!$F$29,5) -> 4.6196 | P16: =ROUND('Ut 1.5 p1'!$F$29,5) -> 4.6196 | AB16: Penalty for failure to interrupt or limit usage when requested by the Company. See See § 3.02 | AI16: Commodity Amortization | AK16: =ROUND('Ut 1.5 p1'!$F$30,5) -> 0.5702
B17: 191 Amortization | C17: ='Ut 1.5 p1'!$F$30 -> 0.5702 | D17: ='Ut 1.5 p1'!$F$30 -> 0.5702 | E17: ='Ut 1.5 p1'!$F$30 -> 0.5702 | F17: ='Ut 1.5 p1'!$F$30 -> 0.5702 | J17: 191 Amortization | K17: =ROUND('Ut 1.5 p1'!$F$30,5) -> 0.5702 | L17: =ROUND('Ut 1.5 p1'!$F$30,5) -> 0.5702 | M17: =ROUND('Ut 1.5 p1'!$F$30,5) -> 0.5702 | N17: =ROUND('Ut 1.5 p1'!$F$30,5) -> 0.5702 | O17: =ROUND('Ut 1.5 p1'!$F$30,5) -> 0.5702 | P17: =ROUND('Ut 1.5 p1'!$F$30,5) -> 0.5702 | AI17: Commodity Rate | AK17: =SUM(AK15:AM16) -> 5.1898
B18: Commodity Rate | C18: =SUM(C16:C17) -> 5.1898 | D18: =SUM(D16:D17) -> 5.1898 | E18: =SUM(E16:E17) -> 5.1898 | F18: =SUM(F16:F17) -> 5.1898 | J18: Commodity Rate | K18: =SUM(K16:K17) -> 5.1898 | L18: 5.1898 | M18: 5.1898 | N18: 5.1898 | O18: 5.1898 | P18: 5.1898 | T18: Total Rate | U18: $ | V18: $ | W18: $
AI19: Total Rate | AK19: =SUM(AK9,AK13,AK17) -> 
B20: Total Rate | C20: =SUM(C18,C14,C10) ->  | D20: =SUM(D18,D14,D10) ->  | E20: =SUM(E18,E14,E10) ->  | F20: =SUM(F18,F14,F10) ->  | J20: Total Rate | K20: =SUM(K18,K14,K10) ->  | T20: Minimum Monthly Distribution Non-Gas Charge
AI21: Penalty for failure to interrupt or limit usage when requested by the Company. See See § 3.02
E22: BSF Category 1 | F22: ='Ut 1.6 Source'!C18 -> 6.75 | J22: Minimum Monthly Distribution Non-Gas Charge | O22: Summer | P22: =ROUND(K8*175,0) -> 182
E23: BSF Category 2 | F23: ='Ut 1.6 Source'!C19 -> 18.25 | O23: Winter | P23: =ROUND(N8*175,0) -> 275
E24: BSF Category 3 | F24: ='Ut 1.6 Source'!C20 -> 63.5 | V24: BSF Category 1 | W24: 5
E25: BSF Category 4 | F25: ='Ut 1.6 Source'!C21 -> 420.25 | V25: BSF Category 2 | W25: 29
N26: BSF Category 1 | P26: 5 | V26: BSF Category 3 | W26: 67
N27: BSF Category 2 | P27: 21 | V27: BSF Category 4 | W27: 274
N28: BSF Category 3 | P28: 55
N29: BSF Category 4 | P29: 244
AI30: =B44 -> Issued by R. W. Jibson, President | AL30: Advice No | AM30: Section Revision No.
AB39: =B44 -> Issued by R. W. Jibson, President | AE39: Advice No | AF39: Section Revision No.
AB42: New Pass Through Values
B44: Issued by R. W. Jibson, President | D44: Advice No | E44: Section Revision No. | F44: Effective Date
T47: =B44 -> Issued by R. W. Jibson, President | W47: Advice No
B48: Pass Through Changes | J48: =B44 -> Issued by R. W. Jibson, President | M48: Advice No | N48: Section Revision No. | P48: Effective Date
T50: New Pass Through Values
J51: New Pass Through Values

Sheet UT Tariff Sheets (hidden)
B2: 2.02 GS Rate Schedule | I2: 2.02 GS Rate Schedule
C3: Rates Per Dth Used Each Month | J3: Rates Per Dth Used Each Month
C4: Summer Rates: Apr. 1 - Oct. 31 | E4: Winter Rates: Nov. 1 - Mar. 31 | J4: Summer Rates: Apr. 1 - Oct. 31 | L4: Winter Rates: Nov. 1 - Mar. 31
C5: First 45 Dth | D5: All Over 45 Dth | E5: First 45 Dth | F5: All Over 45 Dth | J5: First 45 Dth | K5: All Over 45 Dth | L5: First 45 Dth | M5: All Over 45 Dth
B6: Base DNG | C6: ='CET & DSM'!B24 -> 1.94617 | D6: ='CET & DSM'!B25 -> 0.74377 | E6: ='CET & DSM'!B26 -> 2.64801 | F6: ='CET & DSM'!B27 -> 1.44561 | I6: Base DNG | J6: ='CET & DSM'!B31 -> 1.94617 | K6: ='CET & DSM'!B32 -> 0.74377 | L6: ='CET & DSM'!B33 -> 2.64801 | M6: ='CET & DSM'!B34 -> 1.44561
B7: CET Amortization | C7: ='CET & DSM'!H16 ->  | D7: ='CET & DSM'!H17 ->  | E7: ='CET & DSM'!H18 ->  | F7: ='CET & DSM'!H19 ->  | I7: CET Amortization | J7: ='CET & DSM'!C31 -> -0.0599 | K7: ='CET & DSM'!C32 -> -0.02224 | L7: ='CET & DSM'!C33 -> -0.07112 | M7: ='CET & DSM'!C34 -> -0.02953
B8: DSM Amortization | C8: ='CET & DSM'!D24 -> 0.44104 | D8: ='CET & DSM'!D25 -> 0.44104 | E8: ='CET & DSM'!D26 -> 0.44104 | F8: ='CET & DSM'!D27 -> 0.44104 | I8: DSM Amortization | J8: =ROUND('CET & DSM'!D31,5) ->  | K8: =ROUND('CET & DSM'!D32,5) ->  | L8: =ROUND('CET & DSM'!D33,5) ->  | M8: =ROUND('CET & DSM'!D34,5) -> 
B9: Energy Assistance | C9: ='Other Inputs'!#REF! ->  | D9: ='Other Inputs'!#REF! ->  | E9: ='Other Inputs'!#REF! ->  | F9: ='Other Inputs'!#REF! ->  | I9: Energy Assistance | J9: ='Other Inputs'!#REF! ->  | K9: ='Other Inputs'!#REF! ->  | L9: ='Other Inputs'!#REF! ->  | M9: ='Other Inputs'!#REF! -> 
B10: Distribution Non-Gas Rate | C10: =SUM(C6:C9) ->  | D10: =SUM(D6:D9) ->  | E10: =SUM(E6:E9) ->  | F10: =SUM(F6:F9) ->  | I10: Distribution Non-Gas Rate | J10: =SUM(J6:J9) ->  | K10: =SUM(K6:K9) ->  | L10: =SUM(L6:L9) ->  | M10: =SUM(M6:M9) -> 
B12: Base SNG | C12: ='CET & DSM'!I24 -> 0.55715 | D12: ='CET & DSM'!I25 -> 0.55715 | E12: ='CET & DSM'!I26 -> 1.18665 | F12: ='CET & DSM'!I27 -> 1.18665 | I12: Base SNG | J12: ='CET & DSM'!I31 -> 0.55715 | K12: ='CET & DSM'!I32 -> 0.55715 | L12: ='CET & DSM'!I33 -> 1.18665 | M12: ='CET & DSM'!I34 -> 1.18665
B13: SNG Amortization | C13: ='CET & DSM'!J24 -> 0.01244 | D13: ='CET & DSM'!J25 -> 0.01244 | E13: ='CET & DSM'!J26 -> 0.02651 | F13: ='CET & DSM'!J27 -> 0.02651 | I13: SNG Amortization | J13: ='CET & DSM'!J31 -> 0.01244 | K13: ='CET & DSM'!J32 -> 0.01244 | L13: ='CET & DSM'!J33 -> 0.02651 | M13: ='CET & DSM'!J34 -> 0.02651
B14: Supplier Non-Gas Rate | C14: =SUM(C12:C13) -> 0.56959 | D14: =SUM(D12:D13) -> 0.56959 | E14: =SUM(E12:E13) -> 1.21316 | F14: =SUM(F12:F13) -> 1.21316 | I14: Supplier Non-Gas Rate | J14: =SUM(J12:J13) -> 0.56959 | K14: =SUM(K12:K13) -> 0.56959 | L14: =SUM(L12:L13) -> 1.21316 | M14: =SUM(M12:M13) -> 1.21316
B16: Base Gas Cost | C16: ='CET & DSM'!L24 -> 4.21339 | D16: ='CET & DSM'!L25 -> 4.21339 | E16: ='CET & DSM'!L26 -> 4.21339 | F16: ='CET & DSM'!L27 -> 4.21339 | I16: Base Gas Cost | J16: ='CET & DSM'!L31 -> 4.21339 | K16: ='CET & DSM'!L32 -> 4.21339 | L16: ='CET & DSM'!L33 -> 4.21339 | M16: ='CET & DSM'!L34 -> 4.21339
B17: 191 Amortization | C17: ='CET & DSM'!M24 -> 0.14067 | D17: ='CET & DSM'!M25 -> 0.14067 | E17: ='CET & DSM'!M26 -> 0.14067 | F17: ='CET & DSM'!M27 -> 0.14067 | I17: 191 Amortization | J17: ='CET & DSM'!M31 -> 0.14067 | K17: ='CET & DSM'!M32 -> 0.14067 | L17: ='CET & DSM'!M33 -> 0.14067 | M17: ='CET & DSM'!M34 -> 0.14067
B18: Commodity Rate | C18: =SUM(C16:C17) -> 4.35406 | D18: =SUM(D16:D17) -> 4.35406 | E18: =SUM(E16:E17) -> 4.35406 | F18: =SUM(F16:F17) -> 4.35406 | I18: Commodity Rate | J18: =SUM(J16:J17) -> 4.35406 | K18: =SUM(K16:K17) -> 4.35406 | L18: =SUM(L16:L17) -> 4.35406 | M18: =SUM(M16:M17) -> 4.35406
B20: Total Rate | C20: =SUM(C18,C14,C10) ->  | D20: =SUM(D18,D14,D10) ->  | E20: =SUM(E18,E14,E10) ->  | F20: =SUM(F18,F14,F10) ->  | I20: Total Rate | J20: =SUM(J18,J14,J10) ->  | K20: =SUM(K18,K14,K10) ->  | L20: =SUM(L18,L14,L10) ->  | M20: =SUM(M18,M14,M10) -> 
E23: BSF Category 1 | F23: ='Ut 1.6 Source'!C18 -> 6.75 | L23: BSF Category 1 | M23: ='Ut 1.6 Source'!C18 -> 6.75
E24: BSF Category 2 | F24: ='Ut 1.6 Source'!C19 -> 18.25 | L24: BSF Category 2 | M24: ='Ut 1.6 Source'!C19 -> 18.25
E25: BSF Category 3 | F25: ='Ut 1.6 Source'!C20 -> 63.5 | L25: BSF Category 3 | M25: ='Ut 1.6 Source'!C20 -> 63.5
E26: BSF Category 4 | F26: ='Ut 1.6 Source'!C21 -> 420.25 | L26: BSF Category 4 | M26: ='Ut 1.6 Source'!C21 -> 420.25
B45: Issued by R. W. Jibson, President | D45: Advice No | E45: Section Revision No. | F45: Effective Date | I45: Issued by R. W. Jibson, President | K45: Advice No | L45: Section Revision No. | M45: Effective Date
B49: New CET Only | I49: NEW DSM ONLY

Sheet Utah Summary-by class
A1: UTAH SUMMARY
B2: NOT AN EXHIBIT !!!
Q3: Sub Total
C4: COMMODITY | J4: SNG | Q4: TOTAL
C5: Current | D5: Proposed | E5: Current | F5: Proposed | G5: Revenue | H5: % | J5: Current | K5: Proposed | L5: Current | M5: Proposed | N5: Revenue | O5: % | Q5: Revenue | R5: %
A6: RATE | B6: Dth Sales | C6: Rates | D6: Rates | E6: Revenue | F6: Revenue | G6: Difference | H6: Change | J6: Rates | K6: Rates | L6: Revenue | M6: Revenue | N6: Difference | O6: Change | Q6: Difference | R6: Change
A8: GS (W) | B8: =Calculations!P52 -> 80662138 | C8: ='Ut 1.5 p1'!$H$31 -> 4.94255 | D8: =ROUND('Ut 1.5 p1'!$F$31,5) -> 5.1898 | E8: =ROUND(B8*C8,0) -> 398676650 | F8: =ROUND(B8*D8,0) -> 418620364 | G8: =(F8-E8) -> 19943714 | J8: ='Other Inputs'!G88 -> 0.93935 | K8: ='Ut 1.5 p6'!E31 -> 0.94702 | L8: =ROUND(B8*J8,0) -> 75769979 | M8: =B8*K8 -> 76388657.93 | N8: =(M8-L8) -> 618678.9288 | O8: =IF(N8=0,0,N8/L8) -> 0.008165225026 | Q8: =G8+N8 -> 20562392.93
A9: GS (S) | B9: =Calculations!P53 -> 31002666 | C9: ='Ut 1.5 p1'!$H$31 -> 4.94255 | D9: =D8 -> 5.1898 | E9: =ROUND(B9*C9,0) -> 153232227 | F9: =ROUND(B9*D9,0) -> 160897636 | G9: =(F9-E9) -> 7665409 | J9: ='Other Inputs'!G89 -> 0.39711 | K9: ='Ut 1.5 p6'!E27 -> 0.39825 | L9: =ROUND(B9*J9,0) -> 12311469 | M9: =B9*K9 -> 12346811.73 | N9: =(M9-L9) -> 35342.7345 | O9: =IF(N9=0,0,N9/L9) -> 0.002870716281 | Q9: =G9+N9 -> 7700751.735
A10: Total | B10: =SUM(B8:B9) -> 111664804 | E10: =SUM(E8:E9) -> 551908877 | F10: =SUM(F8:F9) -> 579518000 | G10: =SUM(G8:G9) -> 27609123 | H10: =IF(G10=0,0,G10/E10) -> 0.05002478516 | L10: =SUM(L8:L9) -> 88081448 | M10: =SUM(M8:M9) -> 88735469.66 | N10: =SUM(N8:N9) -> 654021.6633 | O10: =IF(N10=0,0,N10/L10) -> 0.007425192003 | Q10: =SUM(Q8:Q9) -> 28263144.66 | R10: =IF(Q10=0,0,Q10/(E10+L10)) -> 0.04416183114
A13: FS (W) | B13: =Calculations!P58 -> 1213837 | C13: ='Ut 1.5 p1'!$H$31 -> 4.94255 | D13: =D8 -> 5.1898 | E13: =ROUND(B13*C13,0) -> 5999450 | F13: =ROUND(B13*D13,0) -> 6299571 | G13: =(F13-E13) -> 300121 | J13: ='Other Inputs'!G91 -> 0.98756 | K13: ='Ut 1.5 p6'!E39 -> 0.8561 | L13: =ROUND(B13*J13,0) -> 1198737 | M13: =B13*K13 -> 1039165.856 | N13: =(M13-L13) -> -159571.1443 | O13: =IF(N13=0,0,N13/L13) -> -0.1331160582 | Q13: =G13+N13 -> 140549.8557
A14: FS (S) | B14: =Calculations!P59 -> 1188827 | C14: ='Ut 1.5 p1'!$H$31 -> 4.94255 | D14: =D9 -> 5.1898 | E14: =ROUND(B14*C14,0) -> 5875837 | F14: =ROUND(B14*D14,0) -> 6169774 | G14: =(F14-E14) -> 293937 | J14: ='Other Inputs'!G92 -> 0.80292 | K14: ='Ut 1.5 p6'!E35 -> 0.82319 | L14: =ROUND(B14*J14,0) -> 954533 | M14: =B14*K14 -> 978630.4981 | N14: =(M14-L14) -> 24097.49813 | O14: =IF(N14=0,0,N14/L14) -> 0.02524532743 | Q14: =G14+N14 -> 318034.4981
A15: Total | B15: =SUM(B13:B14) -> 2402664 | E15: =SUM(E13:E14) -> 11875287 | F15: =SUM(F13:F14) -> 12469345 | G15: =SUM(G13:G14) -> 594058 | H15: =IF(G15=0,0,G15/E15) -> 0.05002472782 | L15: =SUM(L13:L14) -> 2153270 | M15: =SUM(M13:M14) -> 2017796.354 | N15: =SUM(N13:N14) -> -135473.6462 | O15: =IF(N15=0,0,N15/L15) -> -0.06291530842 | Q15: =SUM(Q13:Q14) -> 458584.3538 | R15: =IF(Q15=0,0,Q15/(E15+L15)) -> 0.03268934601
A18: NGV | B18: =Calculations!P12 -> 202355 | C18: ='Ut 1.5 p6'!D20 -> 4.57607 | D18: ='Ut 1.5 p6'!E20 -> 4.81141 | E18: =ROUND(B18*C18,0) -> 925991 | F18: =ROUND(B18*D18,0) -> 973613 | G18: =(F18-E18) -> 47622 | H18: =IF(G18=0,0,G18/E18) -> 0.05142814563 | J18: ='Other Inputs'!G94 -> 1.02637 | K18: ='Ut 1.5 p6'!E55 -> 1.03654 | L18: =ROUND(B18*J18,0) -> 207691 | M18: =ROUND(B18*K18,0) -> 209749 | N18: =(M18-L18) -> 2058 | O18: =IF(N18=0,0,N18/L18) -> 0.009908951279 | Q18: =G18+N18 -> 49680 | R18: =IF(Q18=0,0,Q18/(E18+L18)) -> 0.04382181247
A21: IS | B21: =Calculations!P17 -> 261619 | C21: ='Ut 1.5 p1'!$H$31 -> 4.94255 | D21: =D8 -> 5.1898 | E21: =ROUND(B21*C21,0) -> 1293065 | F21: =ROUND(B21*D21,0) -> 1357750 | G21: =(F21-E21) -> 64685 | H21: =IF(G21=0,0,G21/E21) -> 0.05002455406 | J21: ='Other Inputs'!G96 -> 0.17963 | K21: ='Ut 1.5 p6'!E41 -> 0.17905 | L21: =ROUND(B21*J21,0) -> 46995 | M21: =ROUND(B21*K21,0) -> 46843 | N21: =(M21-L21) -> -152 | O21: =IF(N21=0,0,N21/L21) -> -0.003234386637 | Q21: =G21+N21 -> 64533 | R21: =IF(Q21=0,0,Q21/(E21+L21)) -> 0.04815679895
A23: TSF | B23: ='Ut 1.5 p3'!F18 -> 208680 | J23: ='Ut 1.5 p6'!D45 -> 2.008 | K23: ='Ut 1.5 p6'!E45 -> 2.21606 | L23: =ROUND(B23*J23,0) -> 419029 | M23: =ROUND(B23*K23,0) -> 462447 | N23: =(M23-L23) -> 43418 | O23: =IF(N23=0,0,N23/L23) -> 0.1036157402 | Q23: =G23+N23 -> 43418 | R23: =IF(Q23=0,0,Q23/(E23+L23)) -> 0.1036157402
A25: TBF | B25: ='Ut 1.5 p3'!G18 -> 45000 | J25: ='Ut 1.5 p6'!D50 -> 1.257 | K25: ='Ut 1.5 p6'!E50 -> 1.38728 | L25: =ROUND(B25*J25,0) -> 56565 | M25: =ROUND(B25*K25,0) -> 62428 | N25: =(M25-L25) -> 5863 | O25: =IF(N25=0,0,N25/L25) -> 0.1036506674 | Q25: =G25+N25 -> 5863 | R25: =IF(Q25=0,0,Q25/(E25+L25)) -> 0.1036506674
B26: - | E26: - | F26: - | G26: - | L26: ------------------- | M26: ------------------- | N26: ------------------- | Q26: -------------------
B27: =B10+B15+B18+B21 -> 114531442 | E27: =E10+E15+E18+E21 -> 566003220 | F27: =F10+F15+F18+F21 -> 594318708 | G27: =G10+G15+G18+G21 -> 28315488 | H27: =IF(G27=0,0,G27/E27) -> 0.05002707935 | L27: =L10+L15+L18+L21+L23+L25 -> 90964998 | M27: =M10+M15+M18+M21+M23+M25 -> 91534733.02 | N27: =N10+N15+N18+N21+N23+N25 -> 569735.0171 | O27: =IF(N27=0,0,N27/L27) -> 0.006263233437 | Q27: =Q10+Q15+Q18+Q21+Q23+Q25 -> 28885223.02 | R27: =IF(Q27=0,0,Q27/(E27+L27)) -> 0.04396745874
G28: =IF(G27>0,"Commodity Increase","Commodity Decrease") -> Commodity Increase | N28: =IF(N27>0,"Increase to SNG","Decrease to SNG") -> Increase to SNG
B29: NOT AN EXHIBIT !!!
G30: =ROUND(G27,-3) -> 28315000 | N30: =ROUND(N27,-3) -> 570000 | Q30: =ROUND(Q27,-3) -> 28885000
B31: =B27 -> 114531442 | G31: Rounded | N31: Rounded | Q31: Rounded

Sheet UT Summary - by cost (hidden)

Sheet WY Summary - by cost (hidden)

Sheet Model Checks
B2: Model Checks
B3: If the total of all checks is not zero, or very close to zero, find the checks below that are out of balance and follow the calculations
B4: back through the model and correct any errors.
D6: Total of all Checks
D7: =ABS(SUM(D10:D1993)) -> 1.107084093
B9: Forecasted Demand
C10: Utah | D10: =Calculations!P25-'RevRun Fcst'!T205 -> 0
C11: Wyoming | D11: =Calculations!P44-'RevRun Fcst'!T329 -> 0
C12: Total System | D12: =Calculations!P47-'RevRun Fcst'!T370 -> 0
B13: Forecasted Utah Demand Check by Month
C14: 1 | D14: =Calculations!D25-'RevRun Fcst'!H205 -> 0
C15: 2 | D15: =Calculations!E25-'RevRun Fcst'!I205 -> 0
C16: 3 | D16: =Calculations!F25-'RevRun Fcst'!J205 -> 0
C17: 4 | D17: =Calculations!G25-'RevRun Fcst'!K205 -> 0
C18: 5 | D18: =Calculations!H25-'RevRun Fcst'!L205 -> 0
C19: 6 | D19: =Calculations!I25-'RevRun Fcst'!M205 -> 0
C20: 7 | D20: =Calculations!J25-'RevRun Fcst'!N205 -> 0
C21: 8 | D21: =Calculations!K25-'RevRun Fcst'!O205 -> 0
C22: 9 | D22: =Calculations!L25-'RevRun Fcst'!P205 -> 0
C23: 10 | D23: =Calculations!M25-'RevRun Fcst'!Q205 -> 0
C24: 11 | D24: =Calculations!N25-'RevRun Fcst'!R205 -> 0
C25: 12 | D25: =Calculations!O25-'RevRun Fcst'!S205 -> 0
C26: Wyoming I-2 and I-4 Revenues | D26: =('RevRun Fcst'!T273+'RevRun Fcst'!T282)-Calculations!P65 -> 0
C27: System Sales Volumes | D27: =Calculations!H76-'RevRun Fcst'!T368 -> 0
C28: Utah Sales Volumes | D28: =Calculations!P20-'Utah Summary-by class'!B27 -> 0
B29: Company Production | D29: =Calculations!P120-'Monthly Inputs'!S7-'Monthly Inputs'!S13 -> 0
B30: Injections | D30: ='Monthly Inputs'!S29-SUM('Monthly Inputs'!S23:S28) -> 0
B31: Withdrawls | D31: ='Monthly Inputs'!S37-SUM('Monthly Inputs'!S32:S36) -> 0
B32: Injections & Withdrawls | D32: =SUM('Ut 1.4 p2'!D23:D28)-'Monthly Inputs'!S29-'Monthly Inputs'!S37 -> 0
B33: Injections | D33: =Calculations!P129-'Monthly Inputs'!S29 -> 0
B34: Withdrawls | D34: =Calculations!P137-'Monthly Inputs'!S37 -> 0
B35: Sales for Resale | D35: =Expenses!P13-Calculations!P86 -> 0
B36: Incidental Plant Prod Sales | D36: =Expenses!P14-Calculations!P87 -> 0
B37: Incidental Gas & Oil Sales | D37: =Expenses!P15-Calculations!P89 -> 0
B38: Gasoline and Oil Costs | D38: =Expenses!P18+Calculations!P90 -> 0
B39: Wexpro Revenue Sharing | D39: =Expenses!P17-Calculations!P94 -> 0
B40: Storage Gas | D40: ='Rate Base'!Q11-Calculations!P99 -> 0
B41: 101 Production | D41: ='Rate Base'!Q5-Calculations!P100 -> 0
B42: 108 Production | D42: ='Rate Base'!Q7-Calculations!P101 -> 0
B43: 111 Production | D43: ='Rate Base'!Q9-Calculations!P102 -> 0
B44: 255 Production | D44: ='Rate Base'!Q13-Calculations!P103 -> 0
B45: 282 Production | D45: ='Rate Base'!Q15-Calculations!P104 -> 0
B46: 282.1 Production | D46: ='Rate Base'!Q17-Calculations!P105 -> 0
B47: Production Rate Base | D47: =SUM(Calculations!P99:P105)-'Rate Base'!Q19 -> -2.095475793e-09
B48: Purchased Gas Cost | D48: ='Ut 1.2 p4'!E25-Calculations!P194 -> 0.399063468
B49: Working Gas Rate Base | D49: =Calculations!P99-'Ut 1.2 p5'!E43 -> 0
B50: Allocations | D50: ='Ut 1.1 p2'!F43-'Ut 1.1 p2'!G43-'Ut 1.1 p2'!H43+'Ut 1.1 p2'!H41 -> 1.490116119e-08
B52: System Sales | D52: ='SDR#1'!C10-'RevRun Fcst'!T368 -> 0
B53: Lost & Unaccounted For | D53: ='SDR#1'!C15-(('SDR#1'!C10+'SDR#1'!C11)/(1-'Other Inputs'!E272)) -> 0.584749341
B54: Supply / Demand | D54: ='SDR#1'!C36-'SDR#1'!C15 -> -0.3392946422
B55: System Sales | D55: ='SDR#3'!H36-'SDR#1'!C10 -> 0
B56: SNG Revenue | D56: ='SDR#4'!G23+'SDR#4'!G33-'Utah Summary-by class'!L27 -> 0.03043998778
B57: Utah Sales | D57: ='SDR#3'!D36-'SDR#4'!E23 -> 0
B58: Utah Sales | D58: ='SDR#2'!G73-'Ut 1.1 p2'!H43 -> 0.432125926
B59: Seasonal Volumes | D59: =Calculations!P52+Calculations!P53-Calculations!P7-Calculations!P8 -> 0
B60: Seasonal Volumes | D60: =Calculations!P55+Calculations!P56-Calculations!P9 -> 0
B61: Seasonal Volumes | D61: =Calculations!P58+Calculations!P59-Calculations!P10 -> 0

Sheet Royalty Detail
D4: Test-Year Cost of Dominion Energy's Production
D5: January 2022 through December 2022
B7: WEXPRO I
B8: (A) | C8: (B) | D8: (C) | E8: (D) | F8: (E) | G8: (F) | H8: (G) | I8: (H)
F9: Base Year | G9: Market | H9: Royalty | I9: Test-Year
B10: Field Name | C10: Well Name | D10: Formation | E10: Price $ | F10: Dth | G10: Value $ | H10: Rate % | I10: Royalty $
A11: 1 | B11: ACE UNIT (CO) | C11: ACE UNIT 10 FT UN | D11: MESAVERDE | E11: 3.860186688 | F11: 33530 | G11: 129432.0597 | H11: 0.1268519763 | I11: 16418.71257
A12: 2 | C12: ACE UNIT 11 FT UN | D12: FORT UNION | E12: 3.860186688 | F12: 21114 | G12: 81503.98174 | H12: 0.1268519763 | I12: 10338.94116
A13: 3 | C13: ACE UNIT 12 FT UN | D13: FORT UNION | E13: 3.860186688 | F13: 73061 | G13: 282029.0996 | H13: 0.1371675 | I13: 38685.22652
A14: 4 | C14: ACE UNIT 13 FT UN | D14: FORT UNION | E14: 3.860186688 | F14: 30770 | G14: 118777.9444 | H14: 0.1268519763 | I14: 15067.21699
A15: 5 | C15: ACE UNIT 2 FT UN | D15: FORT UNION | E15: 3.860186688 | F15: 42514 | G15: 164111.9769 | H15: 0.1268519763 | I15: 20817.9286
A16: 6 | B16: BIRCH CR (WY) | C16: BIRCH CREEK UNIT 1 BR | D16: BEAR RIVER | E16: 3.860186688 | F16: 6349 | G16: 24508.32528 | H16: 0.1329769324 | I16: 3259.041915
A17: 7 | C17: BIRCH CREEK UNIT 1 BR - D24 | D17: BEAR RIVER | E17: 3.860186688 | F17: 1898 | G17: 7326.634334 | H17: 0.1329769324 | I17: 974.2733587
A18: 8 | C18: BIRCH CREEK UNIT 1 FR | D18: FRONTIER | E18: 3.860186688 | F18: 6346 | G18: 24496.74472 | H18: 0.1329769324 | I18: 3257.501968
A19: 9 | C19: BIRCH CREEK UNIT 1 FR - D24 | D19: FRONTIER | E19: 3.860186688 | F19: 1897 | G19: 7322.774148 | H19: 0.1329769324 | I19: 973.7600429
A20: 10 | C20: BIRCH CREEK UNIT 100 FR | D20: FRONTIER | E20: 3.860186688 | F20: 5727 | G20: 22107.28916 | H20: 0.1329769324 | I20: 2939.759497
A21: 11 | C21: BIRCH CREEK UNIT 101 BR | D21: BEAR RIVER | E21: 3.860186688 | F21: 641 | G21: 2474.379667 | H21: 0.1329769324 | I21: 329.0354178
A22: 12 | C22: BIRCH CREEK UNIT 101 FR | D22: FRONTIER | E22: 3.860186688 | F22: 12140 | G22: 46862.6664 | H22: 0.1329769324 | I22: 6231.653622
A23: 13 | C23: BIRCH CREEK UNIT 103 BR | D23: BEAR RIVER | E23: 3.860186688 | F23: 722 | G23: 2787.054789 | H23: 0.1329769324 | I23: 370.6139963
A24: 14 | C24: BIRCH CREEK UNIT 103 FR | D24: FRONTIER | E24: 3.860186688 | F24: 6507 | G24: 25118.23478 | H24: 0.1329769324 | I24: 3340.145809
A25: 15 | C25: BIRCH CREEK UNIT 104 BR | D25: BEAR RIVER | E25: 3.860186688 | F25: 3111 | G25: 12009.04079 | H25: 0.1329769324 | I25: 1596.925405
A26: 16 | C26: BIRCH CREEK UNIT 104 FR | D26: FRONTIER | E26: 3.860186688 | F26: 13264 | G26: 51201.51623 | H26: 0.1329769324 | I26: 6808.620564
A27: 17 | C27: BIRCH CREEK UNIT 105 BR | D27: BEAR RIVER | E27: 3.860186688 | F27: 7138 | G27: 27554.01258 | H27: 0.1329769324 | I27: 3664.048069
A28: 18 | C28: BIRCH CREEK UNIT 105 FR | D28: FRONTIER | E28: 3.860186688 | F28: 8047 | G28: 31062.92228 | H28: 0.1329769324 | I28: 4130.652117
A29: 19 | C29: BIRCH CREEK UNIT 106 BR | D29: BEAR RIVER | E29: 3.860186688 | F29: 5232 | G29: 20196.49675 | H29: 0.1329769324 | I29: 2685.668184
A30: 20 | C30: BIRCH CREEK UNIT 106 FR | D30: FRONTIER | E30: 3.860186688 | F30: 18565 | G30: 71664.36587 | H30: 0.1329769324 | I30: 9529.707537
A31: 21 | C31: BIRCH CREEK UNIT 107 BR | D31: BEAR RIVER | E31: 3.860186688 | F31: 2740 | G31: 10576.91153 | H31: 0.1329769324 | I31: 1406.485249
A32: 22 | C32: BIRCH CREEK UNIT 107 FR | D32: FRONTIER | E32: 3.860186688 | F32: 2632 | G32: 10160.01136 | H32: 0.1329769324 | I32: 1351.047144
A33: 23 | C33: BIRCH CREEK UNIT 108 BR | D33: BEAR RIVER | E33: 3.860186688 | F33: 1715 | G33: 6620.22017 | H33: 0.1329769324 | I33: 880.3365702
A34: 24 | C34: BIRCH CREEK UNIT 108 FR | D34: FRONTIER | E34: 3.860186688 | F34: 8370 | G34: 32309.76258 | H34: 0.1329769324 | I34: 4296.453115
A35: 25 | C35: BIRCH CREEK UNIT 109 BAX | D35: BAXTER | E35: 3.860186688 | F35: 2645 | G35: 10210.19379 | H35: 0.13375 | I35: 1365.613419
A36: 26 | C36: BIRCH CREEK UNIT 109 BR | D36: BEAR RIVER | E36: 3.860186688 | F36: 6351 | G36: 24516.04566 | H36: 0.1329769324 | I36: 3260.068546
A37: 27 | C37: BIRCH CREEK UNIT 109 FR | D37: FRONTIER | E37: 3.860186688 | F37: 5783 | G37: 22323.45962 | H37: 0.1329769324 | I37: 2968.505181
A38: 28 | C38: BIRCH CREEK UNIT 110 BR | D38: BEAR RIVER | E38: 3.860186688 | F38: 10112 | G38: 39034.20779 | H38: 0.1329769324 | I38: 5190.649211
A39: 29 | C39: BIRCH CREEK UNIT 110 FR | D39: FRONTIER | E39: 3.860186688 | F39: 9335 | G39: 36034.84274 | H39: 0.1329769324 | I39: 4791.802847
A40: 30 | C40: BIRCH CREEK UNIT 111 BR | D40: BEAR RIVER | E40: 3.860186688 | F40: 9985 | G40: 38543.96408 | H40: 0.1329769324 | I40: 5125.458107
A41: 31 | C41: BIRCH CREEK UNIT 111 FR | D41: FRONTIER | E41: 3.860186688 | F41: 3695 | G41: 14263.38981 | H41: 0.1329769324 | I41: 1896.701823
A42: 32 | C42: BIRCH CREEK UNIT 112 BR | D42: BEAR RIVER | E42: 3.860186688 | F42: 4711 | G42: 18185.33949 | H42: 0.1329769324 | I42: 2418.23066
A43: 33 | C43: BIRCH CREEK UNIT 112 FR | D43: FRONTIER | E43: 3.860186688 | F43: 12735 | G43: 49159.47748 | H43: 0.1329769324 | I43: 6537.076514
A44: 34 | C44: BIRCH CREEK UNIT 113 BR | D44: BEAR RIVER | E44: 3.860186688 | F44: 14396 | G44: 55571.24756 | H44: 0.1329769324 | I44: 7389.694032
A45: 35 | C45: BIRCH CREEK UNIT 113 FR | D45: FRONTIER | E45: 3.860186688 | F45: 4304 | G45: 16614.24351 | H45: 0.1329769324 | I45: 2209.311136
A46: 36 | C46: BIRCH CREEK UNIT 114 BR | D46: BEAR RIVER | E46: 3.860186688 | F46: 11698 | G46: 45156.46388 | H46: 0.1329769324 | I46: 6004.768045
A47: 37 | C47: BIRCH CREEK UNIT 114 FR | D47: FRONTIER | E47: 3.860186688 | F47: 2740 | G47: 10576.91153 | H47: 0.1329769324 | I47: 1406.485249
A48: 38 | C48: BIRCH CREEK UNIT 115 BR | D48: BEAR RIVER | E48: 3.860186688 | F48: 3766 | G48: 14537.46307 | H48: 0.1329769324 | I48: 1933.147244
A49: 39 | C49: BIRCH CREEK UNIT 115 FR | D49: FRONTIER | E49: 3.860186688 | F49: 12601 | G49: 48642.21246 | H49: 0.1329769324 | I49: 6468.292199
A50: 40 | C50: BIRCH CREEK UNIT 116 BR | D50: BEAR RIVER | E50: 3.860186688 | F50: 10778 | G50: 41605.09213 | H50: 0.1329769324 | I50: 5532.517524
A51: 41 | C51: BIRCH CREEK UNIT 116 FR | D51: FRONTIER | E51: 3.860186688 | F51: 3791 | G51: 14633.96774 | H51: 0.1329769324 | I51: 1945.980139
A52: 42 | C52: BIRCH CREEK UNIT 117 BAX | D52: BAXTER | E52: 3.860186688 | F52: 888 | G52: 3427.845779 | H52: 0.13375 | I52: 458.474373
A53: 43 | C53: BIRCH CREEK UNIT 117 BR | D53: BEAR RIVER | E53: 3.860186688 | F53: 594 | G53: 2292.950893 | H53: 0.1329769324 | I53: 304.9095759
A54: 44 | C54: BIRCH CREEK UNIT 117 FR | D54: FRONTIER | E54: 3.860186688 | F54: 5965 | G54: 23026.0136 | H54: 0.1329769324 | I54: 3061.928654
A55: 45 | C55: BIRCH CREEK UNIT 118 BR | D55: BEAR RIVER | E55: 3.860186688 | F55: 1145 | G55: 4419.913758 | H55: 0.1329769324 | I55: 587.7465731
A56: 46 | C56: BIRCH CREEK UNIT 118 FR | D56: FRONTIER | E56: 3.860186688 | F56: 10288 | G56: 39713.60065 | H56: 0.1329769324 | I56: 5280.99279
A57: 47 | C57: BIRCH CREEK UNIT 119 BR | D57: BEAR RIVER | E57: 3.860186688 | F57: 3843 | G57: 14834.69744 | H57: 0.1329769324 | I57: 1972.672559
A58: 48 | C58: BIRCH CREEK UNIT 119 FR | D58: FRONTIER | E58: 3.860186688 | F58: 15368 | G58: 59323.34903 | H58: 0.1329769324 | I58: 7888.636974
A59: 49 | C59: BIRCH CREEK UNIT 121 BR | D59: BEAR RIVER | E59: 3.860186688 | F59: 15525 | G59: 59929.39834 | H59: 0.1329769324 | I59: 7969.227552
A60: 50 | C60: BIRCH CREEK UNIT 121 FR | D60: FRONTIER | E60: 3.860186688 | F60: 3176 | G60: 12259.95292 | H60: 0.1329769324 | I60: 1630.290931
A61: 51 | C61: BIRCH CREEK UNIT 122 BR | D61: BEAR RIVER | E61: 3.860186688 | F61: 3143 | G61: 12132.56676 | H61: 0.1329769324 | I61: 1613.35151
A62: 52 | C62: BIRCH CREEK UNIT 122 FR | D62: FRONTIER | E62: 3.860186688 | F62: 10815 | G62: 41747.91903 | H62: 0.1329769324 | I62: 5551.510208
A63: 53 | C63: BIRCH CREEK UNIT 123 BR | D63: BEAR RIVER | E63: 3.860186688 | F63: 4305 | G63: 16618.10369 | H63: 0.1329769324 | I63: 2209.824452
A64: 54 | C64: BIRCH CREEK UNIT 123 FR | D64: FRONTIER | E64: 3.860186688 | F64: 12905 | G64: 49815.70921 | H64: 0.1329769324 | I64: 6624.340197
A65: 55 | C65: BIRCH CREEK UNIT 124 BR | D65: BEAR RIVER | E65: 3.860186688 | F65: 3615 | G65: 13954.57488 | H65: 0.1329769324 | I65: 1855.63656
A66: 56 | C66: BIRCH CREEK UNIT 124 FR | D66: FRONTIER | E66: 3.860186688 | F66: 14469 | G66: 55853.04119 | H66: 0.1329769324 | I66: 7427.166084
A67: 57 | C67: BIRCH CREEK UNIT 126 BR | D67: BEAR RIVER | E67: 3.860186688 | F67: 7222 | G67: 27878.26826 | H67: 0.1329769324 | I67: 3707.166595
A68: 58 | C68: BIRCH CREEK UNIT 126 FR | D68: FRONTIER | E68: 3.860186688 | F68: 10832 | G68: 41813.54221 | H68: 0.1329769324 | I68: 5560.236576
A69: 59 | C69: BIRCH CREEK UNIT 127 BR | D69: DAKOTA | E69: 3.860186688 | F69: 4616 | G69: 17818.62175 | H69: 0.1329769324 | I69: 2369.465661
A70: 60 | C70: BIRCH CREEK UNIT 127 FR | D70: FRONTIER | E70: 3.860186688 | F70: 1153 | G70: 4450.795252 | H70: 0.1329769324 | I70: 591.8530994
A71: 61 | C71: BIRCH CREEK UNIT 128 FR | D71: FRONTIER | E71: 3.860186688 | F71: 20115 | G71: 77647.65523 | H71: 0.1329769324 | I71: 10325.347
A72: 62 | C72: BIRCH CREEK UNIT 129 BR | D72: BEAR RIVER | E72: 3.860186688 | F72: 522 | G72: 2015.017451 | H72: 0.1329769324 | I72: 267.9508394
A73: 63 | C73: BIRCH CREEK UNIT 129 FR | D73: FRONTIER | E73: 3.860186688 | F73: 9883 | G73: 38150.22504 | H73: 0.1329769324 | I73: 5073.099897
A74: 64 | C74: BIRCH CREEK UNIT 130 BR | D74: BEAR RIVER | E74: 3.860186688 | F74: 9285 | G74: 35841.8334 | H74: 0.1329769324 | I74: 4766.137058
A75: 65 | C75: BIRCH CREEK UNIT 130 FR | D75: FRONTIER | E75: 3.860186688 | F75: 11354 | G75: 43828.55966 | H75: 0.1329769324 | I75: 5828.187416
A76: 66 | C76: BIRCH CREEK UNIT 131 FR | D76: FRONTIER | E76: 3.860186688 | F76: 11638 | G76: 44924.85268 | H76: 0.1329769324 | I76: 5973.969098
A77: 67 | C77: BIRCH CREEK UNIT 132 BR | D77: BEAR RIVER | E77: 3.860186688 | F77: 2720 | G77: 10499.70779 | H77: 0.1329769324 | I77: 1396.218933
A78: 68 | C78: BIRCH CREEK UNIT 132 FR | D78: FRONTIER | E78: 3.860186688 | F78: 15392 | G78: 59415.99351 | H78: 0.1329769324 | I78: 7900.956553
A79: 69 | C79: BIRCH CREEK UNIT 133 BR | D79: BEAR RIVER | E79: 3.860186688 | F79: 5063 | G79: 19544.1252 | H79: 0.1329769324 | I79: 2598.917816
A80: 70 | C80: BIRCH CREEK UNIT 133 FR | D80: FRONTIER | E80: 3.860186688 | F80: 20255 | G80: 78188.08137 | H80: 0.1329769324 | I80: 10397.21121
A81: 71 | C81: BIRCH CREEK UNIT 134 BR | D81: BEAR RIVER | E81: 3.860186688 | F81: 12200 | G81: 47094.2776 | H81: 0.1329769324 | I81: 6262.452569
A82: 72 | C82: BIRCH CREEK UNIT 134 FR | D82: FRONTIER | E82: 3.860186688 | F82: 16851 | G82: 65048.00588 | H82: 0.1329769324 | I82: 8649.884282
A83: 73 | C83: BIRCH CREEK UNIT 137 BR | D83: BEAR RIVER | E83: 3.860186688 | F83: 5532 | G83: 21354.55276 | H83: 0.1329769324 | I83: 2839.662919
A84: 74 | C84: BIRCH CREEK UNIT 137 FR | D84: FRONTIER | E84: 3.860186688 | F84: 9025 | G84: 34838.18486 | H84: 0.1329769324 | I84: 4632.674954
A85: 75 | C85: BIRCH CREEK UNIT 138 FR | D85: FRONTIER | E85: 3.860186688 | F85: 17649 | G85: 68128.43486 | H85: 0.1329769324 | I85: 9059.510278
A86: 76 | C86: BIRCH CREEK UNIT 139 BR | D86: BEAR RIVER | E86: 3.860186688 | F86: 7416 | G86: 28627.14448 | H86: 0.1329769324 | I86: 3806.749857
A87: 77 | C87: BIRCH CREEK UNIT 139 FR | D87: FRONTIER | E87: 3.860186688 | F87: 5322 | G87: 20543.91356 | H87: 0.1331519628 | I87: 2735.462413
A88: 78 | C88: BIRCH CREEK UNIT 13A BR | D88: BEAR RIVER | E88: 3.860186688 | F88: 7355 | G88: 28391.67309 | H88: 0.1329769324 | I88: 3775.437594
A89: 79 | C89: BIRCH CREEK UNIT 13A FR | D89: FRONTIER | E89: 3.860186688 | F89: 7351 | G89: 28376.23235 | H89: 0.1329769324 | I89: 3773.384331
A90: 80 | C90: BIRCH CREEK UNIT 140 BR | D90: BEAR RIVER | E90: 3.860186688 | F90: 3232 | G90: 12476.12338 | H90: 0.1329769324 | I90: 1659.036615
A91: 81 | C91: BIRCH CREEK UNIT 140 FR | D91: FRONTIER | E91: 3.860186688 | F91: 18313 | G91: 70691.59882 | H91: 0.1329769324 | I91: 9400.351959
A92: 82 | C92: BIRCH CREEK UNIT 141 BR | D92: BEAR RIVER | E92: 3.860186688 | F92: 13487 | G92: 52062.33786 | H92: 0.1329769324 | I92: 6923.089984
A93: 83 | C93: BIRCH CREEK UNIT 141 FR | D93: FRONTIER | E93: 3.860186688 | F93: 4492 | G93: 17339.9586 | H93: 0.1329769324 | I93: 2305.814503
A94: 84 | C94: BIRCH CREEK UNIT 142 BR | D94: BEAR RIVER | E94: 3.860186688 | F94: 3077 | G94: 11877.79444 | H94: 0.1329769324 | I94: 1579.472668
A95: 85 | C95: BIRCH CREEK UNIT 142 FR | D95: FRONTIER | E95: 3.860186688 | F95: 7177 | G95: 27704.55986 | H95: 0.1329769324 | I95: 3684.067384
A96: 86 | C96: BIRCH CREEK UNIT 144 BR | D96: BEAR RIVER | E96: 3.860186688 | F96: 804 | G96: 3103.590097 | H96: 0.1329769324 | I96: 412.7058906
A97: 87 | C97: BIRCH CREEK UNIT 144 FR | D97: FRONTIER | E97: 3.860186688 | F97: 12596 | G97: 48622.91153 | H97: 0.1329769324 | I97: 6465.72562
A98: 88 | C98: BIRCH CREEK UNIT 145 BR | D98: BEAR RIVER | E98: 3.860186688 | F98: 1361 | G98: 5253.714083 | H98: 0.1329769324 | I98: 698.6227825
A99: 89 | C99: BIRCH CREEK UNIT 145 FR | D99: FRONTIER | E99: 3.860186688 | F99: 9994 | G99: 38578.70576 | H99: 0.1329769324 | I99: 5130.077949
A100: 90 | C100: BIRCH CREEK UNIT 146 BR | D100: BEAR RIVER | E100: 3.860186688 | F100: 11670 | G100: 45048.37865 | H100: 0.1329769324 | I100: 5990.395203
A101: 91 | C101: BIRCH CREEK UNIT 146 FR | D101: FRONTIER | E101: 3.860186688 | F101: 3888 | G101: 15008.40584 | H101: 0.1329769324 | I101: 1995.77177
A102: 92 | C102: BIRCH CREEK UNIT 148 BR | D102: BEAR RIVER | E102: 3.860186688 | F102: 215 | G102: 829.940138 | H102: 0.1329769324 | I102: 110.3628936
A103: 93 | C103: BIRCH CREEK UNIT 148 FR | D103: FRONTIER | E103: 3.860186688 | F103: 20996 | G103: 81048.47971 | H103: 0.1329769324 | I103: 10777.57821
A104: 94 | C104: BIRCH CREEK UNIT 149 BR | D104: BEAR RIVER | E104: 3.860186688 | F104: 4809 | G104: 18563.63778 | H104: 0.1329769324 | I104: 2468.535607
A105: 95 | C105: BIRCH CREEK UNIT 149 FR | D105: FRONTIER | E105: 3.860186688 | F105: 17053 | G105: 65827.7636 | H105: 0.1329769324 | I105: 8753.574071
A106: 96 | C106: BIRCH CREEK UNIT 15 BR | D106: LANCE | E106: 3.860186688 | F106: 391 | G106: 1509.332995 | H106: 0.1329769324 | I106: 200.7064717
A107: 97 | C107: BIRCH CREEK UNIT 15 FR | D107: LANCE | E107: 3.860186688 | F107: 1174 | G107: 4531.859172 | H107: 0.1329769324 | I107: 602.6327308
A108: 98 | C108: BIRCH CREEK UNIT 151 BR | D108: BEAR RIVER | E108: 3.860186688 | F108: 5179 | G108: 19991.90686 | H108: 0.1329769324 | I108: 2658.462447
A109: 99 | C109: BIRCH CREEK UNIT 151 FR | D109: FRONTIER | E109: 3.860186688 | F109: 7152 | G109: 27608.05519 | H109: 0.1329769324 | I109: 3671.23449
A110: 100 | C110: BIRCH CREEK UNIT 153 ALMY | D110: ALMY | E110: 3.860186688 | F110: 955 | G110: 3686.478287 | H110: 0.13375 | I110: 493.0664709
A111: 101 | C111: BIRCH CREEK UNIT 157 MESA | D111: MESAVERDE | E111: 3.860186688 | F111: 955 | G111: 3686.478287 | H111: 0.13375 | I111: 493.0664709
A112: 102 | C112: BIRCH CREEK UNIT 159 MESA | D112: MESAVERDE | E112: 3.860186688 | F112: 6318 | G112: 24388.6595 | H112: 0.13375 | I112: 3261.983208
A113: 103 | C113: BIRCH CREEK UNIT 164 FR | D113: FRONTIER | E113: 3.860186688 | F113: 17952 | G113: 69298.07143 | H113: 0.1329769324 | I113: 9215.044961
A114: 104 | C114: BIRCH CREEK UNIT 166 BR | D114: BEAR RIVER | E114: 3.860186688 | F114: 5048 | G114: 19486.2224 | H114: 0.1329769324 | I114: 2591.218079
A115: 105 | C115: BIRCH CREEK UNIT 166 FR | D115: FRONTIER | E115: 3.860186688 | F115: 1262 | G115: 4871.555601 | H115: 0.1329769324 | I115: 647.8045199
A116: 106 | C116: BIRCH CREEK UNIT 167 BR | D116: BEAR RIVER | E116: 3.860186688 | F116: 2083 | G116: 8040.768872 | H116: 0.1329769324 | I116: 1069.236779
A117: 107 | C117: BIRCH CREEK UNIT 167 FR | D117: FRONTIER | E117: 3.860186688 | F117: 8335 | G117: 32174.65605 | H117: 0.1329769324 | I117: 4278.487063
A118: 108 | C118: BIRCH CREEK UNIT 168 BR | D118: BEAR RIVER | E118: 3.860186688 | F118: 831 | G118: 3207.815138 | H118: 0.1329769324 | I118: 426.5654168
A119: 109 | C119: BIRCH CREEK UNIT 168 RECOM BAX | D119: BAXTER | E119: 3.860186688 | F119: 1409 | G119: 5439.003044 | H119: 0.13375 | I119: 727.4666571
A120: 110 | C120: BIRCH CREEK UNIT 168 RECOM FR | D120: FRONTIER | E120: 3.860186688 | F120: 3386 | G120: 13070.59213 | H120: 0.1329769324 | I120: 1738.087246
A121: 111 | C121: BIRCH CREEK UNIT 169 BR | D121: BEAR RIVER | E121: 3.860186688 | F121: 3107 | G121: 11993.60004 | H121: 0.1329769324 | I121: 1594.872142
A122: 112 | C122: BIRCH CREEK UNIT 169 FR | D122: FRONTIER | E122: 3.860186688 | F122: 12437 | G122: 48009.14184 | H122: 0.1329769324 | I122: 6384.10841
A123: 113 | C123: BIRCH CREEK UNIT 173 BR | D123: BEAR RIVER | E123: 3.860186688 | F123: 6189 | G123: 23890.69541 | H123: 0.1329769324 | I123: 3176.911389
A124: 114 | C124: BIRCH CREEK UNIT 173 FR | D124: FRONTIER | E124: 3.860186688 | F124: 17607 | G124: 67966.30702 | H124: 0.1329769324 | I124: 9037.951015
A125: 115 | C125: BIRCH CREEK UNIT 174 BR | D125: BEAR RIVER | E125: 3.860186688 | F125: 10374 | G125: 40045.5767 | H125: 0.1329769324 | I125: 5325.137947
A126: 116 | C126: BIRCH CREEK UNIT 174 FR | D126: FRONTIER | E126: 3.860186688 | F126: 10252 | G126: 39574.63393 | H126: 0.1329769324 | I126: 5262.513421
A127: 117 | C127: BIRCH CREEK UNIT 177 BR | D127: BEAR RIVER | E127: 3.860186688 | F127: 3194 | G127: 12329.43628 | H127: 0.1329769324 | I127: 1639.530615
A128: 118 | C128: BIRCH CREEK UNIT 177 FR | D128: FRONTIER | E128: 3.860186688 | F128: 12777 | G128: 49321.60532 | H128: 0.1329769324 | I128: 6558.635777
A129: 119 | C129: BIRCH CREEK UNIT 178 BR | D129: BEAR RIVER | E129: 3.860186688 | F129: 4904 | G129: 18930.35552 | H129: 0.1329769324 | I129: 2517.300607
A130: 120 | C130: BIRCH CREEK UNIT 178 FR | D130: FRONTIER | E130: 3.860186688 | F130: 19618 | G130: 75729.14245 | H130: 0.1329769324 | I130: 10070.22906
A131: 121 | C131: BIRCH CREEK UNIT 179 BR | D131: BEAR RIVER | E131: 3.860186688 | F131: 4257 | G131: 16432.81473 | H131: 0.1329769324 | I131: 2185.185294
A132: 122 | C132: BIRCH CREEK UNIT 179 FR | D132: FRONTIER | E132: 3.860186688 | F132: 2831 | G132: 10928.18851 | H132: 0.1329769324 | I132: 1453.196986
A133: 123 | C133: BIRCH CREEK UNIT 180 FR | D133: FRONTIER | E133: 3.860186688 | F133: 8242 | G133: 31815.65868 | H133: 0.1329769324 | I133: 4230.748695
A134: 124 | C134: BIRCH CREEK UNIT 181 BR | D134: BEAR RIVER | E134: 3.860186688 | F134: 2715 | G134: 10480.40686 | H134: 0.1329769324 | I134: 1393.652355
A135: 125 | C135: BIRCH CREEK UNIT 181 FR | D135: FRONTIER | E135: 3.860186688 | F135: 10848 | G135: 41875.30519 | H135: 0.1329769324 | I135: 5568.449629
A136: 126 | C136: BIRCH CREEK UNIT 182 BR | D136: BEAR RIVER | E136: 3.860186688 | F136: 3435 | G136: 13259.74127 | H136: 0.1329769324 | I136: 1763.239719
A137: 127 | C137: BIRCH CREEK UNIT 182 FR | D137: FRONTIER | E137: 3.860186688 | F137: 5151 | G137: 19883.82163 | H137: 0.1329769324 | I137: 2644.089605
A138: 128 | C138: BIRCH CREEK UNIT 183 BR | D138: BEAR RIVER | E138: 3.860186688 | F138: 6677 | G138: 25774.46652 | H138: 0.1329769324 | I138: 3427.409492
A139: 129 | C139: BIRCH CREEK UNIT 183 FR | D139: FRONTIER | E139: 3.860186688 | F139: 10016 | G139: 38663.62987 | H139: 0.1329769324 | I139: 5141.370896
A140: 130 | C140: BIRCH CREEK UNIT 184 BR | D140: BEAR RIVER | E140: 3.860186688 | F140: 1948 | G140: 7519.643669 | H140: 0.1329769324 | I140: 999.9391479
A141: 131 | C141: BIRCH CREEK UNIT 184 FR | D141: FRONTIER | E141: 3.860186688 | F141: 17544 | G141: 67723.11526 | H141: 0.1329769324 | I141: 9005.612121
A142: 132 | C142: BIRCH CREEK UNIT 185 BR | D142: BEAR RIVER | E142: 3.860186688 | F142: 5478 | G142: 21146.10268 | H142: 0.1329769324 | I142: 2811.943867
A143: 133 | C143: BIRCH CREEK UNIT 185 FR | D143: FRONTIER | E143: 3.860186688 | F143: 12781 | G143: 49337.04606 | H143: 0.1329769324 | I143: 6560.68904
A144: 134 | C144: BIRCH CREEK UNIT 187 BR | D144: BEAR RIVER | E144: 3.860186688 | F144: 6950 | G144: 26828.29748 | H144: 0.1329769324 | I144: 3567.544701
A145: 135 | C145: BIRCH CREEK UNIT 187 FR | D145: FRONTIER | E145: 3.860186688 | F145: 12354 | G145: 47688.74635 | H145: 0.1329769324 | I145: 6341.5032
A146: 136 | C146: BIRCH CREEK UNIT 188 FR | D146: FRONTIER | E146: 3.860186688 | F146: 20439 | G146: 78898.35572 | H146: 0.1329769324 | I146: 10491.66132
A147: 137 | C147: BIRCH CREEK UNIT 189 BR | D147: BEAR RIVER | E147: 3.860186688 | F147: 6742 | G147: 26025.37865 | H147: 0.1329769324 | I147: 3460.775018
A148: 138 | C148: BIRCH CREEK UNIT 189 FR | D148: FRONTIER | E148: 3.860186688 | F148: 9707 | G148: 37470.83218 | H148: 0.1329769324 | I148: 4982.756319
A149: 139 | C149: BIRCH CREEK UNIT 190 BR | D149: BEAR RIVER | E149: 3.860186688 | F149: 2118 | G149: 8175.875406 | H149: 0.1329769324 | I149: 1087.202831
A150: 140 | C150: BIRCH CREEK UNIT 190 FR | D150: FRONTIER | E150: 3.860186688 | F150: 19051 | G150: 73540.4166 | H150: 0.1329769324 | I150: 9779.179008
A151: 141 | C151: BIRCH CREEK UNIT 191 BR | D151: BEAR RIVER | E151: 3.860186688 | F151: 3041 | G151: 11738.82772 | H151: 0.1329769324 | I151: 1560.9933
A152: 142 | C152: BIRCH CREEK UNIT 191 FR | D152: FRONTIER | E152: 3.860186688 | F152: 12970 | G152: 50066.62135 | H152: 0.1329769324 | I152: 6657.705723
A153: 143 | C153: BIRCH CREEK UNIT 192 BR | D153: BEAR RIVER | E153: 3.860186688 | F153: 1536 | G153: 5929.246753 | H153: 0.1329769324 | I153: 788.4530448
A154: 144 | C154: BIRCH CREEK UNIT 192 FR | D154: FRONTIER | E154: 3.860186688 | F154: 24073 | G154: 92926.27415 | H154: 0.1329769324 | I154: 12357.05088
A155: 145 | C155: BIRCH CREEK UNIT 193 BR | D155: BEAR RIVER | E155: 3.860186688 | F155: 788 | G155: 3041.82711 | H155: 0.1329769324 | I155: 404.4928381
A156: 146 | C156: BIRCH CREEK UNIT 193 FR | D156: FRONTIER | E156: 3.860186688 | F156: 15030 | G156: 58018.60592 | H156: 0.1329769324 | I156: 7715.136239
A157: 147 | C157: BIRCH CREEK UNIT 194 BR | D157: BEAR RIVER | E157: 3.860186688 | F157: 1453 | G157: 5608.851258 | H157: 0.1329769324 | I157: 745.8478347
A158: 148 | C158: BIRCH CREEK UNIT 194 FR | D158: FRONTIER | E158: 3.860186688 | F158: 22741 | G158: 87784.50548 | H158: 0.1329769324 | I158: 11673.31425
A159: 149 | C159: BIRCH CREEK UNIT 195 BR | D159: BEAR RIVER | E159: 3.860186688 | F159: 3462 | G159: 13363.96631 | H159: 0.1329769324 | I159: 1777.099245
A160: 150 | C160: BIRCH CREEK UNIT 195 FR | D160: FRONTIER | E160: 3.860186688 | F160: 25371 | G160: 97936.79647 | H160: 0.1329769324 | I160: 13023.33477
A161: 151 | C161: BIRCH CREEK UNIT 196 BR | D161: BEAR RIVER | E161: 3.860186688 | F161: 365 | G161: 1408.968141 | H161: 0.1329769324 | I161: 187.3602613
A162: 152 | C162: BIRCH CREEK UNIT 196 FR | D162: FRONTIER | E162: 3.860186688 | F162: 17933 | G162: 69224.72788 | H162: 0.1329769324 | I162: 9205.291961
A163: 153 | C163: BIRCH CREEK UNIT 198 BR | D163: BEAR RIVER | E163: 3.860186688 | F163: 3201 | G163: 12356.45759 | H163: 0.1329769324 | I163: 1643.123826
A164: 154 | C164: BIRCH CREEK UNIT 198 FR | D164: FRONTIER | E164: 3.860186688 | F164: 1882 | G164: 7264.871347 | H164: 0.1329769324 | I164: 966.0603062
A165: 155 | C165: BIRCH CREEK UNIT 199 BR | D165: BEAR RIVER | E165: 3.860186688 | F165: 1075 | G165: 4149.70069 | H165: 0.1329769324 | I165: 551.8144682
A166: 156 | C166: BIRCH CREEK UNIT 199 FR | D166: FRONTIER | E166: 3.860186688 | F166: 10868 | G166: 41952.50893 | H166: 0.1329769324 | I166: 5578.715944
A167: 157 | C167: BIRCH CREEK UNIT 2 BR | D167: BEAR RIVER | E167: 3.860186688 | F167: 3524 | G167: 13603.29789 | H167: 0.1329769324 | I167: 1808.924824
A168: 158 | C168: BIRCH CREEK UNIT 2 FR | D168: FRONTIER | E168: 3.860186688 | F168: 5751 | G168: 22199.93364 | H168: 0.1329769324 | I168: 2952.079076
A169: 159 | C169: BIRCH CREEK UNIT 200 BR | D169: BEAR RIVER | E169: 3.860186688 | F169: 2210 | G169: 8531.012581 | H169: 0.1329769324 | I169: 1134.427883
A170: 160 | C170: BIRCH CREEK UNIT 200 FR | D170: FRONTIER | E170: 3.860186688 | F170: 6639 | G170: 25627.77942 | H170: 0.1329769324 | I170: 3407.903492
A171: 161 | C171: BIRCH CREEK UNIT 201-25 BR | D171: BEAR RIVER | E171: 3.860186688 | F171: 2840 | G171: 10962.93019 | H171: 0.1329769324 | I171: 1457.816828
A172: 162 | C172: BIRCH CREEK UNIT 201-25 FR | D172: FRONTIER | E172: 3.860186688 | F172: 6629 | G172: 25589.17756 | H172: 0.1329769324 | I172: 3402.770335
A173: 163 | C173: BIRCH CREEK UNIT 202-25 BR | D173: BEAR RIVER | E173: 3.860186688 | F173: 5291 | G173: 20424.24777 | H173: 0.1329769324 | I173: 2715.953815
A174: 164 | C174: BIRCH CREEK UNIT 202-25 FR | D174: FRONTIER | E174: 3.860186688 | F174: 12358 | G174: 47704.18709 | H174: 0.1329769324 | I174: 6343.556463
A175: 165 | C175: BIRCH CREEK UNIT 203-25 BR | D175: BEAR RIVER | E175: 3.860186688 | F175: 6343 | G175: 24485.16416 | H175: 0.1329769324 | I175: 3255.96202
A176: 166 | C176: BIRCH CREEK UNIT 203-25 FR | D176: FRONTIER | E176: 3.860186688 | F176: 14789 | G176: 57088.30093 | H176: 0.1329769324 | I176: 7591.427135
A177: 167 | C177: BIRCH CREEK UNIT 26 FR | D177: FRONTIER | E177: 3.860186688 | F177: 4054 | G177: 15649.19683 | H177: 0.1329769324 | I177: 2080.98219
A178: 168 | C178: BIRCH CREEK UNIT 3 FFR | D178: 1ST FRONTIER | E178: 3.860186688 | F178: 16530 | G178: 63808.88596 | H178: 0.1329769324 | I178: 8485.109915
A179: 169 | C179: BIRCH CREEK UNIT 36 ALMY | D179: ALMY | E179: 3.860186688 | F179: 960 | G179: 3705.779221 | H179: 0.13375 | I179: 495.6479708
A180: 170 | C180: BIRCH CREEK UNIT 38 ALMY | D180: ALMY | E180: 3.860186688 | F180: 2723 | G180: 10511.28835 | H180: 0.13375 | I180: 1405.884817
A181: 171 | C181: BIRCH CREEK UNIT 43A BR | D181: BEAR RIVER | E181: 3.860186688 | F181: 1069 | G181: 4126.53957 | H181: 0.1329769324 | I181: 548.7345735
A182: 172 | C182: BIRCH CREEK UNIT 43A FR | D182: FRONTIER | E182: 3.860186688 | F182: 9601 | G182: 37061.65239 | H182: 0.1329769324 | I182: 4928.344846
A183: 173 | C183: BIRCH CREEK UNIT 5 2ND FR | D183: FRONTIER | E183: 3.860186688 | F183: 1591 | G183: 6141.557021 | H183: 0.1329769324 | I183: 816.6854129
A184: 174 | C184: BIRCH CREEK UNIT 5 FR | D184: FORT UNION | E184: 3.860186688 | F184: 1726 | G184: 6662.682224 | H184: 0.1329769324 | I184: 885.9830438
A185: 175 | C185: BIRCH CREEK UNIT 56 2ND FR | D185: FRONTIER | E185: 3.860186688 | F185: 4627 | G185: 17861.08381 | H185: 0.1329769324 | I185: 2375.112134
A186: 176 | C186: BIRCH CREEK UNIT 6 FR | D186: FRONTIER | E186: 3.860186688 | F186: 8405 | G186: 32444.86912 | H186: 0.1329769324 | I186: 4314.419168
A187: 177 | C187: BIRCH CREEK UNIT 61 BR | D187: BEAR RIVER | E187: 3.860186688 | F187: 2030 | G187: 7836.178977 | H187: 0.1329769324 | I187: 1042.031042
A188: 178 | C188: BIRCH CREEK UNIT 61 FR | D188: FRONTIER | E188: 3.860186688 | F188: 8096 | G188: 31252.07143 | H188: 0.1329769324 | I188: 4155.80459
A189: 179 | C189: BIRCH CREEK UNIT 7 FR | D189: FRONTIER | E189: 3.860186688 | F189: 5191 | G189: 20038.2291 | H189: 0.1329769324 | I189: 2664.622237
A190: 180 | C190: BIRCH CREEK UNIT 8 FR | D190: FRONTIER | E190: 3.860186688 | F190: 15567 | G190: 60091.52618 | H190: 0.1329769324 | I190: 7990.786815
A191: 181 | C191: BIRCH CREEK UNIT 83 MESA | D191: MESAVERDE | E191: 3.860186688 | F191: 953 | G191: 3678.757914 | H191: 0.1337500665 | I191: 492.0341156
A192: 182 | C192: BIRCH CREEK UNIT 84 ALMY (NP) | D192: ALMY | E192: 3.860186688 | F192: 1025 | G192: 3956.691355 | H192: 0.13375 | I192: 529.2074688
A193: 183 | C193: BIRCH CREEK UNIT 84 MESA | D193: MESAVERDE | E193: 3.860186688 | F193: 141 | G193: 544.286323 | H193: 0.13375 | I193: 72.79829571
A194: 184 | C194: BIRCH CREEK UNIT 87 2ND FR | D194: FRONTIER | E194: 3.860186688 | F194: 6903 | G194: 26646.86871 | H194: 0.1329769324 | I194: 3543.418859
A195: 185 | C195: BIRCH CREEK UNIT 87 BR | D195: BEAR RIVER | E195: 3.860186688 | F195: 758 | G195: 2926.02151 | H195: 0.1329769324 | I195: 389.0933645
A196: 186 | C196: BIRCH CREEK UNIT 87 BR RECOMP | D196: BEAR RIVER | E196: 3.860186688 | F196: 1769 | G196: 6828.670252 | H196: 0.1329769324 | I196: 908.0556225
A197: 187 | C197: BIRCH CREEK UNIT 87 FR | D197: FRONTIER | E197: 3.860186688 | F197: 2960 | G197: 11426.1526 | H197: 0.1329769324 | I197: 1519.414722
A198: 188 | C198: BIRCH CREEK UNIT 91 BR | D198: BEAR RIVER | E198: 3.860186688 | F198: 1514 | G198: 5844.322646 | H198: 0.1329769324 | I198: 777.1600975
A199: 189 | C199: BIRCH CREEK UNIT 91 FR | D199: FRONTIER | E199: 3.860186688 | F199: 13648 | G199: 52683.82792 | H199: 0.1329769324 | I199: 7005.733825
A200: 190 | C200: BIRCH CREEK UNIT 92 BR | D200: BEAR RIVER | E200: 3.860186688 | F200: 2083 | G200: 8040.768872 | H200: 0.1329769324 | I200: 1069.236779
A201: 191 | C201: BIRCH CREEK UNIT 92 FR | D201: FRONTIER | E201: 3.860186688 | F201: 6374 | G201: 24604.82995 | H201: 0.1329769324 | I201: 3271.87481
A202: 192 | C202: BIRCH CREEK UNIT 931 BR | D202: BEAR RIVER | E202: 3.860186688 | F202: 2124 | G202: 8199.036526 | H202: 0.1329769324 | I202: 1090.282726
A203: 193 | C203: BIRCH CREEK UNIT 931 FR | D203: FRONTIER | E203: 3.860186688 | F203: 16337 | G203: 63063.86993 | H203: 0.1329769324 | I203: 8386.039969
A204: 194 | C204: BIRCH CREEK UNIT 94 BR | D204: BEAR RIVER | E204: 3.860186688 | F204: 105 | G204: 405.3196023 | H204: 0.1329769324 | I204: 53.89815736
... 1444 more rows

Sheet SDR#1
E1: ='Control Panel'!F32 -> Dominion Energy Utah
E2: ='Control Panel'!F33 -> Docket No. 21-057-28
B4: Standard Data Request #1
B5: Summary of Sources of Supply and Demand
A8: 1 | B8: DEMAND | C8: Total | D8: Utah | E8: Wyoming
A10: =A8+1 -> 2 | B10: SALES IN DTHS | C10: =D10+E10 -> 118335278 | D10: =Calculations!P20 -> 114531442 | E10: =Calculations!P39 -> 3803836
A11: =A10+1 -> 3 | B11: DIST. CO. USE & | C11: 0
A12: =A11+1 -> 4 | B12: DIST. LOST & UNACCT. (0.49%) | C12: =Calculations!P148 -> 644873
A15: =A12+1 -> 5 | B15: TOTAL | C15: =SUM(C10:C12) -> 118980151
A19: =A15+1 -> 6 | B19: SUPPLY | C19: Total | D19: Utah | E19: Wyoming
A21: =A19+1 -> 7 | B21: COMPANY PRODUCTION | C21: ='Royalty Detail'!F1405+'Royalty Detail'!F1658 -> 57254772.97 | D21: =$D$10/$C$10*C21 -> 55414343.21 | E21: =$E$10/$C$10*C21 -> 1840429.754
A22: =A21+1 -> 8 | B22: GAS REIMBURSEMENT | C22: =C21*-'Other Inputs'!$E$276 -> -1794937.132 | D22: =D21*-'Other Inputs'!$E$276 -> -1737239.66 | E22: =E21*-'Other Inputs'!$E$276 -> -57697.47279
A25: =A22+1 -> 9 | B25: CONTRACT GAS | C25: ='Ut 1.2 p4'!F25 -> 64715036 | D25: =$D$10/$C$10*C25 -> 62634799.34 | E25: =$E$10/$C$10*C25 -> 2080236.662
A26: =A25+1 -> 10 | B26: GAS REIMBURSEMENT | C26: =C25*-'Other Inputs'!$E$275 -> -744222.914 | D26: =D25*-'Other Inputs'!$E$275 -> -720300.1924 | E26: =E25*-'Other Inputs'!$E$275 -> -23922.72161
A28: =A26+1 -> 11 | B28: STORAGE
A29: =A28+1 -> 12 | B29: INJECTIONS | C29: ='Ut 1.2 p5'!G18 -> -14325740 | D29: =$D$10/$C$10*C29 -> -13865245.32 | E29: =$E$10/$C$10*C29 -> -460494.6763
A30: =A29+1 -> 13 | B30: WITHDRAWALS | C30: ='Ut 1.2 p5'!G17 -> 14298791 | D30: =$D$10/$C$10*C30 -> 13839162.59 | E30: =$E$10/$C$10*C30 -> 459628.4124
A31: =A30+1 -> 14 | B31: NET (INJECTIONS) WITHDRAWALS | C31: =C29+C30 -> -26949 | D31: =D29+D30 -> -26082.73613 | E31: =E29+E30 -> -866.2638741
A33: =A31+1 -> 15 | B33: Storage Fuel | C33: =Calculations!P165+Calculations!P166 -> -423549.2587 | D33: =D10/C10*C33 -> -409934.4522 | E33: =E10/C10*C33 -> -13614.80655
A36: =A33+1 -> 16 | B36: TOTAL SUPPLY | C36: =C21+C22+C25+C26+C29+C30+C33 -> 118980150.7 | D36: =SUM(D21:D30)+D33 -> 115155585.5 | E36: =SUM(E21:E30)+E33 -> 3824565.151
A38: =A36+1 -> 17 | B38: Company Use & Loss % | C38: =(+C36-C10)/C36 -> 0.005420002052 | D38: =(+D36-D10)/D36 -> 0.005420002052 | E38: =(+E36-E10)/E36 -> 0.005420002052
B41: Difference | C41: =C15-C36 -> 0.3392946422

Sheet SDR#2
H1: ='Control Panel'!F32 -> Dominion Energy Utah
H2: ='Control Panel'!F33 -> Docket No. 21-057-28
A5: Standard Data Request #2
A6: Supplier Non-Gas Costs
B8: (A) | C8: (B) | D8: (C) | E8: (D) | F8: (E) | G8: (F) | T8: withdraw
A9: I. Transportation (QPC T-1) | C9: Volume (Dth) | G9: Utah Total | J9: Utah gas | K9: Utah Co. | L9: Utah gas | M9: Wyo gas | N9: Wyo Co. | O9: Wyo gas | Q9: @city gate | R9: @city gate | T9: loss | U9: Kern River | X9: Overthrust
B10: Month | C10: Utah | D10: Wyoming | E10: $/dth | F10: Demand | G10: b*d+e*(Ut %) | J10: purchased | K10: production | L10: withdrawn | M10: purchased | N10: production | O10: withdrawn | P10: Total | Q10: purchased | R10: co production | S10: withdrawls | T10: =-Calculations!P165/Calculations!P137 -> 0.01574136415 | U10: Transportation | X10: Transportation
B12: Jan22 | C12: =J12+K12+L12-((T12+$B$51*U12)+(X12))*$J$39 -> 16691168.76 | D12: =M12+N12+O12-((T12+$B$51*U12)+(X12))*$K$39 -> 554349.6835 | E12: ='Other Inputs'!$F$44 -> 0.00267 | F12: =('Other Inputs'!$D$28)*('Other Inputs'!$F$28)-('Other Inputs'!$E$280/12)+('Other Inputs'!$D$35*'Other Inputs'!$F$35) -> 4284211.343 | G12: =(+C12)*E12+F12*$J$33/$L$33 -> 4194863.573 | J12: =Q12*$J$39 -> 11239770.44 | K12: =R12*$J$39 -> 4985798.864 | L12: =S12*$J$39 -> 4632202.57 | M12: =Q12-J12 -> 373296.9978 | N12: =R12-K12 -> 165589.1245 | O12: =S12-L12 -> 153845.4296 | P12: =SUM(J12:O12)-U12 -> 16317393.43 | Q12: =Calculations!D169 -> 11613067.44 | R12: =Calculations!D161 -> 5151387.988 | S12: =Calculations!D163+Calculations!D164 -> 4786048 | T12: =S12*$T$10 -> 75338.92441 | U12: =V12*W12 -> 5233110 | V12: =Calculations!D242 -> 168810 | W12: =Calculations!D241 -> 31 | X12: =+W12*$D$39 -> 264802 | Y12: =B12 -> Jan22 | Z12: 11
B13: Feb22 | C13: =J13+K13+L13-((T13+$B$51*U13)+(X13))*$J$39 -> 13779508.92 | D13: =M13+N13+O13-((T13+$B$51*U13)+(X13))*$K$39 -> 457647.1857 | E13: ='Other Inputs'!$F$44 -> 0.00267 | F13: =('Other Inputs'!$D$28)*('Other Inputs'!$F$28)-('Other Inputs'!$E$280/12)+('Other Inputs'!$D$35*'Other Inputs'!$F$35) -> 4284211.343 | G13: =(+C13)*E13+F13*$J$33/$L$33 -> 4187089.441 | J13: =Q13*$J$39 -> 10034148.91 | K13: =R13*$J$39 -> 4438575.338 | L13: 3052355.69 | M13: 333255.7085 | N13: 147414.6519 | O13: 101375.3102 | P13: =SUM(J13:O13)-U13 -> 13380445.61 | Q13: =Calculations!E169 -> 10367404.62 | R13: =Calculations!E161 -> 4585989.99 | S13: =Calculations!E163+Calculations!E164 -> 3153731 | T13: =S13*$T$10 -> 49644.0281 | U13: =V13*W13 -> 4726680 | V13: =Calculations!E242 -> 168810 | W13: =Calculations!E241 -> 28 | X13: =+W13*$D$39 -> 239176 | Y13: =B13 -> Feb22 | Z13: 12
B14: Mar22 | C14: 10874580.15 | D14: 361168.241 | E14: ='Other Inputs'!$F$44 -> 0.00267 | F14: =('Other Inputs'!$D$28)*('Other Inputs'!$F$28)-('Other Inputs'!$E$280/12)+('Other Inputs'!$D$35*'Other Inputs'!$F$35) -> 4284211.343 | G14: =(+C14)*E14+F14*$J$33/$L$33 -> 4179333.281 | J14: =Q14*$J$39 -> 7453519.564 | K14: 4833776.843 | L14: 1547703.434 | M14: 247547.4468 | N14: 160540.1456 | O14: 51402.56628 | P14: 10640055 | Q14: =Calculations!F169 -> 7701067.011 | R14: =Calculations!F161 -> 4994316.988 | S14: =Calculations!F163+Calculations!F164 -> 1599106 | T14: =S14*$T$10 -> 25172.10986 | U14: =V14*W14 -> 3654435 | V14: =Calculations!F242 -> 117885 | W14: =Calculations!F241 -> 31 | X14: 264802 | Y14: Mar22 | Z14: 1
B15: Apr22 | C15: 9219521.27 | D15: 306200.1691 | E15: ='Other Inputs'!$F$44 -> 0.00267 | F15: =('Other Inputs'!$D$28)*('Other Inputs'!$F$28)-('Other Inputs'!$E$280/12)+('Other Inputs'!$D$35*'Other Inputs'!$F$35) -> 4284211.343 | G15: 4174914.274 | J15: =Q15*$J$39 -> 5815187.793 | K15: 4419782.488 | L15: 0 | M15: 193134.9181 | N15: 146790.5009 | O15: 0 | P15: 9528345.7 | Q15: =Calculations!G169 -> 6008322.711 | R15: =Calculations!G161 -> 4566572.989 | S15: =Calculations!G163+Calculations!G164 -> 0 | T15: 0 | U15: 1046550 | V15: =Calculations!G242 -> 34885 | W15: =Calculations!G241 -> 30 | X15: 256260 | Y15: Apr22 | Z15: 2
B16: May22 | C16: 6785906.576 | D16: 225374.5808 | E16: ='Other Inputs'!$F$44 -> 0.00267 | F16: =('Other Inputs'!$D$28)*('Other Inputs'!$F$28)-('Other Inputs'!$E$280/12)+('Other Inputs'!$D$35*'Other Inputs'!$F$35) -> 4284211.343 | G16: 4168416.523 | J16: 3339907.383 | K16: 4495296.504 | L16: 0 | M16: 110925.5216 | N16: 149298.4841 | O16: 0 | P16: 7013992.894 | Q16: =Calculations!H169 -> 3450832.905 | R16: =Calculations!H161 -> 4644594.989 | S16: =Calculations!H163+Calculations!H164 -> 0 | T16: 0 | U16: 1081435 | V16: =Calculations!H242 -> 34885 | W16: =Calculations!H241 -> 31 | X16: 264802 | Y16: May22 | Z16: 3
B17: Jun22 | C17: 4213793.605 | D17: 139949.1662 | E17: ='Other Inputs'!$F$44 -> 0.00267 | F17: =('Other Inputs'!$D$28)*('Other Inputs'!$F$28)-('Other Inputs'!$E$280/12)+('Other Inputs'!$D$35*'Other Inputs'!$F$35) -> 4284211.343 | G17: 4161548.981 | J17: 944006.5548 | K17: 4285236.061 | L17: 0 | M17: 31352.49199 | N17: 142321.9241 | O17: 0 | P17: 4356367.032 | Q17: =Calculations!I169 -> 975359.0468 | R17: =Calculations!I161 -> 4427557.986 | S17: =Calculations!I163+Calculations!I164 -> 0 | T17: =S17*$T$10 -> 0 | U17: 1046550 | V17: =Calculations!I242 -> 34885 | W17: =Calculations!I241 -> 30 | X17: 256260 | Y17: Jun22 | Z17: 4
B18: Jul22 | C18: 3409467.174 | D18: 113235.7521 | E18: ='Other Inputs'!$F$44 -> 0.00267 | F18: =('Other Inputs'!$D$28)*('Other Inputs'!$F$28)-('Other Inputs'!$E$280/12)+('Other Inputs'!$D$35*'Other Inputs'!$F$35) -> 4284211.343 | G18: =(+C18)*E18+F18*$J$33/$L$33 -> 4159401.429 | J18: 136984.8153 | K18: 4321779.67 | L18: 0 | M18: 4549.560914 | N18: 143535.6161 | O18: 0 | P18: 3525414.662 | Q18: =Calculations!J169 -> 141534.3762 | R18: =Calculations!J161 -> 4465315.286 | S18: =Calculations!J163+Calculations!J164 -> 0 | T18: 0 | U18: 1081435 | V18: =Calculations!J242 -> 34885 | W18: =Calculations!J241 -> 31 | X18: 264802 | Y18: Jul22 | Z18: 5
B19: Aug22 | C19: 3429735.742 | D19: 113908.915 | E19: ='Other Inputs'!$F$44 -> 0.00267 | F19: =('Other Inputs'!$D$28)*('Other Inputs'!$F$28)-('Other Inputs'!$E$280/12)+('Other Inputs'!$D$35*'Other Inputs'!$F$35) -> 4284211.343 | G19: 4159455.546 | J19: 218319.1525 | K19: 4260713.902 | L19: 0 | M19: 7250.849523 | N19: 141507.4904 | O19: 0 | P19: 3546356.394 | Q19: =Calculations!K169 -> 225570.002 | R19: =Calculations!K161 -> 4402221.392 | S19: =Calculations!K163+Calculations!K164 -> 0 | T19: 0 | U19: 1081435 | V19: =Calculations!K242 -> 34885 | W19: =Calculations!K241 -> 31 | X19: 264802 | Y19: Aug22 | Z19: 6
B20: Sep22 | C20: 3825322.905 | D20: 127047.2171 | E20: ='Other Inputs'!$F$44 -> 0.00267 | F20: =('Other Inputs'!$D$28)*('Other Inputs'!$F$28)-('Other Inputs'!$E$280/12)+('Other Inputs'!$D$35*'Other Inputs'!$F$35) -> 4284211.343 | G20: =(+C20)*E20+F20*$J$33/$L$33 -> 4160511.764 | J20: 767724.6029 | K20: 4073047.313 | L20: 0 | M20: 25497.78848 | N20: 135274.6785 | O20: 0 | P20: 3954994.383 | Q20: =Calculations!L169 -> 793222.3914 | R20: =Calculations!L161 -> 4208321.992 | S20: =Calculations!L163+Calculations!L164 -> 0 | T20: 0 | U20: 1046550 | V20: =Calculations!L242 -> 34885 | W20: =Calculations!L241 -> 30 | X20: 256260 | Y20: Sep22 | Z20: 7
B21: Oct22 | C21: 7865141.433 | D21: 261218.2961 | E21: ='Other Inputs'!$F$44 -> 0.00267 | F21: =('Other Inputs'!$D$28)*('Other Inputs'!$F$28)-('Other Inputs'!$E$280/12)+('Other Inputs'!$D$35*'Other Inputs'!$F$35) -> 4284211.343 | G21: =(+C21)*E21+F21*$J$33/$L$33 -> 4171298.08 | J21: 4769115.281 | K21: 4145323.464 | L21: 0 | M21: 158392.5958 | N21: 137675.1252 | O21: 0 | P21: 8129071.466 | Q21: =Calculations!M169 -> 4927507.877 | R21: =Calculations!M161 -> 4282998.589 | S21: =Calculations!M163+Calculations!M164 -> 0 | T21: 0 | U21: 1081435 | V21: =Calculations!M242 -> 34885 | W21: =Calculations!M241 -> 31 | X21: 264802 | Y21: Oct22 | Z21: 8
B22: Nov22 | C22: 9324719.106 | D22: 309694.016 | E22: ='Other Inputs'!$F$44 -> 0.00267 | F22: =('Other Inputs'!$D$28)*('Other Inputs'!$F$28)-('Other Inputs'!$E$280/12)+('Other Inputs'!$D$35*'Other Inputs'!$F$35) -> 4284211.343 | G22: =(+C22)*E22+F22*$J$33/$L$33 -> 4175195.152 | J22: 5471008.185 | K22: 4706310.28 | L22: 2020552.11 | M22: 181703.9716 | N22: 156306.7063 | O22: 67106.8898 | P22: 9066438.143 | Q22: =Calculations!N169 -> 5652712.156 | R22: =Calculations!N161 -> 4862616.987 | S22: =Calculations!N163+Calculations!N164 -> 2087659 | T22: 32862.60054 | U22: 3536550 | V22: =Calculations!N242 -> 117885 | W22: =Calculations!N241 -> 30 | X22: 256260 | Y22: Nov22 | Z22: 9
B23: Dec22 | C23: 14888219.81 | D23: 494469.8635 | E23: ='Other Inputs'!$F$44 -> 0.00267 | F23: =('Other Inputs'!$D$28)*('Other Inputs'!$F$28)-('Other Inputs'!$E$280/12)+('Other Inputs'!$D$35*'Other Inputs'!$F$35) -> 4284211.343 | G23: =(+C23)*E23+F23*$J$33/$L$33 -> 4190049.699 | J23: 11724806.66 | K23: 4711462.954 | L23: 2586348.783 | M23: 389406.0957 | N23: 156477.8377 | O23: 85898.21659 | P23: 14421290.55 | Q23: =Calculations!O169 -> 12114212.75 | R23: =Calculations!O161 -> 4867940.791 | S23: =Calculations!O163+Calculations!O164 -> 2672247 | T23: 42064.81312 | U23: 5233110 | V23: =Calculations!O242 -> 168810 | W23: =Calculations!O241 -> 31 | X23: 264802 | Y23: Dec22 | Z23: 10
C26: =SUM(C12:C23) -> 104307085.5 | D26: =SUM(D12:D23) -> 3464263.086 | G26: =SUM(G12:G23) -> 50082077.74 | J26: =SUM(J12:J25) -> 61914499.35 | K26: 53677103.68 | L26: 13839162.59 | M26: 2056313.947 | N26: 1782732.285 | O26: 459628.4124 | P26: =SUM(P12:P23) -> 103880165.3 | Q26: 63970813.29 | R26: 55459835.97 | S26: 14298791 | T26: 225082.476 | U26: 29849275
C29: Months | F29: System | G29: Utah | J29: Allocation Factors
C30: or Days | D30: Dth | E30: Rate | F30: Total | G30: Total
J31: Peak Demand Allocation Base
A32: II. Transportation (ML 104 demand) | C32: ='Other Inputs'!E29 -> 12 | D32: ='Other Inputs'!D29 -> 30000 | E32: ='Other Inputs'!F29 -> 5.28804 | F32: =C32*D32*E32 -> 1903694.4 | G32: =F32*J34 -> 1844189.914 | J32: Utah | K32: Wyo | L32: Total
J33: ='Other Inputs'!E146 -> 1190761 | K33: ='Other Inputs'!E147 -> 38421 | L33: =J33+K33 -> 1229182
A34: III. Transportation (TL 112 demand) | C34: ='Other Inputs'!E30 -> 12 | D34: ='Other Inputs'!D30 -> 12000 | E34: ='Other Inputs'!F30 -> 5.28804 | F34: =C34*D34*E34 -> 761477.76 | G34: =F34*J34 -> 737675.9658 | J34: =J33/L33 -> 0.9687426272 | K34: =K33/L33 -> 0.03125737279
C35: ='Other Inputs'!E31 -> 5 | D35: ='Other Inputs'!D31 -> 75000 | E35: ='Other Inputs'!F31 -> 6.80887 | F35: =C35*D35*E35 -> 2553326.25 | G35: =F35*J34 -> 2473515.98
J36: Dth Sales Allocation Base
A37: III. Transportation (Hyrum) | C37: =+'Other Inputs'!E32 -> 12 | D37: ='Other Inputs'!D32 -> 100000 | E37: ='Other Inputs'!F32 -> 5.28804 | F37: =C37*D37*E37 -> 6345648 | G37: =F37*J34 -> 6147299.715 | J37: Utah | K37: Wyo | L37: Total
J38: =Calculations!P20 -> 114531442 | K38: =Calculations!P39 -> 3803836 | L38: =J38+K38 -> 118335278
A39: IV. Transportation (Overthrust Pipeline) | C39: ='Other Inputs'!E38 -> 12 | D39: ='Other Inputs'!D38 -> 8542 | E39: ='Other Inputs'!F38 -> 1.62 | F39: =C39*D39*E39 -> 166056.48 | G39: =F39*J34 -> 160865.9907 | J39: =J38/L38 -> 0.9678554353 | K39: =K38/L38 -> 0.0321445647
C40: 365 | D40: ='Other Inputs'!D38 -> 8542 | E40: ='Other Inputs'!F39 -> 0.00167 | F40: =C40*D40*E40 -> 5206.7761 | G40: =F40*J39 -> 5039.406549
A42: IV. Transportation (KR 2003 Expansion) | C42: ='Other Inputs'!E59 -> 12 | D42: ='Other Inputs'!D59 -> 33000 | E42: ='Other Inputs'!F59 -> 3.172933333 | F42: =C42*D42*E42 -> 1256481.6
C43: ='Other Inputs'!E60 -> 5 | D43: ='Other Inputs'!D60 -> 50000 | E43: ='Other Inputs'!F60 -> 3.172933333 | F43: =C43*D43*E43 -> 793233.3333 | G43: =(F42+F43+F44)*J34 -> 2105886.284
C44: ='Other Inputs'!E61 -> 12 | D44: ='Other Inputs'!D61 -> 1885 | E44: ='Other Inputs'!F61 -> 5.487166667 | F44: =C44*D44*E44 -> 124119.71
A46: V. Transportation (KR #20024) | C46: =+'Other Inputs'!E69 -> 5 | D46: =+'Other Inputs'!D69 -> 27000 | E46: =+'Other Inputs'!F69 -> 8.758 | F46: =C46*D46*E46 -> 1182330 | G46: =F46*J34 -> 1145373.47
A48: VI. Transportation (KR #20017) | C48: =+'Other Inputs'!E65 -> 3 | D48: =+'Other Inputs'!D65 -> 56925 | E48: =+'Other Inputs'!F65 -> 8.7 | F48: =C48*D48*E48 -> 1485742.5 | G48: =F48*J34 -> 1439302.093
C49: =+'Other Inputs'!E67 -> 2 | D49: =+'Other Inputs'!D67 -> 6000 | E49: =+'Other Inputs'!F67 -> 8.845 | F49: =C49*D49*E49 -> 106140 | G49: =F49*J34 -> 102822.3425
A51: VIII. Trans (KR 2003 Expansion) | B51: ='Other Inputs'!C74 -> 0.757645847 | C51: ='Other Inputs'!E73 -> 365 | D51: ='Other Inputs'!D73 -> 34885 | E51: ='Other Inputs'!F73 -> 0.0044 | F51: =B51*C51*D51*E51 -> 42447.34345
B52: ='Other Inputs'!C73 -> 0.757645847 | C52: ='Other Inputs'!E74 -> 151 | D52: ='Other Inputs'!D74 -> 50000 | E52: ='Other Inputs'!F74 -> 0.0044 | F52: =B52*C52*D52*E52 -> 25168.99504 | G52: =(F51+F52)*J39 -> 65442.84072
A54: IX. Transportation (KR #20024) | B54: =+'Other Inputs'!C80 -> 0.757645847 | C54: =+'Other Inputs'!E80 -> 151 | D54: =+'Other Inputs'!D80 -> 27000 | E54: =+'Other Inputs'!F80 -> 0.0044 | F54: =B54*C54*D54*E54 -> 13591.25732 | G54: =+F54*J39 -> 13154.37227
A56: X. Trans (KR #20017) | B56: =+'Other Inputs'!C77 -> 0.757645847 | C56: =+'Other Inputs'!E77 -> 90 | D56: =+'Other Inputs'!D77 -> 56925 | E56: =+'Other Inputs'!F77 -> 0.0044 | F56: =B56*C56*D56*E56 -> 17079.07998
B57: =+'Other Inputs'!C78 -> 0.757645847 | C57: =+'Other Inputs'!E78 -> 61 | D57: =+'Other Inputs'!D78 -> 6000 | E57: =+'Other Inputs'!F78 -> 0.0044 | F57: =B57*C57*D57*E57 -> 1220.112872 | G57: =(F56+F57)*J39 -> 17710.97326
A59: XII. Other Trans | F59: ='Other Inputs'!$D$183 -> 2912877.888 | G59: =F59*$J$39 -> 2819244.696
A61: Storage Commodity | F61: =+'Ut 1.4 p2'!J29 -> 472678 | G61: =+F61*J39 -> 457483.9714
A62: Total ACA | D62: =+'Ut 1.4 p1'!F41 -> 133504357.8 | E62: =+'Ut 1.4 p1'!J41 -> 0.0012 | F62: =+D62*E62 -> 160205.2293 | G62: =+F62*J39 -> 155055.502
A64: XIV. Storage Demand | C64: 12 | D64: ='Other Inputs'!E168 -> 184625 | E64: ='Other Inputs'!E14 -> 2.87375 | F64: =C64*D64*E64 -> 6366793.125
C65: 5 | D65: =+'Other Inputs'!E169 -> 0 | E65: =+'Other Inputs'!E15 -> 0 | F65: =C65*D65*E65 -> 0
C66: 12 | D66: ='Other Inputs'!E170 -> 111827 | E66: ='Other Inputs'!E16 -> 2.85338 | F66: =C66*D66*E66 -> 3829019.103
C67: 12 | D67: ='Other Inputs'!E171 -> 13419000 | E67: ='Other Inputs'!E17 -> 0.02378 | F67: =C67*D67*E67 -> 3829245.84 | G67: =SUM(F64:F67)*J34 -> 13586671.6
A69: XV. Peak Hour Service | C69: =+'Other Inputs'!E20 -> 3 | D69: =+'Other Inputs'!D20 -> 28752 | E69: =+'Other Inputs'!F20 -> 16.0908 | F69: =C69*D69*E69 -> 1387928.045 | G69: =F69*J34 -> 1344545.06
C70: =+'Other Inputs'!E23 -> 3 | D70: =+'Other Inputs'!D23 -> 74666.66667 | E70: =+'Other Inputs'!F23 -> 7.357482143 | F70: =C70*D70*E70 -> 1648076 | G70: =F70*J34 -> 1596561.474
A73: Total Supplier Non-Gas Costs | G73: =G26+G32+G34+G35+G43+G52+G59+G67++G46+G48+G49+G54+G57+G69+G70+G61+G62+G37+G39+G40 -> 86299919.39

Sheet Wy SDR#1 (hidden)
A1: Wyoming Standard Data Request #1
A2: Global Insights Forecast

Sheet SDR#3
I1: ='Control Panel'!F32 -> Dominion Energy Utah
I2: ='Control Panel'!F33 -> Docket No. 21-057-28
C5: Standard Data Request #3
C6: Monthly Forecasted Sales
D8: Utah Sales | F8: Wyoming Sales | H8: System Total
C9: Month | D9: Dth | F9: Dth | H9: Dth
B11: 1 | C11: =Calculations!D141 -> Jan22 | D11: =Calculations!D20 -> 20719856 | F11: =Calculations!D39 -> 620618 | H11: =SUM(D11:F11) -> 21340474
B13: =B11+1 -> 2 | C13: =Calculations!E141 -> Feb22 | D13: =Calculations!E20 -> 17401943 | F13: =Calculations!E39 -> 562716 | H13: =SUM(D13:F13) -> 17964659
B15: =B13+1 -> 3 | C15: =Calculations!F141 -> Mar22 | D15: =Calculations!F20 -> 13407466 | F15: =Calculations!F39 -> 461114 | H15: 13868580
B17: =B15+1 -> 4 | C17: =Calculations!G141 -> Apr22 | D17: =Calculations!G20 -> 9229127 | F17: =Calculations!G39 -> 335736 | H17: 9564863
B19: =B17+1 -> 5 | C19: =Calculations!H141 -> May22 | D19: =Calculations!H20 -> 5389863 | F19: =Calculations!H39 -> 223941 | H19: 5613804
B21: =B19+1 -> 6 | C21: =Calculations!I141 -> Jun22 | D21: =Calculations!I20 -> 3078696 | F21: =Calculations!I39 -> 111067 | H21: 3189763
B23: =B21+1 -> 7 | C23: =Calculations!J141 -> Jul22 | D23: =Calculations!J20 -> 2518087 | F23: =Calculations!J39 -> 71178 | H23: 2589265
B25: =B23+1 -> 8 | C25: =Calculations!K141 -> Aug22 | D25: =Calculations!K20 -> 2462944 | F25: =Calculations!K39 -> 71150 | H25: 2534094
B27: =B25+1 -> 9 | C27: =Calculations!L141 -> Sep22 | D27: =Calculations!L20 -> 2859775 | F27: =Calculations!L39 -> 102758 | H27: 2962533
B29: =B27+1 -> 10 | C29: =Calculations!M141 -> Oct22 | D29: =Calculations!M20 -> 6866336 | F29: =Calculations!M39 -> 240551 | H29: 7106887
B31: =B29+1 -> 11 | C31: =Calculations!N141 -> Nov22 | D31: =Calculations!N20 -> 12080405 | F31: =Calculations!N39 -> 414894 | H31: 12495299
B33: =B31+1 -> 12 | C33: =Calculations!O141 -> Dec22 | D33: =Calculations!O20 -> 18516944 | F33: =Calculations!O39 -> 588113 | H33: 19105057
B36: =B33+1 -> 13 | C36: Total Sales (Dth) | D36: =SUM(D11:D33) -> 114531442 | F36: =SUM(F11:F33) -> 3803836 | H36: =SUM(H11:H33) -> 118335278

Sheet SDR#4
H1: ='Control Panel'!F32 -> Dominion Energy Utah
H2: ='Control Panel'!F33 -> Docket No. 21-057-28
C5: Standard Data Request #4
C6: Supplier Non-Gas Costs Recovered at Current Rates
C9: (A) | D9: (B) | E9: (C) | F9: (D) | G9: (E)
B10: 1 | C10: Rate Schedule | D10: Season | E10: Sales Dth | F10: SNG Rate | G10: SNG Revenue
B12: =B10+1 -> 2 | C12: GS | D12: winter | E12: ='Utah Summary-by class'!B8 -> 80662138 | F12: ='Utah Summary-by class'!J8 -> 0.93935 | G12: =E12*F12 -> 75769979.33
B13: =B12+1 -> 3 | D13: summer | E13: ='Utah Summary-by class'!B9 -> 31002666 | F13: ='Utah Summary-by class'!J9 -> 0.39711 | G13: =E13*F13 -> 12311468.7
B15: =B13+1 -> 4 | C15: FS | D15: winter | E15: ='Utah Summary-by class'!B13 -> 1213837 | F15: ='Utah Summary-by class'!J13 -> 0.98756 | G15: =E15*F15 -> 1198736.868
B16: =B15+1 -> 5 | D16: summer | E16: ='Utah Summary-by class'!B14 -> 1188827 | F16: ='Utah Summary-by class'!J14 -> 0.80292 | G16: =E16*F16 -> 954532.9748
B18: =B16+1 -> 6 | C18: NGV | D18: annual | E18: ='Utah Summary-by class'!B18 -> 202355 | F18: ='Utah Summary-by class'!J18 -> 1.02637 | G18: =E18*F18 -> 207691.1014
B20: =B18+1 -> 7 | C20: IS | D20: annual | E20: ='Utah Summary-by class'!B21 -> 261619 | F20: ='Utah Summary-by class'!J21 -> 0.17963 | G20: =E20*F20 -> 46994.62097
B23: =B20+1 -> 8 | C23: Total Supplier Non-Gas Costs | E23: =SUM(E12:E20) -> 114531442 | G23: =SUM(G12:G21) -> 90489403.59
C27: Rate Schedule | D27: Season | E27: Trans Dth | F27: SNG Rate | G27: SNG Revenue
B28: 9 | C28: TSF | D28: annual | E28: ='Utah Summary-by class'!B23 -> 208680 | F28: ='Utah Summary-by class'!J23 -> 2.008 | G28: =E28*F28 -> 419029.44
B30: 10 | C30: TBF | D30: annual | E30: ='Utah Summary-by class'!B25 -> 45000 | F30: ='Utah Summary-by class'!J25 -> 1.257 | G30: =E30*F30 -> 56565
B33: 11 | C33: Total Supplier Non-Gas Costs | E33: =SUM(E28:E30) -> 253680 | G33: =SUM(G28:G30) -> 475594.44

Sheet Current Exh Updated Exh (hidden)
B8: Current Exhibits to Proposed Exhibits
B12: Current Exhibit | C12: Description of Exhibit | D12: Proposed Exhibit | E12: Comments
B13: 1.1 | C13: Company Production with detailed well information | D13: 1.2 p1 | E13: Detail of well info in electronic model
B14: 1.2 | C14: Purchased Gas Costs | D14: 1.2 p4
B15: 1.3 p1 | C15: Transportation | D15: 1.4 p1
C16: Gathering | D16: 1.2 p3
B17: 1.3 p2 | C17: Storage | D17: 1.4 p3
C18: Working Gas Charges | D18: 1.2 p5
B19: 1.4 p1 | C19: Gas Related Costs and Revenue Credits | D19: 1.2 p3
B20: 1.4 p2 | C20: Cost of Storage Gas | D20: 1.2 p5
B21: 1.4 p3 | C21: Other Revenues | D21: 1.2 p2
B22: 1.5 | C22: Gas Cost Allocation | D22: 1.1 p2
B23: 1.6 p1 | C23: Commodity Change and New Rates | D23: 1.5 p1
B24: 1.6 p2 | C24: Supplier Non-Gas Change | D24: 1.5 p2
B25: 1.6 p3 | C25: Supplier Non-Gas New Rates | D25: 1.5 p3 | E25: Detail of calculation updated
B26: 1.7 | C26: Effect on GS Typical Customer | D26: 1.6
B27: 1.8 | C27: Legislative/Proposed Rate Schedules | D27: 1.7
B28: 1.9 | C28: Dominion Energy Questar Pipeline, LLC Tariff Rates | D28: - | E28: Removed as an exhibit
B29: 1.10 | C29: Confidential Comparison of Natural Gas Price Forecast | D29: 1.3
B30: 1.11 | C30: Legislative/Proposed Combined Rate Schedules | D30: 1.8

Sheet SDR#5
H1: Dominion Energy Utah
H2: =+'SDR#4'!H2 -> Docket No. 21-057-28
B5: Standard Data Request #5
B6: RIN Proceeds
F9: Total | G9: Volumes | H9: Rate
A10: Total RIN Proceeds, Docket No. 21-057-17 | F10: -74159.94 | G10: 202355 | H10: -0.36648
B12: Month | C12: NGV Dths | D12: Rate | E12: Refund
B13: 2021-09-01 | C13: 16971 | D13: -0.33706 | E13: =+C13*D13 -> -5720.24526
B14: 2021-10-01 | C14: 17394 | D14: -0.33706 | E14: =+C14*D14 -> -5862.82164
C15: Estimated Dths | E15: =SUM(E13:E14) -> -11583.0669
B17: 2021-09-01 | C17: 20224.652 | D17: -0.33706 | E17: =+C17*D17 -> -6816.921203
B18: 2021-10-01 | C18: 17660.12 | D18: -0.3370649856 | E18: =+C18*D18 -> -5952.608093
C19: Actual Dths | E19: =SUM(E17:E18) -> -12769.5293
A20: True up of Estimated Volumes | F20: =E19-E15 -> -1186.462396
B22: Month | C22: NGV Dths | D22: Rate | E22: Refund
B23: 2021-11-01 | C23: 16247 | D23: =+H10 -> -0.36648 | E23: =+C23*D23 -> -5954.20056
B24: 2021-12-01 | C24: 19505 | D24: =+H10 -> -0.36648 | E24: =+C24*D24 -> -7148.1924
A25: Expected Amortized Total | F25: =SUM(E23:E24) -> -13102.39296
A27: Remaining to be Amortized | F27: =F10+F20-F25 -> -62244.00944
B29: Document No. | C29: Date | D29: RIN Proceed
B30: 1800000232 | C30: 2021-10-12 | D30: 7161
B31: 1800000233 | C31: 2021-10-12 | D31: 7164.08
A32: New RIN Proceeds | F32: =SUM(D30:D31) -> 14325.08
A34: Total RIN Proceeds | F34: =+F27+-F32 -> -76569.08944 | G34: =SUM('RevRun Fcst'!H66:S66) -> 202355 | H34: =+F34/G34 -> -0.378389906

Sheet Ut 1.1 p1
F1: ='Control Panel'!$F$32 -> Dominion Energy Utah
F2: ='Control Panel'!$F$33 -> Docket No. 21-057-28
F3: DEU Exhibit 1.1
F4: Page 1 of 2
B9: TABLE OF CONTENTS
B14: DEU Exhibit | D14: Description | E14: Type
B16: 1.1 | C16: Page 2 | D16: Test-Year Gas Cost Allocation | E16: Summary
B18: 1.2 | C18: Page 1 | D18: Test-Year Royalties & Company Production | E18: Commodity
C19: Page 2 | D19: Test-Year Other Revenues | E19: Commodity
C20: Page 3 | D20: Summary of Wexpro Test-Year Gas Costs and Revenue Credits | E20: Commodity
C21: Page 4 | D21: Test-Year Purchased Gas Costs | E21: Commodity
C22: Page 5 | D22: Test-Year Storage Gas & Working Gas Charges | E22: Commodity
B24: 1.3 | D24: Confidential Comparison of Natural Gas Price Forecasts | E24: Commodity
B26: 1.4 | C26: Page 1 | D26: Test-Year Transportation Charges | E26: SNG
C27: Page 2 | D27: Test-Year Storage Charges | E27: SNG
C28: Page 3 | D28: Supplier Non-Gas Cost Class Allocation | E28: SNG
C29: Page 4 | D29: Supplier Non-Gas Cost Summary | E29: SNG
B31: 1.5 | C31: Page 1 | D31: Test-Year Gas Cost Change | E31: Commodity
C32: Page 2 | D32: Test-Year Supplier Non-Gas Cost Change | E32: SNG
C33: Page 3 | D33: Supplier Non-Gas Rate Calculation | E33: SNG
C34: Page 4 | D34: General Service Summer / Winter Differential | E34: SNG
C35: Page 5 | D35: Firm Service Summer / Winter Differential | E35: SNG
C36: Page 6 | D36: Summary of Rates | E36: Summary
B38: 1.6 | D38: Effect on GS Typical Customer | E38: Summary
B40: 1.7 | C40: Page1-8 | D40: Legislative Rate Schedules | E40: Summary
C41: Page 9-17 | D41: Proposed Rate Schedules | E41: Summary
B43: 1.8 | C43: Page1-8 | D43: Legislative Combined Rate Schedules | E43: Summary
C44: Page 9-17 | D44: Proposed Combined Rate Schedules | E44: Summary

Sheet Ut 1.1 p2
I1: ='Control Panel'!$F$32 -> Dominion Energy Utah
I2: ='Control Panel'!$F$33 -> Docket No. 21-057-28
I3: DEU Exhibit 1.1
I4: Page 2 of 2
C8: TEST-YEAR GAS COST ALLOCATION
C11: (A) | E11: (B) | F11: (C) | G11: (D) | H11: (E)
E12: Allocation
E13: Factor 1/ | F13: System | G13: Wyoming | H13: Utah
B15: COMMODITY
A16: 1 | C16: Dominion Energy Production (DEU Exhibit 1.2, p 1) | E16: 2 | F16: ='Ut 1.2 p3'!E15+'Ut 1.2 p3'!E28 -> 239203844.1 | G16: =CHOOSE($E16,G$53,G$56)*$F16 -> 7689103.442 | H16: 231514740.6
A17: =A16+1 -> 2 | C17: Other Revenue's Credit (DEU Exhibit 1.2, p 2) | E17: 2 | F17: ='Ut 1.2 p3'!E16+'Ut 1.2 p3'!E29+'Ut 1.2 p3'!E47 -> -23280597.44 | G17: -748344.6706 | H17: -22532252.77
A18: =A17+1 -> 3 | C18: Gathering (DEU Exhibit 1.2, p 3, ln 4) | D18: - Demand | E18: 1 | F18: ='Ut 1.2 p3'!E19 -> 6199000.56 | G18: 193764.4714 | H18: 6005236.089
A19: =A18+1 -> 4 | C19: Gathering (DEU Exhibit 1.2, p 3, lns 5, 6, 12) | D19: - Commodity | E19: 2 | F19: ='Ut 1.2 p3'!E21+'Ut 1.2 p3'!E20+'Ut 1.2 p3'!E32 -> 9056923.531 | G19: 291130.8644 | H19: 8765792.667
A20: =A19+1 -> 5 | C20: Net Cost of Dominion Energy Production | F20: =SUM(F16:F19) -> 231179170.7 | G20: =SUM(G16:G19) -> 7425654.108 | H20: =SUM(H16:H19) -> 223753516.6
A22: =A20+1 -> 6 | C22: Dominion Energy Contract Gas (DEU Exhibit 1.2, p 4) | E22: 2 | F22: ='Ut 1.2 p4'!E25 -> 314789426 | G22: =CHOOSE($E22,G$53,G$56)*$F22 -> 10118769.07 | H22: =CHOOSE($E22,H$53,H$56)*$F22 -> 304670656.9
A24: =A22+1 -> 7 | C24: Injection / Withdrawal Adjustment (DEU Exhibit 1.2, p 5, ln 3) | E24: 2 | F24: ='Ut 1.2 p5'!E21 -> -2081608.375 | G24: =CHOOSE($E24,G$53,G$56)*$F24 -> -66912.3951 | H24: =CHOOSE($E24,H$53,H$56)*$F24 -> -2014695.98
A26: =A24+1 -> 8 | C26: Working Gas Costs (DEU Exhibit 1.2, p 5, ln 17) | E26: 2 | F26: ='Ut 1.2 p5'!I43 -> 2769167.154 | G26: =CHOOSE($E26,G$53,G$56)*$F26 -> 89013.67274 | H26: =CHOOSE($E26,H$53,H$56)*$F26 -> 2680153.481
A29: =A26+1 -> 9 | C29: TOTAL COMMODITY | F29: =SUM(F20:F27) -> 546656155.5 | G29: =SUM(G20:G27) -> 17566524.46 | H29: =SUM(H20:H27) -> 529089631
B31: SNG
A32: =A29+1 -> 10 | C32: Transportation (DEU Exhibit 1.4, p 1, ln 15) | D32: - Demand | E32: 1 | F32: ='Ut 1.4 p1'!M36 -> 68088786 | G32: =CHOOSE($E32,G$53,G$56)*$F32 -> 2128276.567 | H32: =CHOOSE($E32,H$53,H$56)*$F32 -> 65960509.43
A33: =A32+1 -> 11 | C33: Transportation (DEU Exhibit 1.4, p 1, ln 25) | D33: - Commodity | E33: 2 | F33: ='Ut 1.4 p1'!M55 -> 552668 | G33: =CHOOSE($E33,G$53,G$56)*$F33 -> 17765.27228 | H33: =CHOOSE($E33,H$53,H$56)*$F33 -> 534902.7277
A35: =A33+1 -> 12 | C35: Other Transportation (DEU Exhibit 1.4, p 1, ln 26) | E35: 2 | F35: ='Ut 1.4 p1'!M59 -> 2912878 | G35: =CHOOSE($E35,G$53,G$56)*$F35 -> 93633.19534 | H35: =CHOOSE($E35,H$53,H$56)*$F35 -> 2819244.805
A37: =A35+1 -> 13 | C37: Peak Hour Service (DEU Exhibit 1.4, p 1, ln 29) | E37: 1 | F37: ='Ut 1.4 p1'!L65+'Ut 1.4 p1'!L66 -> 3036004 | G37: =CHOOSE($E37,G$53,G$56)*$F37 -> 94897.50882 | H37: =CHOOSE($E37,H$53,H$56)*$F37 -> 2941106.491
A39: =A37+1 -> 14 | C39: Storage (DEU Exhibit 1.4, p 2, ln 5) | D39: - Demand | E39: 1 | F39: ='Ut 1.4 p2'!J20 -> 14025058 | G39: =CHOOSE($E39,G$53,G$56)*$F39 -> 438386.4663 | H39: =CHOOSE($E39,H$53,H$56)*$F39 -> 13586671.53
A40: =A39+1 -> 15 | C40: Storage (DEU Exhibit 1.4, p 2, ln 12) | D40: - Commodity | E40: 2 | F40: ='Ut 1.4 p2'!J29 -> 472678 | G40: =CHOOSE($E40,G$53,G$56)*$F40 -> 15194.02855 | H40: =CHOOSE($E40,H$53,H$56)*$F40 -> 457483.9714
A43: =A40+1 -> 16 | C43: TOTAL SNG | F43: =SUM(F32:F40) -> 89088072 | G43: =SUM(G32:G40) -> 2788153.038 | H43: =SUM(H32:H40) -> 86299918.96
A46: =A43+1 -> 17 | C46: TOTAL GAS COST | F46: =F29+F43 -> 635744227.5 | G46: =G29+G43 -> 20354677.49 | H46: =H29+H43 -> 615389550
A50: 1/ | C50: Allocation Factors | F50: Total | G50: Wyoming | H50: Utah
C52: #1 Peak Day Demand | E52: Dth- | F52: =SUM(G52:H52) -> 1229182 | G52: ='Other Inputs'!$E$147 -> 38421 | H52: ='Other Inputs'!$E$146 -> 1190761
E53: Percent- | F53: =G53+H53 -> 1 | G53: =G52/F52 -> 0.03125737279 | H53: =H52/F52 -> 0.9687426272
C55: #2 Commodity Sales - All | E55: Dth- | F55: =G55+H55 -> 118335278 | G55: ='Ut 1.5 p1'!H21 -> 3803836 | H55: ='Ut 1.5 p1'!H20 -> 114531442
E56: Percent- | F56: =G56+H56 -> 1 | G56: =G55/F55 -> 0.0321445647 | H56: =H55/F55 -> 0.9678554353

Sheet Ut 1.2 p1
H1: Dominion Energy Utah
H2: ='Control Panel'!$F$33 -> Docket No. 21-057-28
H3: DEU Exhibit 1.2
H4: Page 1 of 5
C8: TEST-YEAR ROYALTIES & COMPANY PRODUCTION
B10: COMMODITY
C11: (A) | E11: (B) | G11: (C)
E12: Base Year | G12: Test-Year
E13: Dth | G13: Royalty $
B15: WEXPRO I
A16: =A15+1 -> 1 | C16: Royalties Based on Historical Production | E16: =+'Royalty Detail'!F1395 -> 43419890 | G16: =+'Royalty Detail'!I1395 -> 28180761.96
A18: =A16+1 -> 2 | C18: Test-Year Adjustment for IRP Production Forecast | E18: =+'Royalty Detail'!F1397 -> -1298633.034 | G18: =G16/E16*E18 -> -842850.3252
A21: =A18+1 -> 3 | C21: Total Wexpro I Test-Year Royalties | G21: =G16+G18 -> 27337911.63
A23: =A21+1 -> 4 | C23: Wexpro I Operator Service Fee | G23: ='Monthly Inputs'!S110 -> 164169481.4
A26: =A23+1 -> 5 | C26: Total Wexpro I Company Production (IRP Forecast) | E26: =+'Monthly Inputs'!S7 -> 42121256.97 | G26: =G21+G23 -> 191507393
B30: WEXPRO II
A31: =A26+1 -> 6 | C31: Royalties Based on Historical Production | E31: =+'Royalty Detail'!F1648 -> 11532933 | G31: =+'Royalty Detail'!I1648 -> 7451821.362
A33: =A31+1 -> 7 | C33: Test-Year Adjustment for IRP Production Forecast | E33: =+'Royalty Detail'!F1650 -> 3600583 | G33: =G31/E31*E33 -> 2326459.481
A36: =A33+1 -> 8 | C36: Total Wexpro II Test-Year Royalties | G36: =G31+G33 -> 9778280.843
A38: =A36+1 -> 9 | C38: Wexpro II Operator Service Fee | G38: ='Monthly Inputs'!S112 -> 37918170.22
A41: =A38+1 -> 10 | C41: Total Wexpro II Company Production (IRP Forecast) | E41: ='Monthly Inputs'!S13 -> 15133516 | G41: =G36+G38 -> 47696451.06
B45: TOTAL WEXPRO
A46: =A41+1 -> 11 | C46: Total Wexpro Test-Year Royalties | G46: =G36+G21 -> 37116192.48
A48: =A46+1 -> 12 | C48: Total Wexpro Operator Service Fee | G48: =G38+G23 -> 202087651.6
A51: =A48+1 -> 13 | C51: Total Wexpro Company Production | E51: =E41+E26 -> 57254772.97 | G51: =G46+G48 -> 239203844.1

Sheet Ut 1.2 p2
K1: ='Control Panel'!$F$32 -> Dominion Energy Utah
K2: ='Control Panel'!$F$33 -> Docket No. 21-057-28
K3: DEU Exhibit 1.2
K4: Page 2 of 5
D8: TEST-YEAR OTHER REVENUES 1/
B10: COMMODITY
C11: (A) | E11: (B) | F11: (C) | G11: (D)
C12: Account | G12: =Expenses!P2 -> 12 Months Ending
C13: Number | E13: Account Name | G13: ='Control Panel'!F7 -> 2022-12-31
C14: WEXPRO I
B15: 1 | D15: 483 | E15: Sales for Resale | H15: ='Other Inputs'!F207 -> 1663784.582
B17: =B15+1 -> 2 | D17: 490 | E17: Plant By-Product | H17: ='Other Inputs'!F208 -> 6253868.335
B19: =B17+1 -> 3 | D19: 492 | E19: Gasoline and Oil Sales | F19: ='Other Inputs'!F209 -> 709785.573
B20: =B19+1 -> 4 | D20: 758-1 | E20: Gasoline and Oil Cost | F20: ='Other Inputs'!F213 -> -97462.92719
B21: =B20+1 -> 5 | E21: Net Gasoline and Oil Sales | H21: =F19+F20 -> 612322.6458
B23: =B21+1 -> 6 | D23: 495-1 | E23: Overriding Royalty Revenue | H23: ='Other Inputs'!F210 -> 6072000
B25: =B23+1 -> 7 | D25: 495-2 | E25: Oil Revenue Received from Wexpro | H25: ='Other Inputs'!F211 -> 910698.9697
B27: =B25+1 -> 8 | E27: 3rd Party & Liquids Credits from MLPX Acquisition | H27: ='Other Inputs'!F212 -> 4188000
B30: =1+B27 -> 9 | E30: Total Wexpro I | H30: =SUM(H15:H27) -> 19700674.53
C32: WEXPRO II
B33: =B30+1 -> 10 | D33: 483 | E33: Sales for Resale | H33: ='Other Inputs'!E229 -> 0
B35: =B33+1 -> 11 | D35: 490 | E35: Plant By-Product | H35: ='Other Inputs'!E230 -> 1761820.348
B37: =B35+1 -> 12 | D37: 492 | E37: Gasoline and Oil Sales | F37: ='Other Inputs'!E231 -> 1384793.691
B38: =B37+1 -> 13 | D38: 758-1 | E38: Gasoline and Oil Cost | F38: ='Other Inputs'!E234 -> -157021.2026
B39: =B38+1 -> 14 | E39: Net Gasoline and Oil Sales | H39: =F37+F38 -> 1227772.488
B41: =B39+1 -> 15 | D41: 495-1 | E41: Overriding Royalty Revenue | H41: ='Other Inputs'!E232 -> 0
B43: =B41+1 -> 16 | D43: 495-2 | E43: Oil Revenue Received from Wexpro | H43: ='Other Inputs'!E233 -> 590330.069
B46: =B43+1 -> 17 | E46: Total Wexpro II | H46: =SUM(H33:H43) -> 3579922.905
B48: =1+B46 -> 18 | E48: Sales of Cost-of-Service Gas | H48: ='Other Inputs'!E240 -> 0
B51: =B48+1 -> 19 | E51: Grand Total (Line 9 + Line 17 + Line 18) | H51: =H30+H46+H48 -> 23280597.44
B55: 1/ | D55: Forecasted 12-month test year.

Sheet Ut 1.2 p3
G1: ='Control Panel'!$F$32 -> Dominion Energy Utah
G2: ='Control Panel'!$F$33 -> Docket No. 21-057-28
G3: DEU Exhibit 1.2
G4: Page 3 of 5
B8: SUMMARY OF WEXPRO TEST-YEAR GAS COSTS AND REVENUES CREDITS
B10: COMMODITY
B11: (A) | E11: (B) | F11: (C) | G11: (D)
B12: Component | E12: Costs | F12: Dth 1/ | G12: $ per Dth
B14: WEXPRO I
A15: 1 | C15: Dominion Energy Production 2/ | E15: ='Other Inputs'!D200 -> 191507393
A16: =A15+1 -> 2 | C16: Wexpro I Revenue Sharing Credits 3/ | E16: =-'Ut 1.2 p2'!H30 -> -19700674.53
A17: =A16+1 -> 3 | D17: Net Dominion Energy Production Costs | E17: =E15+E16 -> 171806718.5 | F17: =F25 -> 41285150.02 | G17: =E17/F25 -> 4.161465283
A19: =A17+1 -> 4 | C19: Gathering Demand | E19: ='Other Inputs'!E189 -> 6199000.56
A20: =A19+1 -> 5 | C20: Gathering Commodity | E20: ='Other Inputs'!D189 -> 4132667.04
A21: =A20+1 -> 6 | C21: Gathering Other Charges | E21: =ROUND('Other Inputs'!D181,0) -> 1597428
A22: =A21+1 -> 7 | D22: Gathering | E22: =SUM(E19:E21) -> 11929095.6
A25: =A22+1 -> 8 | B25: Total Wexpro I Cost of Production | E25: =E17+E22 -> 183735814.1 | F25: ='Monthly Inputs'!S7*(1-'Other Inputs'!E274) -> 41285150.02 | G25: =E25/F25 -> 4.450409264
B27: WEXPRO II
A28: =A25+1 -> 9 | C28: Wexpro II Production 4/ | E28: ='Other Inputs'!D222 -> 47696451.06
A29: =A28+1 -> 10 | C29: Wexpro II Revenue Sharing Credits 5/ | E29: =-'Ut 1.2 p2'!H46 -> -3579922.905
A30: =A29+1 -> 11 | D30: Net Cost of Wexpro II Production | E30: =E28+E29 -> 44116528.15 | F30: =F35 -> 14833115.71 | G30: =E30/F35 -> 2.974191601
A32: =A30+1 -> 12 | D32: Gathering | E32: ='Other Inputs'!D192 -> 3326828.491
A35: =A32+1 -> 13 | B35: Total Wexpro II Cost of Production | E35: =SUM(E30:E32) -> 47443356.65 | F35: ='Monthly Inputs'!S13*(1-'Other Inputs'!E274) -> 14833115.71 | G35: =E35/F35 -> 3.198475464
B37: TOTAL WEXPRO
A38: =A35+1 -> 14 | C38: Total Wexpro Production | E38: =E15+E28 -> 239203844.1
A39: =A38+1 -> 15 | C39: Total Wexpro Revenue Sharing Credits | E39: =E16+E29 -> -23280597.44
A40: =A39+1 -> 16 | D40: Net Cost of Total Wexpro Production | E40: =E38+E39 -> 215923246.6 | F40: =F25+F35 -> 56118265.72 | G40: =E40/F45 -> 3.847646463
A42: =A40+1 -> 17 | D42: Total Wexpro Gathering | E42: =E22+E32 -> 15255924.09
A45: =A42+1 -> 18 | B45: Total Wexpro Cost of Production | E45: =SUM(E40:E42) -> 231179170.7 | F45: =F25+F35 -> 56118265.72 | G45: =E45/F45 -> 4.119499556
A47: =A45+1 -> 19 | B47: Sales of Cost-of-Service Gas 6/ | E47: =-'Other Inputs'!E240 -> 0 | F47: ='Other Inputs'!F240 -> 0 | G47: ='Other Inputs'!G240 -> 0
A50: =A47+1 -> 20 | B50: Total Cost-of-Service Production | E50: =E25+E35+E47 -> 231179170.7 | F50: =F25+F35 -> 56118265.72 | G50: =E50/F50 -> 4.119499556
A54: 1/ | B54: Estimated into-pipe volumes used for Wexpro dths.
A55: 2/ | B55: DEU Exhibit 1.2, Page 1, Line 5.
A56: 3/ | B56: DEU Exhibit 1.2, Page 2, Line 9.
A57: 4/ | B57: DEU Exhibit 1.2, Page 1, Line 10.
A58: 5/ | B58: DEU Exhibit 1.2, Page 2, Line 17.
A59: 6/ | B59: DEU Exhibit 1.2, Page 2, Line 18.

Sheet Ut 1.2 p4
H1: ='Control Panel'!$F$32 -> Dominion Energy Utah
H2: ='Control Panel'!$F$33 -> Docket No. 21-057-28
H3: DEU Exhibit 1.2
H4: Page 4 of 5
A8: TEST-YEAR PURCHASED GAS COSTS
B10: COMMODITY
D11: (A) | E11: (B) | F11: (C) | G11: (D)
G12: Cost
C13: Component | E13: Total Cost | F13: Dth | G13: per Dth
B15: 1 | C15: Current Contracts | E15: =ROUND(Calculations!$P$186+Calculations!$P$189-E17-E16,0) -> 133394037
B16: 2 | C16: Hedging Contracts | E16: ='Monthly Inputs'!S97 -> 27564800
B17: 3 | C17: Stabilization Costs | E17: ='Monthly Inputs'!S94 -> 0
B18: =B16+1 -> 3 | D18: Total Current Contracts | E18: =E15+E16+E17 -> 160958837 | F18: =Calculations!$P$185+Calculations!$P$188 -> 25945000 | G18: =E18/F18 -> 6.203848025
B20: =B18+1 -> 4 | C20: Forecast Spot | E20: =ROUND(Calculations!P183,0) -> 141532394 | F20: =Calculations!$P$182 -> 35409570 | G20: =E20/F20 -> 3.997009678
B22: =B20+1 -> 5 | C22: Future Contracts | E22: =ROUND(Calculations!P192,0) -> 12298195 | F22: =Calculations!P191 -> 3360466 | G22: =E22/F22 -> 3.659669522
B25: =B22+1 -> 6 | C25: Total Gas Purchased | E25: =E18+E20+E22 -> 314789426 | F25: =F18+F20+F22 -> 64715036 | G25: =E25/F25 -> 4.864239371

Sheet Ut 1.2 p5
K1: ='Control Panel'!$F$32 -> Dominion Energy Utah
K2: ='Control Panel'!$F$33 -> Docket No. 21-057-28
K3: DEU Exhibit 1.2
K4: Page 5 of 5
B8: TEST-YEAR STORAGE GAS & WORKING GAS CHARGES
B10: COMMODITY
C11: (A) | E11: (B) | G11: (C) | I11: (D)
I12: Average
E13: Total Costs | G13: Dth | I13: Rate
B15: STORAGE GAS 1/
B17: 1 | C17: Withdrawals | E17: =G17*I17 -> 54951749.37 | G17: ='Monthly Inputs'!S37 -> 14298791 | I17: ='Ut Storage'!L27 -> 3.843104594
B18: 2 | C18: Injections | E18: =G18*I18 -> -57033357.75 | G18: =-'Monthly Inputs'!S29 -> -14325740 | I18: ='Ut Storage'!K27 -> 3.981180571
B21: =B18+1 -> 3 | C21: Storage Adjustment | E21: =E17+E18 -> -2081608.375
B24: WORKING GAS CHARGES
D26: Month | E26: Amount | G26: Pre-Tax Return % | I26: Total
B28: =B21+1 -> 4 | D28: =+'Rate Base'!D4 -> 2020-10-31 | E28: =+'Rate Base'!D11 -> 49932603.18
B29: =B28+1 -> 5 | D29: =+'Rate Base'!E4 -> 2020-11-30 | E29: =+'Rate Base'!E11 -> 52970477.48
B30: 6 | D30: =+'Rate Base'!F4 -> 2020-12-31 | E30: =+'Rate Base'!F11 -> 45826911.25
B31: 7 | D31: =+'Rate Base'!G4 -> 2021-01-31 | E31: =+'Rate Base'!G11 -> 33652911.52
B32: 8 | D32: =+'Rate Base'!H4 -> 2021-02-28 | E32: =+'Rate Base'!H11 -> 21131351.05
B33: 9 | D33: =+'Rate Base'!I4 -> 2021-03-31 | E33: =+'Rate Base'!I11 -> 14010245.2
B34: 10 | D34: =+'Rate Base'!J4 -> 2021-04-30 | E34: =+'Rate Base'!J11 -> 11574315.84
B35: 11 | D35: =+'Rate Base'!K4 -> 2021-05-31 | E35: =+'Rate Base'!K11 -> 17495294.93
B36: 12 | D36: =+'Rate Base'!L4 -> 2021-06-30 | E36: =+'Rate Base'!L11 -> 23415459.21
B37: 13 | D37: =+'Rate Base'!M4 -> 2021-07-31 | E37: =+'Rate Base'!M11 -> 30738132.55
B38: 14 | D38: =+'Rate Base'!N4 -> 2021-08-31 | E38: =+'Rate Base'!N11 -> 35307557.59
B39: 15 | D39: =+'Rate Base'!O4 -> 2021-09-30 | E39: =+'Rate Base'!O11 -> 37462513.81
B40: 16 | D40: =+'Rate Base'!P4 -> 2021-10-31 | E40: =+'Rate Base'!P11 -> 49638760.36
B43: =B40+1 -> 17 | C43: 12-Month Average 2/ | E43: =(SUM(E29:E39)+E28/2+E40/2)/12 -> 31114237.68 | F43: x | G43: ='Other Inputs'!E269 -> 0.089 | H43: = | I43: =E43*G43 -> 2769167.154
B48: 1/ | C48: Dominion Energy planned volumes.
B49: 2/ | C49: (1/2 of Line 4 + sum of Lines 5-15 + 1/2 of Line 16) / 12

Sheet Ut 1.3 Redacted
I1: REDACTED
P29: DEU Exhibit 1.3 | Q29: =CONCATENATE("Docket No. ",'Control Panel'!F5) -> Docket No. 21-057-28 | R29: Dominion Energy Utah

Sheet Ut 1.4 p1
N1: ='Control Panel'!$F$32 -> Dominion Energy Utah
N2: ='Control Panel'!$F$33 -> Docket No. 21-057-28
N3: DEU Exhibit 1.4
N4: Page 1 of 4
B8: TEST-YEAR TRANSPORTATION CHARGES
B10: SNG
B11: (A) | D11: (B) | F11: (C) | H11: (D) | J11: (E) | L11: (F) | M11: (G)
D12: Fctr | F12: Dth | H12: Months/Days | J12: Rate | M12: Total Costs
B14: TRANSPORTATION DEMAND
B16: Dominion Energy Questar Pipeline Company Demand
A17: 1 | B17: T-1 Transportation - Yearly | F17: ='Other Inputs'!D28+'Other Inputs'!D29+'Other Inputs'!D30 -> 840902 | G17: x | H17: ='Other Inputs'!E28 -> 12 | I17: x | J17: ='Other Inputs'!F28 -> 5.28804 | K17: = | L17: =ROUND(F17*H17*J17,0) -> 53360681
A18: =A17+1 -> 2 | B18: T-1 Transportation - Yearly | F18: ='Other Inputs'!D32 -> 100000 | G18: x | H18: ='Other Inputs'!E32 -> 12 | I18: x | J18: ='Other Inputs'!F32 -> 5.28804 | K18: = | L18: =ROUND(F18*H18*J18,0) -> 6345648
A19: =A18+1 -> 3 | B19: T-1 Transportation Nov-Mar | F19: ='Other Inputs'!D31 -> 75000 | G19: x | H19: ='Other Inputs'!E31 -> 5 | I19: x | J19: ='Other Inputs'!F31 -> 6.80887 | K19: = | L19: =ROUND(F19*H19*J19,0) -> 2553326
A20: =A19+1 -> 4 | B20: No-Notice Transportation | F20: ='Other Inputs'!D35 -> 203542 | G20: x | H20: ='Other Inputs'!E35 -> 12 | I20: x | J20: ='Other Inputs'!F35 -> 0.86753 | K20: = | L20: =ROUND(F20*H20*J20,0) -> 2118945
A21: =A20+1 -> 5 | B21: Capacity Release Credits | L21: =-ROUND('Other Inputs'!E280,0) -> -1403918
A22: =A21+1 -> 6 | C22: Total | L22: =SUM(L17:L21) -> 62974682
B24: Dominion Energy Overthrust Pipeline, LLC Demand
A25: =A22+1 -> 7 | B25: January - December | F25: ='Other Inputs'!D38 -> 8542 | G25: x | H25: ='Other Inputs'!E38 -> 12 | I25: x | J25: ='Other Inputs'!F38 -> 1.62 | K25: = | L25: =ROUND(F25*H25*J25,0) -> 166056
B27: Kern River Demand
A28: =A25+1 -> 8 | B28: January - December | F28: ='Other Inputs'!D61 -> 1885 | G28: x | H28: ='Other Inputs'!E61 -> 12 | I28: x | J28: ='Other Inputs'!F61 -> 5.487166667 | K28: = | L28: =ROUND(F28*H28*J28,0) -> 124120
A29: =A28+1 -> 9 | B29: January - December | F29: ='Other Inputs'!D59 -> 33000 | G29: x | H29: ='Other Inputs'!E59 -> 12 | I29: x | J29: ='Other Inputs'!F59 -> 3.172933333 | K29: = | L29: 1256482
A30: =A29+1 -> 10 | B30: November - March | F30: ='Other Inputs'!D60 -> 50000 | G30: x | H30: ='Other Inputs'!E60 -> 5 | I30: x | J30: =J29 -> 3.172933333 | K30: = | L30: 793233
A31: 11 | B31: December - February | F31: ='Other Inputs'!D65 -> 56925 | G31: x | H31: ='Other Inputs'!E65 -> 3 | I31: x | J31: ='Other Inputs'!F65 -> 8.7 | K31: = | L31: 1485743
A32: 12 | B32: November & March | F32: ='Other Inputs'!D67 -> 6000 | G32: x | H32: ='Other Inputs'!E67 -> 2 | I32: x | J32: ='Other Inputs'!F67 -> 8.845 | K32: = | L32: 106140
A33: 13 | B33: November - March | F33: ='Other Inputs'!D69 -> 27000 | G33: x | H33: ='Other Inputs'!E69 -> 5 | I33: x | J33: ='Other Inputs'!F69 -> 8.758 | K33: = | L33: 1182330
A34: 14 | C34: Total | L34: =SUM(L28:L33) -> 4948048
A36: =A34+1 -> 15 | B36: Total Transportation Demand (SNG) | M36: =L22+L25+L34 -> 68088786
B39: TRANSPORTATION COMMODITY
A41: =A36+1 -> 16 | B41: Total ACA | F41: =Calculations!$P$173 -> 133504357.8 | I41: x | J41: ='Other Inputs'!F45 -> 0.0012 | K41: = | L41: =ROUND(F41*J41,0) -> 160205
A43: =A41+1 -> 17 | B43: DEQP Commodity (SNG) | F43: ='Ut 1.4 p1'!F41-(D48*F48*H48)-(D49*F49*H49)-(D50*F50*H50)-(D51*F51*H51)-(D52*F52*H52)-F45 -> 107771348.5 | I43: x | J43: ='Other Inputs'!F44 -> 0.00267 | K43: = | L43: =ROUND(F43*J43,0) -> 287750
A45: =A43+1 -> 18 | B45: DEOTP Commodity | F45: ='Other Inputs'!D38*365 -> 3117830 | I45: x | J45: ='Other Inputs'!F39 -> 0.00167 | K45: = | L45: =ROUND(F45*J45,0) -> 5207
B47: Kern River Commodity
A48: =A45+1 -> 19 | B48: January - December | D48: ='Other Inputs'!C73 -> 0.757645847 | E48: x | F48: ='Other Inputs'!D73 -> 34885 | G48: x | H48: ='Other Inputs'!E73 -> 365 | I48: x | J48: ='Other Inputs'!F73 -> 0.0044 | K48: = | L48: =ROUND(D48*F48*H48*J48,0) -> 42447
A49: =A48+1 -> 20 | B49: November - March | D49: ='Other Inputs'!C74 -> 0.757645847 | E49: x | F49: ='Other Inputs'!D74 -> 50000 | G49: x | H49: ='Other Inputs'!E74 -> 151 | I49: x | J49: ='Other Inputs'!F74 -> 0.0044 | K49: = | L49: =ROUND(D49*F49*H49*J49,0) -> 25169
A50: =A49+1 -> 21 | B50: November & March | D50: ='Other Inputs'!C78 -> 0.757645847 | E50: x | F50: ='Other Inputs'!D78 -> 6000 | G50: x | H50: ='Other Inputs'!E78 -> 61 | I50: x | J50: ='Other Inputs'!F78 -> 0.0044 | K50: = | L50: =ROUND(D50*F50*H50*J50,0) -> 1220
A51: =A50+1 -> 22 | B51: December - February | D51: ='Other Inputs'!C77 -> 0.757645847 | E51: x | F51: ='Other Inputs'!D77 -> 56925 | G51: x | H51: ='Other Inputs'!E77 -> 90 | I51: x | J51: ='Other Inputs'!F77 -> 0.0044 | K51: = | L51: =ROUND(D51*F51*H51*J51,0) -> 17079
A52: =A51+1 -> 23 | B52: November - March | D52: ='Other Inputs'!C78 -> 0.757645847 | E52: x | F52: ='Other Inputs'!D80 -> 27000 | G52: x | H52: ='Other Inputs'!E80 -> 151 | I52: x | J52: ='Other Inputs'!F80 -> 0.0044 | K52: = | L52: =ROUND(D52*F52*H52*J52,0) -> 13591
A53: =A52+1 -> 24 | C53: Total (SNG) | L53: =SUM(L48:L52) -> 99506
A55: =A53+1 -> 25 | B55: Total Transportation Commodity | M55: =L53+L43+L41+L45 -> 552668
B58: OTHER CHARGES
A59: =A55+1 -> 26 | B59: Other Transportation Charges | M59: =ROUND('Other Inputs'!$D$183,0) -> 2912878
B64: PEAK HOUR SERVICE
A65: =A59+1 -> 27 | B65: Kern River: Mid November - Mid February | F65: ='Other Inputs'!D20 -> 28752 | G65: x | H65: ='Other Inputs'!E20 -> 3 | I65: x | J65: ='Other Inputs'!F20 -> 16.0908 | K65: = | L65: =ROUND(F65*H65*J65,0) -> 1387928
A66: =A65+1 -> 28 | B66: DEQP: Mid November - Mid February | F66: ='Other Inputs'!D23 -> 74666.66667 | G66: x | H66: ='Other Inputs'!E23 -> 3 | I66: x | J66: ='Other Inputs'!F23 -> 7.357482143 | K66: = | L66: =ROUND(F66*H66*J66,0) -> 1648076
A67: =A66+1 -> 29 | C67: Total Peak Hour Service | M67: =SUM(L65:L66) -> 3036004
A70: =A67+1 -> 30 | B70: TOTAL TRANSPORTATION AND OTHER CHARGES | M70: =SUM(M13:M68) -> 74590336

Sheet Ut 1.4 p2
L1: ='Control Panel'!$F$32 -> Dominion Energy Utah
L2: ='Control Panel'!$F$33 -> Docket No. 21-057-28
L3: DEU Exhibit 1.4
L4: Page 2 of 4
B7: TEST-YEAR STORAGE CHARGES
B9: SNG
B10: (A) | D10: (B) | F10: (C) | H10: (D) | J10: (E) | K10: (F)
B12: STORAGE CHARGES
B14: Component | D14: Dth | F14: Months | H14: Rate | K14: Total Costs
B15: Storage Demand
A16: 1 | B16: Aquifer Peaking Demand | D16: ='Other Inputs'!E168 -> 184625 | E16: x | F16: 12 | G16: x | H16: ='Other Inputs'!E14 -> 2.87375 | I16: = | J16: =ROUND(D16*F16*H16,0) -> 6366793
A17: =A16+1 -> 2 | B17: Spire Demand | D17: ='Other Inputs'!E169 -> 0 | E17: x | F17: 0 | G17: x | H17: ='Other Inputs'!E15 -> 0 | I17: = | J17: =ROUND(D17*F17*H17,0) -> 0
A18: =A17+1 -> 3 | B18: Clay Basin Demand | D18: ='Other Inputs'!E170 -> 111827 | E18: x | F18: 12 | G18: x | H18: ='Other Inputs'!E16 -> 2.85338 | I18: = | J18: =ROUND(D18*F18*H18,0) -> 3829019
A19: =A18+1 -> 4 | B19: Clay Basin Capacity | D19: ='Other Inputs'!E171 -> 13419000 | E19: x | F19: 12 | G19: x | H19: ='Other Inputs'!E17 -> 0.02378 | I19: = | J19: =ROUND(D19*F19*H19,0) -> 3829246
A20: =A19+1 -> 5 | C20: Total Demand Charges | J20: =SUM(J16:J19) -> 14025058
B22: Storage Commodity 1/
A23: =A20+1 -> 6 | B23: Aquifer Peaking Injections | D23: =(+'Monthly Inputs'!S24+'Monthly Inputs'!S26+'Monthly Inputs'!S27) -> 1325737 | F23: x | H23: ='Other Inputs'!E6 -> 0.03872 | I23: = | J23: =ROUND(D23*H23,0) -> 51333
A24: =A23+1 -> 7 | B24: Aquifer Peaking Withdrawals | D24: =(+'Monthly Inputs'!S32+'Monthly Inputs'!S34+'Monthly Inputs'!S35) -> 1449684 | F24: x | H24: ='Other Inputs'!E7 -> 0.03872 | I24: = | J24: 56132
A25: 8 | B25: Spire Injections | D25: ='Monthly Inputs'!S28 -> 0 | F25: x | H25: ='Other Inputs'!E8 -> 0 | I25: = | J25: 0
A26: 9 | B26: Spire Withdrawals | D26: ='Monthly Inputs'!S36 -> 0 | F26: x | H26: ='Other Inputs'!E9 -> 0 | I26: = | J26: 0
A27: 10 | B27: Clay Basin Injections | D27: ='Monthly Inputs'!S25 -> 13000003 | F27: x | H27: ='Other Inputs'!E10 -> 0.01049 | I27: = | J27: 136370
A28: 11 | B28: Clay Basin Withdrawals | D28: ='Monthly Inputs'!S33 -> 12849107 | F28: x | H28: ='Other Inputs'!E11 -> 0.01781 | I28: = | J28: 228843
A29: 12 | C29: Total Commodity Charges | J29: =SUM(J23:J28) -> 472678
A31: =A29+1 -> 13 | B31: Total Storage Charges | K31: =J20+J29 -> 14497736
A39: 1/ | B39: Dominion Energy planned volumes.

Sheet Ut 1.4 p3
N1: ='Control Panel'!$F$32 -> Dominion Energy Utah
N2: ='Control Panel'!$F$33 -> Docket No. 21-057-28
N3: DEU Exhibit 1.4
N4: Page 3 of 4
B9: SUPPLIER NON-GAS COST CLASS ALLOCATION
A12: SNG | C12: (A) | D12: (B) | E12: (C) | F12: (D) | G12: (E) | H12: (F) | I12: (G) | J12: (H) | K12: (I) | L12: (J) | M12: (K) | N12: (L)
C13: Description | D13: Total UT & WY SNG | E13: Allocation Factor 1/ | F13: UT SNG | G13: COS Factor 2/ | H13: GS | I13: FS | J13: IS | K13: TSF | L13: TBF | M13: NGV | N13: UT SNG Total | O13: Check
B14: Transportation | O14: =N14-F14 -> 0
A15: 1 | C15: DEQPC T-1 Transportation: Yearly | D15: =+'Ut 1.4 p1'!$L$17+'Ut 1.4 p1'!$L$18 -> 59706329 | E15: 1 | F15: ='Ut 1.1 p2'!$H$53*$D15 -> 57840066.02 | G15: Firm Sales | H15: =$D$59*$F15 -> 56279968.32 | I15: =$E$59*$F15 -> 1424257.263 | J15: =$F$59*$F15 -> 0 | K15: =$G$59*$F15 -> 0 | L15: =$H$59*$F15 -> 0 | M15: =$I$59*$F15 -> 135840.4351 | N15: =SUM(H15:M15) -> 57840066.02 | O15: =N15-F15 -> 0
A16: 2 | C16: DEQPC T-1 Transportation: November - March | D16: =+'Ut 1.4 p1'!$L$19 -> 2553326 | E16: 1 | F16: ='Ut 1.1 p2'!$H$53*$D16 -> 2473515.737 | G16: Firm Sales | H16: 2406798.555 | I16: 60908.00022 | J16: 0 | K16: 0 | L16: 0 | M16: 5809.181717 | N16: 2473515.737 | O16: 0
A17: 3 | C17: DEQPC No-Notice Transportation | D17: =+'Ut 1.4 p1'!$L$20 -> 2118945 | E17: 1 | F17: ='Ut 1.1 p2'!$H$53*$D17 -> 2052712.346 | G17: Firm Sales | H17: 1997345.331 | I17: 50546.11222 | J17: 0 | K17: 0 | L17: 0 | M17: 4820.902836 | N17: 2052712.346 | O17: 0
A18: 4 | C18: Capacity Release Credits | D18: =+'Ut 1.4 p1'!$L$21 -> -1403918 | E18: 1 | F18: ='Ut 1.1 p2'!$H$53*$D18 -> -1360035.212 | G18: Firm Sales | H18: -1323351.509 | I18: -33489.58881 | J18: 0 | K18: 0 | L18: 0 | M18: -3194.114178 | N18: -1360035.212 | O18: 0
A19: 5 | C19: DEOTP Transportation: Yearly | D19: =+'Ut 1.4 p1'!L25 -> 166056 | E19: 1 | F19: ='Ut 1.1 p2'!$H$53*$D19 -> 160865.5257 | G19: Firm Sales | H19: 156526.5622 | I19: 3961.162376 | J19: 0 | K19: 0 | L19: 0 | M19: 377.8011422 | N19: =SUM(H19:M19) -> 160865.5257 | O19: =N19-F19 -> 0
A20: 6 | C20: Kern River Transportation: Yearly | D20: =+'Ut 1.4 p1'!$L$28+'Ut 1.4 p1'!L29 -> 1380602 | E20: 1 | F20: ='Ut 1.1 p2'!$H$53*$D20 -> 1337448.009 | G20: Firm Sales | H20: 1301373.542 | I20: 32933.40017 | J20: 0 | K20: 0 | L20: 0 | M20: 3141.066944 | N20: 1337448.009 | O20: 0
A21: 7 | C21: Kern River Transportation: November - March | D21: =+'Ut 1.4 p1'!$L$30+'Ut 1.4 p1'!$L$33 -> 1975563 | E21: 1 | F21: ='Ut 1.1 p2'!$H$53*$D21 -> 1913812.091 | G21: Firm Sales | H21: 1862191.579 | I21: 47125.82398 | J21: 0 | K21: 0 | L21: 0 | M21: 4494.688285 | N21: 1913812.091 | O21: 0
A22: 8 | C22: Kern River Transportation: December - February | D22: =+'Ut 1.4 p1'!$L$31 -> 1485743 | E22: 1 | F22: ='Ut 1.1 p2'!$H$53*$D22 -> 1439302.577 | G22: Firm Sales | H22: 1400480.826 | I22: 35441.47319 | J22: 0 | K22: 0 | L22: 0 | M22: 3380.277752 | N22: 1439302.577 | O22: 0
A23: 9 | C23: Kern River Transportation: November & March | D23: =+'Ut 1.4 p1'!$L$32 -> 106140 | E23: 1 | F23: ='Ut 1.1 p2'!$H$53*$D23 -> 102822.3425 | G23: Firm Sales | H23: 100048.9552 | I23: 2531.903542 | J23: 0 | K23: 0 | L23: 0 | M23: 241.4836756 | N23: 102822.3425 | O23: 0
A24: 10 | C24: ACA (FERC) | D24: =+'Ut 1.4 p1'!$L$41 -> 160205 | E24: 2 | F24: ='Ut 1.1 p2'!$H$56*$D24 -> 155055.28 | G24: Firm Sales | H24: 150873.034 | I24: 3818.090536 | J24: 0 | K24: 0 | L24: 0 | M24: 364.1554748 | N24: 155055.28 | O24: 0
A25: 11 | C25: DEQPC Commodity | D25: =+'Ut 1.4 p1'!$L$43 -> 287750 | E25: 2 | F25: ='Ut 1.1 p2'!$H$56*$D25 -> 278500.4015 | G25: Firm Sales | H25: 270988.518 | I25: 6857.810629 | J25: 0 | K25: 0 | L25: 0 | M25: 654.0728309 | N25: 278500.4015 | O25: 0
A26: 12 | C26: DEOTP Commodity | D26: =+'Ut 1.4 p1'!L45 -> 5207 | E26: 2 | F26: ='Ut 1.1 p2'!$H$56*$D26 -> 5039.623252 | G26: Firm Sales | H26: 4903.691446 | I26: 124.0959859 | J26: 0 | K26: 0 | L26: 0 | M26: 11.83582009 | N26: =SUM(H26:M26) -> 5039.623252 | O26: =N26-F26 -> 0
A27: 13 | C27: Kern River Commodity | D27: =+'Ut 1.4 p1'!$L$53 -> 99506 | E27: 2 | F27: ='Ut 1.1 p2'!$H$56*$D27 -> 96307.42294 | G27: Firm Sales | H27: 93709.76013 | I27: 2371.479772 | J27: 0 | K27: 0 | L27: 0 | M27: 226.1830447 | N27: 96307.42294 | O27: 0
A28: 14 | C28: Other Transportation Charges | D28: =+'Ut 1.4 p1'!$M$59 -> 2912878 | E28: 2 | F28: ='Ut 1.1 p2'!$H$56*$D28 -> 2819244.805 | G28: Firm Sales | H28: 2743202.407 | I28: 69421.25355 | J28: 0 | K28: 0 | L28: 0 | M28: 6621.144603 | N28: 2819244.805 | O28: 0
A29: 15 | C29: Total Transportation | D29: =SUM(D15:D28) -> 71554332 | F29: =SUM(F15:F28) -> 69314656.97 | H29: =SUM(H15:H28) -> 67445059.57 | I29: 1706808.28 | J29: 0 | K29: 0 | L29: 0 | M29: 162789.1151 | N29: =SUM(N15:N28) -> 69314656.97 | O29: 0
B31: Peak Hour
A32: 16 | C32: DEQPC Peak Hour Service | D32: =+'Ut 1.4 p1'!L66 -> 1648076 | E32: 1 | F32: ='Ut 1.1 p2'!$H$53*$D32 -> 1596561.474 | G32: Design Day | H32: =$D$58*$F32 -> 1280411.561 | I32: =$E$58*$F32 -> 18258.14309 | J32: =$F$58*$F32 -> 0 | K32: =$G$58*$F32 -> 232876.5302 | L32: =$H$58*$F32 -> 64208.20855 | M32: =$I$58*$F32 -> 807.0307592 | N32: =SUM(H32:M32) -> 1596561.474 | O32: =N32-F32 -> 0
A33: 17 | C33: Kern River Peak Hour Service | D33: =+'Ut 1.4 p1'!L65 -> 1387928 | E33: 1 | F33: ='Ut 1.1 p2'!$H$53*$D33 -> 1344545.017 | G33: Design Day | H33: =$D$58*$F33 -> 1078299.215 | I33: =$E$58*$F33 -> 15376.10403 | J33: =$F$58*$F33 -> 0 | K33: =$G$58*$F33 -> 196117.0825 | L33: =$H$58*$F33 -> 54072.97387 | M33: =$I$58*$F33 -> 679.6413439 | N33: =SUM(H33:M33) -> 1344545.017 | O33: =N33-F33 -> 0
A34: 18 | C34: Total Peak Hour | D34: =SUM(D32:D33) -> 3036004 | F34: =SUM(F32:F33) -> 2941106.491 | H34: =SUM(H32:H33) -> 2358710.777 | I34: 33634.24711 | J34: 0 | K34: 428993.6126 | L34: 118281.1824 | M34: 1486.672103 | N34: 2941106.491
B36: Storage
A37: 19 | C37: Aquifer Peaking Storage Demand | D37: =+'Ut 1.4 p2'!$J$16 -> 6366793 | E37: 1 | F37: ='Ut 1.1 p2'!$H$53*$D37 -> 6167783.778 | G37: Firm Sales | H37: =$D$59*$F37 -> 6001422.535 | I37: =$E$59*$F37 -> 151875.8785 | J37: =$F$59*$F37 -> 0 | K37: =$G$59*$F37 -> 0 | L37: =$H$59*$F37 -> 0 | M37: =$I$59*$F37 -> 14485.36438 | N37: =SUM(H37:M37) -> 6167783.778 | O37: =N37-F37 -> 0
A38: 20 | C38: Spire Storage Demand | D38: =+'Ut 1.4 p2'!$J$17 -> 0 | E38: 1 | F38: ='Ut 1.1 p2'!$H$53*$D38 -> 0 | G38: Firm Sales | H38: 0 | I38: 0 | J38: 0 | K38: 0 | L38: 0 | M38: 0 | N38: 0 | O38: 0
A39: 21 | C39: Clay Basin Storage Demand | D39: =+'Ut 1.4 p2'!$J$18 -> 3829019 | E39: 1 | F39: ='Ut 1.1 p2'!$H$53*$D39 -> 3709333.926 | G39: Firm Sales | H39: 3609283.498 | I39: 91338.86158 | J39: 0 | K39: 0 | L39: 0 | M39: 8711.565687 | N39: 3709333.926 | O39: 0
A40: 22 | C40: Clay Basin Storage Capacity | D40: =+'Ut 1.4 p2'!$J$19 -> 3829246 | E40: 1 | F40: ='Ut 1.1 p2'!$H$53*$D40 -> 3709553.83 | G40: Firm Sales | H40: 3609497.472 | I40: 91344.27652 | J40: 0 | K40: 0 | L40: 0 | M40: 8712.082145 | N40: 3709553.83 | O40: 0
A41: 23 | C41: Aquifer Peaking Injections Storage Commodity | D41: =+'Ut 1.4 p2'!$J$23 -> 51333 | E41: 2 | F41: ='Ut 1.1 p2'!$H$56*$D41 -> 49682.92306 | G41: Firm Sales | H41: 48342.84482 | I41: 1223.395284 | J41: 0 | K41: 0 | L41: 0 | M41: 116.6829561 | N41: 49682.92306 | O41: 0
A42: 24 | C42: Aquifer Peaking Withdrawals Storage Commodity | D42: =+'Ut 1.4 p2'!$J$24 -> 56132 | E42: 2 | F42: ='Ut 1.1 p2'!$H$56*$D42 -> 54327.66129 | G42: Firm Sales | H42: 52862.30233 | I42: 1337.767598 | J42: 0 | K42: 0 | L42: 0 | M42: 127.591368 | N42: 54327.66129 | O42: 0
A43: 25 | C43: Spire Injections Storage Commodity | D43: =+'Ut 1.4 p2'!$J$25 -> 0 | E43: 2 | F43: ='Ut 1.1 p2'!$H$56*$D43 -> 0 | G43: Firm Sales | H43: 0 | I43: 0 | J43: 0 | K43: 0 | L43: 0 | M43: 0 | N43: 0 | O43: 0
A44: 26 | C44: Spire Withdrawals Storage Commodity | D44: =+'Ut 1.4 p2'!$J$26 -> 0 | E44: 2 | F44: ='Ut 1.1 p2'!$H$56*$D44 -> 0 | G44: Firm Sales | H44: 0 | I44: 0 | J44: 0 | K44: 0 | L44: 0 | M44: 0 | N44: 0 | O44: 0
A45: 27 | C45: Clay Basin Injections Storage Commodity | D45: =+'Ut 1.4 p2'!$J$27 -> 136370 | E45: 2 | F45: ='Ut 1.1 p2'!$H$56*$D45 -> 131986.4457 | G45: Firm Sales | H45: 128426.4264 | I45: 3250.042174 | J45: 0 | K45: 0 | L45: 0 | M45: 309.977105 | N45: 131986.4457 | O45: 0
A46: 28 | C46: Clay Basin Withdrawals Storage Commodity | D46: =+'Ut 1.4 p2'!$J$28 -> 228843 | E46: 2 | F46: ='Ut 1.1 p2'!$H$56*$D46 -> 221486.9414 | G46: Firm Sales | H46: =$D$59*$F46 -> 215512.8599 | I46: 5453.90776 | J46: 0 | K46: 0 | L46: 0 | M46: 520.1737232 | N46: 221486.9414 | O46: 0
A47: 29 | C47: Total Storage | D47: =SUM(D37:D46) -> 14497736 | F47: =SUM(F37:F46) -> 14044155.51 | H47: =SUM(H37:H46) -> 13665347.94 | I47: 345824.1294 | J47: 0 | K47: 0 | L47: 0 | M47: 32983.43736 | N47: 14044155.51
A49: 30 | C49: Supplier Non-Gas Costs | D49: =+D29+D34+D47 -> 89088072 | F49: =+F29+F34+F47 -> 86299918.96 | H49: =+H29+H34+H47 -> 83469118.29 | I49: 2086266.657 | J49: 0 | K49: 428993.6126 | L49: 118281.1824 | M49: 197259.2245 | N49: 86299918.96 | O49: =N49-F49 -> 0
H51: =H49/$F$49 -> 0.9671981074 | I51: =I49/$F$49 -> 0.02417460737 | J51: 0 | K51: 0.004970961941 | L51: 0.001370582775 | M51: 0.002285740553 | N51: 1
B55: 1/ | C55: Allocations Factors, DEU Exhibit 1.1 page 2, footnote
B57: 2/ | C57: Cost-of-Service Allocation Factor Docket No. 19-057-02 | D57: GS | E57: FS | F57: IS | G57: TS | H57: TBF | I57: NGV | J57: Total
C58: 210 Design Day | D58: =+'Other Inputs'!C309 -> 0.8019807457 | E58: =+'Other Inputs'!D309 -> 0.01143591611 | F58: =+'Other Inputs'!E309 -> 0 | G58: =+'Other Inputs'!F309 -> 0.1458612988 | H58: =+'Other Inputs'!G309 -> 0.04021655889 | I58: =+'Other Inputs'!H309 -> 0.000505480542 | J58: =SUM(D58:I58) -> 1
C59: 240 Firm Sales | D59: =+'Other Inputs'!C310 -> 0.9730273873 | E59: =+'Other Inputs'!D310 -> 0.02462406012 | F59: =+'Other Inputs'!E310 -> 0 | G59: =+'Other Inputs'!F310 -> 0 | H59: =+'Other Inputs'!G310 -> 0 | I59: =+'Other Inputs'!H310 -> 0.00234855256 | J59: =SUM(D59:I59) -> 1

Sheet Ut 1.4 p4
I1: ='Control Panel'!$F$32 -> Dominion Energy Utah
I2: ='Control Panel'!$F$33 -> Docket No. 21-057-28
I3: DEU Exhibit 1.4
I4: Page 4 of 4
C6: SUPPLIER NON-GAS COST SUMMARY
A9: SNG | C9: (A) | D9: (B) | E9: (C) | F9: (D) | G9: (E) | H9: (F) | I9: (G)
B10: Description | C10: GS | D10: FS | E10: IS | F10: TS | G10: TBF | H10: NGV | I10: Total
A13: 1 | B13: Transportation - Demand | C13: =SUM('Ut 1.4 p3'!H15:H23) -> 64181382.16 | D13: =SUM('Ut 1.4 p3'!I15:I23) -> 1624215.55 | E13: =SUM('Ut 1.4 p3'!J15:J23) -> 0 | F13: =SUM('Ut 1.4 p3'!K15:K23) -> 0 | G13: =SUM('Ut 1.4 p3'!L15:L23) -> 0 | H13: =SUM('Ut 1.4 p3'!M15:M23) -> 154911.7233 | I13: =SUM(C13:H13) -> 65960509.43
A14: =+A13+1 -> 2 | B14: Transportation - Commodity | C14: =SUM('Ut 1.4 p3'!H24:H27) -> 520475.0036 | D14: =SUM('Ut 1.4 p3'!I24:I27) -> 13171.47692 | E14: =SUM('Ut 1.4 p3'!J24:J27) -> 0 | F14: =SUM('Ut 1.4 p3'!K24:K27) -> 0 | G14: =SUM('Ut 1.4 p3'!L24:L27) -> 0 | H14: =SUM('Ut 1.4 p3'!M24:M27) -> 1256.247171 | I14: =SUM(C14:H14) -> 534902.7277
A16: =+A14+1 -> 3 | B16: Other Transportation | C16: =+'Ut 1.4 p3'!H28 -> 2743202.407 | D16: =+'Ut 1.4 p3'!I28 -> 69421.25355 | E16: =+'Ut 1.4 p3'!J28 -> 0 | F16: =+'Ut 1.4 p3'!K28 -> 0 | G16: =+'Ut 1.4 p3'!L28 -> 0 | H16: =+'Ut 1.4 p3'!M28 -> 6621.144603 | I16: =SUM(C16:H16) -> 2819244.805
A18: =+A16+1 -> 4 | B18: Peak Hour Service | C18: =SUM('Ut 1.4 p3'!H32:H33) -> 2358710.777 | D18: =SUM('Ut 1.4 p3'!I32:I33) -> 33634.24711 | E18: =SUM('Ut 1.4 p3'!J32:J33) -> 0 | F18: =SUM('Ut 1.4 p3'!K32:K33) -> 428993.6126 | G18: =SUM('Ut 1.4 p3'!L32:L33) -> 118281.1824 | H18: =SUM('Ut 1.4 p3'!M32:M33) -> 1486.672103 | I18: =SUM(C18:H19) -> 2941106.491
A19: 5 | B19: TBF Adjustment 1/ | C19: =+C18/($C$18+$D$18+$F$18+$H$18)*-$G$19 -> 49416.99701 | D19: =+D18/($C$18+$D$18+$F$18+$H$18)*-$G$19 -> 704.6660851 | E19: =+E18/($C$18+$D$18+$F$18+$H$18)*$G$18 -> 0 | F19: =+F18/($C$18+$D$18+$F$18+$H$18)*-$G$19 -> 8987.781071 | G19: =+-G18*0.5 -> -59140.59121 | H19: =+H18/($C$18+$D$18+$F$18+$H$18)*-$G$19 -> 31.14704507 | I19: =SUM(C19:H19) -> 4.835243317e-12
A20: 6 | B20: Total Peak Hour Service | C20: =SUM(C18:C19) -> 2408127.774 | D20: 34338.9132 | E20: 0 | F20: 437981.3937 | G20: 59140.59121 | H20: 1517.819148 | I20: 2941106.491
A22: 7 | B22: Storage - Demand | C22: =SUM('Ut 1.4 p3'!H37:H40) -> 13220203.5 | D22: =SUM('Ut 1.4 p3'!I37:I40) -> 334559.0166 | E22: =SUM('Ut 1.4 p3'!J37:J40) -> 0 | F22: =SUM('Ut 1.4 p3'!K37:K40) -> 0 | G22: =SUM('Ut 1.4 p3'!L37:L40) -> 0 | H22: =SUM('Ut 1.4 p3'!M37:M40) -> 31909.01221 | I22: =SUM(C22:H22) -> 13586671.53
A23: 8 | B23: Storage - Commodity | C23: =SUM('Ut 1.4 p3'!H41:H46) -> 445144.4335 | D23: =SUM('Ut 1.4 p3'!I41:I46) -> 11265.11282 | E23: =SUM('Ut 1.4 p3'!J41:J46) -> 0 | F23: =SUM('Ut 1.4 p3'!K41:K46) -> 0 | G23: =SUM('Ut 1.4 p3'!L41:L46) -> 0 | H23: =SUM('Ut 1.4 p3'!M41:M46) -> 1074.425152 | I23: =SUM(C23:H23) -> 457483.9714
A26: =+A23+1 -> 9 | B26: Total SNG | C26: =SUM(C13:C14,C16,C20,C22:C23) -> 83518535.28 | D26: 2086971.323 | E26: 0 | F26: 437981.3937 | G26: 59140.59121 | H26: 197290.3716 | I26: =SUM(C26:H26) -> 86299918.96
A29: =+A26+1 -> 10 | B29: Percent Allocated to Rate Classes | C29: =C26/$I$26 -> 0.9677707266 | D29: 0.02418277268 | E29: 0 | F29: 0.005075107821 | G29: 0.0006852913875 | H29: 0.00228610147 | I29: =SUM(C29:H29) -> 1
A34: 1/ | B34: Represents a 50% subsidy of costs to the TBF class, which is allocated to all other classes using the design day factor.

Sheet Ut 1.5 p1
J1: ='Control Panel'!$F$32 -> Dominion Energy Utah
J2: ='Control Panel'!$F$33 -> Docket No. 21-057-28
J3: DEU Exhibit 1.5
J4: Page 1 of 6
B8: TEST-YEAR GAS COST CHANGE
B10: COMMODITY
B11: (A) | C11: (B) | D11: (C) | F11: (D) | H11: (E) | J11: (F)
F12: Average Rate | H12: x Dth | I12: = | J12: Total
A13: 1 | B13: Commodity Portion of Test-Year Gas Cost 1/ | J13: ='Ut 1.1 p2'!H29 -> 529089631
A14: =A13+1 -> 2 | B14: 191 Account Balance for Commodity Costs 2/ | J14: =D46-D49 -> 65379826.03
A15: =A14+1 -> 3 | B15: Total | J15: =J13+J14 -> 594469457.1
H17: Total
B18: Test-Year Sales: | D18: Firm | F18: + Interruptible | H18: = Sales Dth
A20: =A15+1 -> 4 | B20: Utah | D20: =Calculations!P13 -> 114269823 | F20: =Calculations!P17 -> 261619 | H20: =D20+F20 -> 114531442
A21: =A20+1 -> 5 | B21: Wyoming | D21: =Calculations!P32 -> 3673859 | F21: =Calculations!P36 -> 129977 | H21: =D21+F21 -> 3803836
A22: =A21+1 -> 6 | B22: Total Dth | H22: =SUM(H20:H21) -> 118335278
F26: Current Case | H26: Prior Case
B27: COMMODITY RATES | F27: ='Control Panel'!F5 -> 21-057-28 | H27: ='Control Panel'!F9 -> 21-057-17 | J27: Difference
A29: =A22+1 -> 7 | B29: Gas Cost (line 1/Total Sales Dth, line 4) | F29: =ROUND((J13)/H20,5) -> 4.6196 | H29: ='Other Inputs'!F119 -> 4.44217 | J29: =F29-H29 -> 0.17743
A30: =A29+1 -> 8 | B30: 191 Account Amortization (Commodity Portion) | F30: =H46 -> 0.5702 | H30: ='Other Inputs'!F120 -> 0.50038 | J30: =F30-H30 -> 0.06982
A31: 9 | B31: Total Sales Unit Commodity Cost (Lines 7 + 8 + 9) | F31: =F29+F30 -> 5.1898 | H31: =H29+H30 -> 4.94255 | J31: =J29+J30 -> 0.24725
A38: 1/ | B38: DEU Exhibit 1.1, page 2, line 9, column E
B40: Amortization from Docket No. 19-057-18
B41: Commodity amortization will be adjusted in the 2020 fall pass-through.
A42: 2/ | B42: 191 Account (October 2021) actual | D42: ='Other Inputs'!E137 -> 85936416
B43: Less: Supplier Non-Gas balance actual | D43: ='Other Inputs'!E138 -> 20707319
B44: 191 Account Commodity Portion | D44: =D42-D43 -> 65229097
B45: RIN Proceed 4/ | D45: =D54 -> -76569.08944
B46: 191 Account Commodity Amortization | D46: =(D44-D45) -> 65305666.09 | F46: =H20 -> 114531442 | H46: =ROUND(D46/F46,5) -> 0.5702
B47: See Application, paragraph 15.
A49: 3/ | B49: Prior RIN Proceeds, Docket No. 21-057-17 | D49: ='SDR#5'!F10 -> -74159.94
B50: Expected amortized Balance | D50: ='SDR#5'!F20-'SDR#5'!F25 -> 11915.93056
B51: Amount remaining to be amortized | D51: =SUM(D49:D50) -> -62244.00944
B53: New RIN Proceeds | D53: =-'SDR#5'!F32 -> -14325.08
B54: Total RIN Proceeds | D54: =SUM(D51:D53) -> -76569.08944 | F54: =Calculations!$P$12 -> 202355 | H54: =ROUND(D54/F54,5) -> -0.37839

Sheet Ut 1.5 p2
G1: ='Control Panel'!$F$32 -> Dominion Energy Utah
G2: ='Control Panel'!$F$33 -> Docket No. 21-057-28
G3: DEU Exhibit 1.5
G4: Page 2 of 6
C8: TEST-YEAR SUPPLIER NON-GAS COST CHANGE
B10: SNG
C11: (A) | D11: (B) | E11: (C) | F11: (D)
D12: Dth | E12: Average Rate | F12: Total
B15: 1 | C15: Supplier Non-Gas (SNG) Costs 1/ | F15: ='Ut 1.1 p2'!H43 -> 86299918.96
B16: =B15+1 -> 2 | C16: 191 Account Balance for SNG Costs 2/ | F16: =E44 -> 5372883
B17: =1+B16 -> 3 | C17: SNG Total Costs Recovered for Test-Year 3/ | F17: =SUM(F15:F16) -> 91672801.96
B20: 4 | C20: Supplier Non-Gas Base Cost at Current Rates | F20: =F22-F21 -> 85588296.76
B21: 5 | C21: Amortization | F21: =E45 -> 5372883
B22: 6 | C22: SNG Total Costs Recovered at Current Rates 3/ | F22: ='Other Inputs'!E246-(D30*('Other Inputs'!G96-'Other Inputs'!F247)) -> 90961179.76
B25: =1+B22 -> 7 | C25: SNG Costs Adjustment to Current Rates (Line 3 - Line 6) | F25: =F17-F22 -> 711622.2038
C29: Adjustment for SNG contributions from:
B30: 8 | C30: IS SNG current rate | D30: ='RevRun Fcst'!T102+'RevRun Fcst'!T93 -> 261619 | E30: ='Other Inputs'!E48 -> 0.17652 | F30: =D30*E30 -> 46180.98588
B31: 9 | C31: IS SNG new rate | D31: ='RevRun Fcst'!T102+'RevRun Fcst'!T93 -> 261619 | E31: ='Other Inputs'!F48 -> 0.17652 | F31: =D31*E31 -> 46180.98588
B35: 10 | C35: Percent Change to Amortization | F35: =((F16-F21)/F21)*100 -> 0 | G35: %
C36: (ln 2-ln 5)/ln 5
B40: 1/ | C40: DEU Exhibit 1.1, page 2, line 16, column E.
B42: 2/ | C42: Actual March 2021 SNG Balance | E42: ='Other Inputs'!D141 -> -8627117
C43: Expected March 2021 SNG Balance | E43: ='Other Inputs'!E141 -> -14000000
E44: ='Other Inputs'!F141 -> 5372883
B45: 2/ | C45: Spring Pass Through SNG Amortization From Docket No. 21-057-11 | E45: ='Other Inputs'!F141 -> 5372883
C46: Amortization will be adjusted in the 2022 Spring Pass Through
B48: 3/ | C48: ="Output of Revrun.Exe computer program dated "&'RevRun Fcst'!D4 -> Output of Revrun.Exe computer program dated 10/26/21

Sheet Ut 1.5 p3
I1: ='Control Panel'!$F$32 -> Dominion Energy Utah
I2: ='Control Panel'!$F$33 -> Docket No. 21-057-28
I3: DEU Exhibit 1.5
I4: Page 3 of 6
B7: SUPPLIER NON-GAS RATE CALCULATION
B9: SNG | C9: (A) | D9: (B) | E9: (C) | F9: (D) | G9: (E) | H9: (F) | I9: (G)
C10: GS | D10: FS | E10: IS 1/ | F10: TSF | G10: TBF | H10: NGV | I10: Total
A11: 1 | B11: Allocated SNG Costs | C11: =+'Ut 1.4 p4'!C26 -> 83518535.28 | D11: =+'Ut 1.4 p4'!D26 -> 2086971.323 | E11: =+'Ut 1.4 p4'!E26 -> 0 | F11: =+'Ut 1.4 p4'!F26 -> 437981.3937 | G11: =+'Ut 1.4 p4'!G26 -> 59140.59121 | H11: =+'Ut 1.4 p4'!H26 -> 197290.3716 | I11: =SUM(C11:H11) -> 86299918.96
A12: =+A11+1 -> 2 | B12: IS SNG Revenue | C12: =-$E$12*'Ut 1.4 p4'!C29 -> -45333.1699 | D12: =-$E$12*'Ut 1.4 p4'!D29 -> -1132.790766 | E12: =$E$17*E23 -> 46842.88195 | F12: =-$E$12*'Ut 1.4 p4'!F29 -> -237.7326766 | G12: =-$E$12*'Ut 1.4 p4'!G29 -> -32.10102357 | H12: =-$E$12*'Ut 1.4 p4'!H29 -> -107.0875813 | I12: =SUM(C12:H12) -> 3.73745479e-12
A13: 3 | B13: SNG Costs to Recover | C13: =+C11+C12 -> 83473202.11 | D13: 2085838.532 | E13: 46842.88195 | F13: 437743.661 | G13: 59108.49019 | H13: 197183.284 | I13: =SUM(C13:H13) -> 86299918.96
A14: 4 | B14: Summer/Winter Differential | C14: ='Ut 1.5 p4'!C40 -> 0.51615 | D14: ='Ut 1.5 p5'!C41 -> 0.0227 | F14: 0 | G14: 0 | H14: 0
A15: 5 | B15: Summer Forecast Throughput 2021-22 | C15: =SUM('RevRun Fcst'!$K$21:$Q$21) -> 31002666 | D15: =SUM('RevRun Fcst'!$J$48:$Q$48) -> 1424278 | E15: =SUM('RevRun Fcst'!$K$102:$Q$102) -> 98842 | F15: =SUM('RevRun Fcst'!$K$165:$Q$165) -> 28113925 | G15: =SUM('RevRun Fcst'!$K$129:$Q$129) -> 2233309 | H15: =SUM('RevRun Fcst'!$K$66:$Q$66) -> 114493
A16: 6 | B16: Winter Forecast Throughput 2021-22 | C16: =SUM('RevRun Fcst'!$H$21:$J$21)+SUM('RevRun Fcst'!$R$21:$S$21) -> 80662138 | D16: =SUM('RevRun Fcst'!$H$48:$J$48)+SUM('RevRun Fcst'!$R$48:$S$48) -> 1213837 | E16: =SUM('RevRun Fcst'!$H$102:$J$102)+SUM('RevRun Fcst'!$R$102:$S$102) -> 162777 | F16: =SUM('RevRun Fcst'!$H$165:$J$165)+SUM('RevRun Fcst'!$R$165:$S$165) -> 26494809 | G16: =SUM('RevRun Fcst'!$H$129:$J$129)+SUM('RevRun Fcst'!$R$129:$S$129) -> 1006264 | H16: =SUM('RevRun Fcst'!$H$66:$J$66)+SUM('RevRun Fcst'!$R$66:$S$66) -> 87862
A17: 7 | B17: Total Forecast Throughput 2021-22 | C17: =SUM(C15:C16) -> 111664804 | D17: 2638115 | E17: 261619 | F17: 54608734 | G17: 3239573 | H17: 202355
A18: 8 | B18: Forecast Demand Dth | C18: 0 | D18: 0 | F18: =+'Other Inputs'!D312 -> 208680 | G18: =+'Other Inputs'!D313 -> 45000 | H18: 0
A20: =A18+1 -> 9 | B20: Summer Base Rate | C20: =ROUND(C21-C14,5) -> 0.37469 | D20: =ROUND(D21-D14,5) -> 0.78021 | F20: 0 | G20: 0 | H20: 0
A21: =A20+1 -> 10 | B21: Winter Base Rate | C21: =ROUND((C13+C14*C15)/C17,5) -> 0.89084 | D21: =ROUND((D13+D14*D15)/D17,5) -> 0.80291 | F21: 0 | G21: 0 | H21: 0
A23: =A21+1 -> 11 | B23: Year Round Base Rates | C23: 0 | D23: 0 | E23: =ROUND(C54,5) -> 0.17905 | F23: 0 | G23: 0 | H23: =ROUND(H13/H17,5) -> 0.97444
A25: =A23+1 -> 12 | B25: Annual Demand Rate | C25: 0 | D25: 0 | F25: =ROUND(F13/F18,5) -> 2.09768 | G25: =ROUND(G13/G18,5) -> 1.31352 | H25: 0
A26: =A25+1 -> 13 | B26: Monthly Demand Rate | C26: 0 | D26: 0 | F26: =ROUND(F25/12,5) -> 0.17481 | G26: =ROUND(G25/12,5) -> 0.10946 | H26: 0
A28: =A26+1 -> 14 | B28: Revenue Collected With Rate | C28: =C20*C15+C16*C21 -> 83473447.94 | D28: =D20*D15+D16*D21 -> 2085837.804 | E28: =+E17*E23 -> 46842.88195 | F28: =F25*F18 -> 437743.8624 | G28: =G25*G18 -> 59108.4 | H28: =H23*H17 -> 197182.8062 | I28: =SUM(C28:H28) -> 86300163.69
A30: =+A28+1 -> 15 | B30: Amortization of Balance | C30: =+'Ut 1.5 p2'!$F$16*'Ut 1.4 p4'!C29 -> 5199718.885 | D30: =+'Ut 1.5 p2'!$F$16*'Ut 1.4 p4'!D29 -> 129931.2082 | E30: =+'Ut 1.5 p2'!$F$16*'Ut 1.4 p4'!E29 -> 0 | F30: =+'Ut 1.5 p2'!$F$16*'Ut 1.4 p4'!F29 -> 27267.96054 | G30: =+'Ut 1.5 p2'!$F$16*'Ut 1.4 p4'!G29 -> 3681.990446 | H30: =+'Ut 1.5 p2'!$F$16*'Ut 1.4 p4'!H29 -> 12282.95572
A31: =+A30+1 -> 16 | B31: Summer/Winter Differential | C31: =+'Ut 1.5 p4'!C46 -> 0.03215 | D31: =+'Ut 1.5 p5'!C47 -> 0.00141
A33: =+A31+1 -> 17 | B33: Summer Amortization Rate | C33: 0.02356 | D33: 0.04298
A34: =+A33+1 -> 18 | B34: Winter Amortization Rate | C34: 0.05618 | D34: 0.05319
A35: =+A34+1 -> 19 | B35: Annual Amortization Rate | F35: 0.11838 | G35: 0.07376 | H35: 0.0621
A37: =+A35+1 -> 20 | B37: Amortization Collected With Rate | C37: =+C15*C33+C16*C34 -> 5262021.724 | D37: =+D15*D33+D16*D34 -> 125779.4585 | E37: 0 | F37: =+F35*F18 -> 24703.5384 | G37: =+G35*G18 -> 3319.2 | H37: =+H35*H17 -> 12566.2455 | I37: =SUM(C37:H37) -> 5428390.166
A39: =+A37+1 -> 21 | B39: Summer Total Rate | C39: =+C20+C33 -> 0.39825 | D39: =+D20+D33 -> 0.82319
A40: =+A39+1 -> 22 | B40: Winter Total Rate | C40: =+C21+C34 -> 0.94702 | D40: =+D21+D34 -> 0.8561
A41: =+A40+1 -> 23 | B41: Annual Total Rate | E41: =+E23 -> 0.17905 | F41: =+F25+F35 -> 2.21606 | G41: =+G25+G35 -> 1.38728 | H41: =+H23+H35 -> 1.03654
A42: =+A41+1 -> 24 | B42: Monthly Total Rate | F42: =ROUND(F41/12,5) -> 0.18467 | G42: =ROUND(G41/12,5) -> 0.11561
A44: =+A42+1 -> 25 | B44: Summer Total Collected | C44: =+C15*C39 -> 12346811.73 | D44: =+D15*D39 -> 1172451.407
A45: =+A44+1 -> 26 | B45: Winter Total Collected | C45: =+C16*C40 -> 76388657.93 | D45: =+D16*D40 -> 1039165.856
A46: =+A45+1 -> 27 | B46: Annual Total Collected | E46: =+E41*E17 -> 46842.88195 | F46: =+F41*F18 -> 462447.4008 | G46: =+G41*G18 -> 62427.6 | H46: =+H41*H17 -> 209749.0517
C47: =SUM(C44:C46) -> 88735469.66 | D47: 2211617.263 | E47: 46842.88195 | F47: 462447.4008 | G47: 62427.6 | H47: 209749.0517 | I47: =SUM(C47:H47) -> 91728553.86
A51: 1/ | B51: ="Calculated by adding QPC T-2 and ACA rates, then adjusting for distr. loss of "&TEXT('Other Inputs'!E272,"0.000%") -> Calculated by adding QPC T-2 and ACA rates, then adjusting for distr. loss of 0.542%
B52: ="= ("&TEXT('Other Inputs'!$F$48,"$0.00000")&" + "&TEXT('Other Inputs'!$F$49,"$0.00000")&") / ( 1 - "&TEXT('Other Inputs'!$E$272,"0.00000")&" ) = "&TEXT(('Other Inputs'!F48+'Other Inputs'!F49)/(1-('Other Inputs'!$E$272)),("$0.00000")) -> = ($0.17652 + $0.00120) / ( 1 - 0.00542 ) = $0.17869
B53: ="IS Tariff rate has an adjustment for bad debt of "&TEXT('Other Inputs'!$E$283,"0.00%") -> IS Tariff rate has an adjustment for bad debt of 0.20%
B54: =" = "&TEXT((('Other Inputs'!$F$48+'Other Inputs'!$F$49)/(1-'Other Inputs'!$E$272)),"$0.00000")&" / ( 1 - "&TEXT('Other Inputs'!$E$283,"0.00000")&" ) = " -> = $0.17869 / ( 1 - 0.00200 ) = | C54: =+(('Other Inputs'!$F$48+'Other Inputs'!$F$49)/(1-'Other Inputs'!$E$272))/(1-('Other Inputs'!$E$283)) -> 0.1790465848
A56: 2/ | B56: Spring Pass Through SNG Amortization From Docket No. 20-057-07 (Lines 15-19)
B57: Amortization will be adjusted in the 2021 Spring Pass Through

Sheet Ut 1.5 p4
E1: ='Control Panel'!$F$32 -> Dominion Energy Utah
E2: ='Control Panel'!$F$33 -> Docket No. 21-057-28
E3: DEU Exhibit 1.5
E4: Page 4 of 6
A6: GENERAL SERVICE SUMMER / WINTER DIFFERENTIAL
A8: SNG | B8: (A) | C8: (B) | D8: (C) | E8: (D)
B9: Contract | C9: Allocated GS Costs | D9: Winter Allocation | E9: Summer Allocation
A10: 1 | B10: DEQPC T-1 Transportation: Yearly | C10: =+'Ut 1.4 p3'!H15 -> 56279968.32 | D10: =C10*D49 -> 40654372.81 | E10: =C10*$D$48 -> 15625595.51
A11: =A10+1 -> 2 | B11: DEQPC T-1 Transportation: November - March | C11: =+'Ut 1.4 p3'!H16 -> 2406798.555 | D11: =C11 -> 2406798.555
A12: =A11+1 -> 3 | B12: DEQPC No-Notice Transportation | C12: =+'Ut 1.4 p3'!H17 -> 1997345.331 | D12: =C12*D49 -> 1442801.482 | E12: =C12*$D$48 -> 554543.8488
A13: 4 | B13: Capacity Release Credits | C13: =+'Ut 1.4 p3'!H18 -> -1323351.509 | D13: =C13*$D$49 -> -955935.6054 | E13: =C13*$D$48 -> -367415.9033
A14: 5 | B14: DEOTP Transportation: Yearly | C14: =+'Ut 1.4 p3'!H19 -> 156526.5622 | D14: =C14*$D$49 -> 113068.4576 | E14: =C14*$D$48 -> 43458.10456
A15: 6 | B15: Kern River Transportation: Yearly | C15: =+'Ut 1.4 p3'!H20 -> 1301373.542 | D15: =C15*$D$49 -> 940059.6109 | E15: =C15*$D$48 -> 361313.9306
A16: 7 | B16: Kern River Transportation: November - March | C16: =+'Ut 1.4 p3'!H21 -> 1862191.579 | D16: =C16 -> 1862191.579
A17: 8 | B17: Kern River Transportation: December - February | C17: =+'Ut 1.4 p3'!H22 -> 1400480.826 | D17: =C17 -> 1400480.826
A18: 9 | B18: Kern River Transportation: November & March | C18: =+'Ut 1.4 p3'!H23 -> 100048.9552 | D18: =C18 -> 100048.9552
A19: 10 | B19: ACA (FERC) | C19: =+'Ut 1.4 p3'!H24 -> 150873.034 | D19: =C19*$D$49 -> 108984.5775 | E19: =C19*$D$48 -> 41888.45647
A20: 11 | B20: QPC Commodity | C20: =+'Ut 1.4 p3'!H25 -> 270988.518 | D20: =C20*$D$49 -> 195751.145 | E20: 75237.37305
A21: 12 | B21: DEOTP Commodity | C21: =+'Ut 1.4 p3'!H26 -> 4903.691446 | D21: =C21*$D$49 -> 3542.228365 | E21: =C21*$D$48 -> 1361.463081
A22: 13 | B22: Kern River Commodity | C22: =+'Ut 1.4 p3'!H27 -> 93709.76013 | D22: =C22*$D$49 -> 67692.14052 | E22: 26017.61961
A23: 14 | B23: Other Transportation Charges | C23: =+'Ut 1.4 p3'!H28 -> 2743202.407 | D23: =C23*$D$49 -> 1981578.467 | E23: 761623.94
A24: 15 | B24: DEQPC Peak Hour Service | C24: =+'Ut 1.4 p3'!H32 -> 1280411.561 | D24: =C24 -> 1280411.561
A25: 16 | B25: Kern River Peak Hour Service | C25: =+'Ut 1.4 p3'!H33 -> 1078299.215 | D25: =C25 -> 1078299.215
A26: 17 | B26: Aquifer Peaking Storage Demand | C26: =+'Ut 1.4 p3'!H37 -> 6001422.535 | D26: =C26*$D$49 -> 4335184.905 | E26: 1666237.63
A27: 18 | B27: Spire Storage Demand | C27: =+'Ut 1.4 p3'!H38 -> 0 | D27: 0 | E27: 0
A28: 19 | B28: Clay Basin Storage Demand | C28: =+'Ut 1.4 p3'!H39 -> 3609283.498 | D28: 2607200.418 | E28: 1002083.081
A29: 20 | B29: Clay Basin Storage Capacity | C29: =+'Ut 1.4 p3'!H40 -> 3609497.472 | D29: 2607354.983 | E29: 1002142.488
A30: 21 | B30: Aquifer Peaking Injections Storage Commodity | C30: =+'Ut 1.4 p3'!H41 -> 48342.84482 | D30: 34920.91582 | E30: 13421.929
A31: 22 | B31: Aquifer Peaking Withdrawals Storage Commodity | C31: =+'Ut 1.4 p3'!H42 -> 52862.30233 | D31: 38185.58913 | E31: 14676.7132
A32: 23 | B32: Spire Injections Storage Commodity | C32: =+'Ut 1.4 p3'!H43 -> 0 | D32: 0 | E32: 0
A33: 24 | B33: Spire Withdrawals Storage Commodity | C33: =+'Ut 1.4 p3'!H44 -> 0 | D33: 0 | E33: 0
A34: 25 | B34: Clay Basin Injections Storage Commodity | C34: =+'Ut 1.4 p3'!H45 -> 128426.4264 | D34: 92770.0561 | E34: 35656.37033
A35: 26 | B35: Clay Basin Withdrawals Storage Commodity | C35: =+'Ut 1.4 p3'!H46 -> 215512.8599 | D35: 155677.7733 | E35: 59835.08657
A36: 27 | B36: Utah SNG Costs | C36: =SUM(C10:C35) -> 83469118.29 | D36: =SUM(D10:D35) -> 62551440.64 | E36: =SUM(E10:E35) -> 20917677.64
A38: =A36+1 -> 28 | B38: Winter SNG - Summer SNG | C38: =D36-E36 -> 41633763
A39: =A38+1 -> 29 | B39: Winter Dth | C39: =C49 -> 80662138
A40: =A39+1 -> 30 | B40: Seasonal Cost Differential | C40: =ROUND(C38/C39,5) -> 0.51615
A42: 29 | B42: SNG Amortization | C42: =+'Ut 1.5 p3'!C30 -> 5199718.885 | D42: =+C42*D36/C36 -> 3896649.61 | E42: =+C42*E36/C36 -> 1303069.275
A44: 30 | B44: Winter SNG - Summer SNG Amortization | C44: =+D42-E42 -> 2593580.334
A45: 31 | B45: Winter Dth | C45: =+C49 -> 80662138
A46: =+A45+1 -> 32 | B46: Seasonal Cost Differential | C46: =ROUND(C44/C45,5) -> 0.03215
A48: =+A46+1 -> 33 | B48: 2022 Forecast GS Summer Usage | C48: =+'Ut 1.5 p3'!C15 -> 31002666 | D48: =C48/(C48+C49) -> 0.2776404461
A49: =A48+1 -> 34 | B49: 2022 Forecast GS Winter Usage | C49: =+'Ut 1.5 p3'!C16 -> 80662138 | D49: =C49/(C49+C48) -> 0.7223595539

Sheet Ut 1.5 p5
E1: ='Control Panel'!$F$32 -> Dominion Energy Utah
E2: ='Control Panel'!$F$33 -> Docket No. 21-057-28
E3: DEU Exhibit 1.5
E4: Page 5 of 6
A7: FIRM SALES SUMMER / WINTER DIFFERENTIAL
A9: SNG | B9: (A) | C9: (B) | D9: (C) | E9: (D)
B10: Contract | C10: Allocated FS Costs | D10: Winter Allocation | E10: Summer Allocation
A11: 1 | B11: DEQPC T-1 Transportation: Yearly | C11: =+'Ut 1.4 p3'!I15 -> 1424257.263 | D11: =C11*D51 -> 655322.5174 | E11: =C11*$D$50 -> 768934.7453
A12: =A11+1 -> 2 | B12: DEQPC T-1 Transportation: November - March | C12: =+'Ut 1.4 p3'!I16 -> 60908.00022 | D12: =C12 -> 60908.00022
A13: =A12+1 -> 3 | B13: DEQPC No-Notice Transportation | C13: =+'Ut 1.4 p3'!I17 -> 50546.11222 | D13: =C13*D51 -> 23257.03816 | E13: =C13*$D$50 -> 27289.07406
A14: 4 | B14: Capacity Release Credits | C14: =+'Ut 1.4 p3'!I18 -> -33489.58881 | D14: =C14*$D$51 -> -15409.07126 | E14: =C14*$D$50 -> -18080.51756
A15: 5 | B15: DEOTP Transportation: Yearly | C15: =+'Ut 1.4 p3'!I19 -> 3961.162376 | D15: =C15*$D$51 -> 1822.591303 | E15: =C15*$D$50 -> 2138.571073
A16: 6 | B16: Kern River Transportation: Yearly | C16: =+'Ut 1.4 p3'!I20 -> 32933.40017 | D16: =C16*$D$51 -> 15153.16037 | E16: =C16*$D$50 -> 17780.2398
A17: 7 | B17: Kern River Transportation: November - March | C17: =+'Ut 1.4 p3'!I21 -> 47125.82398 | D17: =C17 -> 47125.82398
A18: 8 | B18: Kern River Transportation: December - February | C18: =+'Ut 1.4 p3'!I22 -> 35441.47319 | D18: =C18 -> 35441.47319
A19: 9 | B19: Kern River Transportation: November & March | C19: =+'Ut 1.4 p3'!I23 -> 2531.903542 | D19: =C19 -> 2531.903542
A20: 10 | B20: ACA (FERC) | C20: =+'Ut 1.4 p3'!I24 -> 3818.090536 | D20: =C20*$D$51 -> 1756.761765 | E20: =C20*$D$50 -> 2061.328772
A21: 11 | B21: QPC Commodity | C21: =+'Ut 1.4 p3'!I25 -> 6857.810629 | D21: 3155.383401 | E21: 3702.427228
A22: 12 | B22: DEOTP Commodity | C22: =+'Ut 1.4 p3'!I26 -> 124.0959859 | D22: =C22*$D$51 -> 57.09845827 | E22: =C22*$D$50 -> 66.99752764
A23: 13 | B23: Kern River Commodity | C23: =+'Ut 1.4 p3'!I27 -> 2371.479772 | D23: 1091.15406 | E23: 1280.325713
A24: 14 | B24: Other Transportation Charges | C24: =+'Ut 1.4 p3'!I28 -> 69421.25355 | D24: 31941.77894 | E24: 37479.47461
A25: 15 | B25: DEQPC Peak Hour Service | C25: =+'Ut 1.4 p3'!I32 -> 18258.14309 | D25: =C25 -> 18258.14309
A26: 16 | B26: Kern River Peak Hour Service | C26: =+'Ut 1.4 p3'!I33 -> 15376.10403 | D26: =C26 -> 15376.10403
A27: 17 | B27: Aquifer Peaking Storage Demand | C27: =+'Ut 1.4 p3'!I37 -> 151875.8785 | D27: 69880.41111 | E27: 81995.46741
A28: 18 | B28: Spire Storage Demand | C28: =+'Ut 1.4 p3'!I38 -> 0 | D28: 0 | E28: 0
A29: 19 | B29: Clay Basin Storage Demand | C29: =+'Ut 1.4 p3'!I39 -> 91338.86158 | D29: 42026.40511 | E29: 49312.45647
A30: 20 | B30: Clay Basin Storage Capacity | C30: =+'Ut 1.4 p3'!I40 -> 91344.27652 | D30: 42028.89661 | E30: 49315.37991
A31: 21 | B31: Aquifer Peaking Injections Storage Commodity | C31: =+'Ut 1.4 p3'!I41 -> 1223.395284 | D31: 562.9028536 | E31: 660.4924306
A32: 22 | B32: Aquifer Peaking Withdrawals Storage Commodity | C32: =+'Ut 1.4 p3'!I42 -> 1337.767598 | D32: 615.5273017 | E32: 722.240296
A33: 23 | B33: Spire Injections Storage Commodity | C33: =+'Ut 1.4 p3'!I43 -> 0 | D33: 0 | E33: 0
A34: 24 | B34: Spire Withdrawals Storage Commodity | C34: =+'Ut 1.4 p3'!I44 -> 0 | D34: 0 | E34: 0
A35: 25 | B35: Clay Basin Injections Storage Commodity | C35: =+'Ut 1.4 p3'!I45 -> 3250.042174 | D35: 1495.394038 | E35: 1754.648136
A36: 26 | B36: Clay Basin Withdrawals Storage Commodity | C36: =+'Ut 1.4 p3'!I46 -> 5453.90776 | D36: 2509.426251 | E36: 2944.481509
A37: 27 | B37: Utah SNG Costs | C37: =SUM(C11:C36) -> 2086266.657 | D37: =SUM(D11:D36) -> 1056908.824 | E37: =SUM(E11:E36) -> 1029357.833
A39: =A37+1 -> 28 | B39: Winter SNG - Summer SNG | C39: =D37-E37 -> 27550.9912
A40: =A39+1 -> 29 | B40: Winter Dth | C40: =C51 -> 1213837
A41: =A40+1 -> 30 | B41: Seasonal Cost Differential | C41: =ROUND(C39/C40,5) -> 0.0227
A43: 29 | B43: SNG Amortization | C43: =+'Ut 1.5 p3'!D30 -> 129931.2082 | D43: =+C43*D37/C37 -> 65823.53222 | E43: =+C43*E37/C37 -> 64107.67602
A45: 30 | B45: Winter SNG - Summer SNG Amortization | C45: =+D43-E43 -> 1715.856199
A46: =+A45+1 -> 31 | B46: Winter Dth | C46: =+C51 -> 1213837
A47: =+A46+1 -> 32 | B47: Seasonal Cost Differential | C47: =ROUND(C45/C46,5) -> 0.00141
A50: =+A47+1 -> 33 | B50: 2022 Forecast FS Summer Usage | C50: =+'Ut 1.5 p3'!D15 -> 1424278 | D50: =C50/(C50+C51) -> 0.5398847283
A51: =+A50+1 -> 34 | B51: 2022 Forecast FS Winter Usage | C51: =+'Ut 1.5 p3'!D16 -> 1213837 | D51: =C51/(C51+C50) -> 0.4601152717

Sheet Ut 1.5 p6
H1: ='Control Panel'!$F$32 -> Dominion Energy Utah
H2: ='Control Panel'!$F$33 -> Docket No. 21-057-28
H3: DEU Exhibit 1.5
H4: Page 6 of 6
C7: SUMMARY OF RATES
B9: COMMODITY | D9: (A) | E9: (B)
B10: Class | C10: Description | D10: Current | E10: Proposed
B11: GS, FS, IS
A12: 1 | C12: Base Gas Cost | D12: =+'Other Inputs'!F119 -> 4.44217 | E12: =+'Ut 1.5 p1'!F29 -> 4.6196
A13: 2 | C13: 191 Amortization | D13: =+'Other Inputs'!F120 -> 0.50038 | E13: =+'Ut 1.5 p1'!F30 -> 0.5702
A14: 3 | C14: Commodity Rate | D14: =+D12+D13 -> 4.94255 | E14: =+E12+E13 -> 5.1898
B16: NGV
A17: 4 | C17: Base Gas Cost | D17: =+'Other Inputs'!F119 -> 4.44217 | E17: =+'Ut 1.5 p1'!F29 -> 4.6196
A18: 5 | C18: 191 Amortization | D18: =+'Other Inputs'!F120 -> 0.50038 | E18: =+'Ut 1.5 p1'!F30 -> 0.5702
A19: 6 | C19: RIN Credit | D19: =+'Other Inputs'!F130 -> -0.36648 | E19: ='Ut 1.5 p1'!H54 -> -0.37839
A20: 7 | C20: Commodity Rate | D20: =+D17+D18+D19 -> 4.57607 | E20: =+E17+E18+E19 -> 4.81141
B23: SNG
B24: Class | C24: Description | D24: Current | E24: Proposed
A25: 8 | B25: GS | C25: Base SNG Summer | D25: =+'Other Inputs'!E89 -> 0.37355 | E25: =ROUND('Ut 1.5 p3'!C20,5) -> 0.37469
A26: 9 | C26: SNG Amortization | D26: =+'Other Inputs'!F89 -> 0.02356 | E26: =ROUND('Ut 1.5 p3'!C33,5) -> 0.02356
A27: =+A26+1 -> 10 | C27: SNG Summer Rate | D27: =+D25+D26 -> 0.39711 | E27: =+E25+E26 -> 0.39825
A29: =+A27+1 -> 11 | C29: Base SNG Winter | D29: =+'Other Inputs'!E88 -> 0.88317 | E29: =ROUND('Ut 1.5 p3'!C21,5) -> 0.89084
A30: =+A29+1 -> 12 | C30: SNG Amortization | D30: =+'Other Inputs'!F88 -> 0.05618 | E30: =ROUND('Ut 1.5 p3'!C34,5) -> 0.05618
A31: =+A30+1 -> 13 | C31: SNG Winter Rate | D31: =+D29+D30 -> 0.93935 | E31: =+E29+E30 -> 0.94702
A33: =+A31+1 -> 14 | B33: FS | C33: Base SNG Summer | D33: =+'Other Inputs'!E92 -> 0.75994 | E33: =ROUND('Ut 1.5 p3'!D20,5) -> 0.78021
A34: =+A33+1 -> 15 | C34: SNG Amortization | D34: =+'Other Inputs'!F92 -> 0.04298 | E34: =ROUND('Ut 1.5 p3'!D33,5) -> 0.04298
A35: =+A34+1 -> 16 | C35: SNG Summer Rate | D35: =+D33+D34 -> 0.80292 | E35: =+E33+E34 -> 0.82319
A37: =+A35+1 -> 17 | C37: Base SNG Winter | D37: =+'Other Inputs'!E91 -> 0.93437 | E37: =ROUND('Ut 1.5 p3'!D21,5) -> 0.80291
A38: =+A37+1 -> 18 | C38: SNG Amortization | D38: =+'Other Inputs'!F91 -> 0.05319 | E38: =ROUND('Ut 1.5 p3'!D34,5) -> 0.05319
A39: =+A38+1 -> 19 | C39: SNG Winter Rate | D39: =+D37+D38 -> 0.98756 | E39: =+E37+E38 -> 0.8561
A41: =+A39+1 -> 20 | B41: IS | C41: SNG Rate | D41: =+'Other Inputs'!E96 -> 0.17963 | E41: =ROUND('Ut 1.5 p3'!E23,5) -> 0.17905
A43: =+A41+1 -> 21 | B43: TSF | C43: Base SNG Annual Demand | D43: =+'Other Inputs'!G316 -> 1.88962 | E43: =ROUND('Ut 1.5 p3'!F25,5) -> 2.09768
A44: =+A43+1 -> 22 | C44: SNG Amortization | D44: =+'Other Inputs'!G317 -> 0.11838 | E44: =ROUND('Ut 1.5 p3'!F35,5) -> 0.11838
A45: =+A44+1 -> 23 | C45: SNG Adder Annual | D45: =+D43+D44 -> 2.008 | E45: =+E43+E44 -> 2.21606
A46: =+A45+1 -> 24 | C46: SNG Adder Monthly | D46: =+ROUND(D45/12,5) -> 0.16733 | E46: =+ROUND(E45/12,5) -> 0.18467
A48: =+A46+1 -> 25 | B48: TBF | C48: Base SNG Annual Demand | D48: ='Other Inputs'!G321 -> 1.18324 | E48: =ROUND('Ut 1.5 p3'!G25,5) -> 1.31352
A49: =+A48+1 -> 26 | C49: SNG Amortization | D49: ='Other Inputs'!G322 -> 0.07376 | E49: =ROUND('Ut 1.5 p3'!G35,5) -> 0.07376
A50: =+A49+1 -> 27 | C50: SNG Adder Annual | D50: =+D48+D49 -> 1.257 | E50: =+E48+E49 -> 1.38728
A51: =+A50+1 -> 28 | C51: SNG Adder Monthly | D51: =+ROUND(D50/12,5) -> 0.10475 | E51: =+ROUND(E50/12,5) -> 0.11561
A53: =+A51+1 -> 29 | B53: NGV | C53: Base SNG | D53: =+'Other Inputs'!E94 -> 0.96427 | E53: =ROUND('Ut 1.5 p3'!H23,5) -> 0.97444
A54: =+A53+1 -> 30 | C54: SNG Amortization | D54: =+'Other Inputs'!F94 -> 0.0621 | E54: =ROUND('Ut 1.5 p3'!H35,5) -> 0.0621
A55: =+A54+1 -> 31 | C55: SNG Rate | D55: =+D53+D54 -> 1.02637 | E55: =+E53+E54 -> 1.03654

Sheet Ut 1.6
L1: ='Control Panel'!$F$32 -> Dominion Energy Utah
L2: ='Control Panel'!$F$33 -> Docket No. 21-057-28
L3: DEU Exhibit 1.6
C7: EFFECT ON GS TYPICAL CUSTOMER
C8: 80 DTHS - ANNUAL CONSUMPTION
C11: (A) | D11: (B) | E11: (C) | F11: (D) | H11: (E) | J11: (F)
F12: Billed at Current | H12: Billed at
C13: Rate | E13: Usage | F13: Rates Effective | H13: Proposed Rates
C14: Schedule | D14: Month | E14: In Dth | F14: ='Other Inputs'!J100 -> 2021-12-01 | H14: ='Control Panel'!F5 -> 21-057-28 | J14: Change
B16: 1 | C16: GS | D16: Jan | E16: ='Monthly Inputs'!G119 -> 14.9 | F16: =ROUND((+E16*'Other Inputs'!$G$102)+'Other Inputs'!$G$104,2) -> 140.54 | H16: =ROUND((+E16*'Ut 1.6 Source'!$F$16)+'Ut 1.6 Source'!$C$18,2) -> 144.33 | J16: =H16-F16 -> 3.79
B17: =B16+1 -> 2 | D17: Feb | E17: ='Monthly Inputs'!G120 -> 12.5 | F17: =ROUND((+E17*'Other Inputs'!$G$102)+'Other Inputs'!$G$104,2) -> 118.99 | H17: =ROUND((+E17*'Ut 1.6 Source'!$F$16)+'Ut 1.6 Source'!$C$18,2) -> 122.17 | J17: 3.18
B18: =B17+1 -> 3 | D18: Mar | E18: ='Monthly Inputs'!G121 -> 10.1 | F18: =ROUND((+E18*'Other Inputs'!$G$102)+'Other Inputs'!$G$104,2) -> 97.44 | H18: =ROUND((+E18*'Ut 1.6 Source'!$F$16)+'Ut 1.6 Source'!$C$18,2) -> 100.01 | J18: 2.57
B19: 4 | D19: Apr | E19: ='Monthly Inputs'!G122 -> 8.3 | F19: =ROUND((+E19*'Other Inputs'!$G$100)+'Other Inputs'!$G$104,2) -> 70.6 | H19: =ROUND((+E19*'Ut 1.6 Source'!$C$16)+'Ut 1.6 Source'!$C$18,2) -> 72.66 | J19: 2.06
B20: 5 | D20: May | E20: ='Monthly Inputs'!G123 -> 4.4 | F20: =ROUND((+E20*'Other Inputs'!$G$100)+'Other Inputs'!$G$104,2) -> 40.6 | H20: =ROUND((+E20*'Ut 1.6 Source'!$C$16)+'Ut 1.6 Source'!$C$18,2) -> 41.69 | J20: 1.09
B21: 6 | D21: Jun | E21: ='Monthly Inputs'!G124 -> 3.1 | F21: =ROUND((+E21*'Other Inputs'!$G$100)+'Other Inputs'!$G$104,2) -> 30.6 | H21: =ROUND((+E21*'Ut 1.6 Source'!$C$16)+'Ut 1.6 Source'!$C$18,2) -> 31.37 | J21: 0.77
B22: 7 | D22: Jul | E22: ='Monthly Inputs'!G125 -> 2 | F22: =ROUND((+E22*'Other Inputs'!$G$100)+'Other Inputs'!$G$104,2) -> 22.14 | H22: =ROUND((+E22*'Ut 1.6 Source'!$C$16)+'Ut 1.6 Source'!$C$18,2) -> 22.63 | J22: 0.49
B23: 8 | D23: Aug | E23: ='Monthly Inputs'!G126 -> 1.8 | F23: =ROUND((+E23*'Other Inputs'!$G$100)+'Other Inputs'!$G$104,2) -> 20.6 | H23: =ROUND((+E23*'Ut 1.6 Source'!$C$16)+'Ut 1.6 Source'!$C$18,2) -> 21.04 | J23: 0.44
B24: 9 | D24: Sep | E24: ='Monthly Inputs'!G127 -> 2 | F24: =ROUND((+E24*'Other Inputs'!$G$100)+'Other Inputs'!$G$104,2) -> 22.14 | H24: =ROUND((+E24*'Ut 1.6 Source'!$C$16)+'Ut 1.6 Source'!$C$18,2) -> 22.63 | J24: 0.49
B25: 10 | D25: Oct | E25: ='Monthly Inputs'!G128 -> 3.1 | F25: =ROUND((+E25*'Other Inputs'!$G$100)+'Other Inputs'!$G$104,2) -> 30.6 | H25: =ROUND((+E25*'Ut 1.6 Source'!$C$16)+'Ut 1.6 Source'!$C$18,2) -> 31.37 | J25: 0.77
B26: 11 | D26: Nov | E26: ='Monthly Inputs'!G129 -> 6.3 | F26: =ROUND((+E26*'Other Inputs'!$G$102)+'Other Inputs'!$G$104,2) -> 63.32 | H26: =ROUND((+E26*'Ut 1.6 Source'!$F$16)+'Ut 1.6 Source'!$C$18,2) -> 64.92 | J26: 1.6
B27: 12 | D27: Dec | E27: ='Monthly Inputs'!G130 -> 11.5 | F27: =ROUND((+E27*'Other Inputs'!$G$102)+'Other Inputs'!$G$104,2) -> 110.01 | H27: =ROUND((+E27*'Ut 1.6 Source'!$F$16)+'Ut 1.6 Source'!$C$18,2) -> 112.94 | J27: 2.93
B30: =B27+1 -> 13 | D30: Total | E30: =SUM(E16:E27) -> 80 | F30: =SUM(F16:F27) -> 767.58 | H30: =SUM(H16:H27) -> 787.76 | J30: =H30-F30 -> 20.18
B32: =B30+1 -> 14 | H32: Percent Change: | J32: =ROUND(J30/F30,4)*100 -> 2.63 | K32: %

Sheet Ut 1.7 Tot (hidden)
L1: ='Control Panel'!$F$32 -> Dominion Energy Utah
L2: Docket Nos. 08-057-15, 08-057-16 & 08-057-17
L3: Hearing Exhibit 2
A5: NOT USED
C7: EFFECT ON GS-1 TYPICAL CUSTOMER
B8: OF PROPOSED COMMODITY AND SNG RATES AND CET AND DSM AMORTIZATIONS
C9: 80 DTHS - ANNUAL CONSUMPTION
C12: (A) | D12: (B) | E12: (C) | F12: (D) | H12: (E) | J12: (F)
F13: Billed at Current | H13: Billed at
C14: Rate | E14: Usage | F14: Rates Effective | H14: Proposed
C15: Schedule | D15: Month | E15: In Dth | F15: ='Other Inputs'!J100 -> 2021-12-01 | H15: Rates | J15: Change
B17: 1 | C17: GS | D17: Jan | E17: ='Monthly Inputs'!G119 -> 14.9 | F17: =ROUND((+E17*'Other Inputs'!$G$102)+'Other Inputs'!$G$104,2) -> 140.54 | H17: ='CET & DSM'!D107 ->  | J17: =H17-F17 -> 
B18: =B17+1 -> 2 | D18: Feb | E18: ='Monthly Inputs'!G120 -> 12.5 | F18: =ROUND((+E18*'Other Inputs'!$G$102)+'Other Inputs'!$G$104,2) -> 118.99 | H18: ='CET & DSM'!D108 -> 
B19: 3 | D19: Mar | E19: ='Monthly Inputs'!G121 -> 10.1 | F19: =ROUND((+E19*'Other Inputs'!$G$102)+'Other Inputs'!$G$104,2) -> 97.44 | H19: ='CET & DSM'!D109 -> 
B20: 4 | D20: Apr | E20: ='Monthly Inputs'!G122 -> 8.3 | F20: =ROUND((+E20*'Other Inputs'!$G$100)+'Other Inputs'!$G$104,2) -> 70.6 | H20: ='CET & DSM'!D110 -> 
B21: 5 | D21: May | E21: ='Monthly Inputs'!G123 -> 4.4 | F21: =ROUND((+E21*'Other Inputs'!$G$100)+'Other Inputs'!$G$104,2) -> 40.6 | H21: ='CET & DSM'!D111 -> 
B22: 6 | D22: Jun | E22: ='Monthly Inputs'!G124 -> 3.1 | F22: =ROUND((+E22*'Other Inputs'!$G$100)+'Other Inputs'!$G$104,2) -> 30.6 | H22: ='CET & DSM'!D112 -> 
B23: 7 | D23: Jul | E23: ='Monthly Inputs'!G125 -> 2 | F23: =ROUND((+E23*'Other Inputs'!$G$100)+'Other Inputs'!$G$104,2) -> 22.14 | H23: ='CET & DSM'!D113 -> 
B24: 8 | D24: Aug | E24: ='Monthly Inputs'!G126 -> 1.8 | F24: =ROUND((+E24*'Other Inputs'!$G$100)+'Other Inputs'!$G$104,2) -> 20.6 | H24: ='CET & DSM'!D114 -> 
B25: 9 | D25: Sep | E25: ='Monthly Inputs'!G127 -> 2 | F25: =ROUND((+E25*'Other Inputs'!$G$100)+'Other Inputs'!$G$104,2) -> 22.14 | H25: ='CET & DSM'!D115 -> 
B26: 10 | D26: Oct | E26: ='Monthly Inputs'!G128 -> 3.1 | F26: =ROUND((+E26*'Other Inputs'!$G$100)+'Other Inputs'!$G$104,2) -> 30.6 | H26: ='CET & DSM'!D116 -> 
B27: 11 | D27: Nov | E27: ='Monthly Inputs'!G129 -> 6.3 | F27: =ROUND((+E27*'Other Inputs'!$G$102)+'Other Inputs'!$G$104,2) -> 63.32 | H27: ='CET & DSM'!D117 -> 
B28: 12 | D28: Dec | E28: ='Monthly Inputs'!G130 -> 11.5 | F28: =ROUND((+E28*'Other Inputs'!$G$102)+'Other Inputs'!$G$104,2) -> 110.01 | H28: ='CET & DSM'!D118 -> 
B31: =B28+1 -> 13 | D31: Total | E31: =SUM(E17:E28) -> 80 | F31: =SUM(F17:F28) -> 767.58 | H31: =SUM(H17:H28) ->  | J31: =H31-F31 -> 
H33: Percent Change: | J33: =ROUND(J31/F31,4)*100 ->  | K33: %

Sheet Ut 1.7 p1
F1: ='Control Panel'!F32 -> Dominion Energy Utah
F2: ='Control Panel'!F33 -> Docket No. 21-057-28
F3: DEU Exhibit 1.7
F4: Page 1 of 17
A15: DOMINION ENERGY UTAH
A16: 333 South State Street
A17: P.O. Box 45433
A18: Salt Lake City, Utah 84145-0433
A29: LEGISLATIVE/PROPOSED RATE SCHEDULES
A31: P.S.C. Utah No. 500
A32: Affecting GS, FS, NGV, IS, TBF, and TSF Rate Schedules
A33: and Classes of Service In
A34: Dominion Energy
A35: Utah Service Area
A37: Tariff Section 2.02, 2.03, 2.04, 4.02, 5,02, and 5.04
A39: Date Issued: December 1, 2021
A40: To Become Effective January 1, 2022

Sheet LEG - PR (hidden)
A2: LEGISLATIVE TARIFF
A3: SHEETS
A6: PROPOSED TARIFF
A7: SHEETS

Sheet Ut 1.6 Source
A1: SUMMARY OF PROPOSED RATES
G2: Current Rates Effective | H2: 2021-12-01
A3: UTAH RATE CLASSES | C3: Rates per Dth Used Each Month
C4: All Season Rates or Summer Rates: Apr. 1 - Oct. 31 | F4: Winter Rates: Nov. 1 - Mar. 31
A5: UT GS | C5: First 45 Dth | D5: All Over 45 Dth | F5: First 45 Dth | G5: All Over 45 Dth
B6: Distribution Non-Gas Cost | C6: 1.94617 | D6: 0.74377 | F6: 2.64801 | G6: 1.44561
B7: CET Amortization | C7: 0.02274 | D7: 0.00888 | F7: 0.03083 | G7: 0.01697
B8: DSM Amortization | C8: 0.27767 | D8: 0.27767 | F8: 0.27767 | G8: 0.27767
B9: Energy Assistance | C9: 0.01308 | D9: 0.01308 | F9: 0.01308 | G9: 0.01308
B10: Infrastructure Rate Adjustment | C10: 0.08309 | D10: 0.03175 | F10: 0.11305 | G10: 0.06172
B11: Tax Reform Surcredit 3 | C11: 0.00728 | D11: 0.00327 | F11: 0.00962 | G11: 0.00561
B12: STEP Surcharge | C12: 0.00346 | D12: 0.00132 | F12: 0.00471 | G12: 0.00257
B13: Supplier Non-Gas Cost | C13: =+'Ut 1.5 p6'!E27 -> 0.39825 | D13: =C13 -> 0.39825 | F13: =+'Ut 1.5 p6'!E31 -> 0.94702 | G13: =F13 -> 0.94702
B14: Commodity Cost | C14: =('Ut 1.5 p1'!$F$31) -> 5.1898 | D14: =C14 -> 5.1898 | F14: =D14 -> 5.1898 | G14: =F14 -> 5.1898
B16: Total Rate | C16: =SUM(C6:C15) -> 7.94154 | D16: =SUM(D6:D15) -> 6.66779 | F16: =SUM(F6:F15) -> 9.23379 | G16: =SUM(G6:G15) -> 7.96005
B18: BSF Category 1 | C18: 6.75
B19: BSF Category 2 | C19: 18.25
B20: BSF Category 3 | C20: 63.5
B21: BSF Category 4 | C21: 420.25
A24: UT FS | C24: First 200 Dth | D24: Next 1,800 Dth | E24: All Over 2,000 Dth | F24: First 200 Dth | G24: Next 1,800 Dth | H24: All Over 2,000 Dth
B25: Distribution Non-Gas Cost | C25: 1.03811 | D25: 0.54067 | E25: 0.01703 | F25: 1.56992 | G25: 1.07247 | H25: 0.54883
B26: Energy Assistance | C26: 0.01084 | D26: 0.01084 | E26: 0.01084 | F26: 0.01084 | G26: 0.01084 | H26: 0.01084
B27: Infrastructure Rate Adjustment | C27: 0.03924 | D27: 0.02044 | E27: 0.00064 | F27: 0.05935 | G27: 0.04054 | H27: 0.02075
B28: Tax Reform Surcredit 3 | C28: 0.00313 | D28: 0.00168 | E28: 0.00015 | F28: 0.00467 | G28: 0.00323 | H28: 0.0017
B29: STEP Surcharge | C29: 0.00162 | D29: 0.00085 | E29: 3e-05 | F29: 0.00246 | G29: 0.00168 | H29: 0.00086
B30: Supplier Non-Gas Cost | C30: =+'Ut 1.5 p6'!E35 -> 0.82319 | D30: =C30 -> 0.82319 | E30: =D30 -> 0.82319 | F30: =+'Ut 1.5 p6'!E39 -> 0.8561 | G30: =F30 -> 0.8561 | H30: =G30 -> 0.8561
B31: Commodity Cost | C31: =('Ut 1.5 p1'!$F$31) -> 5.1898 | D31: =C31 -> 5.1898 | E31: =D31 -> 5.1898 | F31: =E31 -> 5.1898 | G31: =F31 -> 5.1898 | H31: =G31 -> 5.1898
B33: Total Rate | C33: =SUM(C25:C32) -> 7.10593 | D33: =SUM(D25:D32) -> 6.58747 | E33: =SUM(E25:E32) -> 6.04168 | F33: 7.69314 | G33: 7.17466 | H33: 6.62888
B35: Minimum Monthly DNG Charge: | C35: 182 | F35: 275
B37: BSF Category 1 | C37: =C18 -> 6.75
B38: BSF Category 2 | C38: =C19 -> 18.25
B39: BSF Category 3 | C39: =C20 -> 63.5
B40: BSF Category 4 | C40: =C21 -> 420.25
A43: UT Future Rate Class
C44: First 10,000 Dth | D44: All Over 10,000 Dth
B45: Distribution Non-Gas Cost
B46: Supplier Non-Gas Cost
B47: Commodity Cost
B49: Total Rate | C49: =SUM(C45:C48) -> 0 | D49: =SUM(D45:D48) -> 0
B51: Minimum Yearly Distribution Non-Gas Charge | D51: =ROUND(((10000*C45))*12,-2) -> 0
B54: BSF Category 1 | C54: =C18 -> 6.75
B55: BSF Category 2 | C55: =C19 -> 18.25
B56: BSF Category 3 | C56: =C20 -> 63.5
B57: BSF Category 4 | C57: =C21 -> 420.25
A61: UT NGV
B62: Distribution Non-Gas Cost | C62: 8.11914
B63: Energy Assistance | C63: 0.02113
B64: Infrastructure Rate Adjustment | C64: 0.41445
B65: Tax Reform Surcredit 3 | C65: 0.02764
B66: STEP Surcharge | C66: 0.01374
B67: Supplier Non-Gas Cost | C67: =+'Ut 1.5 p6'!E55 -> 1.03654
B68: Commodity Cost | C68: ='Ut 1.5 p6'!E20 -> 4.81141
B70: Total Rate | C70: =SUM(C62:C69) -> 14.44405 | D70: =C70/8+0.35 -> 2.15550625
A73: UT IS | C73: First 2,000 Dth | D73: Next 18,000 Dth | E73: All Over 20,000
B74: Distribution Non-Gas Cost | C74: 0.91912 | D74: 0.13879 | E74: 0.08169
B75: Energy Assistance | C75: 0.00939 | D75: 0.00939 | E75: 0.00939
B76: Infrastructure Rate Adjustment | C76: 0.02877 | D76: 0.00434 | E76: 0.00256
B77: Tax Reform Surcredit 3 | C77: 0.00353 | D77: 0.00056 | E77: 0.00034
B78: STEP Surcharge | C78: 0.0012 | D78: 0.00018 | E78: 0.00011
B79: Supplier Non-Gas Cost | C79: =+'Ut 1.5 p6'!E41 -> 0.17905 | D79: =C79 -> 0.17905 | E79: =D79 -> 0.17905
B80: Commodity Cost | C80: =('Ut 1.5 p1'!$F$31) -> 5.1898 | D80: =('Ut 1.5 p1'!$F$31) -> 5.1898 | E80: =('Ut 1.5 p1'!$F$31) -> 5.1898
B82: Total Rate | C82: =SUM(C74:C80) -> 6.33086 | D82: =SUM(D74:D80) -> 5.52211 | E82: =SUM(E74:E80) -> 5.46294
B84: BSF Category 1 | C84: =C18 -> 6.75
B85: BSF Category 2 | C85: =C19 -> 18.25
B86: BSF Category 3 | C86: =C20 -> 63.5
B87: BSF Category 4 | C87: =C21 -> 420.25

Sheet Ut 1.11 (hidden)
F1: ='Control Panel'!#REF! -> 
F2: ='Control Panel'!F33 -> Docket No. 21-057-28
F3: Exhibit 1.11
F4: Page 1 of 7
A17: DOMINION ENERGY UTAH
A18: 333 South State Street
A19: P.O. Box 45433
A20: Salt Lake City, Utah 84145-0433
A31: LEGISLATIVE/PROPOSED RATE SCHEDULES
A32: P.S.C. Utah Tariff

Sheet Ut 1.8 p1
F1: ='Control Panel'!F32 -> Dominion Energy Utah
F2: ='Control Panel'!F33 -> Docket No. 21-057-28
F3: DEU Exhibit 1.8
F4: Page 1 of 17
A15: DOMINION ENERGY UTAH
A16: 333 South State Street
A17: P.O. Box 45433
A18: Salt Lake City, Utah 84145-0433
A29: LEGISLATIVE/PROPOSED COMBINED RATE SCHEDULES
A31: P.S.C. Utah No. 500
A32: Affecting All Rate Schedules
A33: and Classes of Service In
A34: Dominion Energy
A35: Utah Service Area
A39: Date Issued: December 1, 2021
A40: To Become Effective January 1, 2022

Sheet Ut Storage
A1: Storage Injection / Withdrawal adjustment
C3: (A) | D3: (B) | E3: (C) | F3: (D) | G3: (E) | H3: (F) | I3: (G) | K3: (H) | L3: (I) | M3: (J)
G4: Injections | I4: (J) / (C)
E5: Storage | G5: ------------------------------------------------------------- | I5: Storage | M5: Storage
C6: Injection Dth | D6: Withdrawal Dth | E6: Inventory Dth | F6: % that is | G6: Co. Prod. | H6: Purchased | I6: Inventory | M6: Inventory
A7: Line | B7: Month | C7: Per IRPs | D7: Per IRPs | E7: Balance | F7: Co. Prod. (1) | G7: $/Dth (2) | H7: $/Dth (3) | I7: Average $/Dth | K7: Injection (4) | L7: Withdrawal (5) | M7: Balance
B8: =+Expenses!P3 -> 2021-10-31 | E8: =-1*'Other Inputs'!D251 -> 13372878 | I8: =M8/E8 -> 3.711898094 | M8: ='Other Inputs'!E251 -> 49638760.36
B9: ='Monthly Inputs'!E3 -> Nov21 | C9: ='Monthly Inputs'!E29 -> 480186 | D9: =-'Monthly Inputs'!E37 -> -842361 | E9: =E8+C9+D9 -> 13010703 | F9: =F21 -> 0.4674776258 | G9: ='Other Inputs'!F116 -> 4.00907 | H9: ='Monthly Inputs'!E79 -> 5.82 | I9: =M9/E9 -> 3.758457478 | K9: =(+F9*C9*G9)+((1-F9)*C9*H9) -> 2388171.815 | L9: =D9*I8 -> -3126758.19 | M9: =M8+L9+K9 -> 48900173.98
B10: ='Monthly Inputs'!F3 -> Dec21 | C10: ='Monthly Inputs'!F29 -> 140188 | D10: =-'Monthly Inputs'!F37 -> -3754649 | E10: =E9+C10+D10 -> 9396242 | F10: =F22 -> 0.2908162385 | G10: =G9 -> 4.00907 | H10: ='Monthly Inputs'!F79 -> 5.86 | I10: 3.781780693 | K10: =(+F10*C10*G10)+((1-F10)*C10*H10) -> 746041.2132 | L10: =D10*I9 -> -14111688.61 | M10: =M9+L10+K10 -> 35534526.59
A11: 1. | B11: ='Monthly Inputs'!G3 -> Jan22 | C11: ='Monthly Inputs'!G29 -> 0 | D11: =-'Monthly Inputs'!G37 -> -4786048 | E11: =E10+C11+D11 -> 4610194 | F11: =Calculations!D177 -> 0.3116150894 | G11: ='Ut 1.2 p3'!$G$50 -> 4.119499556 | H11: =Calculations!D197 -> 6.60144 | I11: 3.781780693 | K11: 0 | L11: =D11*I10 -> -18099783.92 | M11: =M10+L11+K11 -> 17434742.66
A12: 2. | B12: ='Monthly Inputs'!H3 -> Feb22 | C12: ='Monthly Inputs'!H29 -> 0 | D12: =-'Monthly Inputs'!H37 -> -3153731 | E12: =E11+C12+D12 -> 1456463 | F12: =Calculations!E177 -> 0.3110156317 | G12: ='Ut 1.2 p3'!$G$50 -> 4.119499556 | H12: =Calculations!E197 -> 6.00205 | I12: 3.781780693 | K12: 0 | L12: =D12*I11 -> -11926719.01 | M12: =M11+L12+K12 -> 5508023.654
A13: 3. | B13: ='Monthly Inputs'!I3 -> Mar22 | C13: ='Monthly Inputs'!I29 -> 325000 | D13: =-'Monthly Inputs'!I37 -> -1599106 | E13: =E12+C13+D13 -> 182357 | F13: =Calculations!F177 -> 0.398247387 | G13: ='Ut 1.2 p3'!$G$50 -> 4.119499556 | H13: =Calculations!F197 -> 4.49497 | I13: 4.786344459 | K13: 1412267.96 | L13: =D13*I12 -> -6047468.198 | M13: 872823.4165
A14: 4. | B14: ='Monthly Inputs'!J3 -> Apr22 | C14: ='Monthly Inputs'!J29 -> 945000 | D14: =-'Monthly Inputs'!J37 -> 0 | E14: 1127357 | F14: =Calculations!G177 -> 0.4368152588 | G14: ='Ut 1.2 p3'!$G$50 -> 4.119499556 | H14: =Calculations!G197 -> 3.70229 | I14: =M14/E14 -> 4.030407026 | K14: 3670884.158 | L14: =D14*I13 -> 0 | M14: 4543707.574
A15: 5. | B15: ='Monthly Inputs'!K3 -> May22 | C15: ='Monthly Inputs'!K29 -> 2418001 | D15: =-'Monthly Inputs'!K37 -> 0 | E15: 3545358 | F15: =Calculations!H177 -> 0.5786841367 | G15: ='Ut 1.2 p3'!$G$50 -> 4.119499556 | H15: =Calculations!H197 -> 3.42223 | I15: 3.890812638 | K15: 9250616.139 | L15: 0 | M15: 13794323.71
A16: 6. | B16: ='Monthly Inputs'!L3 -> Jun22 | C16: ='Monthly Inputs'!L29 -> 2166181 | D16: =-'Monthly Inputs'!L37 -> 0 | E16: =E15+C16+D16 -> 5711539 | F16: =Calculations!I177 -> 0.8224569771 | G16: ='Ut 1.2 p3'!$G$50 -> 4.119499556 | H16: =Calculations!I197 -> 3.22571 | I16: =M16/E16 -> 3.917361427 | K16: 8579838.854 | L16: 0 | M16: 22374162.57
A17: 7. | B17: ='Monthly Inputs'!M3 -> Jul22 | C17: ='Monthly Inputs'!M29 -> 1976476 | D17: =-'Monthly Inputs'!M37 -> 0 | E17: 7688015 | F17: =Calculations!J177 -> 0.969875748 | G17: ='Ut 1.2 p3'!$G$50 -> 4.119499556 | H17: =Calculations!J197 -> 3.35 | I17: =M17/E17 -> 3.963368786 | K17: 8096276.108 | L17: 0 | M17: 30470438.67
A18: 8. | B18: ='Monthly Inputs'!N3 -> Aug22 | C18: ='Monthly Inputs'!N29 -> 2051859 | D18: =-'Monthly Inputs'!N37 -> 0 | E18: 9739874 | F18: =Calculations!K177 -> 0.9521895679 | G18: ='Ut 1.2 p3'!$G$50 -> 4.119499556 | H18: =Calculations!K197 -> 3.5547 | I18: 3.990571534 | K18: 8397225.253 | L18: =D18*I17 -> 0 | M18: 38867663.93
A19: 9. | B19: ='Monthly Inputs'!O3 -> Sep22 | C19: ='Monthly Inputs'!O29 -> 1995132 | D19: =-'Monthly Inputs'!O37 -> 0 | E19: 11735006 | F19: =Calculations!L177 -> 0.8440926647 | G19: ='Ut 1.2 p3'!$G$50 -> 4.119499556 | H19: =Calculations!L197 -> 3.54 | I19: 3.997130693 | K19: 8038688.74 | L19: 0 | M19: =M18+L19+K19 -> 46906352.67
A20: 10. | B20: ='Monthly Inputs'!P3 -> Oct22 | C20: ='Monthly Inputs'!P29 -> 2037654 | D20: =-'Monthly Inputs'!P37 -> 0 | E20: 13772660 | F20: =Calculations!M177 -> 0.4700622214 | G20: ='Ut 1.2 p3'!$G$50 -> 4.119499556 | H20: =Calculations!M197 -> 3.49163 | I20: 3.966007666 | K20: 7716122.47 | L20: 0 | M20: =M19+L20+K20 -> 54622475.14
A21: 11. | B21: ='Monthly Inputs'!Q3 -> Nov22 | C21: ='Monthly Inputs'!Q29 -> 10996 | D21: =-'Monthly Inputs'!Q37 -> -2087659 | E21: 11695997 | F21: =Calculations!N177 -> 0.4674776258 | G21: ='Ut 1.2 p3'!$G$50 -> 4.119499556 | H21: =Calculations!N197 -> 3.7973 | I21: 3.965990662 | K21: 43411.34023 | L21: -8279671.597 | M21: =M20+L21+K21 -> 46386214.88
A22: 12. | B22: ='Monthly Inputs'!R3 -> Dec22 | C22: ='Monthly Inputs'!R29 -> 399441 | D22: =-'Monthly Inputs'!R37 -> -2672247 | E22: 9423191 | F22: =Calculations!O177 -> 0.2908162385 | G22: ='Ut 1.2 p3'!$G$50 -> 4.119499556 | H22: =Calculations!O197 -> 4.76385 | I22: 3.991868037 | K22: 1828026.729 | L22: -10598106.65 | M22: =M21+L22+K22 -> 37616134.96
M25: Inj./With. Adj.
A26: 14. | B26: Total | C26: =SUM(C11:C22) -> 14325740 | D26: =SUM(D11:D22) -> -14298791 | K26: =SUM(K11:K22) -> 57033357.75 | L26: =SUM(L11:L22) -> -54951749.37 | M26: =L26+K26 -> 2081608.375
A27: 15. | B27: Average $ /Dth | K27: =K26/C26 -> 3.981180571 | L27: =L26/D26 -> 3.843104594
A31: ___________________________________________________________________

Sheet Ex 1.1 Data
A1: MLPX Gathered | B1: 7624851 | C1: Adjusted test year-> | D1: -0.02990871313 | E1: 7396801.519 | H1: MLPX Gathered | I1: 5905557 | J1: Adjusted test year-> | K1: 0.3122001142 | L1: 7749272.57
A2: Birch Creek | B2: 1467843 | C2: Adjusted test year-> | D2: -0.02990871313 | E2: 1423941.705 | H2: Birch Creek | I2: 0
A3: Other | B3: 13852905 | H3: Other | I3: 5044527
A4: Wexpro | B4: 0 | H4: Wexpro | I4: 582849
A5: MLPX-Acquired | B5: 20474291 | H5: MLPX-Acquired | I5: 0
C7: WEXPRO I | J7: WEXPRO II
A8: Input Operator Service Fee > | C8: =+'Monthly Inputs'!S110 -> 164169481.4 | H8: Input Operator Service Fee > | J8: =+'Monthly Inputs'!S112 -> 37918170.22
A11: \/ | C11: 2021-10-31 | J11: 2021-10-31
A12: \/ | B12: Company | C12: Average Index | D12: Church Buttes | H12: \/ | I12: Company | J12: Average Index | K12: Church Buttes
A13: \/ | B13: Production | C13: Spot Prices | D13: & Canyon Cr | H13: \/ | I13: Production | J13: Spot Prices | K13: & Canyon Cr
A14: January | B14: 3908627.988 | C14: 5.56 | D14: =C14+0.1 -> 5.66 | E14: =B14*D14 -> 22122834.41 | H14: January | I14: 1409483 | J14: 5.56 | K14: =J14+0.1 -> 5.66 | L14: =I14*K14 -> 7977673.78
A15: February | B15: 3490498.99 | C15: 5.04 | D15: 5.14 | E15: 17941164.81 | H15: February | I15: 1243915 | J15: 5.04 | K15: 5.14 | L15: 6393723.1
A16: March | B16: 3812259.988 | C16: 4.45 | D16: 4.55 | E16: 17345782.95 | H16: March | I16: 1343696 | J16: 4.45 | K16: 4.55 | L16: 6113816.8
A17: April | B17: 3443894.989 | C17: 3.65 | D17: 3.75 | E17: 12914606.21 | H17: April | I17: 1270473 | J17: 3.65 | K17: 3.75 | L17: 4764273.75
A18: May | B18: 3515208.989 | C18: 3.42 | D18: 3.52 | E18: 12373535.64 | H18: May | I18: 1279707 | J18: 3.42 | K18: 3.52 | L18: 4504568.64
A19: June | B19: 3360101.986 | C19: 3.22 | D19: 3.32 | E19: 11155538.59 | H19: June | I19: 1210752 | J19: 3.22 | K19: 3.32 | L19: 4019696.64
A20: July | B20: 3424343.286 | C20: 3.33 | D20: 3.43 | E20: 11745497.47 | H20: July | I20: 1185490 | J20: 3.33 | K20: 3.43 | L20: 4066230.7
A21: August | B21: 3384602.392 | C21: 3.55 | D21: 3.65 | E21: 12353798.73 | H21: August | I21: 1160095 | J21: 3.55 | K21: 3.65 | L21: =I21*K21 -> 4234346.75
A22: September | B22: 3246630.992 | C22: 3.54 | D22: 3.64 | E22: 11817736.81 | H22: September | I22: 1097892 | J22: 3.54 | K22: 3.64 | L22: =I22*K22 -> 3996326.88
A23: October | B23: 3311505.589 | C23: 3.49 | D23: 3.59 | E23: 11888305.06 | H23: October | I23: 1110111 | J23: 3.49 | K23: 3.59 | L23: =I23*K23 -> 3985298.49
A24: November | B24: 3618915.987 | C24: 3.79 | D24: 3.89 | E24: 14077583.19 | H24: November | I24: 1401078 | J24: 3.79 | K24: =J24+0.1 -> 3.89 | L24: =I24*K24 -> 5450193.42
A25: December | B25: 3604665.791 | C25: 4.14 | D25: 4.24 | E25: 15283782.96 | H25: December | I25: 1420824 | J25: 4.14 | K25: =J25+0.1 -> 4.24 | L25: =I25*K25 -> 6024293.76
B27: =SUM(B14:B25) -> 42121256.97 | C27: CANYON CREEK | D27: =E27/B27 -> 4.060186688 | E27: =SUM(E14:E25) -> 171020166.8 | I27: =SUM(I14:I25) -> 15133516 | J27: CANYON CREEK | K27: =L27/I27 -> 4.065839208 | L27: =SUM(L14:L25) -> 61530442.71
C28: CHURCH BUTTES | J28: CHURCH BUTTES
C29: All Others -> | D29: =D27-0.2 -> 3.860186688 | J29: All Others -> | K29: =K27-0.2 -> 3.865839208

Sheet Expenses
P1: Historical
P2: 12 Months Ending
A3: FERC Acct | B3: Description | D3: 2020-11-30 | E3: 2020-12-31 | F3: 2021-01-31 | G3: 2021-02-28 | H3: 2021-03-31 | I3: 2021-04-30 | J3: 2021-05-31 | K3: 2021-06-30 | L3: 2021-07-31 | M3: 2021-08-31 | N3: 2021-09-30 | O3: 2021-10-31 | P3: =+O3 -> 2021-10-31
A5: OTHER UTILITY OPERATING EXPENSES
A7: Depreciation, Amortization, & Other Taxes
A8: 403 | B8: Depreciation Expense | C8: Production | D8: 0 | E8: 0 | F8: 0 | G8: 0 | H8: 0 | I8: 0 | J8: 0 | K8: 0 | L8: 0 | M8: 0 | N8: 0 | O8: 0 | P8: 814564
A10: 404 | B10: Amortization and Depletion | C10: Production | D10: 0 | E10: 0 | F10: 0 | G10: 0 | H10: 0 | I10: 0 | J10: 0 | K10: 0 | L10: 0 | M10: 0 | N10: 0 | O10: 0 | P10: 0
A13: 483 | B13: Sales for Resale | D13: 70956.2 | E13: 68278.08 | F13: 108760.56 | G13: 43976.21 | H13: 58465.11 | I13: -243301.46 | J13: 75365.96 | K13: 74786.67 | L13: 67778 | M13: 69108.57 | N13: 97129.99 | O13: 97138.4 | P13: =SUM(D13:O13) -> 588442.29
A14: 490 | B14: Incidental Plant Prod Sales | D14: 324058.92 | E14: 398999.99 | F14: 392828.82 | G14: 569686.21 | H14: 170620.23 | I14: 653866.38 | J14: 682856.11 | K14: 634958.11 | L14: 1627073 | M14: 359.4 | N14: 902433.39 | O14: 2189382.93 | P14: =SUM(D14:O14) -> 8547123.49
A15: 492 | B15: Incidental Gasoline_Oil Sales | D15: 77456.16 | E15: 81027.9 | F15: 127457.95 | G15: 138811.4 | H15: 173241.55 | I15: 166979.59 | J15: 212549.49 | K15: 203206.68 | L15: 176274 | M15: 251590.28 | N15: 158052.51 | O15: 152048.32 | P15: 1918695.83
A16: 4951 | B16: Overriding Royalty Revenue from Celsius | D16: 59951.56 | E16: 342343.1 | F16: 454451.08 | G16: 401636.71 | H16: 740806.43 | I16: 1065587.95 | J16: 358482.73 | K16: 551110.84 | L16: 937063 | M16: 150108.45 | N16: 147551.81 | O16: 1014606.72 | P16: =SUM(D16:O16) -> 6223700.38
A17: 4952 | B17: Oil Revenue Received from Wexpro | D17: 20243 | E17: 22814 | F17: 22185 | G17: 19996 | H17: 35003 | I17: 27481 | J17: 41794 | K17: 37568 | L17: 47511 | M17: 4721 | N17: 16848 | O17: 115027 | P17: 411191
A18: 758001 | B18: Gas Well Royalities - Other | D18: 0 | E18: 0 | F18: 0 | G18: 0 | H18: 0 | I18: 0 | J18: 0 | K18: 0 | L18: 0 | M18: 0 | N18: 0 | O18: 0 | P18: 0
A21: Other Operating Revenues
A22: 491 | B22: Revenue fr Natural Gas Processed by Others | D22: 0 | E22: 0 | F22: 0 | G22: 0 | H22: 0 | I22: 0 | J22: 0 | K22: 0 | L22: 0 | M22: 0 | N22: 0 | O22: 0 | P22: 0

Sheet Rate Base
Q1: Historical
Q2: 13-Month Avg
Q3: Period Ended
A4: FERC Acct | B4: Description | D4: 2020-10-31 | E4: 2020-11-30 | F4: 2020-12-31 | G4: 2021-01-31 | H4: 2021-02-28 | I4: 2021-03-31 | J4: 2021-04-30 | K4: 2021-05-31 | L4: 2021-06-30 | M4: 2021-07-31 | N4: 2021-08-31 | O4: 2021-09-30 | P4: 2021-10-31 | Q4: =+P4 -> 2021-10-31
A5: 101 | B5: Gas Plant in Service | C5: Production | D5: 79968136 | E5: 79968136 | F5: 79968136 | G5: 79968136 | H5: 79968136 | I5: 79968136 | J5: 79968136 | K5: 79968136 | L5: 79968136 | M5: 79968136 | N5: 79968136 | O5: 79968136 | P5: 79968136 | Q5: =((D5/2)+SUM(E5:O5)+(P5/2))/12 -> 79968136
A7: 108 | B7: Accum Prov for Depreciation of Gas Plant in Service | C7: Production | D7: -71030895 | E7: -71094180 | F7: -71102647 | G7: -71145931 | H7: -71234109 | I7: -71303759 | J7: -71373554 | K7: -71443468 | L7: -71513383 | M7: -71572680 | N7: -71641946 | O7: -71711214 | P7: -71780483 | Q7: =((D7/2)+SUM(E7:O7)+(P7/2))/12 -> -71378546.67
A9: 111 | B9: Accum Prov for Amortization of Gas Plant in Service | C9: Production | D9: -6150277.68 | E9: -6150278.02 | F9: -6150278.36 | G9: -6150278.7 | H9: -6150279.04 | I9: -6150277 | J9: -6150277 | K9: -6150277 | L9: -6150277 | M9: -6150277 | N9: -6150277 | O9: -6150277 | P9: -6150277 | Q9: =((D9/2)+SUM(E9:O9)+(P9/2))/12 -> -6150277.538
A11: 1641 | B11: Gas Stored Underground | C11: Production | D11: 49932603.18 | E11: 52970477.48 | F11: 45826911.25 | G11: 33652911.52 | H11: 21131351.05 | I11: 14010245.2 | J11: 11574315.84 | K11: 17495294.93 | L11: 23415459.21 | M11: 30738132.55 | N11: 35307557.59 | O11: 37462513.81 | P11: 49638760.36 | Q11: =((D11/2)+SUM(E11:O11)+(P11/2))/12 -> 31114237.68
A13: 255 | B13: Deferred Investment Tax Credits | C13: Production | D13: 0 | E13: 0 | F13: 0 | G13: 0 | H13: 0 | I13: 0 | J13: 0 | K13: 0 | L13: 0 | M13: 0 | O13: 0 | P13: 0 | Q13: =((D13/2)+SUM(E13:O13)+(P13/2))/12 -> 0
A15: 282000 | B15: Accum Deferred Income Taxes - Federal | C15: Production | D15: -29974877 | E15: -31061650 | F15: -32579975 | G15: -32506432 | H15: -32847926 | I15: -33351414 | J15: -33507390 | K15: -33963163 | L15: -31483079 | M15: -31080075 | N15: -24954142 | O15: -24655106 | P15: -25179711 | Q15: =((D15/2)+SUM(E15:O15)+(P15/2))/12 -> -30797303.83
A17: 282100 | B17: Accum Deferred Income Taxes - State | C17: Production | D17: -700755.31 | E17: -700755.31 | F17: -700755.31 | G17: -700755.31 | H17: -700755.31 | I17: -700755 | J17: -700755 | K17: -700755 | L17: -700755 | M17: -700755 | N17: -700755 | O17: -700755 | P17: -700755.31 | Q17: =((D17/2)+SUM(E17:O17)+(P17/2))/12 -> -700755.1292
A19: RATE BASE (W/O Working Cap. Cash) | C19: Production | D19: =+D5+D7+D9+D11+D13+D15+D17 -> 22043934.19 | E19: 23931750.15 | F19: 15261391.58 | G19: 3117650.51 | H19: -9833582.3 | I19: -17527823.8 | J19: -20189524.16 | K19: -14794232.07 | L19: -6463898.79 | M19: 1202481.55 | N19: 11828573.59 | O19: 14213297.81 | P19: 25795670.05 | Q19: =((D19/2)+SUM(E19:O19)+(P19/2))/12 -> 2055490.516
A21: 1641 | B21: Gas Stored Underground (DTH) | C21: Total (DTH) | D21: -13820904 | E21: -14802207 | F21: -13019750 | G21: -9615193 | H21: -6108724 | I21: -4127886 | J21: -3428469 | K21: -4974193 | L21: -6540716 | M21: -8397653 | N21: -9532438 | O21: -10062789 | P21: -13372878 | Q21: =((D21/2)+SUM(E21:O21)+(P21/2))/12 -> -8683909.083

Sheet RevRun Fcst
D3: TEMPERATURE ADJUSTED INPUT DATA FROM REVRUN SYSTEM
D4: 10/26/21
T7: 12-Month
B8: Rate Class | D8: Description | H8: Jan22 | I8: Feb22 | J8: Mar22 | K8: Apr22 | L8: May22 | M8: Jun22 | N8: Jul22 | O8: Aug22 | P8: Sep22 | Q8: Oct22 | R8: Nov22 | S8: Dec22 | T8: 2022-12-31
B10: UTILITY OPERATING REVENUE
B11: TARIFF DTH SALES AND REVENUE
A13: 13 | B13: Utah | G13: 1 | H13: 1 | I13: 2 | J13: 3 | K13: 4 | L13: 5 | M13: 6 | N13: 7 | O13: 8 | P13: 9 | Q13: 10 | R13: 11 | S13: 12
A14: 14 | C14: GS | D14: Distribution Non-Gas Rev | G14: 2 | H14: 58349406.27 | I14: 50452480.4 | J14: 40878025 | K14: 24215996.38 | L14: 17598962.06 | M14: 13615093.36 | N14: 12687118.66 | O14: 12597861.2 | P14: 13279437.17 | Q14: 20125658.57 | R14: 37776330.25 | S14: 53216275.24 | T14: 354792644.6
A15: 15 | G15: 3
A16: 16 | D16: Supplier Non-Gas Revenue | G16: 4 | H16: 19145400.54 | I16: 16047582.05 | J16: 12330628.58 | K16: 3567010.4 | L16: 2054605.84 | M16: 1145300.59 | N16: 937804.26 | O16: 915191.62 | P16: 1064944.98 | Q16: 2626611.03 | R16: 11131159.42 | S16: 17115208.75 | T16: 88081448.06
A17: 17 | G17: 5
A18: 18 | D18: Commodity Revenue | G18: 6 | H18: 100736785.5 | I18: 84437085.92 | J18: 64879702.23 | K18: 44396079.75 | L18: 25572239.68 | M18: 14254754.08 | N18: 11672192.63 | O18: 11390749 | P18: 13254624.15 | Q18: 32691587.54 | R18: 58568490.95 | S18: 90054585.6 | T18: 551908877
A19: 19 | D19: Total Revenue | G19: 7 | H19: 178231592.3 | I19: 150937148.4 | J19: 118088355.8 | K19: 72179086.53 | L19: 45225807.58 | M19: 29015148.03 | N19: 25297115.55 | O19: 24903801.82 | P19: 27599006.3 | Q19: 55443857.14 | R19: 107475980.6 | S19: 160386069.6 | T19: 994782969.6
A20: 20 | D20: # of Customers | G20: 8 | H20: 1116507 | I20: 1117581 | J20: 1120127 | K20: 1122818 | L20: 1124116 | M20: 1126790 | N20: 1127234 | O20: 1128566 | P20: 1131660 | Q20: 1131712 | R20: 1135569 | S20: 1139975 | T20: 1126887.917
A21: 21 | D21: Total Dth | G21: 9 | H21: 20381541 | I21: 17083709 | J21: 13126767 | K21: 8982424 | L21: 5173896 | M21: 2884089 | N21: 2361573 | O21: 2304630 | P21: 2681738 | Q21: 6614316 | R21: 11849853 | S21: 18220268 | T21: 111664804
A22: 22 | G22: 10
A23: 23 | C23: GS-C | D23: Distribution Non-Gas Rev | G23: 11 | T23: 0
A24: 24 | G24: 12
A25: 25 | D25: Supplier Non-Gas Revenue | G25: 13 | T25: 0
A26: 26 | G26: 14
A27: 27 | D27: Commodity Revenue | G27: 15 | T27: 0
A28: 28 | D28: Total Revenue | G28: 16 | T28: 0
A29: 29 | D29: # of Customers | G29: 17
A30: 30 | D30: Total Dth | G30: 18 | T30: 0
A31: 31 | G31: 19
A32: 32 | C32: GSS | D32: Distribution Non-Gas Rev | G32: 20 | H32: 0 | I32: 0 | J32: 0 | K32: 0 | L32: 0 | M32: 0 | N32: 0 | O32: 0 | P32: 0 | Q32: 0 | R32: 0 | S32: 0 | T32: 0
A33: 33 | G33: 21 | H33: 0 | I33: 0 | J33: 0 | K33: 0 | L33: 0 | M33: 0 | N33: 0 | O33: 0 | P33: 0 | Q33: 0 | R33: 0 | S33: 0
A34: 34 | D34: Supplier Non-Gas Revenue | G34: 22 | H34: 0 | I34: 0 | J34: 0 | K34: 0 | L34: 0 | M34: 0 | N34: 0 | O34: 0 | P34: 0 | Q34: 0 | R34: 0 | S34: 0 | T34: 0
A35: 35 | G35: 23 | H35: 0 | I35: 0 | J35: 0 | K35: 0 | L35: 0 | M35: 0 | N35: 0 | O35: 0 | P35: 0 | Q35: 0 | R35: 0 | S35: 0
A36: 36 | D36: Commodity Revenue | G36: 24 | H36: 0 | I36: 0 | J36: 0 | K36: 0 | L36: 0 | M36: 0 | N36: 0 | O36: 0 | P36: 0 | Q36: 0 | R36: 0 | S36: 0 | T36: 0
A37: 37 | D37: Total Revenue | G37: 25 | H37: 0 | I37: 0 | J37: 0 | K37: 0 | L37: 0 | M37: 0 | N37: 0 | O37: 0 | P37: 0 | Q37: 0 | R37: 0 | S37: 0 | T37: 0
A38: 38 | D38: # of Customers | G38: 26 | H38: 0 | I38: 0 | J38: 0 | K38: 0 | L38: 0 | M38: 0 | N38: 0 | O38: 0 | P38: 0 | Q38: 0 | R38: 0 | S38: 0 | T38: 0
A39: 39 | D39: Total Dth | G39: 27 | H39: 0 | I39: 0 | J39: 0 | K39: 0 | L39: 0 | M39: 0 | N39: 0 | O39: 0 | P39: 0 | Q39: 0 | R39: 0 | S39: 0 | T39: 0
A40: 40 | G40: 28
A41: 41 | C41: F-S | D41: Distribution Non-Gas Rev | G41: 29 | H41: 341531.97 | I41: 328115.06 | J41: 301090.84 | K41: 162872.97 | L41: 155782.72 | M41: 155290.78 | N41: 132187.32 | O41: 134826.46 | P41: 145074.27 | Q41: 171882.36 | R41: 271811.89 | S41: 302056.11 | T41: 2602522.75
A42: 42 | G42: 30
A43: 43 | D43: Supplier Non-Gas Revenue | G43: 31 | H43: 278155.16 | I43: 262957.6 | J43: 232521.98 | K43: 167362.25 | L43: 150655.89 | M43: 132892.89 | N43: 102695.88 | O43: 106097.85 | P43: 119336.39 | Q43: 175491.82 | R43: 187755.9 | S43: 237346.23 | T43: 2153269.84
A44: 44 | G44: 32
A45: 45 | D45: Commodity Revenue | G45: 33 | H45: 1392113.69 | I45: 1316052.78 | J45: 1163728.34 | K45: 1030235.01 | L45: 927395.37 | M45: 818051.33 | N45: 632166.97 | O45: 653108.55 | P45: 734601.32 | Q45: 1080278.32 | R45: 939682.56 | S45: 1187872.7 | T45: 11875286.94
A46: 46 | D46: Total Revenue | G46: 34 | H46: 2011800.82 | I46: 1907125.44 | J46: 1697341.16 | K46: 1360470.23 | L46: 1233833.98 | M46: 1106235 | N46: 867050.17 | O46: 894032.86 | P46: 999011.98 | Q46: 1427652.5 | R46: 1399250.35 | S46: 1727275.04 | T46: 16631079.53
A47: 47 | D47: # of Customers | G47: 35 | H47: 449 | I47: 449 | J47: 449 | K47: 449 | L47: 449 | M47: 449 | N47: 439 | O47: 439 | P47: 439 | Q47: 439 | R47: 439 | S47: 439 | T47: 444
A48: 48 | D48: Total Dth | G48: 36 | H48: 281659 | I48: 266270 | J48: 235451 | K48: 208442 | L48: 187635 | M48: 165512 | N48: 127903 | O48: 132140 | P48: 148628 | Q48: 218567 | R48: 190121 | S48: 240336 | T48: 2402664
A49: 49 | G49: 37
A50: 50 | C50: F-3 | D50: Distribution Non-Gas Rev | G50: 38 | H50: 0 | I50: 0 | J50: 0 | K50: 0 | L50: 0 | M50: 0 | N50: 0 | O50: 0 | P50: 0 | Q50: 0 | R50: 0 | S50: 0 | T50: 0
A51: 51 | D51: Supplier Non-Gas Revenue | G51: 39
A52: 52 | D52: Supplier Non-Gas Demand Revenue | G52: 40 | H52: 0 | I52: 0 | J52: 0 | K52: 0 | L52: 0 | M52: 0 | N52: 0 | O52: 0 | P52: 0 | Q52: 0 | R52: 0 | S52: 0 | T52: 0
A53: 53 | D53: Commodity Tariff Revenue | G53: 41
A54: 54 | D54: Commodity Demand Revenue | G54: 42 | H54: 0 | I54: 0 | J54: 0 | K54: 0 | L54: 0 | M54: 0 | N54: 0 | O54: 0 | P54: 0 | Q54: 0 | R54: 0 | S54: 0 | T54: 0
A55: 55 | D55: Total Revenue | G55: 43 | H55: 0 | I55: 0 | J55: 0 | K55: 0 | L55: 0 | M55: 0 | N55: 0 | O55: 0 | P55: 0 | Q55: 0 | R55: 0 | S55: 0 | T55: 0
A56: 56 | D56: # of Customers | G56: 44 | H56: 0 | I56: 0 | J56: 0 | K56: 0 | L56: 0 | M56: 0 | N56: 0 | O56: 0 | P56: 0 | Q56: 0 | R56: 0 | S56: 0 | T56: 0
A57: 57 | D57: Total Sales Dth | G57: 45 | H57: 0 | I57: 0 | J57: 0 | K57: 0 | L57: 0 | M57: 0 | N57: 0 | O57: 0 | P57: 0 | Q57: 0 | R57: 0 | S57: 0 | T57: 0
A58: 58 | G58: 46
A59: 59 | C59: NGV | D59: Distribution Non-Gas Rev | G59: 47 | H59: 148076.59 | I59: 149278.33 | J59: 143650.45 | K59: 136820.84 | L59: 115663.42 | M59: 135581.06 | N59: 154611.17 | O59: 134054.26 | P59: 143155.98 | Q59: 146724.13 | R59: 137048.81 | S59: 164531.12 | T59: 1709196.16
A60: 60 | G60: 48
A61: 61 | D61: Supplier Non-Gas Revenue | G61: 49 | H61: 17958.4 | I61: 18104.14 | J61: 17421.6 | K61: 16593.32 | L61: 14027.4 | M61: 16496.85 | N61: 18812.34 | O61: 16311.07 | P61: 17418.53 | Q61: 17852.68 | R61: 16675.43 | S61: 20019.35 | T61: 207691.11
A62: 62 | G62: 50
A63: 63 | D63: Commodity Revenue | G63: 51 | H63: 80067.5 | I63: 80717.3 | J63: 77674.21 | K63: 73981.32 | L63: 62541.15 | M63: 73551.17 | N63: 83874.79 | O63: 72722.9 | P63: 77660.48 | Q63: 79596.16 | R63: 74347.41 | S63: 89256.25 | T63: 925990.64
A64: 64 | D64: Total Revenue | G64: 52 | H64: 246102.49 | I64: 248099.77 | J64: 238746.26 | K64: 227395.48 | L64: 192231.97 | M64: 225629.08 | N64: 257298.3 | O64: 223088.23 | P64: 238234.99 | Q64: 244172.97 | R64: 228071.65 | S64: 273806.72 | T64: 2842877.91
A65: 65 | D65: # of Customers | G65: 53 | H65: 1 | I65: 1 | J65: 1 | K65: 1 | L65: 1 | M65: 1 | N65: 1 | O65: 1 | P65: 1 | Q65: 1 | R65: 1 | S65: 1 | T65: 1
A66: 66 | D66: Total Dth | G66: 54 | H66: 17497 | I66: 17639 | J66: 16974 | K66: 16167 | L66: 13667 | M66: 16073 | N66: 18329 | O66: 15892 | P66: 16971 | Q66: 17394 | R66: 16247 | S66: 19505 | T66: 202355
A67: 67 | G67: 55
A68: 68 | C68: F-4 | D68: Distribution Non-Gas Rev | G68: 56 | H68: 0 | I68: 0 | J68: 0 | K68: 0 | L68: 0 | M68: 0 | N68: 0 | O68: 0 | P68: 0 | Q68: 0 | R68: 0 | S68: 0 | T68: 0
A69: 69 | G69: 57
A70: 70 | D70: Supplier Non-Gas Revenue | G70: 58 | H70: 0 | I70: 0 | J70: 0 | K70: 0 | L70: 0 | M70: 0 | N70: 0 | O70: 0 | P70: 0 | Q70: 0 | R70: 0 | S70: 0 | T70: 0
A71: 71 | G71: 59
A72: 72 | D72: Commodity Revenue | G72: 60 | H72: 0 | I72: 0 | J72: 0 | K72: 0 | L72: 0 | M72: 0 | N72: 0 | O72: 0 | P72: 0 | Q72: 0 | R72: 0 | S72: 0 | T72: 0
A73: 73 | D73: Total Revenue | G73: 61 | H73: 0 | I73: 0 | J73: 0 | K73: 0 | L73: 0 | M73: 0 | N73: 0 | O73: 0 | P73: 0 | Q73: 0 | R73: 0 | S73: 0 | T73: 0
A74: 74 | D74: # of Customers | G74: 62 | H74: 0 | I74: 0 | J74: 0 | K74: 0 | L74: 0 | M74: 0 | N74: 0 | O74: 0 | P74: 0 | Q74: 0 | R74: 0 | S74: 0 | T74: 0
A75: 75 | D75: Total Dth | G75: 63 | H75: 0 | I75: 0 | J75: 0 | K75: 0 | L75: 0 | M75: 0 | N75: 0 | O75: 0 | P75: 0 | Q75: 0 | R75: 0 | S75: 0 | T75: 0
A76: 76 | G76: 64
A77: 77 | C77: I-2 | D77: Distribution Non-Gas Rev | G77: 65 | H77: 0 | I77: 0 | J77: 0 | K77: 0 | L77: 0 | M77: 0 | N77: 0 | O77: 0 | P77: 0 | Q77: 0 | R77: 0 | S77: 0 | T77: 0
A78: 78 | G78: 66
A79: 79 | D79: Supplier Non-Gas Revenue | G79: 67 | H79: 0 | I79: 0 | J79: 0 | K79: 0 | L79: 0 | M79: 0 | N79: 0 | O79: 0 | P79: 0 | Q79: 0 | R79: 0 | S79: 0 | T79: 0
A80: 80 | G80: 68
A81: 81 | D81: Commodity Revenue | G81: 69 | H81: 0 | I81: 0 | J81: 0 | K81: 0 | L81: 0 | M81: 0 | N81: 0 | O81: 0 | P81: 0 | Q81: 0 | R81: 0 | S81: 0 | T81: 0
A82: 82 | D82: Total Revenue | G82: 70 | H82: 0 | I82: 0 | J82: 0 | K82: 0 | L82: 0 | M82: 0 | N82: 0 | O82: 0 | P82: 0 | Q82: 0 | R82: 0 | S82: 0 | T82: 0
A83: 83 | D83: # of Customers | G83: 71
A84: 84 | D84: Total Dth | G84: 72 | H84: 0 | I84: 0 | J84: 0 | K84: 0 | L84: 0 | M84: 0 | N84: 0 | O84: 0 | P84: 0 | Q84: 0 | R84: 0 | S84: 0 | T84: 0
A85: 85 | G85: 73
A86: 104 | C86: ISE | D86: Distribution Non-Gas Rev | G86: 74 | H86: 0 | I86: 0 | J86: 0 | K86: 0 | L86: 0 | M86: 0 | N86: 0 | O86: 0 | P86: 0 | Q86: 0 | R86: 0 | S86: 0 | T86: 0
A87: 105 | G87: 75
A88: 106 | D88: Supplier Non-Gas Revenue | G88: 76 | H88: 0 | I88: 0 | J88: 0 | K88: 0 | L88: 0 | M88: 0 | N88: 0 | O88: 0 | P88: 0 | Q88: 0 | R88: 0 | S88: 0 | T88: 0
A89: 107 | G89: 77
A90: 108 | D90: Commodity Revenue | G90: 78 | H90: 0 | I90: 0 | J90: 0 | K90: 0 | L90: 0 | M90: 0 | N90: 0 | O90: 0 | P90: 0 | Q90: 0 | R90: 0 | S90: 0 | T90: 0
A91: 109 | D91: Total Revenue | G91: 79 | H91: 0 | I91: 0 | J91: 0 | K91: 0 | L91: 0 | M91: 0 | N91: 0 | O91: 0 | P91: 0 | Q91: 0 | R91: 0 | S91: 0 | T91: 0
A92: 110 | D92: # of Customers | G92: 80 | H92: 0 | I92: 0 | J92: 0 | K92: 0 | L92: 0 | M92: 0 | N92: 0 | O92: 0 | P92: 0 | Q92: 0 | R92: 0 | S92: 0 | T92: 0
A93: 111 | D93: Total Dth | G93: 81 | H93: 0 | I93: 0 | J93: 0 | K93: 0 | L93: 0 | M93: 0 | N93: 0 | O93: 0 | P93: 0 | Q93: 0 | R93: 0 | S93: 0 | T93: 0
A94: 112 | G94: 82
A95: 86 | C95: IS | D95: Distribution Non-Gas Rev | G95: 83 | H95: 23321.97 | I95: 21387.74 | J95: 18897.37 | K95: 16280.34 | L95: 13048.05 | M95: 12288.36 | N95: 11075.28 | O95: 11075.28 | P95: 12030.4 | Q95: 13621.96 | R95: 17120.7 | S95: 22326.01 | T95: 192473.46
A96: 87 | G96: 84
A97: 88 | D97: Supplier Non-Gas Revenue | G97: 85 | H97: 7034.13 | I97: 6165.8 | J97: 5078.86 | K97: 3968.75 | L97: 2634.27 | M97: 2339.14 | N97: 1846.96 | O97: 1846.96 | P97: 2234.24 | Q97: 2884.68 | R97: 4344.17 | S97: 6616.67 | T97: 46994.63
A98: 89 | G98: 86
A99: 90 | D99: Commodity Revenue | G99: 87 | H99: 193545.32 | I99: 169653.03 | J99: 139745.66 | K99: 109200.7 | L99: 72482.5 | M99: 64361.89 | N99: 50819.3 | O99: 50819.3 | P99: 61475.44 | Q99: 79372.41 | R99: 119530.63 | S99: 182058.83 | T99: 1293065.01
A100: 91 | D100: Total Revenue | G100: 88 | H100: 223901.42 | I100: 197206.57 | J100: 163721.89 | K100: 129449.79 | L100: 88164.82 | M100: 78989.39 | N100: 63741.54 | O100: 63741.54 | P100: 75740.08 | Q100: 95879.05 | R100: 140995.5 | S100: 211001.51 | T100: 1532533.1
A101: 92 | D101: # of Customers | G101: 89 | H101: 20 | I101: 20 | J101: 20 | K101: 20 | L101: 20 | M101: 20 | N101: 20 | O101: 20 | P101: 20 | Q101: 20 | R101: 20 | S101: 20 | T101: 20
A102: 93 | D102: Total Dth | G102: 90 | H102: 39159 | I102: 34325 | J102: 28274 | K102: 22094 | L102: 14665 | M102: 13022 | N102: 10282 | O102: 10282 | P102: 12438 | Q102: 16059 | R102: 24184 | S102: 36835 | T102: 261619
A103: 94 | G103: 91
A104: 95 | C104: IS-2 | D104: Distribution Non-Gas Rev | G104: 92 | H104: 0 | I104: 0 | J104: 0 | K104: 0 | L104: 0 | M104: 0 | N104: 0 | O104: 0 | P104: 0 | Q104: 0 | R104: 0 | S104: 0 | T104: 0
A105: 96 | G105: 93
A106: 97 | D106: Supplier Non-Gas Revenue | G106: 94 | H106: 0 | I106: 0 | J106: 0 | K106: 0 | L106: 0 | M106: 0 | N106: 0 | O106: 0 | P106: 0 | Q106: 0 | R106: 0 | S106: 0 | T106: 0
A107: 98 | G107: 95
A108: 99 | D108: Commodity Revenue | G108: 96 | H108: 0 | I108: 0 | J108: 0 | K108: 0 | L108: 0 | M108: 0 | N108: 0 | O108: 0 | P108: 0 | Q108: 0 | R108: 0 | S108: 0 | T108: 0
A109: 100 | D109: Total Revenue | G109: 97 | H109: 0 | I109: 0 | J109: 0 | K109: 0 | L109: 0 | M109: 0 | N109: 0 | O109: 0 | P109: 0 | Q109: 0 | R109: 0 | S109: 0 | T109: 0
A110: 101 | D110: # of Customers | G110: 98 | H110: 0 | I110: 0 | J110: 0 | K110: 0 | L110: 0 | M110: 0 | N110: 0 | O110: 0 | P110: 0 | Q110: 0 | R110: 0 | S110: 0 | T110: 0
A111: 102 | D111: Total Dth | G111: 99 | H111: 0 | I111: 0 | J111: 0 | K111: 0 | L111: 0 | M111: 0 | N111: 0 | O111: 0 | P111: 0 | Q111: 0 | R111: 0 | S111: 0 | T111: 0
A112: 103 | G112: 100 | H112: 0 | I112: 0 | J112: 0 | K112: 0 | L112: 0 | M112: 0 | N112: 0 | O112: 0 | P112: 0 | Q112: 0 | R112: 0 | S112: 0
A113: 113 | C113: FT-1L | D113: Distribution Non-Gas Rev | G113: 101 | H113: 0 | I113: 0 | J113: 0 | K113: 0 | L113: 0 | M113: 0 | N113: 0 | O113: 0 | P113: 0 | Q113: 0 | R113: 0 | S113: 0 | T113: 0
A114: 114 | G114: 102 | H114: 0 | I114: 0 | J114: 0 | K114: 0 | L114: 0 | M114: 0 | N114: 0 | O114: 0 | P114: 0 | Q114: 0 | R114: 0 | S114: 0
A115: 115 | D115: Supplier Non-Gas Revenue | G115: 103 | H115: 0 | I115: 0 | J115: 0 | K115: 0 | L115: 0 | M115: 0 | N115: 0 | O115: 0 | P115: 0 | Q115: 0 | R115: 0 | S115: 0 | T115: 0
A116: 116 | G116: 104 | H116: 0 | I116: 0 | J116: 0 | K116: 0 | L116: 0 | M116: 0 | N116: 0 | O116: 0 | P116: 0 | Q116: 0 | R116: 0 | S116: 0
A117: 117 | D117: Commodity Revenue | G117: 105 | H117: 0 | I117: 0 | J117: 0 | K117: 0 | L117: 0 | M117: 0 | N117: 0 | O117: 0 | P117: 0 | Q117: 0 | R117: 0 | S117: 0 | T117: 0
A118: 118 | D118: Total Revenue | G118: 106 | H118: 0 | I118: 0 | J118: 0 | K118: 0 | L118: 0 | M118: 0 | N118: 0 | O118: 0 | P118: 0 | Q118: 0 | R118: 0 | S118: 0 | T118: 0
A119: 119 | D119: # of Customers | G119: 107 | H119: 0 | I119: 0 | J119: 0 | K119: 0 | L119: 0 | M119: 0 | N119: 0 | O119: 0 | P119: 0 | Q119: 0 | R119: 0 | S119: 0 | T119: 0
A120: 120 | D120: Total Dth | G120: 108 | H120: 0 | I120: 0 | J120: 0 | K120: 0 | L120: 0 | M120: 0 | N120: 0 | O120: 0 | P120: 0 | Q120: 0 | R120: 0 | S120: 0 | T120: 0
A121: 121 | G121: 109
A122: 122 | C122: FT-1 | D122: Distribution Non-Gas Rev | G122: 110 | H122: 173803.8 | I122: 167597.33 | J122: 172643.09 | K122: 161813.24 | L122: 192933.19 | M122: 191281.06 | N122: 295754.12 | O122: 416254.18 | P122: 274262.5 | Q122: 197094.9 | R122: 252954.01 | S122: 231649.58 | T122: 2728041
A123: 123 | G123: 111
A124: 124 | D124: Supplier Non-Gas Revenue | G124: 112 | H124: 4713.76 | I124: 4713.76 | J124: 4713.76 | K124: 4713.76 | L124: 4713.76 | M124: 4713.76 | N124: 4713.76 | O124: 4713.76 | P124: 4713.76 | Q124: 4713.76 | R124: 4713.76 | S124: 4713.76 | T124: 56565.12
A125: 125 | G125: 113
A126: 126 | D126: Commodity Revenue | G126: 114 | H126: 0 | I126: 0 | J126: 0 | K126: 0 | L126: 0 | M126: 0 | N126: 0 | O126: 0 | P126: 0 | Q126: 0 | R126: 0 | S126: 0 | T126: 0
A127: 127 | D127: Total Revenue | G127: 115 | H127: 178517.56 | I127: 172311.09 | J127: 177356.85 | K127: 166527 | L127: 197646.95 | M127: 195994.82 | N127: 300467.88 | O127: 420967.94 | P127: 278976.26 | Q127: 201808.66 | R127: 257667.77 | S127: 236363.34 | T127: 2784606.12
A128: 128 | D128: # of Customers | G128: 116 | H128: 6 | I128: 6 | J128: 6 | K128: 6 | L128: 6 | M128: 6 | N128: 6 | O128: 6 | P128: 6 | Q128: 6 | R128: 6 | S128: 6 | T128: 6
A129: 129 | D129: Total Dth | G129: 117 | H129: 145836 | I129: 134042 | J129: 143154 | K129: 122326 | L129: 181504 | M129: 179263 | N129: 450941 | O129: 736317 | P129: 372765 | Q129: 190193 | R129: 322859 | S129: 260373 | T129: 3239573
A130: 130 | G130: 118
A131: 131 | C131: FT-2 | D131: Distribution Non-Gas Rev | G131: 119 | H131: 0 | I131: 0 | J131: 0 | K131: 0 | L131: 0 | M131: 0 | N131: 0 | O131: 0 | P131: 0 | Q131: 0 | R131: 0 | S131: 0 | T131: 0
A132: 132 | G132: 120 | H132: 0 | I132: 0 | J132: 0 | K132: 0 | L132: 0 | M132: 0 | N132: 0 | O132: 0 | P132: 0 | Q132: 0 | R132: 0 | S132: 0
A133: 133 | D133: Supplier Non-Gas Revenue | G133: 121 | H133: 0 | I133: 0 | J133: 0 | K133: 0 | L133: 0 | M133: 0 | N133: 0 | O133: 0 | P133: 0 | Q133: 0 | R133: 0 | S133: 0 | T133: 0
A134: 134 | G134: 122 | H134: 0 | I134: 0 | J134: 0 | K134: 0 | L134: 0 | M134: 0 | N134: 0 | O134: 0 | P134: 0 | Q134: 0 | R134: 0 | S134: 0
A135: 135 | D135: Commodity Revenue | G135: 123 | H135: 0 | I135: 0 | J135: 0 | K135: 0 | L135: 0 | M135: 0 | N135: 0 | O135: 0 | P135: 0 | Q135: 0 | R135: 0 | S135: 0 | T135: 0
A136: 136 | D136: Total Revenue | G136: 124 | H136: 0 | I136: 0 | J136: 0 | K136: 0 | L136: 0 | M136: 0 | N136: 0 | O136: 0 | P136: 0 | Q136: 0 | R136: 0 | S136: 0 | T136: 0
A137: 137 | D137: # of Customers | G137: 125 | H137: 0 | I137: 0 | J137: 0 | K137: 0 | L137: 0 | M137: 0 | N137: 0 | O137: 0 | P137: 0 | Q137: 0 | R137: 0 | S137: 0 | T137: 0
A138: 138 | D138: Total Dth | G138: 126 | H138: 0 | I138: 0 | J138: 0 | K138: 0 | L138: 0 | M138: 0 | N138: 0 | O138: 0 | P138: 0 | Q138: 0 | R138: 0 | S138: 0 | T138: 0
A139: 139 | G139: 127
A140: 140 | C140: MT | D140: Distribution Non-Gas Rev | G140: 128 | H140: 4598.52 | I140: 4376.57 | J140: 3191.72 | K140: 1867.34 | L140: 1445.46 | M140: 1097.02 | N140: 1032.56 | O140: 1052.96 | P140: 1115.79 | Q140: 1782.47 | R140: 2912.65 | S140: 4795.18 | T140: 29268.24
A141: 141 | G141: 129
A142: 142 | D142: Supplier Non-Gas Revenue | G142: 130 | H142: 0 | I142: 0 | J142: 0 | K142: 0 | L142: 0 | M142: 0 | N142: 0 | O142: 0 | P142: 0 | Q142: 0 | R142: 0 | S142: 0 | T142: 0
A143: 143 | G143: 131
A144: 144 | D144: Commodity Revenue | G144: 132 | H144: 0 | I144: 0 | J144: 0 | K144: 0 | L144: 0 | M144: 0 | N144: 0 | O144: 0 | P144: 0 | Q144: 0 | R144: 0 | S144: 0 | T144: 0
A145: 145 | D145: Total Revenue | G145: 133 | H145: 4598.52 | I145: 4376.57 | J145: 3191.72 | K145: 1867.34 | L145: 1445.46 | M145: 1097.02 | N145: 1032.56 | O145: 1052.96 | P145: 1115.79 | Q145: 1782.47 | R145: 2912.65 | S145: 4795.18 | T145: 29268.24
A146: 146 | D146: # of Customers | G146: 134 | H146: 1 | I146: 1 | J146: 1 | K146: 1 | L146: 1 | M146: 1 | N146: 1 | O146: 1 | P146: 1 | Q146: 1 | R146: 1 | S146: 1 | T146: 1
A147: 147 | D147: Total Dth | G147: 135 | H147: 4814 | I147: 4542 | J147: 3090 | K147: 1467 | L147: 950 | M147: 523 | N147: 444 | O147: 469 | P147: 546 | Q147: 1363 | R147: 2748 | S147: 5055 | T147: 26011
A148: 148 | G148: 136
A149: 149 | C149: FT-E | D149: Distribution Non-Gas Rev | G149: 137 | H149: 186677 | I149: 186677 | J149: 186677 | K149: 186677 | L149: 186677 | M149: 186677 | N149: 186677 | O149: 186677 | P149: 186677 | Q149: 186677 | R149: 186677 | S149: 186677 | T149: 2240124
A150: 150 | G150: 138
A151: 151 | D151: Supplier Non-Gas Revenue | G151: 139 | H151: 0 | I151: 0 | J151: 0 | K151: 0 | L151: 0 | M151: 0 | N151: 0 | O151: 0 | P151: 0 | Q151: 0 | R151: 0 | S151: 0 | T151: 0
A152: 152 | G152: 140
A153: 153 | D153: Commodity Revenue | G153: 141 | H153: 0 | I153: 0 | J153: 0 | K153: 0 | L153: 0 | M153: 0 | N153: 0 | O153: 0 | P153: 0 | Q153: 0 | R153: 0 | S153: 0 | T153: 0
A154: 154 | D154: Total Revenue | G154: 142 | H154: 186677 | I154: 186677 | J154: 186677 | K154: 186677 | L154: 186677 | M154: 186677 | N154: 186677 | O154: 186677 | P154: 186677 | Q154: 186677 | R154: 186677 | S154: 186677 | T154: 2240124
A155: 155 | D155: # of Customers | G155: 143 | H155: 1 | I155: 1 | J155: 1 | K155: 1 | L155: 1 | M155: 1 | N155: 1 | O155: 1 | P155: 1 | Q155: 1 | R155: 1 | S155: 1 | T155: 1
